Workbook

Sheet Projects
A1: Muskegon/Northern Ottawa MPO
A2: 2017-05-31
A3: Required Fields | Z3: Optional Fields | AE3: ='MDOT FTA Detail'!B1 -> E-File v. 5.1 (01.15.15)
A4: Fiscal Year | B4: County | C4: Respon-sible Agency | D4: Project Name | E4: Limits | F4: Length | G4: Primary Work Type | H4: Project Description | I4: Phase | J4: Advance Construct | K4: Federal Cost ($1000s) | L4: Federal Fund Source | M4: State Cost ($1000s) | N4: State Fund Source | O4: Local Cost ($1000s) | P4: Local Fund Source | Q4: Total Phase Cost ($1000s) | R4: MDOT Job No. | S4: Local ID No. | T4: MPO/ Rural Action Date | U4: Amend-ment Type | V4: Air Quality | W4: Comments | X4: Total Project Cost ($1000s) | Y4: x | Z4: Local Priority | AA4: EJ | AB4: Federal Approval Date | AC4: Capped Federal Cost ($1000s) | AD4: Date Obligated | AE4: Amount Obligated ($1000s) | AF4: Let Date | AG4: MPO
A5: 2017 | B5: Areawide | C5: FTA GPA | D5: Section 5307 GPA | E5: Areawide | F5: NA | G5: GPA | H5: Urbanized Area Formula Grants | K5: 2155000 | L5: 5307 | M5: 760000 | N5: M | O5: 915000 | P5: OLF | Q5: 3830000 | T5: 2016-05-18 | V5: Exempt | X5: 8240500 | AB5: 2016-10-01
A6: 2017 | B6: Areawide | C6: FTA GPA | D6: Section 5310 GPA | E6: Areawide | F6: NA | G6: GPA | H6: Enhanced Mobility of Seniors and Individuals with Disabilities | K6: 803060 | L6: 5310 | M6: 242015 | N6: M | Q6: 1045075 | T6: 2016-05-18 | V6: Exempt | X6: 571621 | AB6: 2016-10-01
A7: 2017 | B7: Areawide | C7: FTA GPA | D7: Section 5311 GPA | E7: Areawide | F7: NA | G7: GPA | H7: Rural Area Formula Grants | K7: 46585 | L7: 5311 | M7: 46585 | N7: M | Q7: 93170 | T7: 2016-05-18 | V7: Exempt | X7: 2728753 | AB7: 2016-10-01
A8: 2017 | B8: Areawide | C8: FTA GPA | D8: Section 5337 GPA | E8: Areawide | F8: NA | G8: GPA | H8: Bus and Bus Facilities | K8: 470000 | L8: 5337 | M8: 117600 | N8: M | Q8: 587600 | T8: 2016-05-18 | V8: Exempt | X8: 957629 | AB8: 2016-10-01
A9: 2017 | B9: Areawide | C9: FTA GPA | D9: Section 5339 GPA | E9: Areawide | F9: NA | G9: GPA | H9: Bus and Bus Facilities | K9: 235200 | L9: 5339 | M9: 58800 | N9: M | Q9: 294000 | T9: 2016-05-18 | V9: Exempt | X9: 957629 | AB9: 2016-10-01
A10: 2017 | B10: MUSKEGON | C10: Goodwill | D10: Two cutaway buses | E10: Areawide | F10: NA | G10: Transit vehicle additions/replacements | H10: Purchase two cutaway buses | I10: T-Cap | K10: 93084 | L10: 5310 | M10: 23271 | N10: CTF | Q10: 116355 | T10: 2017-01-18 | V10: Exempt | X10: 116000 | AB10: 2017-04-06
A11: 2017 | B11: MUSKEGON | C11: Goodwill | D11: Two expansion vans | E11: Areawide | F11: NA | G11: Transit vehicle additions/replacements | H11: Purchase two expansion vans | I11: T-Cap | K11: 75602 | L11: 5310 | M11: 18900 | N11: CTF | Q11: 94502 | T11: 2017-01-18 | V11: Exempt | X11: 116000 | AB11: 2017-04-06
A12: 2017 | B12: MUSKEGON | C12: MATS | D12: Outreach and Marketing | E12: Areawide | F12: NA | G12: Studies | H12: Outreach and marketing | I12: T-Ops | K12: 197584 | L12: CM | M12: 49396 | N12: CTF | Q12: 246980 | R12: 120944 | T12: 2016-02-17 | V12: Exempt | W12: Originally added 6/19/13. Original cost $120,000 CM, $30,000 CTF $150,000 total. Changed to $163,000. Cost increased on 2/17/2016 to Federal $197,584 $49,396 local. | AB12: 2016-10-01
A13: 2017 | B13: MUSKEGON | C13: MATS | D13: Heavy duty bus replacement | E13: Areawide | F13: NA | G13: Transit vehicle additions/replacements | H13: Heavy duty bus replacement | I13: T-Cap | K13: 390000 | L13: CM | M13: 97500 | N13: CTF | Q13: 487500 | R13: 120943 | T13: 2016-02-17 | V13: Exempt | AB13: 2016-10-01
A14: 2017 | B14: MUSKEGON | C14: MATS | D14: Specialized Service Operating | E14: Areawide | F14: NA | G14: Transit operations | H14: Specialized Service Operating | I14: T-Ops | M14: 65499 | N14: CTF | Q14: 65499 | T14: 2015-03-18 | V14: Exempt | AB14: 2016-10-01
A15: 2017 | B15: MUSKEGON | C15: MCRC | D15: Whitehall Road | E15: over Bear Creek | G15: Bridge - other | H15: Preventative Maintenance | I15: CON | K15: 81600 | L15: BHT | M15: 15300 | N15: M | O15: 5100 | P15: CNTY | Q15: 102000 | R15: 126589 | T15: 2015-03-18 | V15: Exempt | X15: 102000 | AB15: 2016-10-01 | AE15: 0 | AF15: 2017-03-03 | AG15: Local Bridge
A16: 2017 | B16: MUSKEGON | C16: MCRC | D16: Witham Road | E16: over Bear Creek | G16: Bridge - other | H16: Preventative Maintenance | I16: CON | K16: 87600 | L16: BHT | M16: 16425 | N16: M | O16: 5475 | P16: CNTY | Q16: 109500 | R16: 126588 | T16: 2015-03-18 | V16: Exempt | X16: 109500 | AB16: 2016-10-01 | AE16: 0 | AF16: 2017-03-03 | AG16: Local Bridge
A17: 2017 | B17: MUSKEGON | C17: MCRC | D17: Memorial Drive | E17: over Green Creek | G17: Bridge - other | H17: Preventative Maintenance | I17: CON | K17: 138000 | L17: BHT | M17: 25875 | N17: M | O17: 8625 | P17: CNTY | Q17: 172500 | R17: 126591 | T17: 2015-03-18 | V17: Exempt | X17: 172500 | AB17: 2016-10-01 | AE17: 0 | AF17: 2017-03-03 | AG17: Local Bridge
A18: 2017 | B18: MUSKEGON | C18: MCRC | D18: Fruitvale Rd | E18: Fr.: Whitbeck-US-31 BR; Wh: Eilers-Fruitvale | G18: Reconstruct | H18: Reconstruct | I18: CON | K18: 600151 | L18: STL | M18: 209714 | N18: M | O18: 20135 | P18: CNTY | Q18: 830000 | R18: 130476 | V18: Exempt | W18: Rural Task Force 14 project | X18: 830000 | AB18: 2016-10-01 | AE18: 0 | AF18: 2017-06-02
A19: 2017 | B19: MUSKEGON | C19: MCRC | D19: River Rd | E19: Whitehall Road to Horton Road and Horton to Buys | F19: 2 | G19: Resurface | H19: Resurface: Crush and shape; Two course HMA paving. A correction to the vertical profile at the Hyde Park Road intersection is contemplated to improve sight distance for improved safety performance. | I19: CON | K19: 672314 | L19: STUL | O19: 134462 | P19: CNTY | Q19: 806776 | R19: 123984 | T19: 2017-01-18 | V19: Exempt | W19: Project originally added 6/19/13. Original funding $312,000 STUL, $78,000 local. New funding amounts 1/18/2017. Added $360,314 HPP funding and increase local funding amount. Original limits from Whitehall Road to Horton Road. Listed incorrctly as Reconstruct, changed to Resurface 3/7/17. Added in limits of Horton to Buys to account for HPP funding added to porject. | X19: 900000 | AB19: 2017-04-06 | AE19: 0 | AF19: 2017-09-01
A20: 2017 | B20: MUSKEGON | C20: MDOT | D20: US-31 | E20: At Russell Road | F20: NA | G20: Roadside facility | H20: Mill and Resurface | I20: CON | K20: 37651 | L20: ST | M20: 8349 | N20: M | Q20: 46000 | R20: 120077 | V20: Exempt | X20: 46000 | AB20: 2017-02-08 | AE20: 0 | AF20: 2017-01-13
A21: 2017 | B21: MUSKEGON | C21: MDOT | D21: Trunkline Bridge 3R | E21: Regionwide | F21: NA | G21: GPA | H21: Trunkline Bridge 3R | I21: CON | K21: 543664 | L21: ST | M21: 120557 | N21: M | Q21: 664221 | T21: 2016-05-18 | V21: Exempt | W21: Based on projects in FHWA GPA tab | X21: 664221 | AB21: 2016-10-01
A22: 2017 | B22: MUSKEGON | C22: MDOT | D22: Trunkline Traffic Operations or Safety | E22: Regionwide | F22: NA | G22: GPA | H22: Trunkline Traffic Operations and Safety | I22: CON | K22: 1009000 | L22: ST | M22: 226075 | N22: M | Q22: 1235075 | T22: 2017-01-18 | V22: Exempt | W22: Based on projects in FHWA GPA tab. Originally added 5/18/2016 at $1,000,000 total. Increased costs on 1/17/2017. | X22: 1000000 | AB22: 2017-04-06
A23: 2017 | B23: MUSKEGON | C23: MDOT | D23: Trunkline Roadside Improvements | E23: Regionwide | F23: NA | G23: GPA | H23: Trunkline Roadside Improvements | I23: CON | K23: 29466 | L23: ST | M23: 6534 | N23: M | Q23: 36000 | T23: 2016-05-18 | V23: Exempt | W23: Based on projects in FHWA GPA tab | X23: 36000 | AB23: 2016-10-01
A24: 2017 | B24: MUSKEGON | C24: MDOT | D24: Trunkline Highway 3R | E24: Regionwide | F24: NA | G24: GPA | H24: Trunkline Highway 3R | I24: CON | K24: 3534611 | L24: ST | M24: 813389 | N24: M | O24: 343000 | P24: OLF | Q24: 4691000 | S24: D | T24: 2017-03-15 | V24: Exempt | W24: Based on projects in FHWA GPA tab | X24: 2953000 | AB24: 2017-05-31
A25: 2017 | B25: MUSKEGON | C25: MDOT | D25: Trunkline Highway Preservation | E25: Regionwide | F25: NA | G25: GPA | H25: Trunkline Highway Preservation | I25: CON | K25: 5275351 | L25: ST | M25: 970649 | N25: M | Q25: 6246000 | T25: 2016-05-18 | V25: Exempt | W25: Based on projects in FHWA GPA tab | X25: 6246000 | AB25: 2016-10-01
A26: 2017 | B26: MUSKEGON | C26: Montague | D26: Wilcox St /Industrial | E26: Wilcox St., Whitbeck to E of Scharmer/Industrial, Whitbeck to Cook | F26: 0.512 | G26: Resurface | H26: Resurface | I26: CON | M26: 375000 | N26: EDF | O26: 125000 | P26: CITY | Q26: 500000 | R26: 130794 | T26: 2017-02-24 | V26: Exempt | W26: Administrative adjustment on funding source 2/24/2017. | X26: 500000 | AB26: 2016-10-01 | AE26: 0 | AF26: 2016-12-02
A27: 2017 | B27: MUSKEGON | C27: Montague | D27: Dowling Street | E27: Meade to Water | G27: Reconstruct | H27: Reconstruct | I27: CON | J27: AC | O27: 468750 | P27: CITY | Q27: 468750 | T27: 2017-01-18 | V27: Exempt | X27: 468750 | AB27: 2017-04-06
A28: 2017 | B28: MUSKEGON | C28: Muskegon | D28: Laketon Ave | E28: Getty to Creston | F28: 0.755 | G28: Reconstruct | H28: Reconstruction, possibly keep curbs | I28: CON | K28: 1159909 | L28: STUL | O28: 1015786 | P28: CITY | Q28: 2175695 | R28: 123986 | S28: E | T28: 2017-05-17 | U28: Cost | V28: Exempt | W28: Project originally added 6/19/13. Original funding $760,000 STUL, $950,000 local. New funding amounts 1/18/2017. Added $399,909 HPP funding and decrease local funding amount. (Original HPP funding was for Western Avenue). Increase local funding 5/17/2017. Original local funding was $231,981. | X28: 2500000 | AB28: 2017-06-20 | AE28: 0 | AF28: 2017-09-01
A29: 2017 | B29: MUSKEGON | C29: Muskegon Heights | D29: Hackley Ave | E29: Hackley Ave from Park to Glade | F29: 0.757 | G29: Resurface | H29: Resurface existing road | I29: CON | K29: 99605 | L29: STUL | O29: 79395 | P29: CITY | Q29: 179000 | R29: 130814 | S29: D | T29: 2017-03-15 | V29: Exempt | W29: Local match was $37000. Changed to $79395 on 3/15/2017. | X29: 200000 | AB29: 2017-05-31 | AE29: 0 | AF29: 2016-12-02
A30: 2017 | B30: MUSKEGON | C30: Norton Shores | D30: Henry Street | E30: over Mona Lake | F30: 0.176 | G30: Bridge - other | H30: Henry Street bridge over Mona Lake | I30: CON | K30: 0 | M30: 555180 | N30: M | O30: 182641 | P30: CITY | Q30: 737821 | R30: 126583 | S30: D | T30: 2017-03-15 | V30: Exempt | W30: Changed funding from federal to state.originally added3/18/2015. | X30: 740000 | AB30: 2017-05-31 | AE30: 0 | AF30: 2017-04-07 | AG30: Local Bridge
A31: 2017 | B31: MUSKEGON | C31: Norton Shores | D31: Martin Road | E31: at Sternberg Road and Porter Road intersections | F31: 0.25 | G31: Traffic ops/safety | H31: Intersection Reconfiguration for turn movements | I31: CON | K31: 139520 | L31: CM | O31: 34880 | P31: CITY | Q31: 174400 | R31: 122691 | T31: 2014-12-17 | V31: Exempt | X31: 174400 | AB31: 2016-10-01 | AE31: 0 | AF31: 2016-12-02
A32: 2017 | B32: MUSKEGON | C32: Norton Shores | D32: Harvey St | E32: Hile to Ellis | F32: 0.503 | G32: Reconstruct | H32: Reconstruct road with 12' Lanes, 12' Center turn lane. Add 2 lanes for a total of 5 lanes with curb and gutter. | I32: CON | K32: 520000 | L32: STUL | O32: 515868 | P32: CITY | Q32: 1035868 | R32: 123988 | S32: A | T32: 2016-08-17 | V32: Exempt | W32: Originally added 6/19/13 as a reconstruct of three lanes. Original funding amount was $520,000 STP, $130,000 local. Added Tribal $ of $385,868 on 8/17/16 to local amount. | X32: 1400000 | AB32: 2017-02-08 | AE32: 0 | AF32: 2017-09-01
A33: 2017 | B33: MUSKEGON | C33: WMSRDC | D33: Areawide | E33: Air Quality Outreach Program | F33: NA | G33: Studies | H33: Air Quality Outreach program | I33: EPE | K33: 100000 | L33: CM | O33: 25000 | P33: OLF | Q33: 125000 | R33: 120921 | T33: 2014-12-17 | V33: Exempt | X33: 125000 | AB33: 2016-10-01 | AE33: 0 | AF33: 2016-10-04
A34: 2017 | B34: OTTAWA | C34: Harbor Transit | D34: Outreach and Marketing | E34: Areawide | F34: NA | G34: Transit operations | H34: Conduct transit and marketing activities | I34: T-Ops | K34: 32000 | L34: CM | M34: 8000 | N34: CTF | Q34: 40000 | R34: 123942 | T34: 2014-12-17 | V34: Exempt | W34: Originally added 6/19/2013.original cost $40,000 CM. $10,000 CTF. | X34: 50000 | AB34: 2016-10-01
A35: 2017 | B35: OTTAWA | C35: Harbor Transit | D35: Replacement Bus | E35: Areawide | F35: NA | G35: Transit vehicle additions/replacements | H35: Replacement Bus | I35: T-Cap | K35: 115372 | L35: 5339 | Q35: 115372 | S35: A | T35: 2016-08-17 | V35: Exempt | X35: 115372 | AB35: 2017-02-07
A36: 2017 | B36: OTTAWA | C36: OCRC | D36: 174th Ave | E36: Van Wagoner to Wilson | F36: 1.539 | G36: Resurface | H36: Reconstruct two 12 foot lanes and existing paved shoulders | I36: CON | K36: 450000 | L36: STUL | O36: 130000 | P36: CITY | Q36: 580000 | R36: 123989 | T36: 2013-06-19 | V36: Exempt | X36: 620000 | AB36: 2016-10-01 | AE36: 0 | AF36: 2017-09-01
A37: 2017 | B37: OTTAWA | C37: Spring Lake | D37: S Buchanan St | E37: Exchange to Liberty | F37: 0.149 | G37: Reconstruct | H37: Reconstruct Buchanan Street from Exchange to Liberty Street -two 12-foot lanes | I37: CON | K37: 176000 | L37: STUL | O37: 44000 | P37: CITY | Q37: 220000 | R37: 123994 | T37: 2013-06-19 | V37: Exempt | X37: 250000 | AB37: 2016-10-01 | AE37: 0 | AF37: 2017-09-01
A38: 2018 | B38: Areawide | C38: FTA GPA | D38: Section 5307 GPA | E38: Areawide | F38: NA | G38: GPA | H38: Urbanized Area Formula Grants | K38: 2155000 | L38: 5307 | M38: 760000 | N38: M | O38: 915000 | P38: OLF | Q38: 3830000 | T38: 2016-05-18 | V38: Exempt | X38: 8305687.5 | AB38: 2016-10-01
A39: 2018 | B39: Areawide | C39: FTA GPA | D39: Section 5310 GPA | E39: Areawide | F39: NA | G39: GPA | H39: Enhanced Mobility of Seniors and Individuals with Disabilities | K39: 441463 | L39: 5310 | M39: 163753 | N39: M | Q39: 605216 | T39: 2016-05-18 | U39: Cost | V39: Exempt | W39: Added project to FTA GPA 5/17/17. | X39: 571621 | AB39: 2017-06-20
A40: 2018 | B40: Areawide | C40: FTA GPA | D40: Section 5311 GPA | E40: Areawide | F40: NA | G40: GPA | H40: Rural Area Formula Grants | K40: 46585 | L40: 5311 | M40: 46585 | N40: M | Q40: 93170 | T40: 2016-05-18 | V40: Exempt | X40: 2728753 | AB40: 2016-10-01
A41: 2018 | B41: Muskegon | C41: MATS | D41: Specialized Service Operating | E41: Areawide | F41: NA | G41: Transit operations | H41: Specialized Service Operating | I41: T-Ops | M41: 65499 | N41: CTF | Q41: 65499 | T41: 2016-05-18 | V41: Exempt | AB41: 2016-10-01
A42: 2018 | B42: MUSKEGON | C42: MATS | D42: Heavy duty bus replacement | E42: Areawide | F42: NA | G42: Transit capital | H42: Heavy duty bus replacement | I42: T-Cap | K42: 390000 | L42: CM | M42: 97500 | N42: CTF | Q42: 487500 | T42: 2017-02-15 | V42: Exempt | W42: Original year was FY2019. Switch to FY2018 | AB42: 2016-10-01
A43: 2018 | B43: MUSKEGON | C43: MATS | D43: Route Study/ Operational Analysis | E43: Areawide | F43: NA | G43: Studies | H43: Route study and management study | I43: T-Ops | K43: 156000 | L43: 5304 | M43: 39000 | N43: CTF | Q43: 0.00941993059 | T43: 2017-01-18 | V43: Exempt | W43: This funding should appear in the State and/or Muskegon UWP | X43: 116000 | AB43: 2017-06-19
A44: 2018 | B44: MUSKEGON | C44: MCRC | D44: Maple Island Rd | E44: Heights Ravenna Rd to M-46 | G44: Reconstruct | H44: Reconstruct | I44: CON | K44: 438090 | L44: STL | M44: 172348 | N44: M | Q44: 610438 | R44: 130481 | T44: 2016-05-18 | V44: Exempt | W44: Rural Task Force 14 project | X44: 610438 | AB44: 2016-10-01 | AE44: 0 | AF44: 2018-06-01
A45: 2018 | B45: MUSKEGON | C45: MCRC | D45: Sheridan Rd | E45: M-46 to Laketon | F45: 1.064 | G45: Resurface | H45: Resurface | I45: CON | K45: 325000 | L45: STUL | O45: 105000 | P45: CNTY | Q45: 430000 | R45: 130799 | T45: 2016-05-18 | V45: Exempt | X45: 430000 | AB45: 2016-10-01 | AE45: 0 | AF45: 2017-12-01
A46: 2018 | B46: MUSKEGON | C46: MDOT | D46: US-31 | E46: US-31SB from US-31BR to S. of M-120 | F46: 1.707 | G46: Miscellaneous | H46: Widen paved shoulder | I46: PE | K46: 67500 | L46: HSIP | M46: 7500 | N46: M | Q46: 75000 | R46: 122641 | T46: 2016-05-18 | V46: Exempt | X46: 400000 | AB46: 2016-10-01 | AE46: 0 | AF46: 2020-01-10
A47: 2018 | B47: MUSKEGON | C47: MDOT | D47: Trunkline Scoping and Studies | E47: Regionwide | F47: NA | G47: GPA | H47: Trunkline Scoping and Studies | I47: CON | K47: 99965.6 | L47: ST | M47: 24991.4 | N47: M | Q47: 124957 | T47: 2016-05-18 | V47: Exempt | W47: Based on MDOT templated budgets and 5 year average | X47: 124957 | AB47: 2016-10-01
A48: 2018 | B48: MUSKEGON | C48: MDOT | D48: Trunkline Traffic Operations or Safety | E48: Regionwide | F48: NA | G48: GPA | H48: Trunkline Traffic Operations and Safety | I48: CON | K48: 1034800 | L48: ST | M48: 22687 | N48: M | Q48: 1057487 | V48: Exempt | W48: Based on prrojects in FHWA GPA tab | X48: 125000 | AB48: 2016-10-01
A49: 2018 | B49: MUSKEGON | C49: MDOT | D49: Trunkline Bridge 3R | E49: Regionwide | F49: NA | G49: GPA | H49: Trunkline Bridge 3R | I49: CON | K49: 371609 | L49: ST | M49: 41289 | N49: M | Q49: 412898 | T49: 2016-05-18 | V49: Exempt | W49: Based on prrojects in FHWA GPA tab | X49: 412898 | AB49: 2016-10-01
A50: 2018 | B50: MUSKEGON | C50: MDOT | D50: Trunkline Bridge Preservation | E50: Regionwide | F50: NA | G50: GPA | H50: Trunkline Bridge Preservation | I50: CON | K50: 920000 | L50: ST | M50: 230000 | N50: M | Q50: 1150000 | T50: 2016-05-18 | V50: Exempt | W50: Based on MDOT templated budgets and 5 year average | X50: 1150000 | AB50: 2016-10-01
A51: 2018 | B51: MUSKEGON | C51: MDOT | D51: Trunkline Highway Preservation | E51: Regionwide | F51: NA | G51: GPA | H51: Trunkline Highway Preservation | I51: CON | K51: 5240000 | L51: ST | M51: 1310000 | N51: M | Q51: 6550000 | T51: 2016-05-18 | V51: Exempt | W51: Based on MDOT templated budgets and 5 year average | X51: 6550000 | AB51: 2016-10-01
A52: 2018 | B52: MUSKEGON | C52: Montague | D52: Cook St | E52: Hancock to Dowling | F52: 0.247 | G52: Reconstruct | H52: Reconstruct | I52: CON | K52: 275000 | L52: STUL | O52: 75000 | P52: CITY | Q52: 350000 | R52: 130786 | T52: 2016-05-18 | V52: Exempt | X52: 350000 | AB52: 2016-10-01 | AE52: 0 | AF52: 2018-12-07
A53: 2018 | B53: MUSKEGON | C53: Montague | D53: Dowling Street | E53: Meade to Water | G53: Reconstruct | H53: Reconstruct | I53: CON | J53: ACC | K53: 375000 | L53: STU | Q53: 375000 | T53: 2017-01-18 | V53: Exempt | AB53: 2017-04-06
A54: 2018 | B54: MUSKEGON | C54: Muskegon | D54: Install signal, installation of loop detectors, and interconnection with signal at Black Creek/Sherman | E54: Oltoff at Black Creek Road | F54: NA | G54: Traffic ops/safety | H54: Install signal, installation of loop detectors, and interconnection with signal at Black Creek/Sherman | I54: CON | K54: 80000 | L54: CM | O54: 20000 | P54: CITY | Q54: 100000 | T54: 2016-05-18 | V54: Exempt | X54: 100000 | AB54: 2016-10-01
A55: 2018 | B55: MUSKEGON | C55: Muskegon | D55: Black Creek Rd | E55: Sherman Blvd to Latimer | F55: 0.838 | G55: Reconstruct | H55: Reconstruct | I55: CON | K55: 260000 | L55: STUL | O55: 75000 | P55: CITY | Q55: 335000 | R55: 130800 | T55: 2016-05-18 | V55: Exempt | X55: 335000 | AB55: 2016-10-01 | AE55: 0 | AF55: 2017-12-01
A56: 2018 | B56: MUSKEGON | C56: Norton Shores | D56: Grand Haven/ Sternberg intersection traffic signal | E56: Sternberg Road at Grand Haven Road | F56: NA | G56: Traffic ops/safety | H56: Full actuation of Grand Haven/Sternberg intersection traffic signal. | I56: CON | K56: 17926 | L56: CM | Q56: 17926 | T56: 2016-05-18 | V56: Exempt | X56: 17926 | AB56: 2016-10-01
A57: 2019 | B57: MUSKEGON | C57: Norton Shores | D57: Broadway Ave | E57: Getty to Bailey | F57: 0.504 | G57: Reconstruct | H57: Reconstruct existing 4 lane HMA | I57: CON | K57: 500000 | L57: STUL | O57: 300000 | P57: CITY | Q57: 800000 | R57: 130801 | T57: 2017-03-15 | V57: Exempt | W57: Originally added 5/18/16. Changed year from FY18 to FY19, 3/15/2017. | X57: 800000 | AB57: 2017-05-31 | AE57: 0 | AF57: 2017-12-01
A58: 2018 | B58: MUSKEGON | C58: Roosevelt Park | D58: Broadway Ave | E58: between Glenside and Maple Grove | F58: 0.513 | G58: Resurface | H58: 2-12.5' lanes, 10' paved shoulder on north side | I58: CON | K58: 220000 | L58: STUL | O58: 70000 | P58: CITY | Q58: 290000 | R58: 130812 | T58: 2016-05-18 | V58: Exempt | X58: 290000 | AB58: 2016-10-01 | AE58: 0 | AF58: 2018-12-07
A59: 2018 | B59: MUSKEGON | C59: WMSRDC | D59: Outreach and Marketing | E59: Areawide | F59: NA | G59: Studies | H59: Promotion and Marketing of Voluntary householdand transportation activities that will reduce air pollution | I59: EPE | K59: 93178 | L59: CM | O59: 23294 | P59: OLF | Q59: 116472 | T59: 2016-05-18 | V59: Exempt | X59: 116472 | AB59: 2016-10-01
A60: 2018 | B60: MUSKEGON | C60: WMSRDC | D60: Marketing and Outreach | E60: NA | F60: NA | G60: Studies | H60: Marketing and outreach for Muskegon's port | I60: EPE | K60: 41337 | L60: HPP | O60: 8267 | P60: OLF | Q60: 49604 | T60: 2017-01-18 | V60: Exempt | X60: 50000 | AB60: 2017-04-06
A61: 2018 | B61: OTTAWA | C61: Harbor Transit | D61: Outreach and Marketing | E61: Regionwide | F61: NA | G61: Transit operations | H61: Conduct transit and marketing activities | I61: T-Ops | K61: 30000 | L61: CM | O61: 7500 | P61: OLF | Q61: 37500 | T61: 2016-05-18 | V61: Exempt | X61: 37500 | AB61: 2016-10-01
A62: 2018 | B62: OTTAWA | C62: Harbor Transit | D62: 2 Replacement Buses | E62: Regionwide | F62: NA | G62: Transit vehicle additions/replacements | H62: 2 Replacement Buses | I62: T-Cap | K62: 248000 | L62: CM | O62: 62000 | P62: OLF | Q62: 310000 | T62: 2016-05-18 | V62: Exempt | X62: 310000 | AB62: 2016-10-01
A63: 2018 | B63: OTTAWA | C63: Harbor Transit | D63: Route Study/ Operational Analysis | E63: Areawide | F63: NA | G63: Studies | H63: Route study and management study | I63: T-Ops | K63: 64000 | L63: 5304 | M63: 16000 | N63: CTF | Q63: 80000 | T63: 2017-01-18 | V63: Exempt | W63: This funding should appear in the State and/or Muskegon UWP | X63: 116000 | AB63: 2017-06-19
A64: 2018 | B64: OTTAWA | C64: OCRC | D64: Robbins Rd | E64: Robbins Road from Moreland Avenue to Mercury Drive | F64: 0.738 | G64: Resurface | H64: Resurface existing 30' width and restore shoulders | I64: CON | K64: 222500 | L64: STUL | O64: 100000 | P64: CNTY | Q64: 322500 | R64: 130813 | T64: 2016-05-18 | V64: Exempt | X64: 322500 | AB64: 2016-10-01 | AE64: 0 | AF64: 2018-12-07
A65: 2019 | B65: Areawide | C65: FTA GPA | D65: Section 5307 GPA | E65: Areawide | F65: NA | G65: GPA | H65: Urbanized Area Formula Grants | K65: 2155000 | L65: 5307 | M65: 760000 | N65: M | O65: 915000 | P65: OLF | Q65: 3830000 | T65: 2016-05-18 | V65: Exempt | X65: 8305687.5 | AB65: 2016-10-01
A66: 2019 | B66: Areawide | C66: FTA GPA | D66: Section 5310 GPA | E66: Areawide | F66: NA | G66: GPA | H66: Enhanced Mobility of Seniors and Individuals with Disabilities | K66: 414603 | L66: 5310 | M66: 144900 | N66: M | Q66: 559503 | T66: 2016-05-18 | V66: Exempt | X66: 571621 | AB66: 2016-10-01
A67: 2019 | B67: Areawide | C67: FTA GPA | D67: Section 5311 GPA | E67: Areawide | F67: NA | G67: GPA | H67: Rural Area Formula Grants | K67: 46585 | L67: 5311 | M67: 46585 | N67: M | Q67: 93170 | T67: 2016-05-18 | V67: Exempt | X67: 2728753 | AB67: 2016-10-01
A68: 2019 | B68: MUSKEGON | C68: MATS | D68: Outreach and Marketing | E68: Areawide | F68: NA | G68: Transit operations | H68: Conduct transit and marketing activities | I68: T-Ops | K68: 50000 | L68: CM | M68: 12500 | N68: CTF | Q68: 62500 | T68: 2016-05-18 | V68: Exempt | X68: 62500 | AB68: 2016-10-01
A69: 2019 | B69: Muskegon | C69: MATS | D69: Specialized Services Operating | E69: Areawide | F69: NA | G69: Transit operations | H69: Specialized Services Operating | I69: T-Ops | M69: 65499 | N69: CTF | Q69: 65499 | T69: 2016-05-18 | V69: Exempt | AB69: 2016-10-01
A70: 2019 | B70: MUSKEGON | C70: MATS | D70: Transit facility construction | E70: Areawide | F70: NA | G70: Transit facility | H70: Transit facility construction | I70: T-Cap | K70: 390000 | L70: CM | M70: 97500 | N70: CTF | Q70: 487500 | T70: 2017-02-15 | V70: Exempt | W70: Original year was FY2018. Switch to FY2019 | X70: 487500 | AB70: 2016-10-01
A71: 2019 | B71: MUSKEGON | C71: MCRC | D71: Giles Rd | E71: Peterson to Buys | G71: Reconstruct | H71: Reconstruct | I71: CON | K71: 438090 | L71: STL | M71: 0 | O71: 202393 | P71: CNTY | Q71: 640483 | R71: 130491 | T71: 2016-05-18 | V71: Exempt | W71: Rural Task Force 14 project | X71: 640483 | AB71: 2016-10-01 | AE71: 0 | AF71: 2019-06-07
A72: 2019 | B72: MUSKEGON | C72: MCRC | D72: Giles Rd | E72: Buys to Whitehall | F72: NA | G72: Resurface | H72: Resurface, add 5' paved shoulders | I72: CON | K72: 600000 | L72: STUL | O72: 105000 | P72: CNTY | Q72: 705000 | R72: 130781 | T72: 2016-05-18 | V72: Exempt | X72: 705000 | AB72: 2016-10-01 | AE72: 0 | AF72: 2018-12-07
A73: 2019 | B73: MUSKEGON | C73: MDOT | D73: Trunkline Scoping and Studies | E73: Regionwide | F73: NA | G73: GPA | H73: Trunkline Scoping and Studies | I73: CON | K73: 99965.6 | L73: ST | M73: 24991.4 | N73: M | Q73: 124957 | T73: 2016-05-18 | V73: Exempt | W73: Based on MDOT templated budgets and 5 year average | X73: 124957 | AB73: 2016-10-01
A74: 2019 | B74: MUSKEGON | C74: MDOT | D74: Trunkline Bridge Preservation | E74: Regionwide | F74: NA | G74: GPA | H74: Trunkline Bridge Preservation | I74: CON | K74: 368000 | L74: ST | M74: 92000 | N74: M | Q74: 460000 | T74: 2016-05-18 | V74: Exempt | W74: Based on MDOT templated budgets and 5 year average | X74: 460000 | AB74: 2016-10-01
A75: 2019 | B75: MUSKEGON | C75: MDOT | D75: Trunkline Highway 3R | E75: Regionwide | F75: NA | G75: GPA | H75: Trunkline Highway 3R | I75: CON | K75: 812771 | L75: ST | M75: 180229 | N75: M | Q75: 993000 | T75: 2016-05-18 | V75: Exempt | W75: Based on prrojects in FHWA GPA tab | X75: 993000 | AB75: 2016-10-01
A76: 2019 | B76: MUSKEGON | C76: MDOT | D76: Trunkline Bridge 3R | E76: Regionwide | F76: NA | G76: GPA | H76: Trunkline Bridge 3R | I76: CON | K76: 1216000 | L76: ST | M76: 304000 | N76: M | Q76: 1520000 | T76: 2016-05-18 | V76: Exempt | W76: Based on MDOT templated budgets and 5 year average | X76: 1520000 | AB76: 2016-10-01
A77: 2019 | B77: MUSKEGON | C77: MDOT | D77: Trunkline Highway Preservation | E77: Regionwide | F77: NA | G77: GPA | H77: Trunkline Highway Preservation | I77: CON | K77: 1384902 | L77: ST | M77: 307098 | N77: M | Q77: 1692000 | T77: 2016-05-18 | V77: Exempt | W77: Based on prrojects in FHWA GPA tab | X77: 1692000 | AB77: 2016-10-01
A78: 2019 | B78: MUSKEGON | C78: MDOT | D78: Trunkline Traffic Operations or Safety | E78: Regionwide | F78: NA | G78: GPA | H78: Trunkline Traffic Operations and Safety | I78: CON | K78: 1826542 | L78: ST | M78: 305458 | N78: M | Q78: 2132000 | T78: 2016-05-18 | V78: Exempt | W78: Based on prrojects in FHWA GPA tab | X78: 2132000 | AB78: 2016-10-01
A79: 2019 | B79: MUSKEGON | C79: Muskegon | D79: Signal install | E79: Beach Street and Lakeshore Drive | F79: NA | G79: Roadside facility | H79: Install signal/Signal interconnect | I79: CON | K79: 60000 | L79: CM | O79: 40000 | P79: CITY | Q79: 100000 | T79: 2016-05-18 | V79: Exempt | X79: 100000 | AB79: 2016-10-01
A80: 2019 | B80: MUSKEGON | C80: Muskegon Heights | D80: Hackley Ave | E80: Hoyt to Manz | F80: NA | G80: Resurface | H80: Resurface | I80: CON | K80: 136639 | L80: STU | O80: 31160 | P80: CITY | Q80: 167799 | R80: 130782 | T80: 2016-05-18 | V80: Exempt | X80: 167799 | AB80: 2016-10-01 | AE80: 0 | AF80: 2018-12-07
A81: 2018 | B81: MUSKEGON | C81: Norton Shores | D81: Broadway Ave | E81: US-31 to Bailey | F81: NA | G81: Reconstruct | H81: Reconstruct existing HMA (Phase II) | I81: CON | K81: 450000 | L81: STU | O81: 350000 | P81: CITY | Q81: 800000 | R81: 130784 | T81: 2017-03-15 | V81: Exempt | W81: Originally added 5/18/16. Changed year from FY19 to FY18, 3/15/2017. | X81: 800000 | AB81: 2017-05-31 | AE81: 0 | AF81: 2018-12-07
A82: 2019 | B82: MUSKEGON | C82: WMSRDC | D82: Outreach and Marketing | E82: Areawide | F82: NA | G82: Transit operations | H82: Promotion and Marketing of Voluntary householdand transportation activities that will reduce air pollution | I82: EPE | K82: 83104 | L82: CM | O82: 20776 | P82: OLF | Q82: 103880 | T82: 2016-05-18 | V82: Exempt | X82: 103880 | AB82: 2016-10-01
A83: 2019 | B83: OTTAWA | C83: Grand Haven | D83: North Shore Dr | E83: Grand Haven City Limit to Main Street | F83: NA | G83: Reconstruct | H83: Reconstruct add 10" paved shoulder on east side | I83: CON | K83: 319361 | L83: STUL | O83: 1083775 | P83: CITY | Q83: 1403136 | R83: 130778 | T83: 2017-03-15 | V83: Exempt | W83: Originally added 5/18/2016. Original cost $755,000. | X83: 754974 | AB83: 2017-05-31 | AE83: 0 | AF83: 2018-12-07
A84: 2019 | B84: OTTAWA | C84: Harbor Transit | D84: Outreach and Marketing | E84: Areawide | F84: NA | G84: Transit operations | H84: Conduct transit and marketing activities | I84: T-Ops | K84: 20000 | L84: CM | O84: 5000 | P84: CITY | Q84: 25000 | T84: 2016-05-18 | V84: Exempt | X84: 25000 | AB84: 2016-10-01
A85: 2019 | B85: OTTAWA | C85: Harbor Transit | D85: (2) Replacement Buses | E85: Areawide | F85: NA | G85: Transit operations | H85: (2) Replacement Buses | I85: T-Cap | K85: 256000 | L85: CM | O85: 64000 | P85: CITY | Q85: 320000 | T85: 2016-05-18 | V85: Exempt | X85: 320000 | AB85: 2016-10-01
A86: 2019 | B86: OTTAWA | C86: MDOT | D86: M-104 | E86: Kruger Street east to 148th Avenue | F86: NA | G86: Widen - major (capacity increase) | H86: Widen for a center left turn lane. | I86: PE | K86: 96583 | L86: CM | M86: 21417 | N86: M | Q86: 118000 | R86: 127479 | T86: 2016-05-18 | V86: Exempt | X86: 678000 | AB86: 2016-10-01 | AE86: 0 | AF86: 2021-02-05
A87: 2019 | B87: OTTAWA | C87: Ottawa County | D87: Comstock St | E87: 168th to Mercury | F87: NA | G87: Resurface | H87: Resurface existing width, restore shoulders | I87: CON | K87: 420000 | L87: STUL | O87: 334200 | P87: CNTY | Q87: 754200 | R87: 130785 | T87: 2016-05-18 | V87: Exempt | X87: 754200 | AB87: 2016-10-01 | AE87: 0 | AF87: 2018-12-07
A88: 2019 | B88: OTTAWA | C88: Spring Lake | D88: Exchange St | E88: Jackson to Elm | F88: NA | G88: Resurface | H88: Resurface | I88: CON | K88: 200000 | L88: STUL | O88: 190000 | P88: CITY | Q88: 390000 | R88: 130780 | T88: 2016-05-18 | V88: Exempt | X88: 390000 | AB88: 2016-10-01 | AE88: 0 | AF88: 2018-12-07
A89: 2020 | B89: Areawide | C89: FTA GPA | D89: Section 5307 GPA | E89: Areawide | F89: NA | G89: GPA | H89: Urbanized Area Formula Grants | K89: 2155000 | L89: 5307 | M89: 760000 | N89: M | O89: 915000 | P89: OLF | Q89: 3830000 | T89: 2016-05-18 | V89: Exempt | X89: 8305687.5 | AB89: 2016-10-01
A90: 2020 | B90: Areawide | C90: FTA GPA | D90: Section 5310 GPA | E90: Areawide | F90: NA | G90: GPA | H90: Enhanced Mobility of Seniors and Individuals with Disabilities | K90: 426613 | L90: 5310 | M90: 147903 | N90: M | Q90: 574516 | T90: 2016-05-18 | V90: Exempt | X90: 571621 | AB90: 2016-10-01
A91: 2020 | B91: Areawide | C91: FTA GPA | D91: Section 5311 GPA | E91: Areawide | F91: NA | G91: GPA | H91: Rural Area Formula Grants | K91: 46585 | L91: 5311 | M91: 46585 | N91: M | Q91: 93170 | T91: 2016-05-18 | V91: Exempt | X91: 2728753 | AB91: 2016-10-01
A92: 2020 | B92: MUSKEGON | C92: Fruitport | D92: 3rd Ave | E92: Third Street - Pontaluna to Park | F92: 0.374 | G92: Reconstruct | H92: Road reconstruction | I92: CON | K92: 200000 | L92: STUL | O92: 255465 | P92: CITY | Q92: 455465 | R92: 130798 | T92: 2016-05-18 | V92: Exempt | X92: 455465 | AB92: 2016-10-01 | AE92: 0 | AF92: 2019-12-06
A93: 2020 | B93: MUSKEGON | C93: Lakewood Club | D93: Automobile Road | E93: Lakewood Road to White Lake Drive | G93: Resurface | H93: Resurface | I93: CON | K93: 375000 | L93: STU | O93: 123000 | P93: VLG | Q93: 498000 | T93: 2017-01-18 | V93: Exempt | X93: 500000 | AB93: 2017-04-06
A94: 2020 | B94: MUSKEGON | C94: MATS | D94: Outreach and Marketing | E94: Areawide | F94: NA | G94: Transit operations | H94: Conduct transit and marketing activities | I94: CON | K94: 80000 | L94: CM | M94: 20000 | N94: CTF | Q94: 100000 | T94: 2016-05-18 | V94: Exempt | X94: 100000 | AB94: 2016-10-01
A95: 2020 | B95: MUSKEGON | C95: MATS | D95: Heavy duty bus replacement | E95: Areawide | F95: NA | G95: Transit vehicle additions/replacements | H95: Heavy duty bus replacement | I95: CON | K95: 390000 | L95: CM | M95: 97500 | N95: CTF | Q95: 487500 | T95: 2016-05-18 | V95: Exempt | X95: 500000 | AB95: 2016-10-01
A96: 2020 | B96: Muskegon | C96: MATS | D96: Specialized Services Operating | E96: Areawide | F96: NA | G96: Transit operations | H96: Specialized Services Operating | I96: T-Ops | M96: 65499 | N96: CTF | Q96: 65499 | T96: 2016-05-18 | V96: Exempt | AB96: 2016-10-01
A97: 2020 | B97: MUSKEGON | C97: MCRC | D97: Ellis Rd | E97: Ravenna Rd east to 500' Crockery Creek bridge | G97: Reconstruct | H97: Reconstruct | I97: CON | K97: 438090 | L97: STL | M97: 0 | O97: 202393 | P97: CNTY | Q97: 640483 | R97: 130496 | T97: 2016-05-18 | V97: Exempt | X97: 640483 | AB97: 2016-10-01 | AF97: 2020-06-05
A98: 2020 | B98: MUSKEGON | C98: MCRC | D98: Whitehall Rd | E98: River Road to Bard | F98: 2.669 | G98: Reconstruct | H98: Reconstruct, add left turn lane | I98: CON | K98: 500000 | L98: STUL | O98: 105000 | P98: CNTY | Q98: 605000 | R98: 130777 | T98: 2016-05-18 | V98: Exempt | X98: 605000 | AB98: 2016-10-01 | AE98: 0 | AF98: 2019-12-06
A99: 2020 | B99: MUSKEGON | C99: MCRC | D99: Fruitvale Rd | E99: US 31 to Walsh Road | G99: Resurface | H99: Resurface | I99: CON | K99: 330000 | L99: STU | O99: 82500 | P99: CNTY | Q99: 412500 | T99: 2017-01-18 | V99: Exempt | X99: 450000 | AB99: 2017-04-06
A100: 2020 | B100: MUSKEGON | C100: MDOT | D100: US-31 | E100: US-31SB from US-31BR to S. of M-120 | F100: 1.707 | G100: Miscellaneous | H100: Widen paved shoulder | I100: CON | K100: 292500 | L100: HSIP | M100: 32500 | N100: M | Q100: 325000 | R100: 122641 | T100: 2016-05-18 | V100: Exempt | X100: 400000 | AB100: 2016-10-01 | AE100: 0 | AF100: 2020-01-10
A101: 2020 | B101: MUSKEGON | C101: MDOT | D101: Trunkline Scoping and Studies | E101: Regionwide | F101: NA | G101: GPA | H101: Trunkline Scoping and Studies | I101: CON | K101: 99965.6 | L101: ST | M101: 24991.4 | N101: M | Q101: 124957 | T101: 2016-05-18 | V101: Exempt | W101: Based on MDOT templated budgets and 5 year average | X101: 124957 | AB101: 2016-10-01
A102: 2020 | B102: MUSKEGON | C102: MDOT | D102: Trunkline Bridge Preservation | E102: Regionwide | F102: NA | G102: GPA | H102: Trunkline Bridge Preservation | I102: CON | K102: 696000 | L102: ST | M102: 174000 | N102: M | Q102: 870000 | T102: 2016-05-18 | V102: Exempt | W102: Based on MDOT templated budgets and 5 year average | X102: 870000 | AB102: 2016-10-01
A103: 2020 | B103: MUSKEGON | C103: MDOT | D103: Trunkline Traffic Operations or Safety | E103: Regionwide | F103: NA | G103: GPA | H103: Trunkline Traffic Operations and Safety | I103: CON | K103: 994478 | L103: ST | M103: 220522 | N103: M | Q103: 1215000 | T103: 2016-05-18 | V103: Exempt | W103: Based on prrojects in FHWA GPA tab | X103: 1215000 | AB103: 2016-10-01
A104: 2020 | B104: MUSKEGON | C104: MDOT | D104: Trunkline Bridge 3R | E104: Regionwide | F104: NA | G104: GPA | H104: Trunkline Bridge 3R | I104: CON | K104: 4330248 | L104: ST | M104: 481140 | N104: M | Q104: 4811388 | T104: 2016-05-18 | V104: Exempt | W104: Based on prrojects in FHWA GPA tab | X104: 4811388 | AB104: 2016-10-01
A105: 2020 | B105: MUSKEGON | C105: MDOT | D105: Trunkline Highway Preservation | E105: Regionwide | F105: NA | G105: GPA | H105: Trunkline Highway Preservation | I105: CON | K105: 5240000 | L105: ST | M105: 1310000 | N105: M | Q105: 6550000 | T105: 2016-05-18 | V105: Exempt | W105: Based on MDOT templated budgets and 5 year average | X105: 6550000 | AB105: 2016-10-01
A106: 2020 | B106: MUSKEGON | C106: Muskegon | D106: Lakeshore Dr | E106: Lakeshore from Lincoln to laketon | F106: 1.211 | G106: Reconstruct | H106: Reconstruct | I106: CON | K106: 800000 | L106: STUL | O106: 500000 | P106: CITY | Q106: 1300000 | R106: 130796 | T106: 2016-05-18 | V106: Exempt | X106: 1300000 | AB106: 2016-10-01 | AE106: 0 | AF106: 2019-12-06
A107: 2020 | B107: MUSKEGON | C107: WMSRDC | D107: Outreach and Marketing | E107: Areawide | F107: NA | G107: Studies | H107: Promotion and Marketing of Voluntary householdand transportation activities that will reduce air pollution | I107: CON | K107: 100000 | L107: CM | O107: 25000 | P107: OLF | Q107: 125000 | T107: 2016-05-18 | V107: Exempt | X107: 125000 | AB107: 2016-10-01
A108: 2020 | B108: OTTAWA | C108: Ferrysburg | D108: North Shore Dr | E108: North Shore Estates Road to City of FB city limits | F108: 0.643 | G108: Reconstruct | H108: Reconstruct | I108: CON | K108: 286000 | L108: STUL | O108: 414000 | P108: CITY | Q108: 700000 | R108: 130795 | T108: 2016-05-18 | V108: Exempt | X108: 700000 | AB108: 2016-10-01 | AF108: 2019-12-06
A109: 2020 | B109: OTTAWA | C109: Harbor Transit | D109: Outreach and Marketing | E109: Areawide | F109: NA | G109: Transit operations | H109: Conduct transit and marketing activities | I109: T-Ops | K109: 25104 | L109: CM | O109: 6276 | P109: CITY | Q109: 31380 | T109: 2016-05-18 | V109: Exempt | X109: 31380 | AB109: 2016-10-01
A110: 2020 | B110: OTTAWA | C110: Harbor Transit | D110: 2 Replacement Buses | E110: Areawide | F110: NA | G110: Transit vehicle additions/replacements | H110: (2) Replacement Buses | I110: T-Cap | K110: 264000 | L110: CM | O110: 66000 | P110: CITY | Q110: 330000 | T110: 2016-05-18 | V110: Exempt | X110: 330000 | AB110: 2016-10-01
A111: 2020 | B111: OTTAWA | C111: OCRC | D111: Lakeshore Dr | E111: Rosy Mound Drive to Buchanan Street | F111: 2.66 | G111: Resurface | H111: Resurface existing 30' width and restore shoulders | I111: CON | K111: 340000 | L111: STUL | O111: 861500 | P111: CNTY | Q111: 1201500 | R111: 130779 | T111: 2016-05-18 | V111: Exempt | X111: 1201500 | AB111: 2016-10-01 | AF111: 2019-12-06
A112: 2018 | B112: OTTAWA | C112: Harbor Transit | D112: One Replacement Bus | E112: Areawide | F112: NA | G112: Transit vehicle additions/replacements | H112: (1) Replacement Bus | I112: T-Cap | K112: 120000 | L112: 5339 | M112: 30000 | N112: CTF | Q112: 150000 | S112: D | T112: 2017-03-15 | V112: Exempt | X112: 170000 | AB112: 2017-05-31
A113: 2018 | B113: OTTAWA | C113: Harbor Transit | D113: Miscellaneous bus equipment | E113: Areawide | F113: NA | G113: Transit operations equipment | H113: Miscellaneous bus equipment | I113: T-Cap | K113: 2000 | L113: 5339 | M113: 500 | N113: CTF | Q113: 2500 | S113: D | T113: 2017-03-15 | V113: Exempt | X113: 4000 | AB113: 2017-05-31
A114: 2018 | B114: MUSKEGON | C114: MCRC | D114: Blackmer Road Bridge | E114: over Crockery Creek | G114: Bridge restore & rehabilitate | H114: Restore bridge | I114: CON | K114: 152000 | L114: BHT | Q114: 152000 | S114: D | T114: 2017-03-15 | V114: Exempt | X114: 160000 | AB114: 2017-05-31
A115: 2019 | B115: MUSKEGON | C115: MCRC | D115: Orshal Road Bridge | E115: over Duck Creek | G115: Bridge restore & rehabilitate | H115: Restore bridge | I115: CON | K115: 20000 | L115: BHT | Q115: 20000 | S115: D | T115: 2017-03-15 | V115: Exempt | X115: 25000 | AB115: 2017-05-31
A116: 2019 | B116: MUSKEGON | C116: MCRC | D116: Fruitvale Road Bridge | E116: over White River | G116: Bridge restore & rehabilitate | H116: Restore bridge | I116: CON | K116: 92500 | L116: BHT | Q116: 92500 | S116: D | T116: 2017-03-15 | V116: Exempt | X116: 100000 | AB116: 2017-05-31
A117: 2019 | B117: MUSKEGON | C117: MCRC | D117: Scenic Drive Bridge | E117: over Duck Lake outlet | G117: Bridge restore & rehabilitate | H117: Restore bridge | I117: CON | K117: 48300 | L117: BHT | Q117: 48300 | S117: D | T117: 2017-03-15 | V117: Exempt | X117: 55000 | AB117: 2017-05-31
A118: 2017 | B118: MUSKEGON | C118: MDOT | D118: Local Highway Safety | E118: Areawide | F118: NA | G118: GPA | H118: Local Highway Safety | I118: CON | K118: 104451 | L118: ST | Q118: 104451 | S118: E | T118: 2017-05-17 | U118: Add | V118: Exempt | X118: 105000 | AB118: 2017-06-20
A119: 2017 | B119: MUSKEGON | C119: MDOT | D119: CPM | E119: Areawide | F119: NA | G119: GPA | H119: CPM | I119: CON | K119: 280000 | L119: ST | M119: 70000 | N119: M | Q119: 350000 | S119: E | T119: 2017-05-17 | U119: Add | V119: Exempt | X119: 350000 | AB119: 2017-06-20

Sheet FY 2017
B1: FY 2017
A2: Highway Program | B2: Estimated Federal Commitments | C2: Estimated Non-Federal Commitments | D2: Total Proposed Commitments
A3: MDOT AC & M Program | C3: =D3 -> 0 | D3: =SUM('MDOT FTA Detail'!F135:F169)+'MDOT FTA Detail'!F171 -> 0
A4: MDOT FA Program | B4: =SUM('MDOT FTA Detail'!D6:D109) -> 10814194 | C4: =D4-B4 -> 2558553 | D4: =SUM('MDOT FTA Detail'!F6:F109) -> 13372747
A5: Sub-Total MDOT | B5: =B4 -> 10814194 | C5: =C3+C4 -> 2558553 | D5: =D3+D4 -> 13372747
A6: Local STP | B6: =SUM('Local Detail'!D78,'Local Detail'!D79,'Local Detail'!D82:D97,'Local Detail'!D72:D73,'Local Detail'!D53:D54,'Local Detail'!D24) -> 3677979 | C6: =D6-B6 -> 2149360 | D6: =SUM('Local Detail'!F78,'Local Detail'!F79,'Local Detail'!F82:F97,'Local Detail'!F72:F73,'Local Detail'!F53:F54,'Local Detail'!F24) -> 5827339
A7: Local Bridge | B7: =SUM('Local Detail'!D6:D9,'Local Detail'!D13:D16,'Local Detail'!D102,'Local Detail'!D11:D11,'Local Detail'!D43) -> 307200 | C7: 76800 | D7: =SUM('Local Detail'!F6:F9,'Local Detail'!F13:F16,'Local Detail'!F102,'Local Detail'!F11:F11,'Local Detail'!F43) -> 384000
A8: Local CMAQ | B8: =SUM('Local Detail'!D20:D23) -> 859104 | C8: 214776 | D8: =SUM('Local Detail'!F20:F23) -> 1073880
A9: Local Safety | B9: =SUM('Local Detail'!D46,'Local Detail'!D48,'Local Detail'!D80:D81) -> 0 | C9: 0 | D9: =SUM('Local Detail'!F46,'Local Detail'!F48,'Local Detail'!F80:F81) -> 0
A10: Local Equity Bonus (TEDF) | B10: =SUM('Local Detail'!D31:D38) -> 0 | C10: 0 | D10: =SUM('Local Detail'!F31:F38) -> 0
A11: Local Other FHWA | B11: =SUM('Local Detail'!D10,'Local Detail'!D12,'Local Detail'!D17:D19,'Local Detail'!D25:D30,'Local Detail'!D39:D42,'Local Detail'!D44:D45,'Local Detail'!D47,'Local Detail'!D49:D52,'Local Detail'!D55:D71,'Local Detail'!D103:D109,'Local Detail'!D98:D101,'Local Detail'!D74:D77) -> 0 | C11: 0 | D11: =SUM('Local Detail'!F10,'Local Detail'!F12,'Local Detail'!F17:F19,'Local Detail'!F25:F30,'Local Detail'!F39:F42,'Local Detail'!F44:F45,'Local Detail'!F47,'Local Detail'!F49:F52,'Local Detail'!F55:F71,'Local Detail'!F103:F109,'Local Detail'!F98:F101,'Local Detail'!F74:F77) -> 0
A12: Local AC Starts | C12: =D12 -> 468750 | D12: ='Local Detail'!F147 -> 468750
A13: Local Non-Federal | C13: =D13 -> 1237821 | D13: =SUM('Local Detail'!F111:F145) -> 1237821
A14: Sub-Total Local | B14: =SUM(B6:B11) -> 4844283 | C14: =SUM(C6:C13) -> 4147507 | D14: =SUM(D6:D13) -> 8991790
A15: Total Highway | B15: =B14+B5 -> 15658477 | C15: =C14+C5 -> 6706060 | D15: =D14+D5 -> 22364537
A18: Transit Fund Source | B18: Estimated Federal Commitments | C18: Estimated Non-Federal Commitments | D18: Total Proposed Commitments
A19: CTF - Comprehensive Transit Fund | B19: ='MDOT FTA Detail'!D110 -> 0 | C19: =IF(B19>0,D19-B19,'MDOT FTA Detail'!E134+'Local Detail'!E110) -> 65499 | D19: ='Local Detail'!F110+'MDOT FTA Detail'!F134+'MDOT FTA Detail'!F110 -> 65499
A20: Section 3038 - Over the Road Bus Program | B20: ='MDOT FTA Detail'!D111 -> 0 | C20: =D20-B20 -> 0 | D20: ='MDOT FTA Detail'!F111 -> 0
A21: Section 3045 - National Fuel Cell Technology Development Program | B21: ='MDOT FTA Detail'!D112 -> 0 | C21: =D21-B21 -> 0 | D21: ='MDOT FTA Detail'!F112 -> 0
A22: Section 5303 - Metropolitan Transportation Planning | B22: ='MDOT FTA Detail'!D113 -> 0 | C22: 0 | D22: ='MDOT FTA Detail'!F113 -> 0
A23: Section 5304 - Statewide Transportation Planning | B23: ='MDOT FTA Detail'!D114 -> 0 | C23: 0 | D23: ='MDOT FTA Detail'!F114 -> 0
A24: Section 5305 - Metropolitan and Statewide Planning | B24: ='MDOT FTA Detail'!D115 -> 0 | C24: 0 | D24: ='MDOT FTA Detail'!F115 -> 0
A25: Section 5307 - UZA Formula | B25: ='MDOT FTA Detail'!D116 -> 2155000 | C25: 1675000 | D25: ='MDOT FTA Detail'!F116 -> 3830000
A26: Section 5308 - Clean Fuels Program | B26: ='MDOT FTA Detail'!D117 -> 0 | C26: 0 | D26: ='MDOT FTA Detail'!F117 -> 0
A27: Section 5309 - Fixed Guideway Capital Investment Grant | B27: ='MDOT FTA Detail'!D118 -> 0 | C27: 0 | D27: ='MDOT FTA Detail'!F118 -> 0
A28: Section 5310 - Enhanced Mobility of Seniors and Individuals with Disabilities | B28: ='MDOT FTA Detail'!D119 -> 971746 | C28: 284186 | D28: ='MDOT FTA Detail'!F119 -> 1255932
A29: Section 5311 - Non-UZA | B29: ='MDOT FTA Detail'!D120 -> 46585 | C29: 46585 | D29: ='MDOT FTA Detail'!F120 -> 93170
A30: Section 5312 - Research, Development, Demonstration, and Deployment | B30: ='MDOT FTA Detail'!D121 -> 0 | C30: =D30-B30 -> 0 | D30: ='MDOT FTA Detail'!F121 -> 0
A31: Section 5313 - Transit Cooperative Research Program | B31: ='MDOT FTA Detail'!D122 -> 0 | C31: 0 | D31: ='MDOT FTA Detail'!F122 -> 0
A32: Section 5314 - Technical Assistance and Standards | B32: ='MDOT FTA Detail'!D123 -> 0 | C32: 0 | D32: ='MDOT FTA Detail'!F123 -> 0
A33: Section 5316 - Transit - Section 5316 - Job Access/Reverse Commute | B33: ='MDOT FTA Detail'!D124 -> 0 | C33: 0 | D33: ='MDOT FTA Detail'!F124 -> 0
A34: Section 5317 - Transit - Section 5317 - New Freedom Initiative | B34: ='MDOT FTA Detail'!D125 -> 0 | C34: 0 | D34: ='MDOT FTA Detail'!F125 -> 0
A35: Section 5320 - Alternative Transportation in Parks and Public Lands | B35: ='MDOT FTA Detail'!D126 -> 0 | C35: 0 | D35: ='MDOT FTA Detail'!F126 -> 0
A36: Section 5322 - Human Resources and Training | B36: ='MDOT FTA Detail'!D127 -> 0 | C36: =D36-B36 -> 0 | D36: ='MDOT FTA Detail'!F127 -> 0
A37: Section 5324 - Emergency Relief | B37: ='MDOT FTA Detail'!D128 -> 0 | C37: =D37-B37 -> 0 | D37: ='MDOT FTA Detail'!F128 -> 0
A38: Section 5326 - Asset Management Provisions | B38: ='MDOT FTA Detail'!D129 -> 0 | C38: =D38-B38 -> 0 | D38: ='MDOT FTA Detail'!F129 -> 0
A39: Section 5329 - Safety | B39: ='MDOT FTA Detail'!D130 -> 0 | C39: =D39-B39 -> 0 | D39: ='MDOT FTA Detail'!F130 -> 0
A40: Section 5337 - State of Good Repair Grants | B40: ='MDOT FTA Detail'!D131 -> 470000 | C40: =D40-B40 -> 117600 | D40: ='MDOT FTA Detail'!F131 -> 587600
A41: Section 5339 - Bus and Bus Facilities | B41: ='MDOT FTA Detail'!D132 -> 350572 | C41: 58800 | D41: ='MDOT FTA Detail'!F132 -> 409372
A42: Section 5505 - University Transportation Centers Program | B42: ='MDOT FTA Detail'!D133 -> 0 | C42: 0 | D42: ='MDOT FTA Detail'!F133 -> 0
A43: Total Transit | B43: =SUM(B19:B42) -> 3993903 | C43: =SUM(C19:C42) -> 2247670 | D43: =SUM(D19:D42) -> 6241573
A44: Grand Total | B44: =B43+B15 -> 19652380 | C44: =C43+C15 -> 8953730 | D44: =D43+D15 -> 28606110

Sheet FY 2018
B1: FY 2018
A2: Highway Program | B2: Estimated Federal Commitments | C2: Estimated Non-Federal Commitments | D2: Total Proposed Commitments
A3: MDOT AC & M Program | C3: =D3 -> 0 | D3: =SUM('MDOT FTA Detail'!I135:I169)+'MDOT FTA Detail'!I171 -> 0
A4: MDOT FA Program | B4: =SUM('MDOT FTA Detail'!G6:G109) -> 7733874.6 | C4: =D4-B4 -> 1636467.4 | D4: =SUM('MDOT FTA Detail'!I6:I109) -> 9370342
A5: Sub-Total MDOT | B5: =B4 -> 7733874.6 | C5: =C3+C4 -> 1636467.4 | D5: =D3+D4 -> 9370342
A6: Local STP | B6: =SUM('Local Detail'!G78,'Local Detail'!G79,'Local Detail'!G82:G97,'Local Detail'!G72:G73,'Local Detail'!G53:G54,'Local Detail'!G24) -> 2565590 | C6: =D6-B6 -> 947348 | D6: =SUM('Local Detail'!I78,'Local Detail'!I79,'Local Detail'!I82:I97,'Local Detail'!I72:I73,'Local Detail'!I53:I54,'Local Detail'!I24) -> 3512938
A7: Local Bridge | B7: =SUM('Local Detail'!G6:G9,'Local Detail'!G13:G16,'Local Detail'!G102,'Local Detail'!G11:G11,'Local Detail'!G43) -> 152000 | C7: 0 | D7: =SUM('Local Detail'!I6:I9,'Local Detail'!I13:I16,'Local Detail'!I102,'Local Detail'!I11:I11,'Local Detail'!I43) -> 152000
A8: Local CMAQ | B8: =SUM('Local Detail'!G20:G23) -> 859104 | C8: 210294 | D8: =SUM('Local Detail'!I20:I23) -> 1069398
A9: Local Safety | B9: =SUM('Local Detail'!G46,'Local Detail'!G48,'Local Detail'!G80:G81) -> 0 | C9: 0 | D9: =SUM('Local Detail'!I46,'Local Detail'!I48,'Local Detail'!I80:I81) -> 0
A10: Local Equity Bonus (TEDF) | B10: =SUM('Local Detail'!G31:G38) -> 0 | C10: 0 | D10: =SUM('Local Detail'!I31:I38) -> 0
A11: Local Other FHWA | B11: =SUM('Local Detail'!G10,'Local Detail'!G12,'Local Detail'!G17:G19,'Local Detail'!G25:G30,'Local Detail'!G39:G42,'Local Detail'!G44:G45,'Local Detail'!G47,'Local Detail'!G49:G52,'Local Detail'!G55:G71,'Local Detail'!G103:G109,'Local Detail'!G98:G101,'Local Detail'!G74:G77) -> 41337 | C11: 8267 | D11: =SUM('Local Detail'!I10,'Local Detail'!I12,'Local Detail'!I17:I19,'Local Detail'!I25:I30,'Local Detail'!I39:I42,'Local Detail'!I44:I45,'Local Detail'!I47,'Local Detail'!I49:I52,'Local Detail'!I55:I71,'Local Detail'!I103:I109,'Local Detail'!I98:I101,'Local Detail'!I74:I77) -> 49604
A12: Local AC Starts | C12: =D12 -> 0 | D12: ='Local Detail'!I147 -> 0
A13: Local Non-Federal | C13: =D13 -> 0 | D13: =SUM('Local Detail'!I111:I145) -> 0
A14: Sub-Total Local | B14: =SUM(B6:B11) -> 3618031 | C14: =SUM(C6:C13) -> 1165909 | D14: =SUM(D6:D13) -> 4783940
A15: Total Highway | B15: =B14+B5 -> 11351905.6 | C15: =C14+C5 -> 2802376.4 | D15: =D14+D5 -> 14154282
A18: Transit Fund Source | B18: Estimated Federal Commitments | C18: Estimated Non-Federal Commitments | D18: Total Proposed Commitments
A19: CTF - Comprehensive Transit Fund | B19: ='MDOT FTA Detail'!G110 -> 0 | C19: =IF(B19>0,D19-B19,'MDOT FTA Detail'!H134+'Local Detail'!H110) -> 65499 | D19: ='MDOT FTA Detail'!I110+'MDOT FTA Detail'!I134+'Local Detail'!I110 -> 65499
A20: Section 3038 - Over the Road Bus Program | B20: ='MDOT FTA Detail'!G111 -> 0 | C20: =D20-B20 -> 0 | D20: ='MDOT FTA Detail'!I111 -> 0
A21: Section 3045 - National Fuel Cell Technology Development Program | B21: ='MDOT FTA Detail'!G112 -> 0 | C21: =D21-B21 -> 0 | D21: ='MDOT FTA Detail'!I112 -> 0
A22: Section 5303 - Metropolitan Transportation Planning | B22: ='MDOT FTA Detail'!G113 -> 0 | C22: 0 | D22: ='MDOT FTA Detail'!I113 -> 0
A23: Section 5304 - Statewide Transportation Planning | B23: ='MDOT FTA Detail'!G114 -> 220000 | C23: -139999.9906 | D23: ='MDOT FTA Detail'!I114 -> 80000.00942
A24: Section 5305 - Metropolitan and Statewide Planning | B24: ='MDOT FTA Detail'!G115 -> 0 | C24: 0 | D24: ='MDOT FTA Detail'!I115 -> 0
A25: Section 5307 - UZA Formula | B25: ='MDOT FTA Detail'!G116 -> 2155000 | C25: 1675000 | D25: ='MDOT FTA Detail'!I116 -> 3830000
A26: Section 5308 - Clean Fuels Program | B26: ='MDOT FTA Detail'!G117 -> 0 | C26: 0 | D26: ='MDOT FTA Detail'!I117 -> 0
A27: Section 5309 - Fixed Guideway Capital Investment Grant | B27: ='MDOT FTA Detail'!G118 -> 0 | C27: 0 | D27: ='MDOT FTA Detail'!I118 -> 0
A28: Section 5310 - Enhanced Mobility of Seniors and Individuals with Disabilities | B28: ='MDOT FTA Detail'!G119 -> 441463 | C28: 163753 | D28: ='MDOT FTA Detail'!I119 -> 605216
A29: Section 5311 - Non-UZA | B29: ='MDOT FTA Detail'!G120 -> 46585 | C29: 46585 | D29: ='MDOT FTA Detail'!I120 -> 93170
A30: Section 5312 - Research, Development, Demonstration, and Deployment | B30: ='MDOT FTA Detail'!G121 -> 0 | C30: =D30-B30 -> 0 | D30: ='MDOT FTA Detail'!I121 -> 0
A31: Section 5313 - Transit Cooperative Research Program | B31: ='MDOT FTA Detail'!G122 -> 0 | C31: 0 | D31: ='MDOT FTA Detail'!I122 -> 0
A32: Section 5314 - Technical Assistance and Standards | B32: ='MDOT FTA Detail'!G123 -> 0 | C32: 0 | D32: ='MDOT FTA Detail'!I123 -> 0
A33: Section 5316 - Transit - Section 5316 - Job Access/Reverse Commute | B33: ='MDOT FTA Detail'!G124 -> 0 | C33: 0 | D33: ='MDOT FTA Detail'!I124 -> 0
A34: Section 5317 - Transit - Section 5317 - New Freedom Initiative | B34: ='MDOT FTA Detail'!G125 -> 0 | C34: 0 | D34: ='MDOT FTA Detail'!I125 -> 0
A35: Section 5320 - Alternative Transportation in Parks and Public Lands | B35: ='MDOT FTA Detail'!G126 -> 0 | C35: 0 | D35: ='MDOT FTA Detail'!I126 -> 0
A36: Section 5322 - Human Resources and Training | B36: ='MDOT FTA Detail'!G127 -> 0 | C36: =D36-B36 -> 0 | D36: ='MDOT FTA Detail'!I127 -> 0
A37: Section 5324 - Emergency Relief | B37: ='MDOT FTA Detail'!G128 -> 0 | C37: =D37-B37 -> 0 | D37: ='MDOT FTA Detail'!I128 -> 0
A38: Section 5326 - Asset Management Provisions | B38: ='MDOT FTA Detail'!G129 -> 0 | C38: =D38-B38 -> 0 | D38: ='MDOT FTA Detail'!I129 -> 0
A39: Section 5329 - Safety | B39: ='MDOT FTA Detail'!G130 -> 0 | C39: =D39-B39 -> 0 | D39: ='MDOT FTA Detail'!I130 -> 0
A40: Section 5337 - State of Good Repair Grants | B40: ='MDOT FTA Detail'!G131 -> 0 | C40: =D40-B40 -> 0 | D40: ='MDOT FTA Detail'!I131 -> 0
A41: Section 5339 - Bus and Bus Facilities | B41: ='MDOT FTA Detail'!G132 -> 122000 | C41: 30500 | D41: ='MDOT FTA Detail'!I132 -> 152500
A42: Section 5505 - University Transportation Centers Program | B42: ='MDOT FTA Detail'!G133 -> 0 | C42: 0 | D42: ='MDOT FTA Detail'!I133 -> 0
A43: Total Transit | B43: =SUM(B19:B42) -> 2985048 | C43: =SUM(C19:C42) -> 1841337.009 | D43: =SUM(D19:D42) -> 4826385.009
A44: Grand Total | B44: =B43+B15 -> 14336953.6 | C44: =C43+C15 -> 4643713.409 | D44: =D43+D15 -> 18980667.01

Sheet FY 2019
B1: FY 2019
A2: Highway Program | B2: Estimated Federal Commitments | C2: Estimated Non-Federal Commitments | D2: Total Proposed Commitments
A3: MDOT AC & M Program | C3: =D3 -> 0 | D3: =SUM('MDOT FTA Detail'!L135:L169)+'MDOT FTA Detail'!L171 -> 0
A4: MDOT FA Program | B4: =SUM('MDOT FTA Detail'!J6:J109) -> 5804763.6 | C4: =D4-B4 -> 1235193.4 | D4: =SUM('MDOT FTA Detail'!L6:L109) -> 7039957
A5: Sub-Total MDOT | B5: =B4 -> 5804763.6 | C5: =C3+C4 -> 1235193.4 | D5: =D3+D4 -> 7039957
A6: Local STP | B6: =SUM('Local Detail'!J78,'Local Detail'!J79,'Local Detail'!J82:J97,'Local Detail'!J72:J73,'Local Detail'!J53:J54,'Local Detail'!J24) -> 2614090 | C6: =D6-B6 -> 2246528 | D6: =SUM('Local Detail'!L78,'Local Detail'!L79,'Local Detail'!L82:L97,'Local Detail'!L72:L73,'Local Detail'!L53:L54,'Local Detail'!L24) -> 4860618
A7: Local Bridge | B7: =SUM('Local Detail'!J6:J9,'Local Detail'!J13:J16,'Local Detail'!J102,'Local Detail'!J11:J11,'Local Detail'!J43) -> 160800 | C7: 0 | D7: =SUM('Local Detail'!L6:L9,'Local Detail'!L13:L16,'Local Detail'!L102,'Local Detail'!L11:L11,'Local Detail'!L43) -> 160800
A8: Local CMAQ | B8: =SUM('Local Detail'!J20:J23) -> 859104 | C8: 239776 | D8: =SUM('Local Detail'!L20:L23) -> 1098880
A9: Local Safety | B9: =SUM('Local Detail'!J46,'Local Detail'!J48,'Local Detail'!J80:J81) -> 0 | C9: 0 | D9: =SUM('Local Detail'!L46,'Local Detail'!L48,'Local Detail'!L80:L81) -> 0
A10: Local Equity Bonus (TEDF) | B10: =SUM('Local Detail'!J31:J38) -> 0 | C10: 0 | D10: =SUM('Local Detail'!L31:L38) -> 0
A11: Local Other FHWA | B11: =SUM('Local Detail'!J10,'Local Detail'!J12,'Local Detail'!J17:J19,'Local Detail'!J25:J30,'Local Detail'!J39:J42,'Local Detail'!J44:J45,'Local Detail'!J47,'Local Detail'!J49:J52,'Local Detail'!J55:J71,'Local Detail'!J103:J109,'Local Detail'!J98:J101,'Local Detail'!J74:J77) -> 0 | C11: 0 | D11: =SUM('Local Detail'!L10,'Local Detail'!L12,'Local Detail'!L17:L19,'Local Detail'!L25:L30,'Local Detail'!L39:L42,'Local Detail'!L44:L45,'Local Detail'!L47,'Local Detail'!L49:L52,'Local Detail'!L55:L71,'Local Detail'!L103:L109,'Local Detail'!L98:L101,'Local Detail'!L74:L77) -> 0
A12: Local AC Starts | C12: =D12 -> 0 | D12: ='Local Detail'!L147 -> 0
A13: Local Non-Federal | C13: =D13 -> 0 | D13: =SUM('Local Detail'!L111:L145) -> 0
A14: Sub-Total Local | B14: =SUM(B6:B11) -> 3633994 | C14: =SUM(C6:C13) -> 2486304 | D14: =SUM(D6:D13) -> 6120298
A15: Total Highway | B15: =B14+B5 -> 9438757.6 | C15: =C14+C5 -> 3721497.4 | D15: =D14+D5 -> 13160255
A18: Transit Fund Source | B18: Estimated Federal Commitments | C18: Estimated Non-Federal Commitments | D18: Total Proposed Commitments
A19: CTF - Comprehensive Transit Fund | B19: ='MDOT FTA Detail'!J110 -> 0 | C19: =IF(B19>0,D19-B19,'MDOT FTA Detail'!K134+'Local Detail'!K110) -> 65499 | D19: ='MDOT FTA Detail'!L110+'MDOT FTA Detail'!L134+'Local Detail'!L110 -> 65499
A20: Section 3038 - Over the Road Bus Program | B20: ='MDOT FTA Detail'!J111 -> 0 | C20: =D20-B20 -> 0 | D20: ='MDOT FTA Detail'!L111 -> 0
A21: Section 3045 - National Fuel Cell Technology Development Program | B21: ='MDOT FTA Detail'!J112 -> 0 | C21: =D21-B21 -> 0 | D21: ='MDOT FTA Detail'!L112 -> 0
A22: Section 5303 - Metropolitan Transportation Planning | B22: ='MDOT FTA Detail'!J113 -> 0 | C22: 0 | D22: ='MDOT FTA Detail'!L113 -> 0
A23: Section 5304 - Statewide Transportation Planning | B23: ='MDOT FTA Detail'!J114 -> 0 | C23: 0 | D23: ='MDOT FTA Detail'!L114 -> 0
A24: Section 5305 - Metropolitan and Statewide Planning | B24: ='MDOT FTA Detail'!J115 -> 0 | C24: 0 | D24: ='MDOT FTA Detail'!L115 -> 0
A25: Section 5307 - UZA Formula | B25: ='MDOT FTA Detail'!J116 -> 2155000 | C25: 1675000 | D25: ='MDOT FTA Detail'!L116 -> 3830000
A26: Section 5308 - Clean Fuels Program | B26: ='MDOT FTA Detail'!J117 -> 0 | C26: 0 | D26: ='MDOT FTA Detail'!L117 -> 0
A27: Section 5309 - Fixed Guideway Capital Investment Grant | B27: ='MDOT FTA Detail'!J118 -> 0 | C27: 0 | D27: ='MDOT FTA Detail'!L118 -> 0
A28: Section 5310 - Enhanced Mobility of Seniors and Individuals with Disabilities | B28: ='MDOT FTA Detail'!J119 -> 414603 | C28: 144900 | D28: ='MDOT FTA Detail'!L119 -> 559503
A29: Section 5311 - Non-UZA | B29: ='MDOT FTA Detail'!J120 -> 46585 | C29: 46585 | D29: ='MDOT FTA Detail'!L120 -> 93170
A30: Section 5312 - Research, Development, Demonstration, and Deployment | B30: ='MDOT FTA Detail'!J121 -> 0 | C30: =D30-B30 -> 0 | D30: ='MDOT FTA Detail'!L121 -> 0
A31: Section 5313 - Transit Cooperative Research Program | B31: ='MDOT FTA Detail'!J122 -> 0 | C31: 0 | D31: ='MDOT FTA Detail'!L122 -> 0
A32: Section 5314 - Technical Assistance and Standards | B32: ='MDOT FTA Detail'!J123 -> 0 | C32: 0 | D32: ='MDOT FTA Detail'!L123 -> 0
A33: Section 5316 - Transit - Section 5316 - Job Access/Reverse Commute | B33: ='MDOT FTA Detail'!J124 -> 0 | C33: 0 | D33: ='MDOT FTA Detail'!L124 -> 0
A34: Section 5317 - Transit - Section 5317 - New Freedom Initiative | B34: ='MDOT FTA Detail'!J125 -> 0 | C34: 0 | D34: ='MDOT FTA Detail'!L125 -> 0
A35: Section 5320 - Alternative Transportation in Parks and Public Lands | B35: ='MDOT FTA Detail'!J126 -> 0 | C35: 0 | D35: ='MDOT FTA Detail'!L126 -> 0
A36: Section 5322 - Human Resources and Training | B36: ='MDOT FTA Detail'!J127 -> 0 | C36: =D36-B36 -> 0 | D36: ='MDOT FTA Detail'!L127 -> 0
A37: Section 5324 - Emergency Relief | B37: ='MDOT FTA Detail'!J128 -> 0 | C37: =D37-B37 -> 0 | D37: ='MDOT FTA Detail'!L128 -> 0
A38: Section 5326 - Asset Management Provisions | B38: ='MDOT FTA Detail'!J129 -> 0 | C38: =D38-B38 -> 0 | D38: ='MDOT FTA Detail'!L129 -> 0
A39: Section 5329 - Safety | B39: ='MDOT FTA Detail'!J130 -> 0 | C39: =D39-B39 -> 0 | D39: ='MDOT FTA Detail'!L130 -> 0
A40: Section 5337 - State of Good Repair Grants | B40: ='MDOT FTA Detail'!J131 -> 0 | C40: =D40-B40 -> 0 | D40: ='MDOT FTA Detail'!L131 -> 0
A41: Section 5339 - Bus and Bus Facilities | B41: ='MDOT FTA Detail'!J132 -> 0 | C41: 0 | D41: ='MDOT FTA Detail'!L132 -> 0
A42: Section 5505 - University Transportation Centers Program | B42: ='MDOT FTA Detail'!J133 -> 0 | C42: 0 | D42: ='MDOT FTA Detail'!L133 -> 0
A43: Total Transit | B43: =SUM(B19:B42) -> 2616188 | C43: =SUM(C19:C42) -> 1931984 | D43: =SUM(D19:D42) -> 4548172
A44: Grand Total | B44: =B43+B15 -> 12054945.6 | C44: =C43+C15 -> 5653481.4 | D44: =D43+D15 -> 17708427

Sheet FY 2020
B1: FY 2020
A2: Highway Program | B2: Estimated Federal Commitments | C2: Estimated Non-Federal Commitments | D2: Total Proposed Commitments
A3: MDOT AC & M Program | C3: =D3 -> 0 | D3: =SUM('MDOT FTA Detail'!O135:O169)+'MDOT FTA Detail'!O171 -> 0
A4: MDOT FA Program | B4: =SUM('MDOT FTA Detail'!M6:M109) -> 11653191.6 | C4: =D4-B4 -> 2243153.4 | D4: =SUM('MDOT FTA Detail'!O6:O109) -> 13896345
A5: Sub-Total MDOT | B5: =B3+B4 -> 11653191.6 | C5: =D5-B5 -> 2243153.4 | D5: =D3+D4 -> 13896345
A6: Local STP | B6: =SUM('Local Detail'!M78,'Local Detail'!M79,'Local Detail'!M82:M97,'Local Detail'!M72:M73,'Local Detail'!M53:M54,'Local Detail'!M24) -> 3269090 | C6: 2543858 | D6: =SUM('Local Detail'!O78,'Local Detail'!O79,'Local Detail'!O82:O97,'Local Detail'!O72:O73,'Local Detail'!O53:O54,'Local Detail'!O24) -> 5812948
A7: Local Bridge | B7: =SUM('Local Detail'!M6:M9,'Local Detail'!M13:M16,'Local Detail'!M102,'Local Detail'!M11:M11,'Local Detail'!M43) -> 0 | C7: 0 | D7: =SUM('Local Detail'!O6:O9,'Local Detail'!O13:O16,'Local Detail'!O102,'Local Detail'!O11:O11,'Local Detail'!O43) -> 0
A8: Local CMAQ | B8: =SUM('Local Detail'!M20:M23) -> 859104 | C8: 214776 | D8: =SUM('Local Detail'!O20:O23) -> 1073880
A9: Local Safety | B9: =SUM('Local Detail'!M46,'Local Detail'!M48,'Local Detail'!M80:M81) -> 0 | C9: 0 | D9: =SUM('Local Detail'!O46,'Local Detail'!O48,'Local Detail'!O80:O81) -> 0
A10: Local Equity Bonus (TEDF) | B10: =SUM('Local Detail'!M31:M38) -> 0 | C10: 0 | D10: =SUM('Local Detail'!O31:O38) -> 0
A11: Local Other FHWA | B11: =SUM('Local Detail'!M10,'Local Detail'!M12,'Local Detail'!M17:M19,'Local Detail'!M25:M30,'Local Detail'!M39:M42,'Local Detail'!M44:M45,'Local Detail'!M47,'Local Detail'!M49:M52,'Local Detail'!M55:M71,'Local Detail'!M103:M109,'Local Detail'!M98:M101,'Local Detail'!M74:M77) -> 0 | C11: 0 | D11: =SUM('Local Detail'!O10,'Local Detail'!O12,'Local Detail'!O17:O19,'Local Detail'!O25:O30,'Local Detail'!O39:O42,'Local Detail'!O44:O45,'Local Detail'!O47,'Local Detail'!O49:O52,'Local Detail'!O55:O71,'Local Detail'!O103:O109,'Local Detail'!O98:O101,'Local Detail'!O74:O77) -> 0
A12: Local AC Starts | C12: =D12 -> 0 | D12: ='Local Detail'!O147 -> 0
A13: Local Non-Federal | C13: =D13 -> 0 | D13: =SUM('Local Detail'!O111:O145) -> 0
A14: Sub-Total Local | B14: =SUM(B6:B11) -> 4128194 | C14: =SUM(C6:C13) -> 2758634 | D14: =SUM(D6:D13) -> 6886828
A15: Total Highway | B15: =B14+B5 -> 15781385.6 | C15: =C14+C5 -> 5001787.4 | D15: =D14+D5 -> 20783173
A18: Transit Fund Source | B18: Estimated Federal Commitments | C18: Estimated Non-Federal Commitments | D18: Total Proposed Commitments
A19: CTF - Comprehensive Transit Fund | B19: ='MDOT FTA Detail'!M110 -> 0 | C19: =IF(B19>0,D19-B19,'MDOT FTA Detail'!N134+'Local Detail'!N110) -> 65499 | D19: ='MDOT FTA Detail'!O110+'MDOT FTA Detail'!O134+'Local Detail'!O110 -> 65499
A20: Section 3038 - Over the Road Bus Program | B20: ='MDOT FTA Detail'!M111 -> 0 | C20: =D20-B20 -> 0 | D20: ='MDOT FTA Detail'!O111 -> 0
A21: Section 3045 - National Fuel Cell Technology Development Program | B21: ='MDOT FTA Detail'!M112 -> 0 | C21: =D21-B21 -> 0 | D21: ='MDOT FTA Detail'!O112 -> 0
A22: Section 5303 - Metropolitan Transportation Planning | B22: ='MDOT FTA Detail'!M113 -> 0 | C22: 0 | D22: ='MDOT FTA Detail'!O113 -> 0
A23: Section 5304 - Statewide Transportation Planning | B23: ='MDOT FTA Detail'!M114 -> 0 | C23: 0 | D23: ='MDOT FTA Detail'!O114 -> 0
A24: Section 5305 - Metropolitan and Statewide Planning | B24: ='MDOT FTA Detail'!M115 -> 0 | C24: 0 | D24: ='MDOT FTA Detail'!O115 -> 0
A25: Section 5307 - UZA Formula | B25: ='MDOT FTA Detail'!M116 -> 2155000 | C25: 1675000 | D25: ='MDOT FTA Detail'!O116 -> 3830000
A26: Section 5308 - Clean Fuels Program | B26: ='MDOT FTA Detail'!M117 -> 0 | C26: 0 | D26: ='MDOT FTA Detail'!O117 -> 0
A27: Section 5309 - Fixed Guideway Capital Investment Grant | B27: ='MDOT FTA Detail'!M118 -> 0 | C27: 0 | D27: ='MDOT FTA Detail'!O118 -> 0
A28: Section 5310 - Enhanced Mobility of Seniors and Individuals with Disabilities | B28: ='MDOT FTA Detail'!M119 -> 426613 | C28: 147903 | D28: ='MDOT FTA Detail'!O119 -> 574516
A29: Section 5311 - Non-UZA | B29: ='MDOT FTA Detail'!M120 -> 46585 | C29: 46585 | D29: ='MDOT FTA Detail'!O120 -> 93170
A30: Section 5312 - Research, Development, Demonstration, and Deployment | B30: ='MDOT FTA Detail'!M121 -> 0 | C30: =D30-B30 -> 0 | D30: ='MDOT FTA Detail'!O121 -> 0
A31: Section 5313 - Transit Cooperative Research Program | B31: ='MDOT FTA Detail'!M122 -> 0 | C31: 0 | D31: ='MDOT FTA Detail'!O122 -> 0
A32: Section 5314 - Technical Assistance and Standards | B32: ='MDOT FTA Detail'!M123 -> 0 | C32: 0 | D32: ='MDOT FTA Detail'!O123 -> 0
A33: Section 5316 - Transit - Section 5316 - Job Access/Reverse Commute | B33: ='MDOT FTA Detail'!M124 -> 0 | C33: 0 | D33: ='MDOT FTA Detail'!O124 -> 0
A34: Section 5317 - Transit - Section 5317 - New Freedom Initiative | B34: ='MDOT FTA Detail'!M125 -> 0 | C34: 0 | D34: ='MDOT FTA Detail'!O125 -> 0
A35: Section 5320 - Alternative Transportation in Parks and Public Lands | B35: ='MDOT FTA Detail'!M126 -> 0 | C35: 0 | D35: ='MDOT FTA Detail'!O126 -> 0
A36: Section 5322 - Human Resources and Training | B36: ='MDOT FTA Detail'!M127 -> 0 | C36: =D36-B36 -> 0 | D36: ='MDOT FTA Detail'!O127 -> 0
A37: Section 5324 - Emergency Relief | B37: ='MDOT FTA Detail'!M128 -> 0 | C37: =D37-B37 -> 0 | D37: ='MDOT FTA Detail'!O128 -> 0
A38: Section 5326 - Asset Management Provisions | B38: ='MDOT FTA Detail'!M129 -> 0 | C38: =D38-B38 -> 0 | D38: ='MDOT FTA Detail'!O129 -> 0
A39: Section 5329 - Safety | B39: ='MDOT FTA Detail'!M130 -> 0 | C39: =D39-B39 -> 0 | D39: ='MDOT FTA Detail'!O130 -> 0
A40: Section 5337 - State of Good Repair Grants | B40: ='MDOT FTA Detail'!M131 -> 0 | C40: =D40-B40 -> 0 | D40: ='MDOT FTA Detail'!O131 -> 0
A41: Section 5339 - Bus and Bus Facilities | B41: ='MDOT FTA Detail'!M132 -> 0 | C41: 0 | D41: ='MDOT FTA Detail'!O132 -> 0
A42: Section 5505 - University Transportation Centers Program | B42: ='MDOT FTA Detail'!M133 -> 0 | C42: 0 | D42: ='MDOT FTA Detail'!O133 -> 0
A43: Total Transit | B43: =SUM(B19:B42) -> 2628198 | C43: =SUM(C19:C42) -> 1934987 | D43: =SUM(D19:D42) -> 4563185
A44: Grand Total | B44: =B43+B15 -> 18409583.6 | C44: =C43+C15 -> 6936774.4 | D44: =D43+D15 -> 25346358

Sheet Constraint
A1: 2017-04-20 | B1: 2017 | F1: 2018 | J1: 2019 | N1: 2020
A2: Highway Program | B2: Estimated Federal Revenue | C2: Estimated Non-Federal Revenue | D2: Estimated Total Revenue | E2: Total Proposed Commitments | F2: Estimated Federal Revenue | G2: Estimated Non-Federal Revenue | H2: Estimated Total Revenue | I2: Total Proposed Commitments | J2: Estimated Federal Revenue | K2: Estimated Non-Federal Revenue | L2: Estimated Total Revenue | M2: Total Proposed Commitments | N2: Estimated Federal Revenue | O2: Estimated Non-Federal Revenue | P2: Estimated Total Revenue | Q2: Total Proposed Commitments
A3: MDOT AC & M Program | C3: 0 | D3: =C3 -> 0 | E3: ='FY 2017'!D3 -> 0 | H3: =G3 -> 0 | I3: ='FY 2018'!D3 -> 0 | K3: 0 | L3: =K3 -> 0 | M3: ='FY 2019'!D3 -> 0 | O3: 0 | P3: =O3 -> 0 | Q3: ='FY 2020'!D3 -> 0
A4: MDOT FA Program | B4: 10814194 | C4: 2558553 | D4: =B4+C4 -> 13372747 | E4: ='FY 2017'!D4 -> 13372747 | F4: 7733875 | G4: 1636467 | H4: =F4+G4 -> 9370342 | I4: ='FY 2018'!D4 -> 9370342 | J4: 5804764 | K4: 1235193 | L4: =J4+K4 -> 7039957 | M4: ='FY 2019'!D4 -> 7039957 | N4: 11653192 | O4: 2243153 | P4: =N4+O4 -> 13896345 | Q4: ='FY 2020'!D4 -> 13896345
A5: Sub-Total MDOT | B5: =SUM(B3:B4) -> 10814194 | C5: =SUM(C3:C4) -> 2558553 | D5: =D3+D4 -> 13372747 | E5: ='FY 2017'!D5 -> 13372747 | F5: =SUM(F4) -> 7733875 | G5: =SUM(G3:G4) -> 1636467 | H5: =H3+H4 -> 9370342 | I5: ='FY 2018'!D5 -> 9370342 | J5: =SUM(J4) -> 5804764 | K5: =SUM(K3:K4) -> 1235193 | L5: =L3+L4 -> 7039957 | M5: ='FY 2019'!D5 -> 7039957 | N5: =SUM(N4) -> 11653192 | O5: =SUM(O3:O4) -> 2243153 | P5: =P3+P4 -> 13896345 | Q5: ='FY 2020'!D5 -> 13896345
A6: Local STP | B6: 3677979 | C6: 2149360 | D6: =B6+C6 -> 5827339 | E6: ='FY 2017'!D6 -> 5827339 | F6: 2565590 | G6: 947348 | H6: =F6+G6 -> 3512938 | I6: ='FY 2018'!D6 -> 3512938 | J6: 2614090 | K6: 2246528 | L6: =J6+K6 -> 4860618 | M6: ='FY 2019'!D6 -> 4860618 | N6: 3269090 | O6: 2543858 | P6: =N6+O6 -> 5812948 | Q6: ='FY 2020'!D6 -> 5812948
A7: Local Bridge | B7: 307200 | C7: 76800 | D7: =B7+C7 -> 384000 | E7: ='FY 2017'!D7 -> 384000 | F7: 152000 | G7: 0 | H7: =F7+G7 -> 152000 | I7: ='FY 2018'!D7 -> 152000 | J7: 160800 | K7: 0 | L7: =J7+K7 -> 160800 | M7: ='FY 2019'!D7 -> 160800 | N7: 0 | O7: 0 | P7: =N7+O7 -> 0 | Q7: ='FY 2020'!D7 -> 0
A8: Local CMAQ | B8: 859104 | C8: 214776 | D8: 1073880 | E8: ='FY 2017'!D8 -> 1073880 | F8: 859104 | G8: 210294 | H8: 1069398 | I8: ='FY 2018'!D8 -> 1069398 | J8: 859104 | K8: 239776 | L8: 1098880 | M8: 859 | N8: 859104 | O8: 214776 | P8: 1073880 | Q8: ='FY 2020'!D8 -> 1073880
A9: Local Safety | B9: 0 | C9: 0 | D9: 0 | E9: ='FY 2017'!D9 -> 0 | F9: 0 | G9: 0 | H9: 0 | I9: ='FY 2018'!D9 -> 0 | J9: 0 | K9: 0 | L9: 0 | M9: ='FY 2019'!D9 -> 0 | N9: 0 | O9: 0 | P9: 0 | Q9: ='FY 2020'!D9 -> 0
A10: Local Equity Bonus (TEDF) | D10: 0 | E10: ='FY 2017'!D10 -> 0 | F10: 0 | G10: 0 | H10: 0 | I10: ='FY 2018'!D10 -> 0 | J10: 0 | K10: 0 | L10: 0 | M10: ='FY 2019'!D10 -> 0 | N10: 0 | O10: 0 | P10: 0 | Q10: ='FY 2020'!D10 -> 0
A11: Local Other FHWA | D11: 0 | E11: ='FY 2017'!D11 -> 0 | F11: 41337 | G11: 8267 | H11: 49604 | I11: ='FY 2018'!D11 -> 49604 | J11: 0 | K11: 0 | L11: 0 | M11: ='FY 2019'!D11 -> 0 | N11: 0 | O11: 0 | P11: 0 | Q11: ='FY 2020'!D11 -> 0
A12: Local AC Starts | C12: 468750 | D12: 468750 | E12: ='FY 2017'!D12 -> 468750 | G12: 0 | H12: 0 | I12: ='FY 2018'!D12 -> 0 | K12: 0 | L12: 0 | M12: ='FY 2019'!D12 -> 0 | O12: 0 | P12: 0 | Q12: ='FY 2020'!D12 -> 0
A13: Local Non-Federal | C13: 1237821 | D13: 1237821 | E13: ='FY 2017'!D13 -> 1237821 | G13: 0 | H13: 0 | I13: ='FY 2018'!D13 -> 0 | K13: 0 | L13: 0 | M13: ='FY 2019'!D13 -> 0 | O13: 0 | P13: 0 | Q13: ='FY 2020'!D13 -> 0
A14: Sub-Total Local | B14: =SUM(B6:B11) -> 4844283 | C14: =SUM(C6:C13) -> 4147507 | D14: =SUM(D6:D13) -> 8991790 | E14: ='FY 2017'!D14 -> 8991790 | F14: =SUM(F6:F11) -> 3618031 | G14: =SUM(G6:G13) -> 1165909 | H14: =SUM(H6:H13) -> 4783940 | I14: ='FY 2018'!D14 -> 4783940 | J14: =SUM(J6:J11) -> 3633994 | K14: =SUM(K6:K13) -> 2486304 | L14: =SUM(L6:L13) -> 6120298 | M14: ='FY 2019'!D14 -> 6120298 | N14: =SUM(N6:N11) -> 4128194 | O14: =SUM(O6:O13) -> 2758634 | P14: =SUM(P6:P13) -> 6886828 | Q14: ='FY 2020'!D14 -> 6886828
A15: Total Highway | B15: =B14+B5 -> 15658477 | C15: =C14+C5 -> 6706060 | D15: =D14+D5 -> 22364537 | E15: ='FY 2017'!D15 -> 22364537 | F15: =F14+F5 -> 11351906 | G15: =G14+G5 -> 2802376 | H15: =H14+H5 -> 14154282 | I15: ='FY 2018'!D15 -> 14154282 | J15: =J14+J5 -> 9438758 | K15: =K14+K5 -> 3721497 | L15: =L14+L5 -> 13160255 | M15: ='FY 2019'!D15 -> 13160255 | N15: =N14+N5 -> 15781386 | O15: =O14+O5 -> 5001787 | P15: =P14+P5 -> 20783173 | Q15: ='FY 2020'!D15 -> 20783173
A18: Transit Fund Source | B18: Estimated Federal Revenue | C18: Estimated Non-Federal Revenue | D18: Estimated Total Revenue | E18: Total Proposed Commitments | F18: Estimated Federal Revenue | G18: Estimated Non-Federal Revenue | H18: Estimated Total Revenue | I18: Total Proposed Commitments | J18: Estimated Federal Revenue | K18: Estimated Non-Federal Revenue | L18: Estimated Total Revenue | M18: Total Proposed Commitments | N18: Estimated Federal Revenue | O18: Estimated Non-Federal Revenue | P18: Estimated Total Revenue | Q18: Total Proposed Commitments
A19: CTF - Comprehensive Transit Fund | B19: 0 | C19: 65499 | D19: =B19+C19 -> 65499 | E19: ='FY 2017'!D19 -> 65499 | F19: 0 | G19: 65499 | H19: =F19+G19 -> 65499 | I19: ='FY 2018'!D19 -> 65499 | J19: 0 | K19: 0 | L19: 65499 | M19: ='FY 2019'!D19 -> 65499 | N19: ='FY 2019'!E19 -> 0 | O19: 65499 | P19: =N19+O19 -> 65499 | Q19: ='FY 2020'!D19 -> 65499
A20: Section 3038 - Over the Road Bus Program | B20: 0 | C20: 0 | D20: =B20+C20 -> 0 | E20: ='FY 2017'!D20 -> 0 | F20: 0 | G20: 0 | H20: =F20+G20 -> 0 | I20: ='FY 2018'!D20 -> 0 | J20: 0 | K20: 0 | L20: =J20+K20 -> 0 | M20: ='FY 2019'!D20 -> 0 | N20: ='FY 2019'!E20 -> 0 | O20: ='FY 2019'!F20 -> 0 | P20: =N20+O20 -> 0 | Q20: ='FY 2020'!D20 -> 0
A21: Section 3045 - National Fuel Cell Technology Development Program | B21: 0 | C21: 0 | D21: =B21+C21 -> 0 | E21: ='FY 2017'!D21 -> 0 | F21: 0 | G21: 0 | H21: =F21+G21 -> 0 | I21: ='FY 2018'!D21 -> 0 | J21: 0 | K21: 0 | L21: =J21+K21 -> 0 | M21: ='FY 2019'!D21 -> 0 | N21: ='FY 2019'!E21 -> 0 | O21: ='FY 2019'!F21 -> 0 | P21: =N21+O21 -> 0 | Q21: ='FY 2020'!D21 -> 0
A22: Section 5303 - Metropolitan Transportation Planning | B22: 0 | C22: 0 | D22: 0 | E22: ='FY 2017'!D22 -> 0 | F22: 0 | G22: 0 | H22: 0 | I22: ='FY 2018'!D22 -> 0 | J22: 0 | K22: 0 | L22: 0 | M22: ='FY 2019'!D22 -> 0 | N22: ='FY 2019'!E22 -> 0 | O22: ='FY 2019'!F22 -> 0 | P22: 0 | Q22: ='FY 2020'!D22 -> 0
A23: Section 5304 - Statewide Transportation Planning | B23: 0 | C23: 0 | D23: 0 | E23: ='FY 2017'!D23 -> 0 | F23: 220000 | G23: 55000 | H23: 275000 | I23: ='FY 2018'!D23 -> 80000.00942 | J23: 0 | K23: 0 | L23: 0 | M23: ='FY 2019'!D23 -> 0 | N23: ='FY 2019'!E23 -> 0 | O23: ='FY 2019'!F23 -> 0 | P23: 0 | Q23: ='FY 2020'!D23 -> 0
A24: Section 5305 - Metropolitan and Statewide Planning | B24: 0 | C24: 0 | D24: 0 | E24: ='FY 2017'!D24 -> 0 | F24: 0 | G24: 0 | H24: 0 | I24: ='FY 2018'!D24 -> 0 | J24: 0 | K24: 0 | L24: 0 | M24: ='FY 2019'!D24 -> 0 | N24: ='FY 2019'!E24 -> 0 | O24: ='FY 2019'!F24 -> 0 | P24: 0 | Q24: ='FY 2020'!D24 -> 0
A25: Section 5307 - UZA Formula | B25: 2155000 | C25: 1675000 | D25: 3830000 | E25: ='FY 2017'!D25 -> 3830000 | F25: 2155000 | G25: 1675000 | H25: 3830000 | I25: ='FY 2018'!D25 -> 3830000 | J25: 2155000 | K25: 1675000 | L25: 3830000 | M25: ='FY 2019'!D25 -> 3830000 | N25: 2155000 | O25: 1675000 | P25: 3830000 | Q25: ='FY 2020'!D25 -> 3830000
A26: Section 5308 - Clean Fuels Program | B26: 0 | C26: 0 | D26: 0 | E26: ='FY 2017'!D26 -> 0 | F26: 0 | G26: 0 | H26: 0 | I26: ='FY 2018'!D26 -> 0 | J26: 0 | K26: 0 | L26: 0 | M26: ='FY 2019'!D26 -> 0 | N26: ='FY 2019'!E26 -> 0 | O26: ='FY 2019'!F26 -> 0 | P26: 0 | Q26: ='FY 2020'!D26 -> 0
A27: Section 5309 - Capital Bus and Capital New Starts | B27: 0 | C27: 0 | D27: 0 | E27: ='FY 2017'!D27 -> 0 | F27: 0 | G27: 0 | H27: 0 | I27: ='FY 2018'!D27 -> 0 | J27: 0 | K27: 0 | L27: 0 | M27: ='FY 2019'!D27 -> 0 | N27: ='FY 2019'!E27 -> 0 | O27: ='FY 2019'!F27 -> 0 | P27: 0 | Q27: ='FY 2020'!D27 -> 0
A28: Section 5310 - Elderly & Disabled | B28: 971746 | C28: 284186 | D28: 1255932 | E28: ='FY 2017'!D28 -> 1255932 | F28: 441463 | G28: 163753 | H28: 605216 | I28: ='FY 2018'!D28 -> 605216 | J28: 414603 | K28: 144900 | L28: 559503 | M28: ='FY 2019'!D28 -> 559503 | N28: 426613 | O28: 147903 | P28: 574516 | Q28: ='FY 2020'!D28 -> 574516
A29: Section 5311 - Non-UZA | B29: 46585 | C29: 46585 | D29: 93170 | E29: ='FY 2017'!D29 -> 93170 | F29: 46585 | G29: 46585 | H29: 93170 | I29: ='FY 2018'!D29 -> 93170 | J29: 46585 | K29: 46585 | L29: 93170 | M29: ='FY 2019'!D29 -> 93170 | N29: 46585 | O29: 46585 | P29: 93170 | Q29: ='FY 2020'!D29 -> 93170
A30: Section 5312 - Research, Development, Demonstration, and Deployment | B30: 0 | C30: 0 | D30: =B30+C30 -> 0 | E30: ='FY 2017'!D30 -> 0 | F30: 0 | G30: 0 | H30: 0 | I30: ='FY 2018'!D30 -> 0 | J30: =H30+I30 -> 0 | K30: 0 | L30: =J30+K30 -> 0 | M30: ='FY 2019'!D30 -> 0 | N30: ='FY 2019'!E30 -> 0 | O30: ='FY 2019'!F30 -> 0 | P30: =N30+O30 -> 0 | Q30: ='FY 2020'!D30 -> 0
A31: Section 5313 - Transit Cooperative Research Program | B31: 0 | C31: 0 | D31: 0 | E31: ='FY 2017'!D31 -> 0 | F31: 0 | G31: 0 | H31: 0 | I31: ='FY 2018'!D31 -> 0 | J31: =H31+I31 -> 0 | K31: 0 | L31: 0 | M31: ='FY 2019'!D31 -> 0 | N31: ='FY 2019'!E31 -> 0 | O31: ='FY 2019'!F31 -> 0 | P31: 0 | Q31: ='FY 2020'!D31 -> 0
A32: Section 5314 - National Research and Technology Program | B32: 0 | C32: 0 | D32: 0 | E32: ='FY 2017'!D32 -> 0 | F32: 0 | G32: 0 | H32: 0 | I32: ='FY 2018'!D32 -> 0 | J32: =H32+I32 -> 0 | K32: 0 | L32: 0 | M32: ='FY 2019'!D32 -> 0 | N32: ='FY 2019'!E32 -> 0 | O32: ='FY 2019'!F32 -> 0 | P32: 0 | Q32: ='FY 2020'!D32 -> 0
A33: Section 5316 - Job Access/Reverse Commute | B33: 0 | C33: 0 | D33: 0 | E33: ='FY 2017'!D33 -> 0 | F33: 0 | G33: 0 | H33: 0 | I33: ='FY 2018'!D33 -> 0 | J33: =H33+I33 -> 0 | K33: 0 | L33: 0 | M33: ='FY 2019'!D33 -> 0 | N33: ='FY 2019'!E33 -> 0 | O33: ='FY 2019'!F33 -> 0 | P33: 0 | Q33: ='FY 2020'!D33 -> 0
A34: Section 5317 - New Freedom Initiative | B34: 0 | C34: 0 | D34: 0 | E34: ='FY 2017'!D34 -> 0 | F34: 0 | G34: 0 | H34: 0 | I34: ='FY 2018'!D34 -> 0 | J34: =H34+I34 -> 0 | K34: 0 | L34: =J34+K34 -> 0 | M34: ='FY 2019'!D34 -> 0 | N34: ='FY 2019'!E34 -> 0 | O34: ='FY 2019'!F34 -> 0 | P34: 0 | Q34: ='FY 2020'!D34 -> 0
A35: Section 5320 - Alternative Transportation in Parks and Public Lands | B35: 0 | C35: 0 | D35: 0 | E35: ='FY 2017'!D35 -> 0 | F35: 0 | G35: 0 | H35: 0 | I35: ='FY 2018'!D35 -> 0 | J35: =H35+I35 -> 0 | K35: 0 | L35: 0 | M35: ='FY 2019'!D35 -> 0 | N35: ='FY 2019'!E35 -> 0 | O35: ='FY 2019'!F35 -> 0 | P35: 0 | Q35: ='FY 2020'!D35 -> 0
A36: Section 5322 - Human Resources and Training | B36: 0 | C36: 0 | D36: =B36+C36 -> 0 | E36: ='FY 2017'!D36 -> 0 | F36: 0 | G36: 0 | H36: 0 | I36: ='FY 2018'!D36 -> 0 | J36: =H36+I36 -> 0 | K36: 0 | L36: =J36+K36 -> 0 | M36: ='FY 2019'!D36 -> 0 | N36: ='FY 2019'!E36 -> 0 | O36: ='FY 2019'!F36 -> 0 | P36: =N36+O36 -> 0 | Q36: ='FY 2020'!D36 -> 0
A37: Section 5324 - Emergency Relief | B37: 0 | C37: 0 | D37: =B37+C37 -> 0 | E37: ='FY 2017'!D37 -> 0 | F37: 0 | G37: 0 | H37: 0 | I37: ='FY 2018'!D37 -> 0 | J37: =H37+I37 -> 0 | K37: 0 | L37: =J37+K37 -> 0 | M37: ='FY 2019'!D37 -> 0 | N37: ='FY 2019'!E37 -> 0 | O37: ='FY 2019'!F37 -> 0 | P37: =N37+O37 -> 0 | Q37: ='FY 2020'!D37 -> 0
A38: Section 5326 - Asset Management Provisions | B38: 0 | C38: 0 | D38: =B38+C38 -> 0 | E38: ='FY 2017'!D38 -> 0 | F38: 0 | G38: 0 | H38: 0 | I38: ='FY 2018'!D38 -> 0 | J38: =H38+I38 -> 0 | K38: 0 | L38: =J38+K38 -> 0 | M38: ='FY 2019'!D38 -> 0 | N38: ='FY 2019'!E38 -> 0 | O38: ='FY 2019'!F38 -> 0 | P38: =N38+O38 -> 0 | Q38: ='FY 2020'!D38 -> 0
A39: Section 5329 - Safety | B39: 0 | C39: 0 | D39: =B39+C39 -> 0 | E39: ='FY 2017'!D39 -> 0 | F39: 0 | G39: 0 | H39: 0 | I39: ='FY 2018'!D39 -> 0 | J39: =H39+I39 -> 0 | K39: 0 | L39: =J39+K39 -> 0 | M39: ='FY 2019'!D39 -> 0 | N39: ='FY 2019'!E39 -> 0 | O39: ='FY 2019'!F39 -> 0 | P39: =N39+O39 -> 0 | Q39: ='FY 2020'!D39 -> 0
A40: Section 5337 - State of Good Repair Grants | B40: 470000 | C40: 117600 | D40: =B40+C40 -> 587600 | E40: ='FY 2017'!D40 -> 587600 | F40: 0 | G40: 0 | H40: 0 | I40: 0 | J40: =H40+I40 -> 0 | K40: 0 | L40: =J40+K40 -> 0 | M40: ='FY 2019'!D40 -> 0 | N40: ='FY 2019'!E40 -> 0 | O40: ='FY 2019'!F40 -> 0 | P40: =N40+O40 -> 0 | Q40: ='FY 2020'!D40 -> 0
A41: Section 5339 - Bus and Bus Facilities | B41: 350572 | C41: 58800 | D41: 409372 | E41: ='FY 2017'!D41 -> 409372 | F41: 122000 | G41: 30500 | H41: 152500 | I41: 152500 | L41: 0 | M41: ='FY 2019'!D41 -> 0 | N41: ='FY 2019'!E41 -> 0 | O41: ='FY 2019'!F41 -> 0 | P41: 0 | Q41: ='FY 2020'!D41 -> 0
A42: Section 5505 - University Transportation Centers Program | B42: 0 | C42: 0 | D42: 0 | E42: ='FY 2017'!D42 -> 0 | F42: 0 | G42: 0 | H42: 0 | I42: 0 | J42: 0 | K42: 0 | L42: 0 | M42: ='FY 2019'!D42 -> 0 | N42: ='FY 2019'!E42 -> 0 | O42: ='FY 2019'!F42 -> 0 | P42: 0 | Q42: ='FY 2020'!D42 -> 0
A43: Total Transit | B43: =SUM(B19:B42) -> 3993903 | C43: =SUM(C19:C42) -> 2247670 | D43: =SUM(D19:D42) -> 6241573 | E43: ='FY 2017'!D43 -> 6241573 | F43: =SUM(F19:F42) -> 2985048 | G43: =SUM(G19:G42) -> 2036337 | H43: =SUM(H19:H42) -> 5021385 | I43: ='FY 2018'!D43 -> 4826385.009 | J43: =SUM(J19:J42) -> 2616188 | K43: =SUM(K19:K42) -> 1866485 | L43: =SUM(L19:L42) -> 4548172 | M43: ='FY 2019'!D43 -> 4548172 | N43: =SUM(N19:N42) -> 2628198 | O43: =SUM(O19:O42) -> 1934987 | P43: =SUM(P19:P42) -> 4563185 | Q43: ='FY 2020'!D43 -> 4563185
A44: Grand Total | B44: =B43+B15 -> 19652380 | C44: =C43+C15 -> 8953730 | D44: =D43+D15 -> 28606110 | E44: ='FY 2017'!D44 -> 28606110 | F44: =F43+F15 -> 14336954 | G44: =G43+G15 -> 4838713 | H44: =H43+H15 -> 19175667 | I44: ='FY 2018'!D44 -> 18980667.01 | J44: =J43+J15 -> 12054946 | K44: =K43+K15 -> 5587982 | L44: =L43+L15 -> 17708427 | M44: ='FY 2019'!D44 -> 17708427 | N44: =N43+N15 -> 18409584 | O44: =O43+O15 -> 6936774 | P44: =P43+P15 -> 25346358 | Q44: ='FY 2020'!D44 -> 25346358

Sheet Sheet1

Sheet FHWA GPA
A1: GPA Projects
A3: Required Fields | Z3: Optional Fields
A4: Fiscal Year | B4: County | C4: Respon-sible Agency | D4: Project Name | E4: Limits | F4: Length | G4: Primary Work Type | H4: Project Description | I4: Phase | J4: Advance Construct | K4: Federal Cost ($1000s) | L4: Federal Fund Source | M4: State Cost ($1000s) | N4: State Fund Source | O4: Local Cost ($1000s) | P4: Local Fund Source | Q4: Total Cost ($1000s) | R4: MDOT Job No. | S4: Local ID No. | T4: MPO/ Rural Approval Date | U4: Amend-ment Type | V4: Air Quality | W4: Comments | X4: Total Project Cost ($1000s) | Y4: x | Z4: Local Priority | AA4: EJ | AB4: Federal Approval Date | AC4: Capped Federal Cost ($1000s) | AD4: Date Obligated | AE4: Amount Obligated ($1000s) | AF4: Let Date | AG4: GPA
A5: 2017 | B5: MUSKEGON | C5: MDOT | D5: US-31 | E5: over the North Channel of the Muskegon River | F5: 1.679 | G5: Restore & rehabilitate | H5: GPA Trunkline Bridge 3R | I5: CON | K5: 543664 | L5: NH | M5: 120557 | N5: M | O5: 0 | Q5: 664221 | R5: 126927 | S5: Trunkline Bridge 3R | X5: 827716 | AE5: 0 | AF5: 2016-12-02 | AG5: Trunkline Bridge 3R
A6: 2017 | B6: MUSKEGON | C6: MDOT | D6: US-31 BR | E6: Hall Street to The White River | F6: 1.234 | G6: Resurface | H6: HMA Resurface; HMA Reconstruction | I6: CON | K6: 2129000 | L6: ST | M6: 472000 | N6: M | O6: 343000 | P6: CITY | Q6: 2944000 | R6: 51471 | S6: Trunkline Highway 3R | W6: Originally llisted at $1,796,000.Changed to $2,944,000 on 3/15/2017. | X6: 2050000 | AE6: 0 | AF6: 2017-01-13 | AG6: Trunkline Highway 3R
A7: 2017 | B7: MUSKEGON | C7: MDOT | D7: M-120 | E7: Mid-Michigan RR east to Getty Street | F7: 1.203 | G7: Restore & rehabilitate | H7: Rubblize | I7: PE | K7: 354411 | L7: NH | M7: 78589 | N7: M | O7: 0 | Q7: 433000 | R7: 118165 | S7: Trunkline Highway 3R | X7: 1426000 | AE7: 0 | AF7: 2019-02-01 | AG7: Trunkline Highway 3R
A8: 2017 | B8: MUSKEGON | C8: MDOT | D8: M-120 | E8: Whitehall Rd east to Mid-Michigan RR | F8: 0.696 | G8: Restore & rehabilitate | H8: Rubblize | I8: CON | K8: 850400 | L8: NH | M8: 212600 | N8: M | O8: 0 | Q8: 1063000 | R8: 118164 | S8: Trunkline Highway 3R | T8: 2017-01-18 | U8: Cost | X8: 1200000 | AE8: 0 | AF8: 2017-02-03 | AG8: Trunkline Highway 3R
A9: 2017 | B9: MUSKEGON | C9: MDOT | D9: M-120 | E9: Whitehall Rd east to Mid-Michigan RR | F9: 0.696 | G9: Traffic ops/safety | H9: Rubblize | I9: CON | K9: 200800 | L9: NH | M9: 50200 | N9: M | O9: 0 | Q9: 251000 | R9: 123327A | S9: Trunkline Highway 3R | T9: 2017-01-18 | U9: Add | X9: 300000 | AE9: 0 | AF9: 2017-02-03 | AG9: Trunkline Highway 3R
A10: 2017 | B10: MUSKEGON | C10: MDOT | D10: M-120 | E10: At Whitehall Road | F10: 0.27 | G10: Traffic ops/safety | H10: Extend existing wb left turn lane and add another wb left turn lane. Extend existing nb left turn lane. Scoping for this project completed under JN 117709. | I10: CON | K10: 788000 | L10: CM | M10: 197000 | N10: M | O10: 0 | Q10: 985000 | R10: 110686 | S10: Trunkline Traffic Operations or Safety | T10: 2017-01-18 | U10: Cost | W10: Originally programmed at $613,875 federal and $136,125 State. | X10: 845000 | AE10: 0 | AF10: 2017-02-03 | AG10: Trunkline Traffic Operations or Safety
A11: 2017 | B11: MUSKEGON | C11: MDOT | D11: M-120 | E11: Whitehall Rd east to Mid-Michigan RR | F11: 0.696 | G11: Traffic ops/safety | H11: Addition of Center Left Turn Lane | I11: CON | K11: 180000 | L11: HSIP | M11: 20000 | N11: M | O11: 0 | Q11: 200000 | R11: 123327 | S11: Trunkline Traffic Operations or Safety | X11: 200000 | AE11: 0 | AF11: 2017-02-03 | AG11: Trunkline Traffic Operations or Safety
A12: 2017 | B12: MUSKEGON | C12: MDOT | D12: M-120 | E12: Mid-Michigan RR East to Getty Street | F12: 1.203 | G12: Traffic ops/safety | H12: Addition of Center Left Turn Lane | I12: PE | K12: 40925 | L12: CM | M12: 9075 | N12: M | O12: 0 | Q12: 50000 | R12: 123326 | S12: Trunkline Traffic Operations or Safety | X12: 982000 | AE12: 0 | AF12: 2019-02-01 | AG12: Trunkline Traffic Operations or Safety
A13: 2017 | B13: MUSKEGON | C13: MDOT | D13: US-31 SB | E13: C&O Railroad north to Fruitvale Road | F13: 11.297 | G13: Resurface | H13: Cold milling and HMA overlay | I13: CON | K13: 3475351 | L13: NH | M13: 770649 | N13: M | O13: 0 | Q13: 4246000 | R13: 122635 | S13: Trunkline Highway Preservation | X13: 4266000 | AE13: 0 | AF13: 2017-01-13 | AG13: Trunkline Highway Preservation
A14: 2017 | B14: OTTAWA | C14: MDOT | D14: I-96 | E14: 112th Avenue east to 68th Avenue | F14: 4.32 | G14: Resurface | H14: Cold milling and HMA overlay | I14: CON | K14: 1800000 | L14: IM | M14: 200000 | N14: M | O14: 0 | Q14: 2000000 | R14: 129878 | S14: Trunkline Highway Preservation | X14: 2010000 | AE14: 0 | AF14: 2017-03-03 | AG14: Trunkline Highway Preservation
A15: 2017 | B15: MUSKEGON | C15: MDOT | D15: Waterloo Street | E15: At Waterloo Street | G15: Roadside facility | H15: Mill/Resurface | I15: CON | K15: 29466 | L15: ST | M15: 6534 | N15: M | O15: 0 | Q15: 36000 | R15: 87473 | S15: Trunkline Roadside Infrastructure Improvement | X15: 36000 | AE15: 0 | AF15: 2017-02-03 | AG15: Trunkline Roadside Infrastructure Improvement
A16: 2017 | B16: Muskegon | C16: MDOT | D16: M-37 | E16: 550' east of M-46/M-37 roundabout | G16: Cold milling and HMA overlay | H16: Mill/Resurface | I16: CON | K16: 280000 | L16: ST | M16: 70000 | N16: M | R16: 200359 | S16: CPM | AG16: CPM
A17: 2017 | B17: Muskegon | C17: MDOT | D17: at Marquette Rail | E17: in Casnovia Twp. | G17: Roadside facility | H17: Install new crossing surface | I17: CON | M17: 48251 | N17: M | R17: 200354 | S17: Local Highway Safety | AG17: Local Highway Safety
A18: 2017 | B18: Muskegon | C18: MDOT | D18: At Michigan Shore Railroad | E18: in Norton Shores | G18: Roadside facility | H18: Install new crossing surface | I18: CON | M18: 56200 | N18: M | O18: 56200 | Q18: 56000 | R18: 200374 | S18: Local Highway Safety | AG18: Local Highway Safety
A20: 2018 | B20: MUSKEGON | C20: MDOT | D20: I-96 EB | E20: over the Norris Creek | F20: 1.107 | G20: Restore & rehabilitate | H20: Deep overlay, substructure repair | I20: PE | K20: 75944 | L20: IM | M20: 8438 | N20: M | O20: 0 | Q20: 84382 | R20: 129962 | X20: 1826856 | AE20: 0 | AF20: 2019-12-06 | AG20: Trunkline Bridge 3R
A21: 2018 | B21: MUSKEGON | C21: MDOT | D21: I-96 EB | E21: over the Norris Creek | F21: 1.107 | G21: Restore & rehabilitate | H21: Deep overlay, substructure repair | I21: SUB | K21: 113769 | L21: IM | M21: 12640 | N21: M | O21: 0 | Q21: 126409 | R21: 129962 | X21: 1826856 | AE21: 0 | AF21: 2019-12-06 | AG21: Trunkline Bridge 3R
A22: 2018 | B22: MUSKEGON | C22: MDOT | D22: I-96 | E22: over Hile Rd | F22: 0.31 | G22: Restore & rehabilitate | H22: Deep overlay, beam repair | I22: PE | K22: 52925 | L22: IM | M22: 5881 | N22: M | O22: 0 | Q22: 58806 | R22: 129961 | X22: 1751591 | AE22: 0 | AF22: 2019-12-06 | AG22: Trunkline Bridge 3R
A23: 2018 | B23: MUSKEGON | C23: MDOT | D23: I-96 | E23: over Hile Rd | F23: 0.31 | G23: Restore & rehabilitate | H23: Deep overlay, beam repair | I23: SUB | K23: 128971 | L23: IM | M23: 14330 | N23: M | O23: 0 | Q23: 143301 | R23: 129961 | X23: 1751591 | AE23: 0 | AF23: 2019-12-06 | AG23: Trunkline Bridge 3R
A24: 2018 | B24: MUSKEGON | C24: MDOT | D24: N US 31/S BR US 31 RAMP | E24: US-31 NB Ramp to US-31 BR SB | F24: 0.12 | G24: Widen - minor | H24: Extend the deceleration ramp to the south. | I24: PE | K24: 102313 | L24: CM | M24: 22687 | N24: M | O24: 0 | Q24: 125000 | R24: 126477 | X24: 475000 | AE24: 0 | AF24: 2020-01-10 | AG24: Trunkline Traffic Operations or Safety
A25: 2019 | B25: MUSKEGON | C25: MDOT | D25: M-120 | E25: Mid-Michigan RR east to Getty Street | F25: 1.203 | G25: Restore & rehabilitate | H25: Rubblize | I25: CON | K25: 812771 | L25: NH | M25: 180229 | N25: M | O25: 0 | Q25: 993000 | R25: 118165 | X25: 1426000 | AE25: 0 | AF25: 2019-02-01 | AG25: Trunkline Highway 3R
A26: 2019 | B26: MUSKEGON | C26: MDOT | D26: US-31 BR | E26: Dowling Street north to Stanton Road | F26: 0.524 | G26: Resurface | H26: Cold Mill and HMA Resurface | I26: CON | K26: 1384902 | L26: ST | M26: 307098 | N26: M | O26: 0 | Q26: 1692000 | R26: 90084 | X26: 1692000 | AE26: 0 | AF26: 2018-12-07 | AG26: Trunkline Highway Preservation
A27: 2019 | B27: MUSKEGON | C27: MDOT | D27: M-120 | E27: Mid-Michigan RR East to Getty Street | F27: 1.203 | G27: Traffic ops/safety | H27: Addition of Center Left Turn Lane | I27: CON | K27: 900000 | L27: HSIP | M27: 100000 | N27: M | O27: 0 | Q27: 1000000 | R27: 123328 | X27: 1000000 | AE27: 0 | AF27: 2019-02-01 | AG27: Trunkline Traffic Operations or Safety
A28: 2019 | B28: MUSKEGON | C28: MDOT | D28: M-120 | E28: Mid-Michigan RR East to Getty Street | F28: 1.203 | G28: Traffic ops/safety | H28: Addition of Center Left Turn Lane | I28: CON | K28: 762842 | L28: CM | M28: 169158 | N28: M | O28: 0 | Q28: 932000 | R28: 123326 | X28: 982000 | AE28: 0 | AF28: 2019-02-01 | AG28: Trunkline Traffic Operations or Safety
A29: 2019 | B29: OTTAWA | C29: MDOT | D29: US-31 | E29: At Pierce Street, Winans Street and 158th Avenue | F29: 1.048 | G29: Traffic ops/safety | H29: Addition of indirect left turn lanes | I29: PE | K29: 163700 | L29: CM | M29: 36300 | N29: M | O29: 0 | Q29: 200000 | R29: 127478 | X29: 1065000 | AE29: 0 | AF29: 2020-02-07 | AG29: Trunkline Traffic Operations or Safety
A30: 2020 | B30: OTTAWA | C30: MDOT | D30: I-96 WB | E30: EB & WB over the Crockery Creek | F30: 1.035 | G30: Restore & rehabilitate | H30: Deep overlay, Substructure repair, Approach work | I30: CON | K30: 1481254 | L30: IM | M30: 164585 | N30: M | O30: 0 | Q30: 1645839 | R30: 126928 | X30: 1874825 | AE30: 0 | AF30: 2019-12-06 | AG30: Trunkline Bridge 3R
A31: 2020 | B31: MUSKEGON | C31: MDOT | D31: I-96 EB | E31: over the Norris Creek | F31: 1.107 | G31: Restore & rehabilitate | H31: Deep overlay, substructure repair | I31: CON | K31: 1454459 | L31: IM | M31: 161606 | N31: M | O31: 0 | Q31: 1616065 | R31: 129962 | X31: 1826856 | AE31: 0 | AF31: 2019-12-06 | AG31: Trunkline Bridge 3R
A32: 2020 | B32: MUSKEGON | C32: MDOT | D32: I-96 | E32: over Hile Rd | F32: 0.31 | G32: Restore & rehabilitate | H32: Deep overlay, beam repair | I32: CON | K32: 1394535 | L32: IM | M32: 154949 | N32: M | O32: 0 | Q32: 1549484 | R32: 129961 | X32: 1751591 | AE32: 0 | AF32: 2019-12-06 | AG32: Trunkline Bridge 3R
A33: 2020 | B33: MUSKEGON | C33: MDOT | D33: N US 31/S BR US 31 RAMP | E33: US-31 NB Ramp to US-31 BR SB | F33: 0.12 | G33: Widen - minor | H33: Extend the deceleration ramp to the south. | I33: CON | K33: 286475 | L33: CM | M33: 63525 | N33: M | O33: 0 | Q33: 350000 | R33: 126477 | X33: 475000 | AE33: 0 | AF33: 2020-01-10 | AG33: Trunkline Traffic Operations or Safety
A34: 2020 | B34: OTTAWA | C34: MDOT | D34: US-31 | E34: At Pierce Street, Winans Street and 158th Avenue | F34: 1.048 | G34: Traffic ops/safety | H34: Addition of indirect left turn lanes | I34: CON | K34: 708003 | L34: CM | M34: 156997 | N34: M | O34: 0 | Q34: 865000 | R34: 127478 | X34: 1065000 | AE34: 0 | AF34: 2020-02-07 | AG34: Trunkline Traffic Operations or Safety

Sheet FTA GPA
A1: GPA Projects
A3: Required Fields | Z3: Optional Fields
A4: Fiscal Year | B4: County | C4: Respon-sible Agency | D4: Project Name | E4: Limits | F4: Length | G4: Primary Work Type | H4: Project Description | I4: Phase | J4: Advance Construct | K4: Federal Cost ($1000s) | L4: Federal Fund Source | M4: State Cost ($1000s) | N4: State Fund Source | O4: Local Cost ($1000s) | P4: Local Fund Source | Q4: Total Cost ($1000s) | R4: MDOT Job No. | S4: Local ID No. | T4: MPO/ Rural Approval Date | U4: Amend-ment Type | V4: Air Quality | W4: Comments | X4: Total Project Cost ($1000s) | Y4: x | Z4: Local Priority | AA4: EJ | AB4: Federal Approval Date | AC4: Capped Federal Cost ($1000s) | AD4: Date Obligated | AE4: Amount Obligated ($1000s) | AF4: Let Date

Sheet FTA Candidate Projects
A1: GPA Projects
A3: Required Fields | Z3: Optional Fields
A4: Fiscal Year | B4: County | C4: Respon-sible Agency | D4: Project Name | E4: Limits | F4: Length | G4: Primary Work Type | H4: Project Description | I4: Phase | J4: Advance Construct | K4: Federal Cost ($1000s) | L4: Federal Fund Source | M4: State Cost ($1000s) | N4: State Fund Source | O4: Local Cost ($1000s) | P4: Local Fund Source | Q4: Total Cost ($1000s) | R4: MDOT Job No. | S4: Local ID No. | T4: MPO/ Rural Approval Date | U4: Amend-ment Type | V4: Air Quality | W4: Comments | X4: Total Project Cost ($1000s) | Y4: x | Z4: Local Priority | AA4: EJ | AB4: Federal Approval Date | AC4: Capped Federal Cost ($1000s) | AD4: Date Obligated | AE4: Amount Obligated ($1000s) | AF4: Let Date
A5: 2017 | B5: Muskegon | C5: MATS | D5: Operate Transit/Paratransit Service | E5: Areawide | F5: NA | K5: 1000000 | L5: 5307 | M5: 600000 | N5: ctf | O5: 400000 | Q5: 2000000
A6: 2017 | B6: Muskegon | C6: MATS | D6: Preventive Maintenance | E6: Areawide | F6: NA | K6: 640000 | L6: 5307 | M6: 160000 | N6: ctf | Q6: 800000
A7: 2017 | B7: Ottawa | C7: Harbor Transit | D7: Operations assistance | E7: Areawide | F7: NA | G7: Transit operations | H7: Operations assistance | I7: T-Ops | K7: 515000 | L7: 5307 | M7: 0 | N7: ctf | O7: 515000 | Q7: 1030000
A8: 2017 | B8: Muskegon | C8: MATS | D8: Mobility Management | E8: Areawide | F8: NA | K8: 80000 | L8: 5310 | M8: 20000 | N8: ctf | Q8: 100000 | T8: 2017-02-15 | U8: Cost | W8: Originally lsited as Mobility Management at a project cost of $150,000. Split into two separate proects. Mobility Management Activities for $100,000 and a new project Mobility Management Marketing at $50,000.
A9: 2017 | B9: Muskegon | C9: Pioneer Res | D9: Seven medium duty replacement buses | E9: Areawide | F9: NA | K9: 592060 | L9: 5310 | M9: 148015 | N9: ctf | Q9: 740075
A10: 2017 | B10: Muskegon | C10: Pioneer Res | D10: Administrative Vehicle | E10: Areawide | F10: NA | K10: 32000 | L10: 5310 | M10: 8000 | N10: ctf | Q10: 40000
A11: 2017 | B11: Muskegon | C11: Pioneer Res | D11: NF- Operating assistance | E11: Areawide | F11: NA | K11: 55000 | L11: 5310 | M11: 55000 | N11: ctf | Q11: 110000
A12: 2017 | B12: Muskegon | C12: Pioneer Res | D12: NF- Mobility Management | E12: Areawide | F12: NA | K12: 4000 | L12: 5310 | M12: 1000 | N12: ctf | Q12: 5000
A13: 2017 | B13: Muskegon | C13: Pioneer Res | D13: JARC- Operating assistance | E13: Areawide | F13: NA | K13: 46585 | L13: 5311 | M13: 46585 | N13: ctf | Q13: 93170
A14: 2017 | B14: Ottawa | C14: Harbor Transit | D14: Bus Replacement (4) | E14: Areawide | F14: NA | G14: Transit operations | H14: Operations assistance | I14: T-Ops | K14: 470000 | L14: 5307 | M14: 117600 | N14: ctf | Q14: 587600 | W14: Originally listed as 5337
A15: 2017 | B15: Ottawa | C15: Harbor Transit | D15: Bus Replacement (2) | E15: Areawide | F15: NA | G15: Transit operations | H15: Operations assistance | I15: T-Ops | K15: 235200 | L15: 5339 | M15: 58800 | N15: ctf | Q15: 294000
A16: 2018 | B16: Muskegon | C16: MATS | D16: Operate Transit/Paratransit Service | E16: Areawide | F16: NA | K16: 1000000 | L16: 5307 | M16: 600000 | N16: ctf | O16: 400000 | Q16: 2000000
A17: 2018 | B17: Muskegon | C17: MATS | D17: Preventive Maintenance | E17: Areawide | F17: NA | K17: 640000 | L17: 5307 | M17: 160000 | N17: ctf | Q17: 800000
A18: 2018 | B18: Ottawa | C18: Harbor Transit | D18: Operations assistance | E18: Areawide | F18: NA | G18: Transit operations | H18: Operations assistance | I18: T-Ops | K18: 515000 | L18: 5307 | M18: 0 | N18: ctf | O18: 515000 | Q18: 1030000
A19: 2018 | B19: Muskegon | C19: MATS | D19: Mobility management activities | E19: Areawide | F19: NA | K19: 80000 | L19: 5310 | M19: 20000 | N19: ctf | Q19: 100000 | T19: 2017-02-15 | U19: Cost | W19: Originally lsited as Mobility Management at a project cost of $150,000. Split into two separate proects. Mobility Management Activities for $100,000 and a new project Mobility Management Marketing at $50,000.
A20: 2018 | B20: Muskegon | C20: Pioneer Res | D20: Two medium duty replacement buses | E20: Areawide | F20: NA | K20: 146357 | L20: 5310 | M20: 36589 | N20: ctf | Q20: 182946
A21: 2018 | B21: Muskegon | C21: Pioneer Res | D21: 4 medium busses | E21: Areawide | F21: NA | K21: 246400 | L21: 5310 | M21: 61600 | N21: ctf | Q21: 308000 | W21: changed from 2 to four busses on3/15/2017.
A22: 2018 | B22: Muskegon | C22: Pioneer Res | D22: NF- Operating assistance | E22: Areawide | F22: NA | K22: 55000 | L22: 5310 | M22: 55000 | N22: ctf | Q22: 110000
A23: 2018 | B23: Muskegon | C23: Pioneer Res | D23: NF- Mobility Management | E23: Areawide | F23: NA | K23: 4000 | L23: 5310 | M23: 1000 | N23: ctf | Q23: 5000
A24: 2018 | B24: Muskegon | C24: Pioneer Res | D24: JARC- Operating assistance | E24: Areawide | F24: NA | K24: 46585 | L24: 5311 | M24: 46585 | N24: ctf | Q24: 93170
A25: 2019 | B25: Muskegon | C25: MATS | D25: Operate Transit/Paratransit Service | E25: Areawide | F25: NA | K25: 1000000 | L25: 5307 | M25: 600000 | N25: ctf | O25: 400000 | Q25: 2000000
A26: 2019 | B26: Muskegon | C26: MATS | D26: Preventive Maintenance | E26: Areawide | F26: NA | K26: 640000 | L26: 5307 | M26: 160000 | N26: ctf | Q26: 800000
A27: 2019 | B27: Ottawa | C27: Harbor Transit | D27: Operations assistance | E27: Areawide | F27: NA | G27: Transit operations | H27: Operations assistance | I27: T-Ops | K27: 515000 | L27: 5307 | M27: 0 | N27: ctf | O27: 515000 | Q27: 1030000
A28: 2019 | B28: Muskegon | C28: MATS | D28: Mobility Management activities | E28: Areawide | F28: NA | K28: 80000 | L28: 5310 | M28: 20000 | N28: ctf | Q28: 100000 | T28: 2017-02-15 | U28: Cost | W28: Originally lsited as Mobility Management at a project cost of $150,000. Split into two separate proects. Mobility Management Activities for $100,000 and a new project Mobility Management Marketing at $50,000.
A29: 2019 | B29: Muskegon | C29: Pioneer Res | D29: Two accessible passenger vehicles | E29: Areawide | F29: NA | K29: 75603 | L29: 5310 | M29: 18900 | N29: ctf | Q29: 94503
A30: 2019 | B30: Muskegon | C30: Pioneer Res | D30: NF- Operating assistance | E30: Areawide | F30: NA | K30: 55000 | L30: 5310 | M30: 55000 | N30: ctf | Q30: 110000
A31: 2019 | B31: Muskegon | C31: Pioneer Res | D31: NF- Mobility Management | E31: Areawide | F31: NA | K31: 4000 | L31: 5310 | M31: 1000 | N31: ctf | Q31: 5000
A32: 2019 | B32: Muskegon | C32: ARC | D32: Six Passenger Vehicles | E32: Areawide | F32: NA | K32: 160000 | L32: 5310 | M32: 40000 | N32: ctf | Q32: 200000
A33: 2019 | B33: Muskegon | C33: Pioneer Res | D33: JARC- Operating assistance | E33: Areawide | F33: NA | K33: 46585 | L33: 5311 | M33: 46585 | N33: ctf | Q33: 93170
A34: 2020 | B34: Muskegon | C34: MATS | D34: Operate Transit/Paratransit Service | E34: Areawide | F34: NA | K34: 1000000 | L34: 5307 | M34: 600000 | N34: ctf | O34: 400000 | Q34: 2000000
A35: 2020 | B35: Muskegon | C35: MATS | D35: Preventive Maintenance | E35: Areawide | F35: NA | K35: 640000 | L35: 5307 | M35: 160000 | N35: ctf | Q35: 800000
A36: 2020 | B36: Ottawa | C36: Harbor Transit | D36: Operations assistance | E36: Areawide | F36: NA | G36: Transit operations | H36: Operations assistance | I36: T-Ops | K36: 515000 | L36: 5307 | M36: 0 | N36: ctf | O36: 515000 | Q36: 1030000
A37: 2020 | B37: Muskegon | C37: MATS | D37: Mobility management activities | E37: Areawide | F37: NA | K37: 80000 | L37: 5310 | M37: 20000 | N37: ctf | Q37: 100000 | T37: 2017-02-15 | U37: Cost | W37: Originally lsited as Mobility Management at a project cost of $150,000. Split into two separate proects. Mobility Management Activities for $100,000 and a new project Mobility Management Marketing at $50,000.
A38: 2020 | B38: Muskegon | C38: Pioneer Res | D38: Two medium duty replacement buses | E38: Areawide | F38: NA | K38: 146357 | L38: 5310 | M38: 36589 | N38: ctf | Q38: 182946
A39: 2020 | B39: Muskegon | C39: Pioneer Res | D39: Two cutaway replacement buses | E39: Areawide | F39: NA | K39: 101256 | L39: 5310 | M39: 25314 | N39: ctf | Q39: 126570
A40: 2020 | B40: Muskegon | C40: Pioneer Res | D40: NF- Operating assistance | E40: Areawide | F40: NA | K40: 55000 | L40: 5310 | M40: 55000 | N40: ctf | Q40: 110000
A41: 2020 | B41: Muskegon | C41: Pioneer Res | D41: NF- Mobility Management | E41: Areawide | F41: NA | K41: 4000 | L41: 5310 | M41: 1000 | N41: ctf | Q41: 5000
A42: 2020 | B42: Muskegon | C42: Pioneer Res | D42: JARC- Operating assistance | E42: Areawide | F42: NA | K42: 46585 | L42: 5311 | M42: 46585 | N42: ctf | Q42: 93170
A43: 2017 | B43: Muskegon | C43: MATS | D43: Mobility Management Marketing | E43: Areawide | F43: NA | K43: 40000 | L43: 5310 | M43: 10000 | N43: ctf | Q43: 50000 | T43: 2017-02-15 | U43: Add | W43: Originally lsited as Mobility Management at a project cost of $150,000. Split into two separate proects. Mobility Management Activities for $100,000 and a new project Mobility Management Marketing at $50,000.
A44: 2018 | B44: Muskegon | C44: MATS | D44: Mobility Management Marketing | E44: Areawide | F44: NA | K44: 40000 | L44: 5310 | M44: 10000 | N44: ctf | Q44: 50000 | T44: 2017-02-15 | U44: Add | W44: Originally lsited as Mobility Management at a project cost of $150,000. Split into two separate proects. Mobility Management Activities for $100,000 and a new project Mobility Management Marketing at $50,000.
A45: 2019 | B45: Muskegon | C45: MATS | D45: Mobility Management Marketing | E45: Areawide | F45: NA | K45: 40000 | L45: 5310 | M45: 10000 | N45: ctf | Q45: 50000 | T45: 2017-02-15 | U45: Add | W45: Originally lsited as Mobility Management at a project cost of $150,000. Split into two separate proects. Mobility Management Activities for $100,000 and a new project Mobility Management Marketing at $50,000.
A46: 2020 | B46: Muskegon | C46: MATS | D46: Mobility Management Marketing | E46: Areawide | F46: NA | K46: 40000 | L46: 5310 | M46: 10000 | N46: ctf | Q46: 50000 | T46: 2017-02-15 | U46: Add | W46: Originally lsited as Mobility Management at a project cost of $150,000. Split into two separate proects. Mobility Management Activities for $100,000 and a new project Mobility Management Marketing at $50,000.
A47: 2019 | B47: Muskegon | C47: Pioneer Res | D47: 2 replacement vans | E47: Areawide | F47: NA | K47: 104000 | L47: 5310 | M47: 26000 | N47: ctf | Q47: 130000 | T47: 3/15/2017 | U47: Add
A48: 2018 | B48: MUSKEGON | C48: Pioneer Resources | D48: New freedom | E48: Areawide | F48: NA | G48: Transit operations | H48: New freedom - operating | I48: T-Ops | K48: 14850 | L48: 5310 | M48: 14850 | N48: CTF | Q48: 29700 | S48: E | T48: 2017-05-17 | U48: Add | V48: Exempt | X48: 30000

Sheet Illustrative
A1: Illustrative Projects
A3: Required Fields | Z3: Optional Fields
A4: Fiscal Year | B4: County | C4: Respon-sible Agency | D4: Project Name | E4: Limits | F4: Length | G4: Primary Work Type | H4: Project Description | I4: Phase | J4: Advance Construct | K4: Federal Cost ($1000s) | L4: Federal Fund Source | M4: State Cost ($1000s) | N4: State Fund Source | O4: Local Cost ($1000s) | P4: Local Fund Source | Q4: Total Cost ($1000s) | R4: MDOT Job No. | S4: Local ID No. | T4: MPO/ Rural Approval Date | U4: Amend-ment Type | V4: Air Quality | W4: Comments | X4: Total Project Cost ($1000s) | Y4: x | Z4: Local Priority | AA4: EJ | AB4: Federal Approval Date | AC4: Capped Federal Cost ($1000s) | AD4: Date Obligated | AE4: Amount Obligated ($1000s) | AF4: Let Date
A5: 2018 | B5: Muskegon | C5: City of Muskegon | D5: Beach Street Oval | E5: Lakeshore Drive to Beach Street Oval | F5: 0.9 | G5: Resurface | J5: STPU | K5: 500000 | L5: STUL | M5: 0 | O5: 150000 | Q5: 650000 | T5: Added during FY2017-2020 TIP Development | U5: 715000 | W5: 1 | X5: 650000
A6: 2018 | B6: Muskegon | C6: City of Muskegon | D6: Black Creek Road | E6: Sherman Blvd. to Latimer | F6: 0.3 | G6: Reconstruct | J6: STPU | K6: 260000 | L6: STUL | M6: 0 | O6: 75000 | Q6: 325000 | T6: Added during FY2017-2020 TIP Development | U6: 375000 | W6: 1 | X6: 325000
A7: 2018 | B7: Muskegon | C7: City of Muskegon Heights | D7: Hackley Street | E7: Manz to Getty Street | F7: 0.4 | G7: Resurface | J7: STPU | K7: 182186 | L7: STUL | M7: 0 | O7: 45546 | Q7: 227732 | T7: Added during FY2017-2020 TIP Development | U7: 313278 | W7: 2 | X7: 227732
A8: 2018 | B8: Muskegon | C8: City of Muskegon Heights | D8: Hackley Street | E8: 5th Street to park Street | F8: 0.3 | G8: Resurface | J8: STPU | K8: 136639 | L8: STUL | M8: 0 | O8: 31160 | Q8: 167779 | T8: Added during FY2017-2020 TIP Development | U8: 197779 | W8: 1 | X8: 167779
A9: 2018 | B9: Ottawa | C9: Harbor Transit | D9: Bus Replacement (1) | E9: Areawide | F9: NA | J9: 5337 | K9: 124000 | L9: STUL | M9: 31000 | N9: ctf | O9: 155000 | Q9: 155000 | T9: 2013-06-20 | V9: Exempt | X9: 155000
A10: 2019 | B10: Muskegon | C10: City of Muskegon | D10: Lakeshore Drive | E10: Beach Street to Lincoln | F10: 1.5 | G10: Reconstruct | J10: STPU | K10: 1000000 | L10: STUL | M10: 0 | O10: 578000 | Q10: 1578000 | T10: Added during FY2017-2020 TIP Development | U10: 1658000 | W10: 1 | X10: 1578000
A11: 2019 | B11: Muskegon | C11: Muskegon County Road Commission | D11: Pontaluna Road | E11: Harvey Street to Fruitport Road | F11: 2.02 | G11: Resurface | J11: STPU | K11: 689456 | L11: STUL | M11: 0 | O11: 172364 | Q11: 861820 | T11: Added during FY2017-2020 TIP Development | U11: 951820 | W11: 2 | X11: 861820
A12: 2020 | B12: Muskegon | C12: City of Montague | D12: Stanton Blvd. | E12: Dicey St. to Cook St. | G12: Mill & Fill | J12: STPU | K12: 125000 | L12: STUL | M12: 0 | O12: 31250 | Q12: 156250 | T12: Added during FY2017-2020 TIP Development | U12: 156250 | W12: 4 | X12: 156250
A14: 2020 | B14: Muskegon | C14: City of Muskegon | D14: Lakeshore Drive | E14: Lincoln to Laketon Avenue | F14: 1.2 | G14: Reconstruct | J14: STPU | K14: 1000000 | L14: STUL | M14: 0 | O14: 300000 | Q14: 1300000 | T14: Added during FY2017-2020 TIP Development | U14: 1380000 | W14: 1 | X14: 1300000
A15: 2020 | B15: Muskegon | C15: City of Muskegon Heights | D15: Broadway Avenue | E15: 6th Street to Peck Street | F15: 0.2 | G15: Resurface | J15: STPU | K15: 91000 | L15: STUL | M15: 0 | O15: 20773 | Q15: 111866 | T15: Added during FY2017-2020 TIP Development | U15: 121866 | W15: 1 | X15: 111866
A16: 2020 | B16: Muskegon | C16: City of Muskegon Heights | D16: Broadway Avenue | E16: Glade Street to 6th Street | F16: 0.4 | G16: Resurface | J16: STPU | K16: 182186 | L16: STUL | M16: 0 | O16: 45139 | Q16: 227325 | T16: Added during FY2017-2020 TIP Development | U16: 267325 | W16: 1 | X16: 227325
A17: 2020 | B17: Muskegon | C17: City of Norton Shores | D17: Forest Park Road Reconstruction (Entire project) | E17: Henry Street to Lake Harbor Road | F17: 1.3 | G17: Reconstruct existing 2 lane HMA, includes paved shoulders in both directions | J17: STPU | K17: 920000 | L17: STUL | M17: 0 | O17: 230000 | Q17: 1150000 | T17: Added during FY2017-2020 TIP Development | U17: 1380000 | W17: 3 | X17: 1150000
A18: 2020 | B18: Muskegon | C18: City of Norton Shores | D18: Henry Roadway Resurfacing | E18: Porter Road to Pontaluna Road | F18: 2.4 | G18: Resurface existing 2 lane HMA, with paved shoulder in both directions | J18: STPU | K18: 870640 | L18: STUL | M18: 0 | O18: 217660 | Q18: 1088300 | T18: Added during FY2017-2020 TIP Development | U18: 1305960 | W18: 5 | X18: 1088300
A19: 2020 | B19: Muskegon | C19: City of Norton Shores | D19: Lake Harbor Road Resurfacing | E19: Porter Road to Seminole Road | F19: 2.1 | G19: Resurface existing 2 lane HMA, with paved shoulder in both directions | J19: STPU | K19: 876800 | L19: STUL | M19: 0 | O19: 219200 | Q19: 1096000 | T19: Added during FY2017-2020 TIP Development | U19: 1315200 | W19: 6 | X19: 1096000
A20: 2020 | B20: Muskegon | C20: City of Norton Shores | D20: Lake Harbor Road Resurfacing (Phase2) | E20: Porter Road to Pontaluna Road | F20: 2.1 | G20: Resurface existing 2 lane HMA, with paved shoulder in both directions | J20: STPU | K20: 1001600 | L20: STUL | M20: 0 | O20: 250400 | Q20: 1252000 | T20: Added during FY2017-2020 TIP Development | U20: 1502400 | W20: 6 | X20: 1252000
A21: 2019 | B21: Muskegon | C21: City of Roosevelt Park | D21: Glenside Blvd. | E21: Sherman Blvd. to RR Tracks | F21: 0.222 | G21: Resurface | J21: STPU | K21: 180000 | L21: STUL | M21: 0 | O21: 45000 | Q21: 225000 | T21: Added during FY2017-2020 TIP Development | U21: 45000 | W21: 2 | X21: 225000
A22: 2020 | B22: Ottawa | C22: Harbor Transit | D22: Support equipment | E22: Areawide | H22: 1000 gallon LP storage tank to Alternative Fuel Station | J22: CM | K22: 3800 | L22: STUL | M22: 0 | O22: 950 | Q22: 4750 | R22: Add | S22: Exempt | T22: Illustrative only | X22: 4750
A23: 2020 | B23: Ottawa | C23: Harbor Transit | D23: Bus Replacement (2) | E23: Areawide | F23: NA | J23: 5337 | K23: 253800 | L23: STUL | M23: 63360 | N23: ctf | O23: 317160 | Q23: 317160 | T23: 2013-06-20 | V23: Exempt | X23: 317160
A24: 2020 | B24: Muskegon | C24: MATS | D24: Heavy duty bus replacement | E24: Areawide | H24: Purchase replacement 35' heavy duty CNG bus | J24: CM | K24: 400000 | L24: STUL | M24: 0 | O24: 100000 | Q24: 500000 | R24: Add | S24: Exempt | X24: 500000
A25: 2020 | B25: Muskegon | C25: MATS | D25: Small bus replacements | E25: Areawide | H25: 4 small replacement buses | J25: CM | K25: 400000 | L25: STUL | M25: 0 | O25: 100000 | Q25: 500000 | R25: Add | S25: Exempt | X25: 500000
A26: 2020 | B26: Muskegon | C26: MATS | D26: Small bus replacement | E26: Areawide | H26: 4 small replacement buses | J26: CM | K26: 400000 | L26: STUL | M26: 0 | O26: 100000 | Q26: 500000 | R26: Add | S26: Exempt | X26: 500000
A27: 2020 | B27: Muskegon | C27: MCRC | D27: Add center turn lane | E27: Whitehall road at McMillan | H27: Add center turn lane | J27: CM | K27: 144000 | L27: STUL | M27: 0 | O27: 36000 | Q27: 180000 | R27: Add | S27: Exempt | X27: 180000
A28: 2020 | B28: Muskegon | C28: Montague | D28: Cook Street | E28: Hunt St. to Eilers Rd. | G28: Crush & Shape w/ partial reconstruct | J28: STPU | K28: 280000 | L28: STUL | M28: 0
A29: 2020 | B29: Muskegon | C29: Montague | D29: Stanton Blvd | E29: Dicey St. to Cook St. | G29: Mill & Fill | J29: STPU | K29: 125000 | L29: STUL | M29: 0
A30: 2020 | B30: Muskegon | C30: Muskegon County Road Commission | D30: Broadway Avenue | E30: US-31 to Black Creek Road | F30: 0.88 | G30: Resurface | J30: STPU | K30: 172000 | L30: STUL | M30: 0 | O30: 43000 | Q30: 215000 | T30: Added during FY2017-2020 TIP Development | U30: 250000 | W30: 3 | X30: 215000
A31: 2020 | B31: Muskegon | C31: Muskegon County Road Commission | D31: Giles Road | E31: Scenic Drive to Buys Road | F31: 3.02 | G31: Reconstruct, add center turn lane | J31: STPU | K31: 624000 | L31: STUL | M31: 0 | O31: 156000 | Q31: 780000 | T31: Added during FY2017-2020 TIP Development | U31: 870000 | W31: 2 | X31: 780000
A32: 2020 | B32: Muskegon | C32: Muskegon Heights | D32: Pedestrian/bicycle pathway | E32: Getty Street from Sherman to Broadway | H32: Pedestrian/bicycle pathway | J32: CM | K32: 66450 | L32: STUL | M32: 0 | O32: 16613 | Q32: 83063 | R32: Add | S32: Exempt | X32: 83063
A33: 2020 | B33: Muskegon | C33: Muskegon Heights | D33: Pedestrian/bicycle pathway | E33: Getty Street | H33: Pedestrian/bicycle pathway | J33: CM | K33: 124000 | L33: STUL | M33: 0 | O33: 31000 | Q33: 155000 | R33: Add | S33: Exempt | X33: 155000
A34: 2020 | B34: Muskegon | C34: Norton Shores | D34: Lake Harbor Road Bike Path | E34: Betweeen PJ Hoffmasters campground and Main entrance drives | H34: 10" HMA bike path along the ROW | J34: CM | K34: 83498 | L34: STUL | M34: 0 | Q34: 83498 | R34: Add | S34: Exempt | X34: 83498
A35: 2019 | B35: Muskegon | C35: Muskegon Heights | D35: Hackley Ave | E35: Park Street to Fifth Street | K35: 296000 | L35: STUL | O35: 74000 | Q35: 370000 | S35: Exempt | X35: 410000
A36: 2019 | B36: Muskegon | C36: Muskegon Heights | D36: Broadway Ave | E36: Glade Street to 6th Street | K36: 400000 | L36: STUL | O36: 100000 | Q36: 500000 | S36: Exempt | X36: 550000
A37: 2019 | B37: Muskegon | C37: North Muskegon | D37: Whitehall Road | E37: lake Avenue to City limits (west of Ruddiman) | K37: 375000 | L37: STUL | O37: 143000 | Q37: 518000 | S37: Exempt | X37: 600000

Sheet NonFHWA_NonFTA
A1: Non FHWA/FTA Projects FY 2014 - 2017 (Optional)
A2: 2013-01-02
A3: Required Fields | Z3: Optional Fields
A4: Fiscal Year | B4: County | C4: Respon-sible Agency | D4: Project Name | E4: Limits | F4: Length | G4: Primary Work Type | H4: Project Description | I4: Phase | J4: Advance Construct | K4: Federal Cost ($1000s) | L4: Federal Fund Source | M4: State Cost ($1000s) | N4: State Fund Source | O4: Local Cost ($1000s) | P4: Local Fund Source | Q4: Total Cost ($1000s) | R4: MDOT Job No. | S4: Local ID No. | T4: MPO/ Rural Approval Date | U4: Amend-ment Type | V4: Air Quality | W4: Comments | X4: Total Project Cost ($1000s) | Y4: x | Z4: Local Priority | AA4: EJ | AB4: Federal Approval Date | AC4: Capped Federal Cost ($1000s) | AD4: Date Obligated | AE4: Amount Obligated ($1000s) | AF4: Let Date

Sheet MDOT FTA Detail
B1: E-File v. 5.1 (01.15.15)
D3: 2017 | G3: 2018 | J3: 2019 | M3: 2020
A4: Fund | B4: Fund Sources | C4: MDOT | D4: Proposed Federal Commitments | E4: Proposed Non-Federal Commitments | F4: Total Proposed Commitments | G4: Proposed Federal Commitments | H4: Proposed Non-Federal Commitments | I4: Total Proposed Commitments | J4: Proposed Federal Commitments | K4: Proposed Non-Federal Commitments | L4: Total Proposed Commitments | M4: Proposed Federal Commitments | N4: Proposed Non-Federal Commitments | O4: Total Proposed Commitments
A6: BHI | B6: Bridge Rehabilitation - Prior 1991 - Interstate | C6: MDOT FA | D6: =SUMPRODUCT((Projects!$A$5:$A$2393='MDOT FTA Detail'!$D$3)*(Projects!$C$5:$C$2393='MDOT FTA Detail'!$C$4)*(Projects!$L$5:$L$2393='MDOT FTA Detail'!$A6)*(Projects!$J$5:$J$2393<>'MDOT FTA Detail'!$A$171)*(Projects!$K$5:K$2393)) -> 0 | E6: =F6-D6 -> 0 | F6: =SUMPRODUCT((Projects!$A$5:$A$2393='MDOT FTA Detail'!$D$3)*(Projects!$C$5:$C$2393='MDOT FTA Detail'!$C$4)*(Projects!$L$5:$L$2393='MDOT FTA Detail'!$A6)*(Projects!$J$5:$J$2393<>'MDOT FTA Detail'!$A$171)*(Projects!$Q$5:Q$2393)) -> 0 | G6: =SUMPRODUCT((Projects!$A$5:$A$2393='MDOT FTA Detail'!$G$3)*(Projects!$C$5:$C$2393='MDOT FTA Detail'!$C$4)*(Projects!$L$5:$L$2393='MDOT FTA Detail'!$A6)*(Projects!$J$5:$J$2393<>'MDOT FTA Detail'!$A$171)*(Projects!$K$5:K$2393)) -> 0 | H6: =I6-G6 -> 0 | I6: =SUMPRODUCT((Projects!$A$5:$A$2393='MDOT FTA Detail'!$G$3)*(Projects!$C$5:$C$2393='MDOT FTA Detail'!$C$4)*(Projects!$L$5:$L$2393='MDOT FTA Detail'!$A6)*(Projects!$J$5:$J$2393<>'MDOT FTA Detail'!$A$171)*(Projects!$Q$5:Q$2393)) -> 0 | J6: =SUMPRODUCT((Projects!$A$5:$A$2393='MDOT FTA Detail'!$J$3)*(Projects!$C$5:$C$2393='MDOT FTA Detail'!$C$4)*(Projects!$L$5:$L$2393='MDOT FTA Detail'!$A6)*(Projects!$J$5:$J$2393<>'MDOT FTA Detail'!$A$171)*(Projects!$K$5:$K$2393)) -> 0 | K6: =L6-J6 -> 0 | L6: =SUMPRODUCT((Projects!$A$5:$A$2393='MDOT FTA Detail'!$J$3)*(Projects!$C$5:$C$2393='MDOT FTA Detail'!$C$4)*(Projects!$L$5:$L$2393='MDOT FTA Detail'!$A6)*(Projects!$J$5:$J$2393<>'MDOT FTA Detail'!$A$171)*(Projects!$Q$5:$Q$2393)) -> 0 | M6: =SUMPRODUCT((Projects!$A$5:$A$2393='MDOT FTA Detail'!$M$3)*(Projects!$C$5:$C$2393='MDOT FTA Detail'!$C$4)*(Projects!$L$5:$L$2393='MDOT FTA Detail'!$A6)*(Projects!$J$5:$J$2393<>'MDOT FTA Detail'!$A$171)*(Projects!$K$5:$K$2393)) -> 0 | N6: =O6-M6 -> 0 | O6: =SUMPRODUCT((Projects!$A$5:$A$2393='MDOT FTA Detail'!$M$3)*(Projects!$C$5:$C$2393='MDOT FTA Detail'!$C$4)*(Projects!$L$5:$L$2393='MDOT FTA Detail'!$A6)*(Projects!$J$5:$J$2393<>'MDOT FTA Detail'!$A$171)*(Projects!$Q$5:$Q$2393)) -> 0
A7: BHN | B7: Bridge Rehabilitation - National Highway System (NHS) | C7: MDOT FA | D7: =SUMPRODUCT((Projects!$A$5:$A$2393='MDOT FTA Detail'!$D$3)*(Projects!$C$5:$C$2393='MDOT FTA Detail'!$C$4)*(Projects!$L$5:$L$2393='MDOT FTA Detail'!$A7)*(Projects!$J$5:$J$2393<>'MDOT FTA Detail'!$A$171)*(Projects!$K$5:K$2393)) -> 0 | E7: 0 | F7: =SUMPRODUCT((Projects!$A$5:$A$2393='MDOT FTA Detail'!$D$3)*(Projects!$C$5:$C$2393='MDOT FTA Detail'!$C$4)*(Projects!$L$5:$L$2393='MDOT FTA Detail'!$A7)*(Projects!$J$5:$J$2393<>'MDOT FTA Detail'!$A$171)*(Projects!$Q$5:Q$2393)) -> 0 | G7: =SUMPRODUCT((Projects!$A$5:$A$2393='MDOT FTA Detail'!$G$3)*(Projects!$C$5:$C$2393='MDOT FTA Detail'!$C$4)*(Projects!$L$5:$L$2393='MDOT FTA Detail'!$A7)*(Projects!$J$5:$J$2393<>'MDOT FTA Detail'!$A$171)*(Projects!$K$5:K$2393)) -> 0 | H7: 0 | I7: =SUMPRODUCT((Projects!$A$5:$A$2393='MDOT FTA Detail'!$G$3)*(Projects!$C$5:$C$2393='MDOT FTA Detail'!$C$4)*(Projects!$L$5:$L$2393='MDOT FTA Detail'!$A7)*(Projects!$J$5:$J$2393<>'MDOT FTA Detail'!$A$171)*(Projects!$Q$5:Q$2393)) -> 0 | J7: =SUMPRODUCT((Projects!$A$5:$A$2393='MDOT FTA Detail'!$J$3)*(Projects!$C$5:$C$2393='MDOT FTA Detail'!$C$4)*(Projects!$L$5:$L$2393='MDOT FTA Detail'!$A7)*(Projects!$J$5:$J$2393<>'MDOT FTA Detail'!$A$171)*(Projects!$K$5:$K$2393)) -> 0 | K7: 0 | L7: =SUMPRODUCT((Projects!$A$5:$A$2393='MDOT FTA Detail'!$J$3)*(Projects!$C$5:$C$2393='MDOT FTA Detail'!$C$4)*(Projects!$L$5:$L$2393='MDOT FTA Detail'!$A7)*(Projects!$J$5:$J$2393<>'MDOT FTA Detail'!$A$171)*(Projects!$Q$5:$Q$2393)) -> 0 | M7: =SUMPRODUCT((Projects!$A$5:$A$2393='MDOT FTA Detail'!$M$3)*(Projects!$C$5:$C$2393='MDOT FTA Detail'!$C$4)*(Projects!$L$5:$L$2393='MDOT FTA Detail'!$A7)*(Projects!$J$5:$J$2393<>'MDOT FTA Detail'!$A$171)*(Projects!$K$5:$K$2393)) -> 0 | N7: 0 | O7: =SUMPRODUCT((Projects!$A$5:$A$2393='MDOT FTA Detail'!$M$3)*(Projects!$C$5:$C$2393='MDOT FTA Detail'!$C$4)*(Projects!$L$5:$L$2393='MDOT FTA Detail'!$A7)*(Projects!$J$5:$J$2393<>'MDOT FTA Detail'!$A$171)*(Projects!$Q$5:$Q$2393)) -> 0
A8: BHO | B8: Bridge Rehabilitation - Not Classified, Off System | C8: MDOT FA | D8: =SUMPRODUCT((Projects!$A$5:$A$2393='MDOT FTA Detail'!$D$3)*(Projects!$C$5:$C$2393='MDOT FTA Detail'!$C$4)*(Projects!$L$5:$L$2393='MDOT FTA Detail'!$A8)*(Projects!$J$5:$J$2393<>'MDOT FTA Detail'!$A$171)*(Projects!$K$5:K$2393)) -> 0 | E8: 0 | F8: =SUMPRODUCT((Projects!$A$5:$A$2393='MDOT FTA Detail'!$D$3)*(Projects!$C$5:$C$2393='MDOT FTA Detail'!$C$4)*(Projects!$L$5:$L$2393='MDOT FTA Detail'!$A8)*(Projects!$J$5:$J$2393<>'MDOT FTA Detail'!$A$171)*(Projects!$Q$5:Q$2393)) -> 0 | G8: =SUMPRODUCT((Projects!$A$5:$A$2393='MDOT FTA Detail'!$G$3)*(Projects!$C$5:$C$2393='MDOT FTA Detail'!$C$4)*(Projects!$L$5:$L$2393='MDOT FTA Detail'!$A8)*(Projects!$J$5:$J$2393<>'MDOT FTA Detail'!$A$171)*(Projects!$K$5:K$2393)) -> 0 | H8: 0 | I8: =SUMPRODUCT((Projects!$A$5:$A$2393='MDOT FTA Detail'!$G$3)*(Projects!$C$5:$C$2393='MDOT FTA Detail'!$C$4)*(Projects!$L$5:$L$2393='MDOT FTA Detail'!$A8)*(Projects!$J$5:$J$2393<>'MDOT FTA Detail'!$A$171)*(Projects!$Q$5:Q$2393)) -> 0 | J8: =SUMPRODUCT((Projects!$A$5:$A$2393='MDOT FTA Detail'!$J$3)*(Projects!$C$5:$C$2393='MDOT FTA Detail'!$C$4)*(Projects!$L$5:$L$2393='MDOT FTA Detail'!$A8)*(Projects!$J$5:$J$2393<>'MDOT FTA Detail'!$A$171)*(Projects!$K$5:$K$2393)) -> 0 | K8: 0 | L8: =SUMPRODUCT((Projects!$A$5:$A$2393='MDOT FTA Detail'!$J$3)*(Projects!$C$5:$C$2393='MDOT FTA Detail'!$C$4)*(Projects!$L$5:$L$2393='MDOT FTA Detail'!$A8)*(Projects!$J$5:$J$2393<>'MDOT FTA Detail'!$A$171)*(Projects!$Q$5:$Q$2393)) -> 0 | M8: =SUMPRODUCT((Projects!$A$5:$A$2393='MDOT FTA Detail'!$M$3)*(Projects!$C$5:$C$2393='MDOT FTA Detail'!$C$4)*(Projects!$L$5:$L$2393='MDOT FTA Detail'!$A8)*(Projects!$J$5:$J$2393<>'MDOT FTA Detail'!$A$171)*(Projects!$K$5:$K$2393)) -> 0 | N8: 0 | O8: =SUMPRODUCT((Projects!$A$5:$A$2393='MDOT FTA Detail'!$M$3)*(Projects!$C$5:$C$2393='MDOT FTA Detail'!$C$4)*(Projects!$L$5:$L$2393='MDOT FTA Detail'!$A8)*(Projects!$J$5:$J$2393<>'MDOT FTA Detail'!$A$171)*(Projects!$Q$5:$Q$2393)) -> 0
A9: BHT | B9: Bridge Rehabilitation - Surface Transportation Program (STP) | C9: MDOT FA | D9: =SUMPRODUCT((Projects!$A$5:$A$2393='MDOT FTA Detail'!$D$3)*(Projects!$C$5:$C$2393='MDOT FTA Detail'!$C$4)*(Projects!$L$5:$L$2393='MDOT FTA Detail'!$A9)*(Projects!$J$5:$J$2393<>'MDOT FTA Detail'!$A$171)*(Projects!$K$5:K$2393)) -> 0 | E9: 0 | F9: =SUMPRODUCT((Projects!$A$5:$A$2393='MDOT FTA Detail'!$D$3)*(Projects!$C$5:$C$2393='MDOT FTA Detail'!$C$4)*(Projects!$L$5:$L$2393='MDOT FTA Detail'!$A9)*(Projects!$J$5:$J$2393<>'MDOT FTA Detail'!$A$171)*(Projects!$Q$5:Q$2393)) -> 0 | G9: =SUMPRODUCT((Projects!$A$5:$A$2393='MDOT FTA Detail'!$G$3)*(Projects!$C$5:$C$2393='MDOT FTA Detail'!$C$4)*(Projects!$L$5:$L$2393='MDOT FTA Detail'!$A9)*(Projects!$J$5:$J$2393<>'MDOT FTA Detail'!$A$171)*(Projects!$K$5:K$2393)) -> 0 | H9: 0 | I9: =SUMPRODUCT((Projects!$A$5:$A$2393='MDOT FTA Detail'!$G$3)*(Projects!$C$5:$C$2393='MDOT FTA Detail'!$C$4)*(Projects!$L$5:$L$2393='MDOT FTA Detail'!$A9)*(Projects!$J$5:$J$2393<>'MDOT FTA Detail'!$A$171)*(Projects!$Q$5:Q$2393)) -> 0 | J9: =SUMPRODUCT((Projects!$A$5:$A$2393='MDOT FTA Detail'!$J$3)*(Projects!$C$5:$C$2393='MDOT FTA Detail'!$C$4)*(Projects!$L$5:$L$2393='MDOT FTA Detail'!$A9)*(Projects!$J$5:$J$2393<>'MDOT FTA Detail'!$A$171)*(Projects!$K$5:$K$2393)) -> 0 | K9: 0 | L9: =SUMPRODUCT((Projects!$A$5:$A$2393='MDOT FTA Detail'!$J$3)*(Projects!$C$5:$C$2393='MDOT FTA Detail'!$C$4)*(Projects!$L$5:$L$2393='MDOT FTA Detail'!$A9)*(Projects!$J$5:$J$2393<>'MDOT FTA Detail'!$A$171)*(Projects!$Q$5:$Q$2393)) -> 0 | M9: =SUMPRODUCT((Projects!$A$5:$A$2393='MDOT FTA Detail'!$M$3)*(Projects!$C$5:$C$2393='MDOT FTA Detail'!$C$4)*(Projects!$L$5:$L$2393='MDOT FTA Detail'!$A9)*(Projects!$J$5:$J$2393<>'MDOT FTA Detail'!$A$171)*(Projects!$K$5:$K$2393)) -> 0 | N9: 0 | O9: =SUMPRODUCT((Projects!$A$5:$A$2393='MDOT FTA Detail'!$M$3)*(Projects!$C$5:$C$2393='MDOT FTA Detail'!$C$4)*(Projects!$L$5:$L$2393='MDOT FTA Detail'!$A9)*(Projects!$J$5:$J$2393<>'MDOT FTA Detail'!$A$171)*(Projects!$Q$5:$Q$2393)) -> 0
A10: BI08 | B10: Build Michigan FY08 | C10: MDOT FA | D10: =SUMPRODUCT((Projects!$A$5:$A$2393='MDOT FTA Detail'!$D$3)*(Projects!$C$5:$C$2393='MDOT FTA Detail'!$C$4)*(Projects!$L$5:$L$2393='MDOT FTA Detail'!$A10)*(Projects!$J$5:$J$2393<>'MDOT FTA Detail'!$A$171)*(Projects!$K$5:K$2393)) -> 0 | E10: 0 | F10: =SUMPRODUCT((Projects!$A$5:$A$2393='MDOT FTA Detail'!$D$3)*(Projects!$C$5:$C$2393='MDOT FTA Detail'!$C$4)*(Projects!$L$5:$L$2393='MDOT FTA Detail'!$A10)*(Projects!$J$5:$J$2393<>'MDOT FTA Detail'!$A$171)*(Projects!$Q$5:Q$2393)) -> 0 | G10: =SUMPRODUCT((Projects!$A$5:$A$2393='MDOT FTA Detail'!$G$3)*(Projects!$C$5:$C$2393='MDOT FTA Detail'!$C$4)*(Projects!$L$5:$L$2393='MDOT FTA Detail'!$A10)*(Projects!$J$5:$J$2393<>'MDOT FTA Detail'!$A$171)*(Projects!$K$5:K$2393)) -> 0 | H10: 0 | I10: =SUMPRODUCT((Projects!$A$5:$A$2393='MDOT FTA Detail'!$G$3)*(Projects!$C$5:$C$2393='MDOT FTA Detail'!$C$4)*(Projects!$L$5:$L$2393='MDOT FTA Detail'!$A10)*(Projects!$J$5:$J$2393<>'MDOT FTA Detail'!$A$171)*(Projects!$Q$5:Q$2393)) -> 0 | J10: =SUMPRODUCT((Projects!$A$5:$A$2393='MDOT FTA Detail'!$J$3)*(Projects!$C$5:$C$2393='MDOT FTA Detail'!$C$4)*(Projects!$L$5:$L$2393='MDOT FTA Detail'!$A10)*(Projects!$J$5:$J$2393<>'MDOT FTA Detail'!$A$171)*(Projects!$K$5:$K$2393)) -> 0 | K10: 0 | L10: =SUMPRODUCT((Projects!$A$5:$A$2393='MDOT FTA Detail'!$J$3)*(Projects!$C$5:$C$2393='MDOT FTA Detail'!$C$4)*(Projects!$L$5:$L$2393='MDOT FTA Detail'!$A10)*(Projects!$J$5:$J$2393<>'MDOT FTA Detail'!$A$171)*(Projects!$Q$5:$Q$2393)) -> 0 | M10: =SUMPRODUCT((Projects!$A$5:$A$2393='MDOT FTA Detail'!$M$3)*(Projects!$C$5:$C$2393='MDOT FTA Detail'!$C$4)*(Projects!$L$5:$L$2393='MDOT FTA Detail'!$A10)*(Projects!$J$5:$J$2393<>'MDOT FTA Detail'!$A$171)*(Projects!$K$5:$K$2393)) -> 0 | N10: 0 | O10: =SUMPRODUCT((Projects!$A$5:$A$2393='MDOT FTA Detail'!$M$3)*(Projects!$C$5:$C$2393='MDOT FTA Detail'!$C$4)*(Projects!$L$5:$L$2393='MDOT FTA Detail'!$A10)*(Projects!$J$5:$J$2393<>'MDOT FTA Detail'!$A$171)*(Projects!$Q$5:$Q$2393)) -> 0
A11: BO | B11: Bridge Not Classified Off System | C11: MDOT FA | D11: =SUMPRODUCT((Projects!$A$5:$A$2393='MDOT FTA Detail'!$D$3)*(Projects!$C$5:$C$2393='MDOT FTA Detail'!$C$4)*(Projects!$L$5:$L$2393='MDOT FTA Detail'!$A11)*(Projects!$J$5:$J$2393<>'MDOT FTA Detail'!$A$171)*(Projects!$K$5:K$2393)) -> 0 | E11: =F11-D11 -> 0 | F11: =SUMPRODUCT((Projects!$A$5:$A$2393='MDOT FTA Detail'!$D$3)*(Projects!$C$5:$C$2393='MDOT FTA Detail'!$C$4)*(Projects!$L$5:$L$2393='MDOT FTA Detail'!$A11)*(Projects!$J$5:$J$2393<>'MDOT FTA Detail'!$A$171)*(Projects!$Q$5:Q$2393)) -> 0 | G11: =SUMPRODUCT((Projects!$A$5:$A$2393='MDOT FTA Detail'!$G$3)*(Projects!$C$5:$C$2393='MDOT FTA Detail'!$C$4)*(Projects!$L$5:$L$2393='MDOT FTA Detail'!$A11)*(Projects!$J$5:$J$2393<>'MDOT FTA Detail'!$A$171)*(Projects!$K$5:K$2393)) -> 0 | H11: =I11-G11 -> 0 | I11: =SUMPRODUCT((Projects!$A$5:$A$2393='MDOT FTA Detail'!$G$3)*(Projects!$C$5:$C$2393='MDOT FTA Detail'!$C$4)*(Projects!$L$5:$L$2393='MDOT FTA Detail'!$A11)*(Projects!$J$5:$J$2393<>'MDOT FTA Detail'!$A$171)*(Projects!$Q$5:Q$2393)) -> 0 | J11: =SUMPRODUCT((Projects!$A$5:$A$2393='MDOT FTA Detail'!$J$3)*(Projects!$C$5:$C$2393='MDOT FTA Detail'!$C$4)*(Projects!$L$5:$L$2393='MDOT FTA Detail'!$A11)*(Projects!$J$5:$J$2393<>'MDOT FTA Detail'!$A$171)*(Projects!$K$5:$K$2393)) -> 0 | K11: =L11-J11 -> 0 | L11: =SUMPRODUCT((Projects!$A$5:$A$2393='MDOT FTA Detail'!$J$3)*(Projects!$C$5:$C$2393='MDOT FTA Detail'!$C$4)*(Projects!$L$5:$L$2393='MDOT FTA Detail'!$A11)*(Projects!$J$5:$J$2393<>'MDOT FTA Detail'!$A$171)*(Projects!$Q$5:$Q$2393)) -> 0 | M11: =SUMPRODUCT((Projects!$A$5:$A$2393='MDOT FTA Detail'!$M$3)*(Projects!$C$5:$C$2393='MDOT FTA Detail'!$C$4)*(Projects!$L$5:$L$2393='MDOT FTA Detail'!$A11)*(Projects!$J$5:$J$2393<>'MDOT FTA Detail'!$A$171)*(Projects!$K$5:$K$2393)) -> 0 | N11: =O11-M11 -> 0 | O11: =SUMPRODUCT((Projects!$A$5:$A$2393='MDOT FTA Detail'!$M$3)*(Projects!$C$5:$C$2393='MDOT FTA Detail'!$C$4)*(Projects!$L$5:$L$2393='MDOT FTA Detail'!$A11)*(Projects!$J$5:$J$2393<>'MDOT FTA Detail'!$A$171)*(Projects!$Q$5:$Q$2393)) -> 0
A12: BOWD | B12: Business Opportunity & Workforce Development Center | C12: MDOT FA | D12: =SUMPRODUCT((Projects!$A$5:$A$2393='MDOT FTA Detail'!$D$3)*(Projects!$C$5:$C$2393='MDOT FTA Detail'!$C$4)*(Projects!$L$5:$L$2393='MDOT FTA Detail'!$A12)*(Projects!$J$5:$J$2393<>'MDOT FTA Detail'!$A$171)*(Projects!$K$5:K$2393)) -> 0 | E12: 0 | F12: =SUMPRODUCT((Projects!$A$5:$A$2393='MDOT FTA Detail'!$D$3)*(Projects!$C$5:$C$2393='MDOT FTA Detail'!$C$4)*(Projects!$L$5:$L$2393='MDOT FTA Detail'!$A12)*(Projects!$J$5:$J$2393<>'MDOT FTA Detail'!$A$171)*(Projects!$Q$5:Q$2393)) -> 0 | G12: =SUMPRODUCT((Projects!$A$5:$A$2393='MDOT FTA Detail'!$G$3)*(Projects!$C$5:$C$2393='MDOT FTA Detail'!$C$4)*(Projects!$L$5:$L$2393='MDOT FTA Detail'!$A12)*(Projects!$J$5:$J$2393<>'MDOT FTA Detail'!$A$171)*(Projects!$K$5:K$2393)) -> 0 | H12: 0 | I12: =SUMPRODUCT((Projects!$A$5:$A$2393='MDOT FTA Detail'!$G$3)*(Projects!$C$5:$C$2393='MDOT FTA Detail'!$C$4)*(Projects!$L$5:$L$2393='MDOT FTA Detail'!$A12)*(Projects!$J$5:$J$2393<>'MDOT FTA Detail'!$A$171)*(Projects!$Q$5:Q$2393)) -> 0 | J12: =SUMPRODUCT((Projects!$A$5:$A$2393='MDOT FTA Detail'!$J$3)*(Projects!$C$5:$C$2393='MDOT FTA Detail'!$C$4)*(Projects!$L$5:$L$2393='MDOT FTA Detail'!$A12)*(Projects!$J$5:$J$2393<>'MDOT FTA Detail'!$A$171)*(Projects!$K$5:$K$2393)) -> 0 | K12: 0 | L12: =SUMPRODUCT((Projects!$A$5:$A$2393='MDOT FTA Detail'!$J$3)*(Projects!$C$5:$C$2393='MDOT FTA Detail'!$C$4)*(Projects!$L$5:$L$2393='MDOT FTA Detail'!$A12)*(Projects!$J$5:$J$2393<>'MDOT FTA Detail'!$A$171)*(Projects!$Q$5:$Q$2393)) -> 0 | M12: =SUMPRODUCT((Projects!$A$5:$A$2393='MDOT FTA Detail'!$M$3)*(Projects!$C$5:$C$2393='MDOT FTA Detail'!$C$4)*(Projects!$L$5:$L$2393='MDOT FTA Detail'!$A12)*(Projects!$J$5:$J$2393<>'MDOT FTA Detail'!$A$171)*(Projects!$K$5:$K$2393)) -> 0 | N12: 0 | O12: =SUMPRODUCT((Projects!$A$5:$A$2393='MDOT FTA Detail'!$M$3)*(Projects!$C$5:$C$2393='MDOT FTA Detail'!$C$4)*(Projects!$L$5:$L$2393='MDOT FTA Detail'!$A12)*(Projects!$J$5:$J$2393<>'MDOT FTA Detail'!$A$171)*(Projects!$Q$5:$Q$2393)) -> 0
A13: BRI | B13: Bridge Replacement - Pre 1991 Interstate | C13: MDOT FA | D13: =SUMPRODUCT((Projects!$A$5:$A$2393='MDOT FTA Detail'!$D$3)*(Projects!$C$5:$C$2393='MDOT FTA Detail'!$C$4)*(Projects!$L$5:$L$2393='MDOT FTA Detail'!$A13)*(Projects!$J$5:$J$2393<>'MDOT FTA Detail'!$A$171)*(Projects!$K$5:K$2393)) -> 0 | E13: 0 | F13: =SUMPRODUCT((Projects!$A$5:$A$2393='MDOT FTA Detail'!$D$3)*(Projects!$C$5:$C$2393='MDOT FTA Detail'!$C$4)*(Projects!$L$5:$L$2393='MDOT FTA Detail'!$A13)*(Projects!$J$5:$J$2393<>'MDOT FTA Detail'!$A$171)*(Projects!$Q$5:Q$2393)) -> 0 | G13: =SUMPRODUCT((Projects!$A$5:$A$2393='MDOT FTA Detail'!$G$3)*(Projects!$C$5:$C$2393='MDOT FTA Detail'!$C$4)*(Projects!$L$5:$L$2393='MDOT FTA Detail'!$A13)*(Projects!$J$5:$J$2393<>'MDOT FTA Detail'!$A$171)*(Projects!$K$5:K$2393)) -> 0 | H13: 0 | I13: =SUMPRODUCT((Projects!$A$5:$A$2393='MDOT FTA Detail'!$G$3)*(Projects!$C$5:$C$2393='MDOT FTA Detail'!$C$4)*(Projects!$L$5:$L$2393='MDOT FTA Detail'!$A13)*(Projects!$J$5:$J$2393<>'MDOT FTA Detail'!$A$171)*(Projects!$Q$5:Q$2393)) -> 0 | J13: =SUMPRODUCT((Projects!$A$5:$A$2393='MDOT FTA Detail'!$J$3)*(Projects!$C$5:$C$2393='MDOT FTA Detail'!$C$4)*(Projects!$L$5:$L$2393='MDOT FTA Detail'!$A13)*(Projects!$J$5:$J$2393<>'MDOT FTA Detail'!$A$171)*(Projects!$K$5:$K$2393)) -> 0 | K13: 0 | L13: =SUMPRODUCT((Projects!$A$5:$A$2393='MDOT FTA Detail'!$J$3)*(Projects!$C$5:$C$2393='MDOT FTA Detail'!$C$4)*(Projects!$L$5:$L$2393='MDOT FTA Detail'!$A13)*(Projects!$J$5:$J$2393<>'MDOT FTA Detail'!$A$171)*(Projects!$Q$5:$Q$2393)) -> 0 | M13: =SUMPRODUCT((Projects!$A$5:$A$2393='MDOT FTA Detail'!$M$3)*(Projects!$C$5:$C$2393='MDOT FTA Detail'!$C$4)*(Projects!$L$5:$L$2393='MDOT FTA Detail'!$A13)*(Projects!$J$5:$J$2393<>'MDOT FTA Detail'!$A$171)*(Projects!$K$5:$K$2393)) -> 0 | N13: 0 | O13: =SUMPRODUCT((Projects!$A$5:$A$2393='MDOT FTA Detail'!$M$3)*(Projects!$C$5:$C$2393='MDOT FTA Detail'!$C$4)*(Projects!$L$5:$L$2393='MDOT FTA Detail'!$A13)*(Projects!$J$5:$J$2393<>'MDOT FTA Detail'!$A$171)*(Projects!$Q$5:$Q$2393)) -> 0
A14: BRN | B14: Bridge Replacement - National Highway System (NHS) | C14: MDOT FA | D14: =SUMPRODUCT((Projects!$A$5:$A$2393='MDOT FTA Detail'!$D$3)*(Projects!$C$5:$C$2393='MDOT FTA Detail'!$C$4)*(Projects!$L$5:$L$2393='MDOT FTA Detail'!$A14)*(Projects!$J$5:$J$2393<>'MDOT FTA Detail'!$A$171)*(Projects!$K$5:K$2393)) -> 0 | E14: 0 | F14: =SUMPRODUCT((Projects!$A$5:$A$2393='MDOT FTA Detail'!$D$3)*(Projects!$C$5:$C$2393='MDOT FTA Detail'!$C$4)*(Projects!$L$5:$L$2393='MDOT FTA Detail'!$A14)*(Projects!$J$5:$J$2393<>'MDOT FTA Detail'!$A$171)*(Projects!$Q$5:Q$2393)) -> 0 | G14: =SUMPRODUCT((Projects!$A$5:$A$2393='MDOT FTA Detail'!$G$3)*(Projects!$C$5:$C$2393='MDOT FTA Detail'!$C$4)*(Projects!$L$5:$L$2393='MDOT FTA Detail'!$A14)*(Projects!$J$5:$J$2393<>'MDOT FTA Detail'!$A$171)*(Projects!$K$5:K$2393)) -> 0 | H14: 0 | I14: =SUMPRODUCT((Projects!$A$5:$A$2393='MDOT FTA Detail'!$G$3)*(Projects!$C$5:$C$2393='MDOT FTA Detail'!$C$4)*(Projects!$L$5:$L$2393='MDOT FTA Detail'!$A14)*(Projects!$J$5:$J$2393<>'MDOT FTA Detail'!$A$171)*(Projects!$Q$5:Q$2393)) -> 0 | J14: =SUMPRODUCT((Projects!$A$5:$A$2393='MDOT FTA Detail'!$J$3)*(Projects!$C$5:$C$2393='MDOT FTA Detail'!$C$4)*(Projects!$L$5:$L$2393='MDOT FTA Detail'!$A14)*(Projects!$J$5:$J$2393<>'MDOT FTA Detail'!$A$171)*(Projects!$K$5:$K$2393)) -> 0 | K14: 0 | L14: =SUMPRODUCT((Projects!$A$5:$A$2393='MDOT FTA Detail'!$J$3)*(Projects!$C$5:$C$2393='MDOT FTA Detail'!$C$4)*(Projects!$L$5:$L$2393='MDOT FTA Detail'!$A14)*(Projects!$J$5:$J$2393<>'MDOT FTA Detail'!$A$171)*(Projects!$Q$5:$Q$2393)) -> 0 | M14: =SUMPRODUCT((Projects!$A$5:$A$2393='MDOT FTA Detail'!$M$3)*(Projects!$C$5:$C$2393='MDOT FTA Detail'!$C$4)*(Projects!$L$5:$L$2393='MDOT FTA Detail'!$A14)*(Projects!$J$5:$J$2393<>'MDOT FTA Detail'!$A$171)*(Projects!$K$5:$K$2393)) -> 0 | N14: 0 | O14: =SUMPRODUCT((Projects!$A$5:$A$2393='MDOT FTA Detail'!$M$3)*(Projects!$C$5:$C$2393='MDOT FTA Detail'!$C$4)*(Projects!$L$5:$L$2393='MDOT FTA Detail'!$A14)*(Projects!$J$5:$J$2393<>'MDOT FTA Detail'!$A$171)*(Projects!$Q$5:$Q$2393)) -> 0
A15: BRO | B15: Bridge Replacement - Not Classified, Off System | C15: MDOT FA | D15: =SUMPRODUCT((Projects!$A$5:$A$2393='MDOT FTA Detail'!$D$3)*(Projects!$C$5:$C$2393='MDOT FTA Detail'!$C$4)*(Projects!$L$5:$L$2393='MDOT FTA Detail'!$A15)*(Projects!$J$5:$J$2393<>'MDOT FTA Detail'!$A$171)*(Projects!$K$5:K$2393)) -> 0 | E15: 0 | F15: =SUMPRODUCT((Projects!$A$5:$A$2393='MDOT FTA Detail'!$D$3)*(Projects!$C$5:$C$2393='MDOT FTA Detail'!$C$4)*(Projects!$L$5:$L$2393='MDOT FTA Detail'!$A15)*(Projects!$J$5:$J$2393<>'MDOT FTA Detail'!$A$171)*(Projects!$Q$5:Q$2393)) -> 0 | G15: =SUMPRODUCT((Projects!$A$5:$A$2393='MDOT FTA Detail'!$G$3)*(Projects!$C$5:$C$2393='MDOT FTA Detail'!$C$4)*(Projects!$L$5:$L$2393='MDOT FTA Detail'!$A15)*(Projects!$J$5:$J$2393<>'MDOT FTA Detail'!$A$171)*(Projects!$K$5:K$2393)) -> 0 | H15: 0 | I15: =SUMPRODUCT((Projects!$A$5:$A$2393='MDOT FTA Detail'!$G$3)*(Projects!$C$5:$C$2393='MDOT FTA Detail'!$C$4)*(Projects!$L$5:$L$2393='MDOT FTA Detail'!$A15)*(Projects!$J$5:$J$2393<>'MDOT FTA Detail'!$A$171)*(Projects!$Q$5:Q$2393)) -> 0 | J15: =SUMPRODUCT((Projects!$A$5:$A$2393='MDOT FTA Detail'!$J$3)*(Projects!$C$5:$C$2393='MDOT FTA Detail'!$C$4)*(Projects!$L$5:$L$2393='MDOT FTA Detail'!$A15)*(Projects!$J$5:$J$2393<>'MDOT FTA Detail'!$A$171)*(Projects!$K$5:$K$2393)) -> 0 | K15: 0 | L15: =SUMPRODUCT((Projects!$A$5:$A$2393='MDOT FTA Detail'!$J$3)*(Projects!$C$5:$C$2393='MDOT FTA Detail'!$C$4)*(Projects!$L$5:$L$2393='MDOT FTA Detail'!$A15)*(Projects!$J$5:$J$2393<>'MDOT FTA Detail'!$A$171)*(Projects!$Q$5:$Q$2393)) -> 0 | M15: =SUMPRODUCT((Projects!$A$5:$A$2393='MDOT FTA Detail'!$M$3)*(Projects!$C$5:$C$2393='MDOT FTA Detail'!$C$4)*(Projects!$L$5:$L$2393='MDOT FTA Detail'!$A15)*(Projects!$J$5:$J$2393<>'MDOT FTA Detail'!$A$171)*(Projects!$K$5:$K$2393)) -> 0 | N15: 0 | O15: =SUMPRODUCT((Projects!$A$5:$A$2393='MDOT FTA Detail'!$M$3)*(Projects!$C$5:$C$2393='MDOT FTA Detail'!$C$4)*(Projects!$L$5:$L$2393='MDOT FTA Detail'!$A15)*(Projects!$J$5:$J$2393<>'MDOT FTA Detail'!$A$171)*(Projects!$Q$5:$Q$2393)) -> 0
A16: BRT | B16: Bridge Replacement - Surface Transportation Program (STP) | C16: MDOT FA | D16: =SUMPRODUCT((Projects!$A$5:$A$2393='MDOT FTA Detail'!$D$3)*(Projects!$C$5:$C$2393='MDOT FTA Detail'!$C$4)*(Projects!$L$5:$L$2393='MDOT FTA Detail'!$A16)*(Projects!$J$5:$J$2393<>'MDOT FTA Detail'!$A$171)*(Projects!$K$5:K$2393)) -> 0 | E16: 0 | F16: =SUMPRODUCT((Projects!$A$5:$A$2393='MDOT FTA Detail'!$D$3)*(Projects!$C$5:$C$2393='MDOT FTA Detail'!$C$4)*(Projects!$L$5:$L$2393='MDOT FTA Detail'!$A16)*(Projects!$J$5:$J$2393<>'MDOT FTA Detail'!$A$171)*(Projects!$Q$5:Q$2393)) -> 0 | G16: =SUMPRODUCT((Projects!$A$5:$A$2393='MDOT FTA Detail'!$G$3)*(Projects!$C$5:$C$2393='MDOT FTA Detail'!$C$4)*(Projects!$L$5:$L$2393='MDOT FTA Detail'!$A16)*(Projects!$J$5:$J$2393<>'MDOT FTA Detail'!$A$171)*(Projects!$K$5:K$2393)) -> 0 | H16: 0 | I16: =SUMPRODUCT((Projects!$A$5:$A$2393='MDOT FTA Detail'!$G$3)*(Projects!$C$5:$C$2393='MDOT FTA Detail'!$C$4)*(Projects!$L$5:$L$2393='MDOT FTA Detail'!$A16)*(Projects!$J$5:$J$2393<>'MDOT FTA Detail'!$A$171)*(Projects!$Q$5:Q$2393)) -> 0 | J16: =SUMPRODUCT((Projects!$A$5:$A$2393='MDOT FTA Detail'!$J$3)*(Projects!$C$5:$C$2393='MDOT FTA Detail'!$C$4)*(Projects!$L$5:$L$2393='MDOT FTA Detail'!$A16)*(Projects!$J$5:$J$2393<>'MDOT FTA Detail'!$A$171)*(Projects!$K$5:$K$2393)) -> 0 | K16: 0 | L16: =SUMPRODUCT((Projects!$A$5:$A$2393='MDOT FTA Detail'!$J$3)*(Projects!$C$5:$C$2393='MDOT FTA Detail'!$C$4)*(Projects!$L$5:$L$2393='MDOT FTA Detail'!$A16)*(Projects!$J$5:$J$2393<>'MDOT FTA Detail'!$A$171)*(Projects!$Q$5:$Q$2393)) -> 0 | M16: =SUMPRODUCT((Projects!$A$5:$A$2393='MDOT FTA Detail'!$M$3)*(Projects!$C$5:$C$2393='MDOT FTA Detail'!$C$4)*(Projects!$L$5:$L$2393='MDOT FTA Detail'!$A16)*(Projects!$J$5:$J$2393<>'MDOT FTA Detail'!$A$171)*(Projects!$K$5:$K$2393)) -> 0 | N16: 0 | O16: =SUMPRODUCT((Projects!$A$5:$A$2393='MDOT FTA Detail'!$M$3)*(Projects!$C$5:$C$2393='MDOT FTA Detail'!$C$4)*(Projects!$L$5:$L$2393='MDOT FTA Detail'!$A16)*(Projects!$J$5:$J$2393<>'MDOT FTA Detail'!$A$171)*(Projects!$Q$5:$Q$2393)) -> 0
A17: CANX | B17: Canadian Bridge Funds | C17: MDOT FA | D17: =SUMPRODUCT((Projects!$A$5:$A$2393='MDOT FTA Detail'!$D$3)*(Projects!$C$5:$C$2393='MDOT FTA Detail'!$C$4)*(Projects!$L$5:$L$2393='MDOT FTA Detail'!$A17)*(Projects!$J$5:$J$2393<>'MDOT FTA Detail'!$A$171)*(Projects!$K$5:K$2393)) -> 0 | E17: 0 | F17: =SUMPRODUCT((Projects!$A$5:$A$2393='MDOT FTA Detail'!$D$3)*(Projects!$C$5:$C$2393='MDOT FTA Detail'!$C$4)*(Projects!$L$5:$L$2393='MDOT FTA Detail'!$A17)*(Projects!$J$5:$J$2393<>'MDOT FTA Detail'!$A$171)*(Projects!$Q$5:Q$2393)) -> 0 | G17: =SUMPRODUCT((Projects!$A$5:$A$2393='MDOT FTA Detail'!$G$3)*(Projects!$C$5:$C$2393='MDOT FTA Detail'!$C$4)*(Projects!$L$5:$L$2393='MDOT FTA Detail'!$A17)*(Projects!$J$5:$J$2393<>'MDOT FTA Detail'!$A$171)*(Projects!$K$5:K$2393)) -> 0 | H17: 0 | I17: =SUMPRODUCT((Projects!$A$5:$A$2393='MDOT FTA Detail'!$G$3)*(Projects!$C$5:$C$2393='MDOT FTA Detail'!$C$4)*(Projects!$L$5:$L$2393='MDOT FTA Detail'!$A17)*(Projects!$J$5:$J$2393<>'MDOT FTA Detail'!$A$171)*(Projects!$Q$5:Q$2393)) -> 0 | J17: =SUMPRODUCT((Projects!$A$5:$A$2393='MDOT FTA Detail'!$J$3)*(Projects!$C$5:$C$2393='MDOT FTA Detail'!$C$4)*(Projects!$L$5:$L$2393='MDOT FTA Detail'!$A17)*(Projects!$J$5:$J$2393<>'MDOT FTA Detail'!$A$171)*(Projects!$K$5:$K$2393)) -> 0 | K17: 0 | L17: =SUMPRODUCT((Projects!$A$5:$A$2393='MDOT FTA Detail'!$J$3)*(Projects!$C$5:$C$2393='MDOT FTA Detail'!$C$4)*(Projects!$L$5:$L$2393='MDOT FTA Detail'!$A17)*(Projects!$J$5:$J$2393<>'MDOT FTA Detail'!$A$171)*(Projects!$Q$5:$Q$2393)) -> 0 | M17: =SUMPRODUCT((Projects!$A$5:$A$2393='MDOT FTA Detail'!$M$3)*(Projects!$C$5:$C$2393='MDOT FTA Detail'!$C$4)*(Projects!$L$5:$L$2393='MDOT FTA Detail'!$A17)*(Projects!$J$5:$J$2393<>'MDOT FTA Detail'!$A$171)*(Projects!$K$5:$K$2393)) -> 0 | N17: 0 | O17: =SUMPRODUCT((Projects!$A$5:$A$2393='MDOT FTA Detail'!$M$3)*(Projects!$C$5:$C$2393='MDOT FTA Detail'!$C$4)*(Projects!$L$5:$L$2393='MDOT FTA Detail'!$A17)*(Projects!$J$5:$J$2393<>'MDOT FTA Detail'!$A$171)*(Projects!$Q$5:$Q$2393)) -> 0
A18: CBCD | B18: Corridor & Border Crossing Discretionary | C18: MDOT FA | D18: =SUMPRODUCT((Projects!$A$5:$A$2393='MDOT FTA Detail'!$D$3)*(Projects!$C$5:$C$2393='MDOT FTA Detail'!$C$4)*(Projects!$L$5:$L$2393='MDOT FTA Detail'!$A18)*(Projects!$J$5:$J$2393<>'MDOT FTA Detail'!$A$171)*(Projects!$K$5:K$2393)) -> 0 | E18: 0 | F18: =SUMPRODUCT((Projects!$A$5:$A$2393='MDOT FTA Detail'!$D$3)*(Projects!$C$5:$C$2393='MDOT FTA Detail'!$C$4)*(Projects!$L$5:$L$2393='MDOT FTA Detail'!$A18)*(Projects!$J$5:$J$2393<>'MDOT FTA Detail'!$A$171)*(Projects!$Q$5:Q$2393)) -> 0 | G18: =SUMPRODUCT((Projects!$A$5:$A$2393='MDOT FTA Detail'!$G$3)*(Projects!$C$5:$C$2393='MDOT FTA Detail'!$C$4)*(Projects!$L$5:$L$2393='MDOT FTA Detail'!$A18)*(Projects!$J$5:$J$2393<>'MDOT FTA Detail'!$A$171)*(Projects!$K$5:K$2393)) -> 0 | H18: 0 | I18: =SUMPRODUCT((Projects!$A$5:$A$2393='MDOT FTA Detail'!$G$3)*(Projects!$C$5:$C$2393='MDOT FTA Detail'!$C$4)*(Projects!$L$5:$L$2393='MDOT FTA Detail'!$A18)*(Projects!$J$5:$J$2393<>'MDOT FTA Detail'!$A$171)*(Projects!$Q$5:Q$2393)) -> 0 | J18: =SUMPRODUCT((Projects!$A$5:$A$2393='MDOT FTA Detail'!$J$3)*(Projects!$C$5:$C$2393='MDOT FTA Detail'!$C$4)*(Projects!$L$5:$L$2393='MDOT FTA Detail'!$A18)*(Projects!$J$5:$J$2393<>'MDOT FTA Detail'!$A$171)*(Projects!$K$5:$K$2393)) -> 0 | K18: 0 | L18: =SUMPRODUCT((Projects!$A$5:$A$2393='MDOT FTA Detail'!$J$3)*(Projects!$C$5:$C$2393='MDOT FTA Detail'!$C$4)*(Projects!$L$5:$L$2393='MDOT FTA Detail'!$A18)*(Projects!$J$5:$J$2393<>'MDOT FTA Detail'!$A$171)*(Projects!$Q$5:$Q$2393)) -> 0 | M18: =SUMPRODUCT((Projects!$A$5:$A$2393='MDOT FTA Detail'!$M$3)*(Projects!$C$5:$C$2393='MDOT FTA Detail'!$C$4)*(Projects!$L$5:$L$2393='MDOT FTA Detail'!$A18)*(Projects!$J$5:$J$2393<>'MDOT FTA Detail'!$A$171)*(Projects!$K$5:$K$2393)) -> 0 | N18: 0 | O18: =SUMPRODUCT((Projects!$A$5:$A$2393='MDOT FTA Detail'!$M$3)*(Projects!$C$5:$C$2393='MDOT FTA Detail'!$C$4)*(Projects!$L$5:$L$2393='MDOT FTA Detail'!$A18)*(Projects!$J$5:$J$2393<>'MDOT FTA Detail'!$A$171)*(Projects!$Q$5:$Q$2393)) -> 0
A19: CBIP | B19: Coordinated Border Infrastructure Program - SAFETEA-LU | C19: MDOT FA | D19: =SUMPRODUCT((Projects!$A$5:$A$2393='MDOT FTA Detail'!$D$3)*(Projects!$C$5:$C$2393='MDOT FTA Detail'!$C$4)*(Projects!$L$5:$L$2393='MDOT FTA Detail'!$A19)*(Projects!$J$5:$J$2393<>'MDOT FTA Detail'!$A$171)*(Projects!$K$5:K$2393)) -> 0 | E19: 0 | F19: =SUMPRODUCT((Projects!$A$5:$A$2393='MDOT FTA Detail'!$D$3)*(Projects!$C$5:$C$2393='MDOT FTA Detail'!$C$4)*(Projects!$L$5:$L$2393='MDOT FTA Detail'!$A19)*(Projects!$J$5:$J$2393<>'MDOT FTA Detail'!$A$171)*(Projects!$Q$5:Q$2393)) -> 0 | G19: =SUMPRODUCT((Projects!$A$5:$A$2393='MDOT FTA Detail'!$G$3)*(Projects!$C$5:$C$2393='MDOT FTA Detail'!$C$4)*(Projects!$L$5:$L$2393='MDOT FTA Detail'!$A19)*(Projects!$J$5:$J$2393<>'MDOT FTA Detail'!$A$171)*(Projects!$K$5:K$2393)) -> 0 | H19: 0 | I19: =SUMPRODUCT((Projects!$A$5:$A$2393='MDOT FTA Detail'!$G$3)*(Projects!$C$5:$C$2393='MDOT FTA Detail'!$C$4)*(Projects!$L$5:$L$2393='MDOT FTA Detail'!$A19)*(Projects!$J$5:$J$2393<>'MDOT FTA Detail'!$A$171)*(Projects!$Q$5:Q$2393)) -> 0 | J19: =SUMPRODUCT((Projects!$A$5:$A$2393='MDOT FTA Detail'!$J$3)*(Projects!$C$5:$C$2393='MDOT FTA Detail'!$C$4)*(Projects!$L$5:$L$2393='MDOT FTA Detail'!$A19)*(Projects!$J$5:$J$2393<>'MDOT FTA Detail'!$A$171)*(Projects!$K$5:$K$2393)) -> 0 | K19: 0 | L19: =SUMPRODUCT((Projects!$A$5:$A$2393='MDOT FTA Detail'!$J$3)*(Projects!$C$5:$C$2393='MDOT FTA Detail'!$C$4)*(Projects!$L$5:$L$2393='MDOT FTA Detail'!$A19)*(Projects!$J$5:$J$2393<>'MDOT FTA Detail'!$A$171)*(Projects!$Q$5:$Q$2393)) -> 0 | M19: =SUMPRODUCT((Projects!$A$5:$A$2393='MDOT FTA Detail'!$M$3)*(Projects!$C$5:$C$2393='MDOT FTA Detail'!$C$4)*(Projects!$L$5:$L$2393='MDOT FTA Detail'!$A19)*(Projects!$J$5:$J$2393<>'MDOT FTA Detail'!$A$171)*(Projects!$K$5:$K$2393)) -> 0 | N19: 0 | O19: =SUMPRODUCT((Projects!$A$5:$A$2393='MDOT FTA Detail'!$M$3)*(Projects!$C$5:$C$2393='MDOT FTA Detail'!$C$4)*(Projects!$L$5:$L$2393='MDOT FTA Detail'!$A19)*(Projects!$J$5:$J$2393<>'MDOT FTA Detail'!$A$171)*(Projects!$Q$5:$Q$2393)) -> 0
A20: CM | B20: Congestion Mitigation & Air Quality | C20: MDOT FA | D20: =SUMPRODUCT((Projects!$A$5:$A$2393='MDOT FTA Detail'!$D$3)*(Projects!$C$5:$C$2393='MDOT FTA Detail'!$C$4)*(Projects!$L$5:$L$2393='MDOT FTA Detail'!$A20)*(Projects!$J$5:$J$2393<>'MDOT FTA Detail'!$A$171)*(Projects!$K$5:K$2393)) -> 0 | E20: 0 | F20: =SUMPRODUCT((Projects!$A$5:$A$2393='MDOT FTA Detail'!$D$3)*(Projects!$C$5:$C$2393='MDOT FTA Detail'!$C$4)*(Projects!$L$5:$L$2393='MDOT FTA Detail'!$A20)*(Projects!$J$5:$J$2393<>'MDOT FTA Detail'!$A$171)*(Projects!$Q$5:Q$2393)) -> 0 | G20: =SUMPRODUCT((Projects!$A$5:$A$2393='MDOT FTA Detail'!$G$3)*(Projects!$C$5:$C$2393='MDOT FTA Detail'!$C$4)*(Projects!$L$5:$L$2393='MDOT FTA Detail'!$A20)*(Projects!$J$5:$J$2393<>'MDOT FTA Detail'!$A$171)*(Projects!$K$5:K$2393)) -> 0 | H20: 0 | I20: =SUMPRODUCT((Projects!$A$5:$A$2393='MDOT FTA Detail'!$G$3)*(Projects!$C$5:$C$2393='MDOT FTA Detail'!$C$4)*(Projects!$L$5:$L$2393='MDOT FTA Detail'!$A20)*(Projects!$J$5:$J$2393<>'MDOT FTA Detail'!$A$171)*(Projects!$Q$5:Q$2393)) -> 0 | J20: =SUMPRODUCT((Projects!$A$5:$A$2393='MDOT FTA Detail'!$J$3)*(Projects!$C$5:$C$2393='MDOT FTA Detail'!$C$4)*(Projects!$L$5:$L$2393='MDOT FTA Detail'!$A20)*(Projects!$J$5:$J$2393<>'MDOT FTA Detail'!$A$171)*(Projects!$K$5:$K$2393)) -> 96583 | K20: 21417 | L20: =SUMPRODUCT((Projects!$A$5:$A$2393='MDOT FTA Detail'!$J$3)*(Projects!$C$5:$C$2393='MDOT FTA Detail'!$C$4)*(Projects!$L$5:$L$2393='MDOT FTA Detail'!$A20)*(Projects!$J$5:$J$2393<>'MDOT FTA Detail'!$A$171)*(Projects!$Q$5:$Q$2393)) -> 118000 | M20: =SUMPRODUCT((Projects!$A$5:$A$2393='MDOT FTA Detail'!$M$3)*(Projects!$C$5:$C$2393='MDOT FTA Detail'!$C$4)*(Projects!$L$5:$L$2393='MDOT FTA Detail'!$A20)*(Projects!$J$5:$J$2393<>'MDOT FTA Detail'!$A$171)*(Projects!$K$5:$K$2393)) -> 0 | N20: 0 | O20: =SUMPRODUCT((Projects!$A$5:$A$2393='MDOT FTA Detail'!$M$3)*(Projects!$C$5:$C$2393='MDOT FTA Detail'!$C$4)*(Projects!$L$5:$L$2393='MDOT FTA Detail'!$A20)*(Projects!$J$5:$J$2393<>'MDOT FTA Detail'!$A$171)*(Projects!$Q$5:$Q$2393)) -> 0
A21: CMG | B21: Congestion Mitigation & Air Quality - 100% Federal | C21: MDOT FA | D21: =SUMPRODUCT((Projects!$A$5:$A$2393='MDOT FTA Detail'!$D$3)*(Projects!$C$5:$C$2393='MDOT FTA Detail'!$C$4)*(Projects!$L$5:$L$2393='MDOT FTA Detail'!$A21)*(Projects!$J$5:$J$2393<>'MDOT FTA Detail'!$A$171)*(Projects!$K$5:K$2393)) -> 0 | E21: 0 | F21: =SUMPRODUCT((Projects!$A$5:$A$2393='MDOT FTA Detail'!$D$3)*(Projects!$C$5:$C$2393='MDOT FTA Detail'!$C$4)*(Projects!$L$5:$L$2393='MDOT FTA Detail'!$A21)*(Projects!$J$5:$J$2393<>'MDOT FTA Detail'!$A$171)*(Projects!$Q$5:Q$2393)) -> 0 | G21: =SUMPRODUCT((Projects!$A$5:$A$2393='MDOT FTA Detail'!$G$3)*(Projects!$C$5:$C$2393='MDOT FTA Detail'!$C$4)*(Projects!$L$5:$L$2393='MDOT FTA Detail'!$A21)*(Projects!$J$5:$J$2393<>'MDOT FTA Detail'!$A$171)*(Projects!$K$5:K$2393)) -> 0 | H21: 0 | I21: =SUMPRODUCT((Projects!$A$5:$A$2393='MDOT FTA Detail'!$G$3)*(Projects!$C$5:$C$2393='MDOT FTA Detail'!$C$4)*(Projects!$L$5:$L$2393='MDOT FTA Detail'!$A21)*(Projects!$J$5:$J$2393<>'MDOT FTA Detail'!$A$171)*(Projects!$Q$5:Q$2393)) -> 0 | J21: =SUMPRODUCT((Projects!$A$5:$A$2393='MDOT FTA Detail'!$J$3)*(Projects!$C$5:$C$2393='MDOT FTA Detail'!$C$4)*(Projects!$L$5:$L$2393='MDOT FTA Detail'!$A21)*(Projects!$J$5:$J$2393<>'MDOT FTA Detail'!$A$171)*(Projects!$K$5:$K$2393)) -> 0 | K21: 0 | L21: =SUMPRODUCT((Projects!$A$5:$A$2393='MDOT FTA Detail'!$J$3)*(Projects!$C$5:$C$2393='MDOT FTA Detail'!$C$4)*(Projects!$L$5:$L$2393='MDOT FTA Detail'!$A21)*(Projects!$J$5:$J$2393<>'MDOT FTA Detail'!$A$171)*(Projects!$Q$5:$Q$2393)) -> 0 | M21: =SUMPRODUCT((Projects!$A$5:$A$2393='MDOT FTA Detail'!$M$3)*(Projects!$C$5:$C$2393='MDOT FTA Detail'!$C$4)*(Projects!$L$5:$L$2393='MDOT FTA Detail'!$A21)*(Projects!$J$5:$J$2393<>'MDOT FTA Detail'!$A$171)*(Projects!$K$5:$K$2393)) -> 0 | N21: 0 | O21: =SUMPRODUCT((Projects!$A$5:$A$2393='MDOT FTA Detail'!$M$3)*(Projects!$C$5:$C$2393='MDOT FTA Detail'!$C$4)*(Projects!$L$5:$L$2393='MDOT FTA Detail'!$A21)*(Projects!$J$5:$J$2393<>'MDOT FTA Detail'!$A$171)*(Projects!$Q$5:$Q$2393)) -> 0
A22: CPM | B22: Congestion Mititagion & Air Quality for PM 2.5 Emissions | C22: MDOT FA | D22: =SUMPRODUCT((Projects!$A$5:$A$2393='MDOT FTA Detail'!$D$3)*(Projects!$C$5:$C$2393='MDOT FTA Detail'!$C$4)*(Projects!$L$5:$L$2393='MDOT FTA Detail'!$A22)*(Projects!$J$5:$J$2393<>'MDOT FTA Detail'!$A$171)*(Projects!$K$5:K$2393)) -> 0 | E22: =F22-D22 -> 0 | F22: =SUMPRODUCT((Projects!$A$5:$A$2393='MDOT FTA Detail'!$D$3)*(Projects!$C$5:$C$2393='MDOT FTA Detail'!$C$4)*(Projects!$L$5:$L$2393='MDOT FTA Detail'!$A22)*(Projects!$J$5:$J$2393<>'MDOT FTA Detail'!$A$171)*(Projects!$Q$5:Q$2393)) -> 0 | G22: =SUMPRODUCT((Projects!$A$5:$A$2393='MDOT FTA Detail'!$G$3)*(Projects!$C$5:$C$2393='MDOT FTA Detail'!$C$4)*(Projects!$L$5:$L$2393='MDOT FTA Detail'!$A22)*(Projects!$J$5:$J$2393<>'MDOT FTA Detail'!$A$171)*(Projects!$K$5:K$2393)) -> 0 | H22: =I22-G22 -> 0 | I22: =SUMPRODUCT((Projects!$A$5:$A$2393='MDOT FTA Detail'!$G$3)*(Projects!$C$5:$C$2393='MDOT FTA Detail'!$C$4)*(Projects!$L$5:$L$2393='MDOT FTA Detail'!$A22)*(Projects!$J$5:$J$2393<>'MDOT FTA Detail'!$A$171)*(Projects!$Q$5:Q$2393)) -> 0 | J22: =SUMPRODUCT((Projects!$A$5:$A$2393='MDOT FTA Detail'!$J$3)*(Projects!$C$5:$C$2393='MDOT FTA Detail'!$C$4)*(Projects!$L$5:$L$2393='MDOT FTA Detail'!$A22)*(Projects!$J$5:$J$2393<>'MDOT FTA Detail'!$A$171)*(Projects!$K$5:$K$2393)) -> 0 | K22: =L22-J22 -> 0 | L22: =SUMPRODUCT((Projects!$A$5:$A$2393='MDOT FTA Detail'!$J$3)*(Projects!$C$5:$C$2393='MDOT FTA Detail'!$C$4)*(Projects!$L$5:$L$2393='MDOT FTA Detail'!$A22)*(Projects!$J$5:$J$2393<>'MDOT FTA Detail'!$A$171)*(Projects!$Q$5:$Q$2393)) -> 0 | M22: =SUMPRODUCT((Projects!$A$5:$A$2393='MDOT FTA Detail'!$M$3)*(Projects!$C$5:$C$2393='MDOT FTA Detail'!$C$4)*(Projects!$L$5:$L$2393='MDOT FTA Detail'!$A22)*(Projects!$J$5:$J$2393<>'MDOT FTA Detail'!$A$171)*(Projects!$K$5:$K$2393)) -> 0 | N22: =O22-M22 -> 0 | O22: =SUMPRODUCT((Projects!$A$5:$A$2393='MDOT FTA Detail'!$M$3)*(Projects!$C$5:$C$2393='MDOT FTA Detail'!$C$4)*(Projects!$L$5:$L$2393='MDOT FTA Detail'!$A22)*(Projects!$J$5:$J$2393<>'MDOT FTA Detail'!$A$171)*(Projects!$Q$5:$Q$2393)) -> 0
A23: CPMG | B23: Congestion Mititagion & Air Quality for PM 2.5 Emissions - 100% Federal | C23: MDOT FA | D23: =SUMPRODUCT((Projects!$A$5:$A$2393='MDOT FTA Detail'!$D$3)*(Projects!$C$5:$C$2393='MDOT FTA Detail'!$C$4)*(Projects!$L$5:$L$2393='MDOT FTA Detail'!$A23)*(Projects!$J$5:$J$2393<>'MDOT FTA Detail'!$A$171)*(Projects!$K$5:K$2393)) -> 0 | E23: 0 | F23: =SUMPRODUCT((Projects!$A$5:$A$2393='MDOT FTA Detail'!$D$3)*(Projects!$C$5:$C$2393='MDOT FTA Detail'!$C$4)*(Projects!$L$5:$L$2393='MDOT FTA Detail'!$A23)*(Projects!$J$5:$J$2393<>'MDOT FTA Detail'!$A$171)*(Projects!$Q$5:Q$2393)) -> 0 | G23: =SUMPRODUCT((Projects!$A$5:$A$2393='MDOT FTA Detail'!$G$3)*(Projects!$C$5:$C$2393='MDOT FTA Detail'!$C$4)*(Projects!$L$5:$L$2393='MDOT FTA Detail'!$A23)*(Projects!$J$5:$J$2393<>'MDOT FTA Detail'!$A$171)*(Projects!$K$5:K$2393)) -> 0 | H23: 0 | I23: =SUMPRODUCT((Projects!$A$5:$A$2393='MDOT FTA Detail'!$G$3)*(Projects!$C$5:$C$2393='MDOT FTA Detail'!$C$4)*(Projects!$L$5:$L$2393='MDOT FTA Detail'!$A23)*(Projects!$J$5:$J$2393<>'MDOT FTA Detail'!$A$171)*(Projects!$Q$5:Q$2393)) -> 0 | J23: =SUMPRODUCT((Projects!$A$5:$A$2393='MDOT FTA Detail'!$J$3)*(Projects!$C$5:$C$2393='MDOT FTA Detail'!$C$4)*(Projects!$L$5:$L$2393='MDOT FTA Detail'!$A23)*(Projects!$J$5:$J$2393<>'MDOT FTA Detail'!$A$171)*(Projects!$K$5:$K$2393)) -> 0 | K23: 0 | L23: =SUMPRODUCT((Projects!$A$5:$A$2393='MDOT FTA Detail'!$J$3)*(Projects!$C$5:$C$2393='MDOT FTA Detail'!$C$4)*(Projects!$L$5:$L$2393='MDOT FTA Detail'!$A23)*(Projects!$J$5:$J$2393<>'MDOT FTA Detail'!$A$171)*(Projects!$Q$5:$Q$2393)) -> 0 | M23: =SUMPRODUCT((Projects!$A$5:$A$2393='MDOT FTA Detail'!$M$3)*(Projects!$C$5:$C$2393='MDOT FTA Detail'!$C$4)*(Projects!$L$5:$L$2393='MDOT FTA Detail'!$A23)*(Projects!$J$5:$J$2393<>'MDOT FTA Detail'!$A$171)*(Projects!$K$5:$K$2393)) -> 0 | N23: 0 | O23: =SUMPRODUCT((Projects!$A$5:$A$2393='MDOT FTA Detail'!$M$3)*(Projects!$C$5:$C$2393='MDOT FTA Detail'!$C$4)*(Projects!$L$5:$L$2393='MDOT FTA Detail'!$A23)*(Projects!$J$5:$J$2393<>'MDOT FTA Detail'!$A$171)*(Projects!$Q$5:$Q$2393)) -> 0
A24: D129 | B24: Demonstration for Surface Transportation - Section 129 | C24: MDOT FA | D24: =SUMPRODUCT((Projects!$A$5:$A$2393='MDOT FTA Detail'!$D$3)*(Projects!$C$5:$C$2393='MDOT FTA Detail'!$C$4)*(Projects!$L$5:$L$2393='MDOT FTA Detail'!$A24)*(Projects!$J$5:$J$2393<>'MDOT FTA Detail'!$A$171)*(Projects!$K$5:K$2393)) -> 0 | E24: =F24-D24 -> 0 | F24: =SUMPRODUCT((Projects!$A$5:$A$2393='MDOT FTA Detail'!$D$3)*(Projects!$C$5:$C$2393='MDOT FTA Detail'!$C$4)*(Projects!$L$5:$L$2393='MDOT FTA Detail'!$A24)*(Projects!$J$5:$J$2393<>'MDOT FTA Detail'!$A$171)*(Projects!$Q$5:Q$2393)) -> 0 | G24: =SUMPRODUCT((Projects!$A$5:$A$2393='MDOT FTA Detail'!$G$3)*(Projects!$C$5:$C$2393='MDOT FTA Detail'!$C$4)*(Projects!$L$5:$L$2393='MDOT FTA Detail'!$A24)*(Projects!$J$5:$J$2393<>'MDOT FTA Detail'!$A$171)*(Projects!$K$5:K$2393)) -> 0 | H24: =I24-G24 -> 0 | I24: =SUMPRODUCT((Projects!$A$5:$A$2393='MDOT FTA Detail'!$G$3)*(Projects!$C$5:$C$2393='MDOT FTA Detail'!$C$4)*(Projects!$L$5:$L$2393='MDOT FTA Detail'!$A24)*(Projects!$J$5:$J$2393<>'MDOT FTA Detail'!$A$171)*(Projects!$Q$5:Q$2393)) -> 0 | J24: =SUMPRODUCT((Projects!$A$5:$A$2393='MDOT FTA Detail'!$J$3)*(Projects!$C$5:$C$2393='MDOT FTA Detail'!$C$4)*(Projects!$L$5:$L$2393='MDOT FTA Detail'!$A24)*(Projects!$J$5:$J$2393<>'MDOT FTA Detail'!$A$171)*(Projects!$K$5:$K$2393)) -> 0 | K24: =L24-J24 -> 0 | L24: =SUMPRODUCT((Projects!$A$5:$A$2393='MDOT FTA Detail'!$J$3)*(Projects!$C$5:$C$2393='MDOT FTA Detail'!$C$4)*(Projects!$L$5:$L$2393='MDOT FTA Detail'!$A24)*(Projects!$J$5:$J$2393<>'MDOT FTA Detail'!$A$171)*(Projects!$Q$5:$Q$2393)) -> 0 | M24: =SUMPRODUCT((Projects!$A$5:$A$2393='MDOT FTA Detail'!$M$3)*(Projects!$C$5:$C$2393='MDOT FTA Detail'!$C$4)*(Projects!$L$5:$L$2393='MDOT FTA Detail'!$A24)*(Projects!$J$5:$J$2393<>'MDOT FTA Detail'!$A$171)*(Projects!$K$5:$K$2393)) -> 0 | N24: =O24-M24 -> 0 | O24: =SUMPRODUCT((Projects!$A$5:$A$2393='MDOT FTA Detail'!$M$3)*(Projects!$C$5:$C$2393='MDOT FTA Detail'!$C$4)*(Projects!$L$5:$L$2393='MDOT FTA Detail'!$A24)*(Projects!$J$5:$J$2393<>'MDOT FTA Detail'!$A$171)*(Projects!$Q$5:$Q$2393)) -> 0
A25: DIG | B25: ISTEA Demonstration 100% Federal on Interstate | C25: MDOT FA | D25: =SUMPRODUCT((Projects!$A$5:$A$2393='MDOT FTA Detail'!$D$3)*(Projects!$C$5:$C$2393='MDOT FTA Detail'!$C$4)*(Projects!$L$5:$L$2393='MDOT FTA Detail'!$A25)*(Projects!$J$5:$J$2393<>'MDOT FTA Detail'!$A$171)*(Projects!$K$5:K$2393)) -> 0 | E25: 0 | F25: =SUMPRODUCT((Projects!$A$5:$A$2393='MDOT FTA Detail'!$D$3)*(Projects!$C$5:$C$2393='MDOT FTA Detail'!$C$4)*(Projects!$L$5:$L$2393='MDOT FTA Detail'!$A25)*(Projects!$J$5:$J$2393<>'MDOT FTA Detail'!$A$171)*(Projects!$Q$5:Q$2393)) -> 0 | G25: =SUMPRODUCT((Projects!$A$5:$A$2393='MDOT FTA Detail'!$G$3)*(Projects!$C$5:$C$2393='MDOT FTA Detail'!$C$4)*(Projects!$L$5:$L$2393='MDOT FTA Detail'!$A25)*(Projects!$J$5:$J$2393<>'MDOT FTA Detail'!$A$171)*(Projects!$K$5:K$2393)) -> 0 | H25: 0 | I25: =SUMPRODUCT((Projects!$A$5:$A$2393='MDOT FTA Detail'!$G$3)*(Projects!$C$5:$C$2393='MDOT FTA Detail'!$C$4)*(Projects!$L$5:$L$2393='MDOT FTA Detail'!$A25)*(Projects!$J$5:$J$2393<>'MDOT FTA Detail'!$A$171)*(Projects!$Q$5:Q$2393)) -> 0 | J25: =SUMPRODUCT((Projects!$A$5:$A$2393='MDOT FTA Detail'!$J$3)*(Projects!$C$5:$C$2393='MDOT FTA Detail'!$C$4)*(Projects!$L$5:$L$2393='MDOT FTA Detail'!$A25)*(Projects!$J$5:$J$2393<>'MDOT FTA Detail'!$A$171)*(Projects!$K$5:$K$2393)) -> 0 | K25: 0 | L25: =SUMPRODUCT((Projects!$A$5:$A$2393='MDOT FTA Detail'!$J$3)*(Projects!$C$5:$C$2393='MDOT FTA Detail'!$C$4)*(Projects!$L$5:$L$2393='MDOT FTA Detail'!$A25)*(Projects!$J$5:$J$2393<>'MDOT FTA Detail'!$A$171)*(Projects!$Q$5:$Q$2393)) -> 0 | M25: =SUMPRODUCT((Projects!$A$5:$A$2393='MDOT FTA Detail'!$M$3)*(Projects!$C$5:$C$2393='MDOT FTA Detail'!$C$4)*(Projects!$L$5:$L$2393='MDOT FTA Detail'!$A25)*(Projects!$J$5:$J$2393<>'MDOT FTA Detail'!$A$171)*(Projects!$K$5:$K$2393)) -> 0 | N25: 0 | O25: =SUMPRODUCT((Projects!$A$5:$A$2393='MDOT FTA Detail'!$M$3)*(Projects!$C$5:$C$2393='MDOT FTA Detail'!$C$4)*(Projects!$L$5:$L$2393='MDOT FTA Detail'!$A25)*(Projects!$J$5:$J$2393<>'MDOT FTA Detail'!$A$171)*(Projects!$Q$5:$Q$2393)) -> 0
A26: DOG | B26: ISTEA Demonstration 100% Federal Not Classified | C26: MDOT FA | D26: =SUMPRODUCT((Projects!$A$5:$A$2393='MDOT FTA Detail'!$D$3)*(Projects!$C$5:$C$2393='MDOT FTA Detail'!$C$4)*(Projects!$L$5:$L$2393='MDOT FTA Detail'!$A26)*(Projects!$J$5:$J$2393<>'MDOT FTA Detail'!$A$171)*(Projects!$K$5:K$2393)) -> 0 | E26: 0 | F26: =SUMPRODUCT((Projects!$A$5:$A$2393='MDOT FTA Detail'!$D$3)*(Projects!$C$5:$C$2393='MDOT FTA Detail'!$C$4)*(Projects!$L$5:$L$2393='MDOT FTA Detail'!$A26)*(Projects!$J$5:$J$2393<>'MDOT FTA Detail'!$A$171)*(Projects!$Q$5:Q$2393)) -> 0 | G26: =SUMPRODUCT((Projects!$A$5:$A$2393='MDOT FTA Detail'!$G$3)*(Projects!$C$5:$C$2393='MDOT FTA Detail'!$C$4)*(Projects!$L$5:$L$2393='MDOT FTA Detail'!$A26)*(Projects!$J$5:$J$2393<>'MDOT FTA Detail'!$A$171)*(Projects!$K$5:K$2393)) -> 0 | H26: 0 | I26: =SUMPRODUCT((Projects!$A$5:$A$2393='MDOT FTA Detail'!$G$3)*(Projects!$C$5:$C$2393='MDOT FTA Detail'!$C$4)*(Projects!$L$5:$L$2393='MDOT FTA Detail'!$A26)*(Projects!$J$5:$J$2393<>'MDOT FTA Detail'!$A$171)*(Projects!$Q$5:Q$2393)) -> 0 | J26: =SUMPRODUCT((Projects!$A$5:$A$2393='MDOT FTA Detail'!$J$3)*(Projects!$C$5:$C$2393='MDOT FTA Detail'!$C$4)*(Projects!$L$5:$L$2393='MDOT FTA Detail'!$A26)*(Projects!$J$5:$J$2393<>'MDOT FTA Detail'!$A$171)*(Projects!$K$5:$K$2393)) -> 0 | K26: 0 | L26: =SUMPRODUCT((Projects!$A$5:$A$2393='MDOT FTA Detail'!$J$3)*(Projects!$C$5:$C$2393='MDOT FTA Detail'!$C$4)*(Projects!$L$5:$L$2393='MDOT FTA Detail'!$A26)*(Projects!$J$5:$J$2393<>'MDOT FTA Detail'!$A$171)*(Projects!$Q$5:$Q$2393)) -> 0 | M26: =SUMPRODUCT((Projects!$A$5:$A$2393='MDOT FTA Detail'!$M$3)*(Projects!$C$5:$C$2393='MDOT FTA Detail'!$C$4)*(Projects!$L$5:$L$2393='MDOT FTA Detail'!$A26)*(Projects!$J$5:$J$2393<>'MDOT FTA Detail'!$A$171)*(Projects!$K$5:$K$2393)) -> 0 | N26: 0 | O26: =SUMPRODUCT((Projects!$A$5:$A$2393='MDOT FTA Detail'!$M$3)*(Projects!$C$5:$C$2393='MDOT FTA Detail'!$C$4)*(Projects!$L$5:$L$2393='MDOT FTA Detail'!$A26)*(Projects!$J$5:$J$2393<>'MDOT FTA Detail'!$A$171)*(Projects!$Q$5:$Q$2393)) -> 0
A27: DPN | B27: ISTEA Demonstration 80% Federal on NHS | C27: MDOT FA | D27: =SUMPRODUCT((Projects!$A$5:$A$2393='MDOT FTA Detail'!$D$3)*(Projects!$C$5:$C$2393='MDOT FTA Detail'!$C$4)*(Projects!$L$5:$L$2393='MDOT FTA Detail'!$A27)*(Projects!$J$5:$J$2393<>'MDOT FTA Detail'!$A$171)*(Projects!$K$5:K$2393)) -> 0 | E27: 0 | F27: =SUMPRODUCT((Projects!$A$5:$A$2393='MDOT FTA Detail'!$D$3)*(Projects!$C$5:$C$2393='MDOT FTA Detail'!$C$4)*(Projects!$L$5:$L$2393='MDOT FTA Detail'!$A27)*(Projects!$J$5:$J$2393<>'MDOT FTA Detail'!$A$171)*(Projects!$Q$5:Q$2393)) -> 0 | G27: =SUMPRODUCT((Projects!$A$5:$A$2393='MDOT FTA Detail'!$G$3)*(Projects!$C$5:$C$2393='MDOT FTA Detail'!$C$4)*(Projects!$L$5:$L$2393='MDOT FTA Detail'!$A27)*(Projects!$J$5:$J$2393<>'MDOT FTA Detail'!$A$171)*(Projects!$K$5:K$2393)) -> 0 | H27: 0 | I27: =SUMPRODUCT((Projects!$A$5:$A$2393='MDOT FTA Detail'!$G$3)*(Projects!$C$5:$C$2393='MDOT FTA Detail'!$C$4)*(Projects!$L$5:$L$2393='MDOT FTA Detail'!$A27)*(Projects!$J$5:$J$2393<>'MDOT FTA Detail'!$A$171)*(Projects!$Q$5:Q$2393)) -> 0 | J27: =SUMPRODUCT((Projects!$A$5:$A$2393='MDOT FTA Detail'!$J$3)*(Projects!$C$5:$C$2393='MDOT FTA Detail'!$C$4)*(Projects!$L$5:$L$2393='MDOT FTA Detail'!$A27)*(Projects!$J$5:$J$2393<>'MDOT FTA Detail'!$A$171)*(Projects!$K$5:$K$2393)) -> 0 | K27: 0 | L27: =SUMPRODUCT((Projects!$A$5:$A$2393='MDOT FTA Detail'!$J$3)*(Projects!$C$5:$C$2393='MDOT FTA Detail'!$C$4)*(Projects!$L$5:$L$2393='MDOT FTA Detail'!$A27)*(Projects!$J$5:$J$2393<>'MDOT FTA Detail'!$A$171)*(Projects!$Q$5:$Q$2393)) -> 0 | M27: =SUMPRODUCT((Projects!$A$5:$A$2393='MDOT FTA Detail'!$M$3)*(Projects!$C$5:$C$2393='MDOT FTA Detail'!$C$4)*(Projects!$L$5:$L$2393='MDOT FTA Detail'!$A27)*(Projects!$J$5:$J$2393<>'MDOT FTA Detail'!$A$171)*(Projects!$K$5:$K$2393)) -> 0 | N27: 0 | O27: =SUMPRODUCT((Projects!$A$5:$A$2393='MDOT FTA Detail'!$M$3)*(Projects!$C$5:$C$2393='MDOT FTA Detail'!$C$4)*(Projects!$L$5:$L$2393='MDOT FTA Detail'!$A27)*(Projects!$J$5:$J$2393<>'MDOT FTA Detail'!$A$171)*(Projects!$Q$5:$Q$2393)) -> 0
A28: DPO | B28: ISTEA Demonstration 80% Federal Not Classified | C28: MDOT FA | D28: =SUMPRODUCT((Projects!$A$5:$A$2393='MDOT FTA Detail'!$D$3)*(Projects!$C$5:$C$2393='MDOT FTA Detail'!$C$4)*(Projects!$L$5:$L$2393='MDOT FTA Detail'!$A28)*(Projects!$J$5:$J$2393<>'MDOT FTA Detail'!$A$171)*(Projects!$K$5:K$2393)) -> 0 | E28: 0 | F28: =SUMPRODUCT((Projects!$A$5:$A$2393='MDOT FTA Detail'!$D$3)*(Projects!$C$5:$C$2393='MDOT FTA Detail'!$C$4)*(Projects!$L$5:$L$2393='MDOT FTA Detail'!$A28)*(Projects!$J$5:$J$2393<>'MDOT FTA Detail'!$A$171)*(Projects!$Q$5:Q$2393)) -> 0 | G28: =SUMPRODUCT((Projects!$A$5:$A$2393='MDOT FTA Detail'!$G$3)*(Projects!$C$5:$C$2393='MDOT FTA Detail'!$C$4)*(Projects!$L$5:$L$2393='MDOT FTA Detail'!$A28)*(Projects!$J$5:$J$2393<>'MDOT FTA Detail'!$A$171)*(Projects!$K$5:K$2393)) -> 0 | H28: 0 | I28: =SUMPRODUCT((Projects!$A$5:$A$2393='MDOT FTA Detail'!$G$3)*(Projects!$C$5:$C$2393='MDOT FTA Detail'!$C$4)*(Projects!$L$5:$L$2393='MDOT FTA Detail'!$A28)*(Projects!$J$5:$J$2393<>'MDOT FTA Detail'!$A$171)*(Projects!$Q$5:Q$2393)) -> 0 | J28: =SUMPRODUCT((Projects!$A$5:$A$2393='MDOT FTA Detail'!$J$3)*(Projects!$C$5:$C$2393='MDOT FTA Detail'!$C$4)*(Projects!$L$5:$L$2393='MDOT FTA Detail'!$A28)*(Projects!$J$5:$J$2393<>'MDOT FTA Detail'!$A$171)*(Projects!$K$5:$K$2393)) -> 0 | K28: 0 | L28: =SUMPRODUCT((Projects!$A$5:$A$2393='MDOT FTA Detail'!$J$3)*(Projects!$C$5:$C$2393='MDOT FTA Detail'!$C$4)*(Projects!$L$5:$L$2393='MDOT FTA Detail'!$A28)*(Projects!$J$5:$J$2393<>'MDOT FTA Detail'!$A$171)*(Projects!$Q$5:$Q$2393)) -> 0 | M28: =SUMPRODUCT((Projects!$A$5:$A$2393='MDOT FTA Detail'!$M$3)*(Projects!$C$5:$C$2393='MDOT FTA Detail'!$C$4)*(Projects!$L$5:$L$2393='MDOT FTA Detail'!$A28)*(Projects!$J$5:$J$2393<>'MDOT FTA Detail'!$A$171)*(Projects!$K$5:$K$2393)) -> 0 | N28: 0 | O28: =SUMPRODUCT((Projects!$A$5:$A$2393='MDOT FTA Detail'!$M$3)*(Projects!$C$5:$C$2393='MDOT FTA Detail'!$C$4)*(Projects!$L$5:$L$2393='MDOT FTA Detail'!$A28)*(Projects!$J$5:$J$2393<>'MDOT FTA Detail'!$A$171)*(Projects!$Q$5:$Q$2393)) -> 0
A29: DPS | B29: ISTEA Demonstration 80% Federal on STP | C29: MDOT FA | D29: =SUMPRODUCT((Projects!$A$5:$A$2393='MDOT FTA Detail'!$D$3)*(Projects!$C$5:$C$2393='MDOT FTA Detail'!$C$4)*(Projects!$L$5:$L$2393='MDOT FTA Detail'!$A29)*(Projects!$J$5:$J$2393<>'MDOT FTA Detail'!$A$171)*(Projects!$K$5:K$2393)) -> 0 | E29: 0 | F29: =SUMPRODUCT((Projects!$A$5:$A$2393='MDOT FTA Detail'!$D$3)*(Projects!$C$5:$C$2393='MDOT FTA Detail'!$C$4)*(Projects!$L$5:$L$2393='MDOT FTA Detail'!$A29)*(Projects!$J$5:$J$2393<>'MDOT FTA Detail'!$A$171)*(Projects!$Q$5:Q$2393)) -> 0 | G29: =SUMPRODUCT((Projects!$A$5:$A$2393='MDOT FTA Detail'!$G$3)*(Projects!$C$5:$C$2393='MDOT FTA Detail'!$C$4)*(Projects!$L$5:$L$2393='MDOT FTA Detail'!$A29)*(Projects!$J$5:$J$2393<>'MDOT FTA Detail'!$A$171)*(Projects!$K$5:K$2393)) -> 0 | H29: 0 | I29: =SUMPRODUCT((Projects!$A$5:$A$2393='MDOT FTA Detail'!$G$3)*(Projects!$C$5:$C$2393='MDOT FTA Detail'!$C$4)*(Projects!$L$5:$L$2393='MDOT FTA Detail'!$A29)*(Projects!$J$5:$J$2393<>'MDOT FTA Detail'!$A$171)*(Projects!$Q$5:Q$2393)) -> 0 | J29: =SUMPRODUCT((Projects!$A$5:$A$2393='MDOT FTA Detail'!$J$3)*(Projects!$C$5:$C$2393='MDOT FTA Detail'!$C$4)*(Projects!$L$5:$L$2393='MDOT FTA Detail'!$A29)*(Projects!$J$5:$J$2393<>'MDOT FTA Detail'!$A$171)*(Projects!$K$5:$K$2393)) -> 0 | K29: 0 | L29: =SUMPRODUCT((Projects!$A$5:$A$2393='MDOT FTA Detail'!$J$3)*(Projects!$C$5:$C$2393='MDOT FTA Detail'!$C$4)*(Projects!$L$5:$L$2393='MDOT FTA Detail'!$A29)*(Projects!$J$5:$J$2393<>'MDOT FTA Detail'!$A$171)*(Projects!$Q$5:$Q$2393)) -> 0 | M29: =SUMPRODUCT((Projects!$A$5:$A$2393='MDOT FTA Detail'!$M$3)*(Projects!$C$5:$C$2393='MDOT FTA Detail'!$C$4)*(Projects!$L$5:$L$2393='MDOT FTA Detail'!$A29)*(Projects!$J$5:$J$2393<>'MDOT FTA Detail'!$A$171)*(Projects!$K$5:$K$2393)) -> 0 | N29: 0 | O29: =SUMPRODUCT((Projects!$A$5:$A$2393='MDOT FTA Detail'!$M$3)*(Projects!$C$5:$C$2393='MDOT FTA Detail'!$C$4)*(Projects!$L$5:$L$2393='MDOT FTA Detail'!$A29)*(Projects!$J$5:$J$2393<>'MDOT FTA Detail'!$A$171)*(Projects!$Q$5:$Q$2393)) -> 0
A30: DPSA | B30: Demonstration Project Section 112 Division A | C30: MDOT FA | D30: =SUMPRODUCT((Projects!$A$5:$A$2393='MDOT FTA Detail'!$D$3)*(Projects!$C$5:$C$2393='MDOT FTA Detail'!$C$4)*(Projects!$L$5:$L$2393='MDOT FTA Detail'!$A30)*(Projects!$J$5:$J$2393<>'MDOT FTA Detail'!$A$171)*(Projects!$K$5:K$2393)) -> 0 | E30: 0 | F30: =SUMPRODUCT((Projects!$A$5:$A$2393='MDOT FTA Detail'!$D$3)*(Projects!$C$5:$C$2393='MDOT FTA Detail'!$C$4)*(Projects!$L$5:$L$2393='MDOT FTA Detail'!$A30)*(Projects!$J$5:$J$2393<>'MDOT FTA Detail'!$A$171)*(Projects!$Q$5:Q$2393)) -> 0 | G30: =SUMPRODUCT((Projects!$A$5:$A$2393='MDOT FTA Detail'!$G$3)*(Projects!$C$5:$C$2393='MDOT FTA Detail'!$C$4)*(Projects!$L$5:$L$2393='MDOT FTA Detail'!$A30)*(Projects!$J$5:$J$2393<>'MDOT FTA Detail'!$A$171)*(Projects!$K$5:K$2393)) -> 0 | H30: 0 | I30: =SUMPRODUCT((Projects!$A$5:$A$2393='MDOT FTA Detail'!$G$3)*(Projects!$C$5:$C$2393='MDOT FTA Detail'!$C$4)*(Projects!$L$5:$L$2393='MDOT FTA Detail'!$A30)*(Projects!$J$5:$J$2393<>'MDOT FTA Detail'!$A$171)*(Projects!$Q$5:Q$2393)) -> 0 | J30: =SUMPRODUCT((Projects!$A$5:$A$2393='MDOT FTA Detail'!$J$3)*(Projects!$C$5:$C$2393='MDOT FTA Detail'!$C$4)*(Projects!$L$5:$L$2393='MDOT FTA Detail'!$A30)*(Projects!$J$5:$J$2393<>'MDOT FTA Detail'!$A$171)*(Projects!$K$5:$K$2393)) -> 0 | K30: 0 | L30: =SUMPRODUCT((Projects!$A$5:$A$2393='MDOT FTA Detail'!$J$3)*(Projects!$C$5:$C$2393='MDOT FTA Detail'!$C$4)*(Projects!$L$5:$L$2393='MDOT FTA Detail'!$A30)*(Projects!$J$5:$J$2393<>'MDOT FTA Detail'!$A$171)*(Projects!$Q$5:$Q$2393)) -> 0 | M30: =SUMPRODUCT((Projects!$A$5:$A$2393='MDOT FTA Detail'!$M$3)*(Projects!$C$5:$C$2393='MDOT FTA Detail'!$C$4)*(Projects!$L$5:$L$2393='MDOT FTA Detail'!$A30)*(Projects!$J$5:$J$2393<>'MDOT FTA Detail'!$A$171)*(Projects!$K$5:$K$2393)) -> 0 | N30: 0 | O30: =SUMPRODUCT((Projects!$A$5:$A$2393='MDOT FTA Detail'!$M$3)*(Projects!$C$5:$C$2393='MDOT FTA Detail'!$C$4)*(Projects!$L$5:$L$2393='MDOT FTA Detail'!$A30)*(Projects!$J$5:$J$2393<>'MDOT FTA Detail'!$A$171)*(Projects!$Q$5:$Q$2393)) -> 0
A31: DST | B31: Donor Bonus Surface Transportation | C31: MDOT FA | D31: =SUMPRODUCT((Projects!$A$5:$A$2393='MDOT FTA Detail'!$D$3)*(Projects!$C$5:$C$2393='MDOT FTA Detail'!$C$4)*(Projects!$L$5:$L$2393='MDOT FTA Detail'!$A31)*(Projects!$J$5:$J$2393<>'MDOT FTA Detail'!$A$171)*(Projects!$K$5:K$2393)) -> 0 | E31: 0 | F31: =SUMPRODUCT((Projects!$A$5:$A$2393='MDOT FTA Detail'!$D$3)*(Projects!$C$5:$C$2393='MDOT FTA Detail'!$C$4)*(Projects!$L$5:$L$2393='MDOT FTA Detail'!$A31)*(Projects!$J$5:$J$2393<>'MDOT FTA Detail'!$A$171)*(Projects!$Q$5:Q$2393)) -> 0 | G31: =SUMPRODUCT((Projects!$A$5:$A$2393='MDOT FTA Detail'!$G$3)*(Projects!$C$5:$C$2393='MDOT FTA Detail'!$C$4)*(Projects!$L$5:$L$2393='MDOT FTA Detail'!$A31)*(Projects!$J$5:$J$2393<>'MDOT FTA Detail'!$A$171)*(Projects!$K$5:K$2393)) -> 0 | H31: 0 | I31: =SUMPRODUCT((Projects!$A$5:$A$2393='MDOT FTA Detail'!$G$3)*(Projects!$C$5:$C$2393='MDOT FTA Detail'!$C$4)*(Projects!$L$5:$L$2393='MDOT FTA Detail'!$A31)*(Projects!$J$5:$J$2393<>'MDOT FTA Detail'!$A$171)*(Projects!$Q$5:Q$2393)) -> 0 | J31: =SUMPRODUCT((Projects!$A$5:$A$2393='MDOT FTA Detail'!$J$3)*(Projects!$C$5:$C$2393='MDOT FTA Detail'!$C$4)*(Projects!$L$5:$L$2393='MDOT FTA Detail'!$A31)*(Projects!$J$5:$J$2393<>'MDOT FTA Detail'!$A$171)*(Projects!$K$5:$K$2393)) -> 0 | K31: 0 | L31: =SUMPRODUCT((Projects!$A$5:$A$2393='MDOT FTA Detail'!$J$3)*(Projects!$C$5:$C$2393='MDOT FTA Detail'!$C$4)*(Projects!$L$5:$L$2393='MDOT FTA Detail'!$A31)*(Projects!$J$5:$J$2393<>'MDOT FTA Detail'!$A$171)*(Projects!$Q$5:$Q$2393)) -> 0 | M31: =SUMPRODUCT((Projects!$A$5:$A$2393='MDOT FTA Detail'!$M$3)*(Projects!$C$5:$C$2393='MDOT FTA Detail'!$C$4)*(Projects!$L$5:$L$2393='MDOT FTA Detail'!$A31)*(Projects!$J$5:$J$2393<>'MDOT FTA Detail'!$A$171)*(Projects!$K$5:$K$2393)) -> 0 | N31: 0 | O31: =SUMPRODUCT((Projects!$A$5:$A$2393='MDOT FTA Detail'!$M$3)*(Projects!$C$5:$C$2393='MDOT FTA Detail'!$C$4)*(Projects!$L$5:$L$2393='MDOT FTA Detail'!$A31)*(Projects!$J$5:$J$2393<>'MDOT FTA Detail'!$A$171)*(Projects!$Q$5:$Q$2393)) -> 0
A32: DSTU | B32: Donor Bonus Surface Transportation - (Urban > 2499,000) | C32: MDOT FA | D32: =SUMPRODUCT((Projects!$A$5:$A$2393='MDOT FTA Detail'!$D$3)*(Projects!$C$5:$C$2393='MDOT FTA Detail'!$C$4)*(Projects!$L$5:$L$2393='MDOT FTA Detail'!$A32)*(Projects!$J$5:$J$2393<>'MDOT FTA Detail'!$A$171)*(Projects!$K$5:K$2393)) -> 0 | E32: 0 | F32: =SUMPRODUCT((Projects!$A$5:$A$2393='MDOT FTA Detail'!$D$3)*(Projects!$C$5:$C$2393='MDOT FTA Detail'!$C$4)*(Projects!$L$5:$L$2393='MDOT FTA Detail'!$A32)*(Projects!$J$5:$J$2393<>'MDOT FTA Detail'!$A$171)*(Projects!$Q$5:Q$2393)) -> 0 | G32: =SUMPRODUCT((Projects!$A$5:$A$2393='MDOT FTA Detail'!$G$3)*(Projects!$C$5:$C$2393='MDOT FTA Detail'!$C$4)*(Projects!$L$5:$L$2393='MDOT FTA Detail'!$A32)*(Projects!$J$5:$J$2393<>'MDOT FTA Detail'!$A$171)*(Projects!$K$5:K$2393)) -> 0 | H32: 0 | I32: =SUMPRODUCT((Projects!$A$5:$A$2393='MDOT FTA Detail'!$G$3)*(Projects!$C$5:$C$2393='MDOT FTA Detail'!$C$4)*(Projects!$L$5:$L$2393='MDOT FTA Detail'!$A32)*(Projects!$J$5:$J$2393<>'MDOT FTA Detail'!$A$171)*(Projects!$Q$5:Q$2393)) -> 0 | J32: =SUMPRODUCT((Projects!$A$5:$A$2393='MDOT FTA Detail'!$J$3)*(Projects!$C$5:$C$2393='MDOT FTA Detail'!$C$4)*(Projects!$L$5:$L$2393='MDOT FTA Detail'!$A32)*(Projects!$J$5:$J$2393<>'MDOT FTA Detail'!$A$171)*(Projects!$K$5:$K$2393)) -> 0 | K32: 0 | L32: =SUMPRODUCT((Projects!$A$5:$A$2393='MDOT FTA Detail'!$J$3)*(Projects!$C$5:$C$2393='MDOT FTA Detail'!$C$4)*(Projects!$L$5:$L$2393='MDOT FTA Detail'!$A32)*(Projects!$J$5:$J$2393<>'MDOT FTA Detail'!$A$171)*(Projects!$Q$5:$Q$2393)) -> 0 | M32: =SUMPRODUCT((Projects!$A$5:$A$2393='MDOT FTA Detail'!$M$3)*(Projects!$C$5:$C$2393='MDOT FTA Detail'!$C$4)*(Projects!$L$5:$L$2393='MDOT FTA Detail'!$A32)*(Projects!$J$5:$J$2393<>'MDOT FTA Detail'!$A$171)*(Projects!$K$5:$K$2393)) -> 0 | N32: 0 | O32: =SUMPRODUCT((Projects!$A$5:$A$2393='MDOT FTA Detail'!$M$3)*(Projects!$C$5:$C$2393='MDOT FTA Detail'!$C$4)*(Projects!$L$5:$L$2393='MDOT FTA Detail'!$A32)*(Projects!$J$5:$J$2393<>'MDOT FTA Detail'!$A$171)*(Projects!$Q$5:$Q$2393)) -> 0
A33: DSTT | B33: Donor Bonus Surface Transportation - Rural - Trunkline | C33: MDOT FA | D33: =SUMPRODUCT((Projects!$A$5:$A$2393='MDOT FTA Detail'!$D$3)*(Projects!$C$5:$C$2393='MDOT FTA Detail'!$C$4)*(Projects!$L$5:$L$2393='MDOT FTA Detail'!$A33)*(Projects!$J$5:$J$2393<>'MDOT FTA Detail'!$A$171)*(Projects!$K$5:K$2393)) -> 0 | E33: 0 | F33: =SUMPRODUCT((Projects!$A$5:$A$2393='MDOT FTA Detail'!$D$3)*(Projects!$C$5:$C$2393='MDOT FTA Detail'!$C$4)*(Projects!$L$5:$L$2393='MDOT FTA Detail'!$A33)*(Projects!$J$5:$J$2393<>'MDOT FTA Detail'!$A$171)*(Projects!$Q$5:Q$2393)) -> 0 | G33: =SUMPRODUCT((Projects!$A$5:$A$2393='MDOT FTA Detail'!$G$3)*(Projects!$C$5:$C$2393='MDOT FTA Detail'!$C$4)*(Projects!$L$5:$L$2393='MDOT FTA Detail'!$A33)*(Projects!$J$5:$J$2393<>'MDOT FTA Detail'!$A$171)*(Projects!$K$5:K$2393)) -> 0 | H33: 0 | I33: =SUMPRODUCT((Projects!$A$5:$A$2393='MDOT FTA Detail'!$G$3)*(Projects!$C$5:$C$2393='MDOT FTA Detail'!$C$4)*(Projects!$L$5:$L$2393='MDOT FTA Detail'!$A33)*(Projects!$J$5:$J$2393<>'MDOT FTA Detail'!$A$171)*(Projects!$Q$5:Q$2393)) -> 0 | J33: =SUMPRODUCT((Projects!$A$5:$A$2393='MDOT FTA Detail'!$J$3)*(Projects!$C$5:$C$2393='MDOT FTA Detail'!$C$4)*(Projects!$L$5:$L$2393='MDOT FTA Detail'!$A33)*(Projects!$J$5:$J$2393<>'MDOT FTA Detail'!$A$171)*(Projects!$K$5:$K$2393)) -> 0 | K33: 0 | L33: =SUMPRODUCT((Projects!$A$5:$A$2393='MDOT FTA Detail'!$J$3)*(Projects!$C$5:$C$2393='MDOT FTA Detail'!$C$4)*(Projects!$L$5:$L$2393='MDOT FTA Detail'!$A33)*(Projects!$J$5:$J$2393<>'MDOT FTA Detail'!$A$171)*(Projects!$Q$5:$Q$2393)) -> 0 | M33: =SUMPRODUCT((Projects!$A$5:$A$2393='MDOT FTA Detail'!$M$3)*(Projects!$C$5:$C$2393='MDOT FTA Detail'!$C$4)*(Projects!$L$5:$L$2393='MDOT FTA Detail'!$A33)*(Projects!$J$5:$J$2393<>'MDOT FTA Detail'!$A$171)*(Projects!$K$5:$K$2393)) -> 0 | N33: 0 | O33: =SUMPRODUCT((Projects!$A$5:$A$2393='MDOT FTA Detail'!$M$3)*(Projects!$C$5:$C$2393='MDOT FTA Detail'!$C$4)*(Projects!$L$5:$L$2393='MDOT FTA Detail'!$A33)*(Projects!$J$5:$J$2393<>'MDOT FTA Detail'!$A$171)*(Projects!$Q$5:$Q$2393)) -> 0
A34: EBSL | B34: Equity Bonus - SAFETEA-LU | C34: MDOT FA | D34: =SUMPRODUCT((Projects!$A$5:$A$2393='MDOT FTA Detail'!$D$3)*(Projects!$C$5:$C$2393='MDOT FTA Detail'!$C$4)*(Projects!$L$5:$L$2393='MDOT FTA Detail'!$A34)*(Projects!$J$5:$J$2393<>'MDOT FTA Detail'!$A$171)*(Projects!$K$5:K$2393)) -> 0 | E34: 0 | F34: =SUMPRODUCT((Projects!$A$5:$A$2393='MDOT FTA Detail'!$D$3)*(Projects!$C$5:$C$2393='MDOT FTA Detail'!$C$4)*(Projects!$L$5:$L$2393='MDOT FTA Detail'!$A34)*(Projects!$J$5:$J$2393<>'MDOT FTA Detail'!$A$171)*(Projects!$Q$5:Q$2393)) -> 0 | G34: =SUMPRODUCT((Projects!$A$5:$A$2393='MDOT FTA Detail'!$G$3)*(Projects!$C$5:$C$2393='MDOT FTA Detail'!$C$4)*(Projects!$L$5:$L$2393='MDOT FTA Detail'!$A34)*(Projects!$J$5:$J$2393<>'MDOT FTA Detail'!$A$171)*(Projects!$K$5:K$2393)) -> 0 | H34: 0 | I34: =SUMPRODUCT((Projects!$A$5:$A$2393='MDOT FTA Detail'!$G$3)*(Projects!$C$5:$C$2393='MDOT FTA Detail'!$C$4)*(Projects!$L$5:$L$2393='MDOT FTA Detail'!$A34)*(Projects!$J$5:$J$2393<>'MDOT FTA Detail'!$A$171)*(Projects!$Q$5:Q$2393)) -> 0 | J34: =SUMPRODUCT((Projects!$A$5:$A$2393='MDOT FTA Detail'!$J$3)*(Projects!$C$5:$C$2393='MDOT FTA Detail'!$C$4)*(Projects!$L$5:$L$2393='MDOT FTA Detail'!$A34)*(Projects!$J$5:$J$2393<>'MDOT FTA Detail'!$A$171)*(Projects!$K$5:$K$2393)) -> 0 | K34: 0 | L34: =SUMPRODUCT((Projects!$A$5:$A$2393='MDOT FTA Detail'!$J$3)*(Projects!$C$5:$C$2393='MDOT FTA Detail'!$C$4)*(Projects!$L$5:$L$2393='MDOT FTA Detail'!$A34)*(Projects!$J$5:$J$2393<>'MDOT FTA Detail'!$A$171)*(Projects!$Q$5:$Q$2393)) -> 0 | M34: =SUMPRODUCT((Projects!$A$5:$A$2393='MDOT FTA Detail'!$M$3)*(Projects!$C$5:$C$2393='MDOT FTA Detail'!$C$4)*(Projects!$L$5:$L$2393='MDOT FTA Detail'!$A34)*(Projects!$J$5:$J$2393<>'MDOT FTA Detail'!$A$171)*(Projects!$K$5:$K$2393)) -> 0 | N34: 0 | O34: =SUMPRODUCT((Projects!$A$5:$A$2393='MDOT FTA Detail'!$M$3)*(Projects!$C$5:$C$2393='MDOT FTA Detail'!$C$4)*(Projects!$L$5:$L$2393='MDOT FTA Detail'!$A34)*(Projects!$J$5:$J$2393<>'MDOT FTA Detail'!$A$171)*(Projects!$Q$5:$Q$2393)) -> 0
A35: EDAF | B35: Economic Development - Category A with Federal Aid | C35: MDOT FA | D35: =SUMPRODUCT((Projects!$A$5:$A$2393='MDOT FTA Detail'!$D$3)*(Projects!$C$5:$C$2393='MDOT FTA Detail'!$C$4)*(Projects!$L$5:$L$2393='MDOT FTA Detail'!$A35)*(Projects!$J$5:$J$2393<>'MDOT FTA Detail'!$A$171)*(Projects!$K$5:K$2393)) -> 0 | E35: 0 | F35: =SUMPRODUCT((Projects!$A$5:$A$2393='MDOT FTA Detail'!$D$3)*(Projects!$C$5:$C$2393='MDOT FTA Detail'!$C$4)*(Projects!$L$5:$L$2393='MDOT FTA Detail'!$A35)*(Projects!$J$5:$J$2393<>'MDOT FTA Detail'!$A$171)*(Projects!$Q$5:Q$2393)) -> 0 | G35: =SUMPRODUCT((Projects!$A$5:$A$2393='MDOT FTA Detail'!$G$3)*(Projects!$C$5:$C$2393='MDOT FTA Detail'!$C$4)*(Projects!$L$5:$L$2393='MDOT FTA Detail'!$A35)*(Projects!$J$5:$J$2393<>'MDOT FTA Detail'!$A$171)*(Projects!$K$5:K$2393)) -> 0 | H35: 0 | I35: =SUMPRODUCT((Projects!$A$5:$A$2393='MDOT FTA Detail'!$G$3)*(Projects!$C$5:$C$2393='MDOT FTA Detail'!$C$4)*(Projects!$L$5:$L$2393='MDOT FTA Detail'!$A35)*(Projects!$J$5:$J$2393<>'MDOT FTA Detail'!$A$171)*(Projects!$Q$5:Q$2393)) -> 0 | J35: =SUMPRODUCT((Projects!$A$5:$A$2393='MDOT FTA Detail'!$J$3)*(Projects!$C$5:$C$2393='MDOT FTA Detail'!$C$4)*(Projects!$L$5:$L$2393='MDOT FTA Detail'!$A35)*(Projects!$J$5:$J$2393<>'MDOT FTA Detail'!$A$171)*(Projects!$K$5:$K$2393)) -> 0 | K35: 0 | L35: =SUMPRODUCT((Projects!$A$5:$A$2393='MDOT FTA Detail'!$J$3)*(Projects!$C$5:$C$2393='MDOT FTA Detail'!$C$4)*(Projects!$L$5:$L$2393='MDOT FTA Detail'!$A35)*(Projects!$J$5:$J$2393<>'MDOT FTA Detail'!$A$171)*(Projects!$Q$5:$Q$2393)) -> 0 | M35: =SUMPRODUCT((Projects!$A$5:$A$2393='MDOT FTA Detail'!$M$3)*(Projects!$C$5:$C$2393='MDOT FTA Detail'!$C$4)*(Projects!$L$5:$L$2393='MDOT FTA Detail'!$A35)*(Projects!$J$5:$J$2393<>'MDOT FTA Detail'!$A$171)*(Projects!$K$5:$K$2393)) -> 0 | N35: 0 | O35: =SUMPRODUCT((Projects!$A$5:$A$2393='MDOT FTA Detail'!$M$3)*(Projects!$C$5:$C$2393='MDOT FTA Detail'!$C$4)*(Projects!$L$5:$L$2393='MDOT FTA Detail'!$A35)*(Projects!$J$5:$J$2393<>'MDOT FTA Detail'!$A$171)*(Projects!$Q$5:$Q$2393)) -> 0
A36: EDCF | B36: Economic Development - Category C with Federal Aid | C36: MDOT FA | D36: =SUMPRODUCT((Projects!$A$5:$A$2393='MDOT FTA Detail'!$D$3)*(Projects!$C$5:$C$2393='MDOT FTA Detail'!$C$4)*(Projects!$L$5:$L$2393='MDOT FTA Detail'!$A36)*(Projects!$J$5:$J$2393<>'MDOT FTA Detail'!$A$171)*(Projects!$K$5:K$2393)) -> 0 | E36: 0 | F36: =SUMPRODUCT((Projects!$A$5:$A$2393='MDOT FTA Detail'!$D$3)*(Projects!$C$5:$C$2393='MDOT FTA Detail'!$C$4)*(Projects!$L$5:$L$2393='MDOT FTA Detail'!$A36)*(Projects!$J$5:$J$2393<>'MDOT FTA Detail'!$A$171)*(Projects!$Q$5:Q$2393)) -> 0 | G36: =SUMPRODUCT((Projects!$A$5:$A$2393='MDOT FTA Detail'!$G$3)*(Projects!$C$5:$C$2393='MDOT FTA Detail'!$C$4)*(Projects!$L$5:$L$2393='MDOT FTA Detail'!$A36)*(Projects!$J$5:$J$2393<>'MDOT FTA Detail'!$A$171)*(Projects!$K$5:K$2393)) -> 0 | H36: 0 | I36: =SUMPRODUCT((Projects!$A$5:$A$2393='MDOT FTA Detail'!$G$3)*(Projects!$C$5:$C$2393='MDOT FTA Detail'!$C$4)*(Projects!$L$5:$L$2393='MDOT FTA Detail'!$A36)*(Projects!$J$5:$J$2393<>'MDOT FTA Detail'!$A$171)*(Projects!$Q$5:Q$2393)) -> 0 | J36: =SUMPRODUCT((Projects!$A$5:$A$2393='MDOT FTA Detail'!$J$3)*(Projects!$C$5:$C$2393='MDOT FTA Detail'!$C$4)*(Projects!$L$5:$L$2393='MDOT FTA Detail'!$A36)*(Projects!$J$5:$J$2393<>'MDOT FTA Detail'!$A$171)*(Projects!$K$5:$K$2393)) -> 0 | K36: 0 | L36: =SUMPRODUCT((Projects!$A$5:$A$2393='MDOT FTA Detail'!$J$3)*(Projects!$C$5:$C$2393='MDOT FTA Detail'!$C$4)*(Projects!$L$5:$L$2393='MDOT FTA Detail'!$A36)*(Projects!$J$5:$J$2393<>'MDOT FTA Detail'!$A$171)*(Projects!$Q$5:$Q$2393)) -> 0 | M36: =SUMPRODUCT((Projects!$A$5:$A$2393='MDOT FTA Detail'!$M$3)*(Projects!$C$5:$C$2393='MDOT FTA Detail'!$C$4)*(Projects!$L$5:$L$2393='MDOT FTA Detail'!$A36)*(Projects!$J$5:$J$2393<>'MDOT FTA Detail'!$A$171)*(Projects!$K$5:$K$2393)) -> 0 | N36: 0 | O36: =SUMPRODUCT((Projects!$A$5:$A$2393='MDOT FTA Detail'!$M$3)*(Projects!$C$5:$C$2393='MDOT FTA Detail'!$C$4)*(Projects!$L$5:$L$2393='MDOT FTA Detail'!$A36)*(Projects!$J$5:$J$2393<>'MDOT FTA Detail'!$A$171)*(Projects!$Q$5:$Q$2393)) -> 0
A37: EDDF | B37: Economic Development - Category D with Federal Aid | C37: MDOT FA | D37: =SUMPRODUCT((Projects!$A$5:$A$2393='MDOT FTA Detail'!$D$3)*(Projects!$C$5:$C$2393='MDOT FTA Detail'!$C$4)*(Projects!$L$5:$L$2393='MDOT FTA Detail'!$A37)*(Projects!$J$5:$J$2393<>'MDOT FTA Detail'!$A$171)*(Projects!$K$5:K$2393)) -> 0 | E37: 0 | F37: =SUMPRODUCT((Projects!$A$5:$A$2393='MDOT FTA Detail'!$D$3)*(Projects!$C$5:$C$2393='MDOT FTA Detail'!$C$4)*(Projects!$L$5:$L$2393='MDOT FTA Detail'!$A37)*(Projects!$J$5:$J$2393<>'MDOT FTA Detail'!$A$171)*(Projects!$Q$5:Q$2393)) -> 0 | G37: =SUMPRODUCT((Projects!$A$5:$A$2393='MDOT FTA Detail'!$G$3)*(Projects!$C$5:$C$2393='MDOT FTA Detail'!$C$4)*(Projects!$L$5:$L$2393='MDOT FTA Detail'!$A37)*(Projects!$J$5:$J$2393<>'MDOT FTA Detail'!$A$171)*(Projects!$K$5:K$2393)) -> 0 | H37: 0 | I37: =SUMPRODUCT((Projects!$A$5:$A$2393='MDOT FTA Detail'!$G$3)*(Projects!$C$5:$C$2393='MDOT FTA Detail'!$C$4)*(Projects!$L$5:$L$2393='MDOT FTA Detail'!$A37)*(Projects!$J$5:$J$2393<>'MDOT FTA Detail'!$A$171)*(Projects!$Q$5:Q$2393)) -> 0 | J37: =SUMPRODUCT((Projects!$A$5:$A$2393='MDOT FTA Detail'!$J$3)*(Projects!$C$5:$C$2393='MDOT FTA Detail'!$C$4)*(Projects!$L$5:$L$2393='MDOT FTA Detail'!$A37)*(Projects!$J$5:$J$2393<>'MDOT FTA Detail'!$A$171)*(Projects!$K$5:$K$2393)) -> 0 | K37: 0 | L37: =SUMPRODUCT((Projects!$A$5:$A$2393='MDOT FTA Detail'!$J$3)*(Projects!$C$5:$C$2393='MDOT FTA Detail'!$C$4)*(Projects!$L$5:$L$2393='MDOT FTA Detail'!$A37)*(Projects!$J$5:$J$2393<>'MDOT FTA Detail'!$A$171)*(Projects!$Q$5:$Q$2393)) -> 0 | M37: =SUMPRODUCT((Projects!$A$5:$A$2393='MDOT FTA Detail'!$M$3)*(Projects!$C$5:$C$2393='MDOT FTA Detail'!$C$4)*(Projects!$L$5:$L$2393='MDOT FTA Detail'!$A37)*(Projects!$J$5:$J$2393<>'MDOT FTA Detail'!$A$171)*(Projects!$K$5:$K$2393)) -> 0 | N37: 0 | O37: =SUMPRODUCT((Projects!$A$5:$A$2393='MDOT FTA Detail'!$M$3)*(Projects!$C$5:$C$2393='MDOT FTA Detail'!$C$4)*(Projects!$L$5:$L$2393='MDOT FTA Detail'!$A37)*(Projects!$J$5:$J$2393<>'MDOT FTA Detail'!$A$171)*(Projects!$Q$5:$Q$2393)) -> 0
A38: EDFF | B38: Economic Development - Category F with Federal Aid | C38: MDOT FA | D38: =SUMPRODUCT((Projects!$A$5:$A$2393='MDOT FTA Detail'!$D$3)*(Projects!$C$5:$C$2393='MDOT FTA Detail'!$C$4)*(Projects!$L$5:$L$2393='MDOT FTA Detail'!$A38)*(Projects!$J$5:$J$2393<>'MDOT FTA Detail'!$A$171)*(Projects!$K$5:K$2393)) -> 0 | E38: 0 | F38: =SUMPRODUCT((Projects!$A$5:$A$2393='MDOT FTA Detail'!$D$3)*(Projects!$C$5:$C$2393='MDOT FTA Detail'!$C$4)*(Projects!$L$5:$L$2393='MDOT FTA Detail'!$A38)*(Projects!$J$5:$J$2393<>'MDOT FTA Detail'!$A$171)*(Projects!$Q$5:Q$2393)) -> 0 | G38: =SUMPRODUCT((Projects!$A$5:$A$2393='MDOT FTA Detail'!$G$3)*(Projects!$C$5:$C$2393='MDOT FTA Detail'!$C$4)*(Projects!$L$5:$L$2393='MDOT FTA Detail'!$A38)*(Projects!$J$5:$J$2393<>'MDOT FTA Detail'!$A$171)*(Projects!$K$5:K$2393)) -> 0 | H38: 0 | I38: =SUMPRODUCT((Projects!$A$5:$A$2393='MDOT FTA Detail'!$G$3)*(Projects!$C$5:$C$2393='MDOT FTA Detail'!$C$4)*(Projects!$L$5:$L$2393='MDOT FTA Detail'!$A38)*(Projects!$J$5:$J$2393<>'MDOT FTA Detail'!$A$171)*(Projects!$Q$5:Q$2393)) -> 0 | J38: =SUMPRODUCT((Projects!$A$5:$A$2393='MDOT FTA Detail'!$J$3)*(Projects!$C$5:$C$2393='MDOT FTA Detail'!$C$4)*(Projects!$L$5:$L$2393='MDOT FTA Detail'!$A38)*(Projects!$J$5:$J$2393<>'MDOT FTA Detail'!$A$171)*(Projects!$K$5:$K$2393)) -> 0 | K38: 0 | L38: =SUMPRODUCT((Projects!$A$5:$A$2393='MDOT FTA Detail'!$J$3)*(Projects!$C$5:$C$2393='MDOT FTA Detail'!$C$4)*(Projects!$L$5:$L$2393='MDOT FTA Detail'!$A38)*(Projects!$J$5:$J$2393<>'MDOT FTA Detail'!$A$171)*(Projects!$Q$5:$Q$2393)) -> 0 | M38: =SUMPRODUCT((Projects!$A$5:$A$2393='MDOT FTA Detail'!$M$3)*(Projects!$C$5:$C$2393='MDOT FTA Detail'!$C$4)*(Projects!$L$5:$L$2393='MDOT FTA Detail'!$A38)*(Projects!$J$5:$J$2393<>'MDOT FTA Detail'!$A$171)*(Projects!$K$5:$K$2393)) -> 0 | N38: 0 | O38: =SUMPRODUCT((Projects!$A$5:$A$2393='MDOT FTA Detail'!$M$3)*(Projects!$C$5:$C$2393='MDOT FTA Detail'!$C$4)*(Projects!$L$5:$L$2393='MDOT FTA Detail'!$A38)*(Projects!$J$5:$J$2393<>'MDOT FTA Detail'!$A$171)*(Projects!$Q$5:$Q$2393)) -> 0
A39: ER | B39: Emergency Relief | C39: MDOT FA | D39: =SUMPRODUCT((Projects!$A$5:$A$2393='MDOT FTA Detail'!$D$3)*(Projects!$C$5:$C$2393='MDOT FTA Detail'!$C$4)*(Projects!$L$5:$L$2393='MDOT FTA Detail'!$A39)*(Projects!$J$5:$J$2393<>'MDOT FTA Detail'!$A$171)*(Projects!$K$5:K$2393)) -> 0 | E39: 0 | F39: =SUMPRODUCT((Projects!$A$5:$A$2393='MDOT FTA Detail'!$D$3)*(Projects!$C$5:$C$2393='MDOT FTA Detail'!$C$4)*(Projects!$L$5:$L$2393='MDOT FTA Detail'!$A39)*(Projects!$J$5:$J$2393<>'MDOT FTA Detail'!$A$171)*(Projects!$Q$5:Q$2393)) -> 0 | G39: =SUMPRODUCT((Projects!$A$5:$A$2393='MDOT FTA Detail'!$G$3)*(Projects!$C$5:$C$2393='MDOT FTA Detail'!$C$4)*(Projects!$L$5:$L$2393='MDOT FTA Detail'!$A39)*(Projects!$J$5:$J$2393<>'MDOT FTA Detail'!$A$171)*(Projects!$K$5:K$2393)) -> 0 | H39: 0 | I39: =SUMPRODUCT((Projects!$A$5:$A$2393='MDOT FTA Detail'!$G$3)*(Projects!$C$5:$C$2393='MDOT FTA Detail'!$C$4)*(Projects!$L$5:$L$2393='MDOT FTA Detail'!$A39)*(Projects!$J$5:$J$2393<>'MDOT FTA Detail'!$A$171)*(Projects!$Q$5:Q$2393)) -> 0 | J39: =SUMPRODUCT((Projects!$A$5:$A$2393='MDOT FTA Detail'!$J$3)*(Projects!$C$5:$C$2393='MDOT FTA Detail'!$C$4)*(Projects!$L$5:$L$2393='MDOT FTA Detail'!$A39)*(Projects!$J$5:$J$2393<>'MDOT FTA Detail'!$A$171)*(Projects!$K$5:$K$2393)) -> 0 | K39: 0 | L39: =SUMPRODUCT((Projects!$A$5:$A$2393='MDOT FTA Detail'!$J$3)*(Projects!$C$5:$C$2393='MDOT FTA Detail'!$C$4)*(Projects!$L$5:$L$2393='MDOT FTA Detail'!$A39)*(Projects!$J$5:$J$2393<>'MDOT FTA Detail'!$A$171)*(Projects!$Q$5:$Q$2393)) -> 0 | M39: =SUMPRODUCT((Projects!$A$5:$A$2393='MDOT FTA Detail'!$M$3)*(Projects!$C$5:$C$2393='MDOT FTA Detail'!$C$4)*(Projects!$L$5:$L$2393='MDOT FTA Detail'!$A39)*(Projects!$J$5:$J$2393<>'MDOT FTA Detail'!$A$171)*(Projects!$K$5:$K$2393)) -> 0 | N39: 0 | O39: =SUMPRODUCT((Projects!$A$5:$A$2393='MDOT FTA Detail'!$M$3)*(Projects!$C$5:$C$2393='MDOT FTA Detail'!$C$4)*(Projects!$L$5:$L$2393='MDOT FTA Detail'!$A39)*(Projects!$J$5:$J$2393<>'MDOT FTA Detail'!$A$171)*(Projects!$Q$5:$Q$2393)) -> 0
A40: FBD | B40: Ferry Boat & Terminal Discretionary | C40: MDOT FA | D40: =SUMPRODUCT((Projects!$A$5:$A$2393='MDOT FTA Detail'!$D$3)*(Projects!$C$5:$C$2393='MDOT FTA Detail'!$C$4)*(Projects!$L$5:$L$2393='MDOT FTA Detail'!$A40)*(Projects!$J$5:$J$2393<>'MDOT FTA Detail'!$A$171)*(Projects!$K$5:K$2393)) -> 0 | E40: 0 | F40: =SUMPRODUCT((Projects!$A$5:$A$2393='MDOT FTA Detail'!$D$3)*(Projects!$C$5:$C$2393='MDOT FTA Detail'!$C$4)*(Projects!$L$5:$L$2393='MDOT FTA Detail'!$A40)*(Projects!$J$5:$J$2393<>'MDOT FTA Detail'!$A$171)*(Projects!$Q$5:Q$2393)) -> 0 | G40: =SUMPRODUCT((Projects!$A$5:$A$2393='MDOT FTA Detail'!$G$3)*(Projects!$C$5:$C$2393='MDOT FTA Detail'!$C$4)*(Projects!$L$5:$L$2393='MDOT FTA Detail'!$A40)*(Projects!$J$5:$J$2393<>'MDOT FTA Detail'!$A$171)*(Projects!$K$5:K$2393)) -> 0 | H40: 0 | I40: =SUMPRODUCT((Projects!$A$5:$A$2393='MDOT FTA Detail'!$G$3)*(Projects!$C$5:$C$2393='MDOT FTA Detail'!$C$4)*(Projects!$L$5:$L$2393='MDOT FTA Detail'!$A40)*(Projects!$J$5:$J$2393<>'MDOT FTA Detail'!$A$171)*(Projects!$Q$5:Q$2393)) -> 0 | J40: =SUMPRODUCT((Projects!$A$5:$A$2393='MDOT FTA Detail'!$J$3)*(Projects!$C$5:$C$2393='MDOT FTA Detail'!$C$4)*(Projects!$L$5:$L$2393='MDOT FTA Detail'!$A40)*(Projects!$J$5:$J$2393<>'MDOT FTA Detail'!$A$171)*(Projects!$K$5:$K$2393)) -> 0 | K40: 0 | L40: =SUMPRODUCT((Projects!$A$5:$A$2393='MDOT FTA Detail'!$J$3)*(Projects!$C$5:$C$2393='MDOT FTA Detail'!$C$4)*(Projects!$L$5:$L$2393='MDOT FTA Detail'!$A40)*(Projects!$J$5:$J$2393<>'MDOT FTA Detail'!$A$171)*(Projects!$Q$5:$Q$2393)) -> 0 | M40: =SUMPRODUCT((Projects!$A$5:$A$2393='MDOT FTA Detail'!$M$3)*(Projects!$C$5:$C$2393='MDOT FTA Detail'!$C$4)*(Projects!$L$5:$L$2393='MDOT FTA Detail'!$A40)*(Projects!$J$5:$J$2393<>'MDOT FTA Detail'!$A$171)*(Projects!$K$5:$K$2393)) -> 0 | N40: 0 | O40: =SUMPRODUCT((Projects!$A$5:$A$2393='MDOT FTA Detail'!$M$3)*(Projects!$C$5:$C$2393='MDOT FTA Detail'!$C$4)*(Projects!$L$5:$L$2393='MDOT FTA Detail'!$A40)*(Projects!$J$5:$J$2393<>'MDOT FTA Detail'!$A$171)*(Projects!$Q$5:$Q$2393)) -> 0
A41: FFH | B41: Federal Forest Highway | C41: MDOT FA | D41: =SUMPRODUCT((Projects!$A$5:$A$2393='MDOT FTA Detail'!$D$3)*(Projects!$C$5:$C$2393='MDOT FTA Detail'!$C$4)*(Projects!$L$5:$L$2393='MDOT FTA Detail'!$A41)*(Projects!$J$5:$J$2393<>'MDOT FTA Detail'!$A$171)*(Projects!$K$5:K$2393)) -> 0 | E41: 0 | F41: =SUMPRODUCT((Projects!$A$5:$A$2393='MDOT FTA Detail'!$D$3)*(Projects!$C$5:$C$2393='MDOT FTA Detail'!$C$4)*(Projects!$L$5:$L$2393='MDOT FTA Detail'!$A41)*(Projects!$J$5:$J$2393<>'MDOT FTA Detail'!$A$171)*(Projects!$Q$5:Q$2393)) -> 0 | G41: =SUMPRODUCT((Projects!$A$5:$A$2393='MDOT FTA Detail'!$G$3)*(Projects!$C$5:$C$2393='MDOT FTA Detail'!$C$4)*(Projects!$L$5:$L$2393='MDOT FTA Detail'!$A41)*(Projects!$J$5:$J$2393<>'MDOT FTA Detail'!$A$171)*(Projects!$K$5:K$2393)) -> 0 | H41: 0 | I41: =SUMPRODUCT((Projects!$A$5:$A$2393='MDOT FTA Detail'!$G$3)*(Projects!$C$5:$C$2393='MDOT FTA Detail'!$C$4)*(Projects!$L$5:$L$2393='MDOT FTA Detail'!$A41)*(Projects!$J$5:$J$2393<>'MDOT FTA Detail'!$A$171)*(Projects!$Q$5:Q$2393)) -> 0 | J41: =SUMPRODUCT((Projects!$A$5:$A$2393='MDOT FTA Detail'!$J$3)*(Projects!$C$5:$C$2393='MDOT FTA Detail'!$C$4)*(Projects!$L$5:$L$2393='MDOT FTA Detail'!$A41)*(Projects!$J$5:$J$2393<>'MDOT FTA Detail'!$A$171)*(Projects!$K$5:$K$2393)) -> 0 | K41: 0 | L41: =SUMPRODUCT((Projects!$A$5:$A$2393='MDOT FTA Detail'!$J$3)*(Projects!$C$5:$C$2393='MDOT FTA Detail'!$C$4)*(Projects!$L$5:$L$2393='MDOT FTA Detail'!$A41)*(Projects!$J$5:$J$2393<>'MDOT FTA Detail'!$A$171)*(Projects!$Q$5:$Q$2393)) -> 0 | M41: =SUMPRODUCT((Projects!$A$5:$A$2393='MDOT FTA Detail'!$M$3)*(Projects!$C$5:$C$2393='MDOT FTA Detail'!$C$4)*(Projects!$L$5:$L$2393='MDOT FTA Detail'!$A41)*(Projects!$J$5:$J$2393<>'MDOT FTA Detail'!$A$171)*(Projects!$K$5:$K$2393)) -> 0 | N41: 0 | O41: =SUMPRODUCT((Projects!$A$5:$A$2393='MDOT FTA Detail'!$M$3)*(Projects!$C$5:$C$2393='MDOT FTA Detail'!$C$4)*(Projects!$L$5:$L$2393='MDOT FTA Detail'!$A41)*(Projects!$J$5:$J$2393<>'MDOT FTA Detail'!$A$171)*(Projects!$Q$5:$Q$2393)) -> 0
A42: FLH | B42: Federal Land Highways - Public Lands | C42: MDOT FA | D42: =SUMPRODUCT((Projects!$A$5:$A$2393='MDOT FTA Detail'!$D$3)*(Projects!$C$5:$C$2393='MDOT FTA Detail'!$C$4)*(Projects!$L$5:$L$2393='MDOT FTA Detail'!$A42)*(Projects!$J$5:$J$2393<>'MDOT FTA Detail'!$A$171)*(Projects!$K$5:K$2393)) -> 0 | E42: 0 | F42: =SUMPRODUCT((Projects!$A$5:$A$2393='MDOT FTA Detail'!$D$3)*(Projects!$C$5:$C$2393='MDOT FTA Detail'!$C$4)*(Projects!$L$5:$L$2393='MDOT FTA Detail'!$A42)*(Projects!$J$5:$J$2393<>'MDOT FTA Detail'!$A$171)*(Projects!$Q$5:Q$2393)) -> 0 | G42: =SUMPRODUCT((Projects!$A$5:$A$2393='MDOT FTA Detail'!$G$3)*(Projects!$C$5:$C$2393='MDOT FTA Detail'!$C$4)*(Projects!$L$5:$L$2393='MDOT FTA Detail'!$A42)*(Projects!$J$5:$J$2393<>'MDOT FTA Detail'!$A$171)*(Projects!$K$5:K$2393)) -> 0 | H42: 0 | I42: =SUMPRODUCT((Projects!$A$5:$A$2393='MDOT FTA Detail'!$G$3)*(Projects!$C$5:$C$2393='MDOT FTA Detail'!$C$4)*(Projects!$L$5:$L$2393='MDOT FTA Detail'!$A42)*(Projects!$J$5:$J$2393<>'MDOT FTA Detail'!$A$171)*(Projects!$Q$5:Q$2393)) -> 0 | J42: =SUMPRODUCT((Projects!$A$5:$A$2393='MDOT FTA Detail'!$J$3)*(Projects!$C$5:$C$2393='MDOT FTA Detail'!$C$4)*(Projects!$L$5:$L$2393='MDOT FTA Detail'!$A42)*(Projects!$J$5:$J$2393<>'MDOT FTA Detail'!$A$171)*(Projects!$K$5:$K$2393)) -> 0 | K42: 0 | L42: =SUMPRODUCT((Projects!$A$5:$A$2393='MDOT FTA Detail'!$J$3)*(Projects!$C$5:$C$2393='MDOT FTA Detail'!$C$4)*(Projects!$L$5:$L$2393='MDOT FTA Detail'!$A42)*(Projects!$J$5:$J$2393<>'MDOT FTA Detail'!$A$171)*(Projects!$Q$5:$Q$2393)) -> 0 | M42: =SUMPRODUCT((Projects!$A$5:$A$2393='MDOT FTA Detail'!$M$3)*(Projects!$C$5:$C$2393='MDOT FTA Detail'!$C$4)*(Projects!$L$5:$L$2393='MDOT FTA Detail'!$A42)*(Projects!$J$5:$J$2393<>'MDOT FTA Detail'!$A$171)*(Projects!$K$5:$K$2393)) -> 0 | N42: 0 | O42: =SUMPRODUCT((Projects!$A$5:$A$2393='MDOT FTA Detail'!$M$3)*(Projects!$C$5:$C$2393='MDOT FTA Detail'!$C$4)*(Projects!$L$5:$L$2393='MDOT FTA Detail'!$A42)*(Projects!$J$5:$J$2393<>'MDOT FTA Detail'!$A$171)*(Projects!$Q$5:$Q$2393)) -> 0
A43: HBOA | B43: Highway Bridge Obligation Authority | C43: MDOT FA | D43: =SUMPRODUCT((Projects!$A$5:$A$2393='MDOT FTA Detail'!$D$3)*(Projects!$C$5:$C$2393='MDOT FTA Detail'!$C$4)*(Projects!$L$5:$L$2393='MDOT FTA Detail'!$A43)*(Projects!$J$5:$J$2393<>'MDOT FTA Detail'!$A$171)*(Projects!$K$5:K$2393)) -> 0 | E43: 0 | F43: =SUMPRODUCT((Projects!$A$5:$A$2393='MDOT FTA Detail'!$D$3)*(Projects!$C$5:$C$2393='MDOT FTA Detail'!$C$4)*(Projects!$L$5:$L$2393='MDOT FTA Detail'!$A43)*(Projects!$J$5:$J$2393<>'MDOT FTA Detail'!$A$171)*(Projects!$Q$5:Q$2393)) -> 0 | G43: =SUMPRODUCT((Projects!$A$5:$A$2393='MDOT FTA Detail'!$G$3)*(Projects!$C$5:$C$2393='MDOT FTA Detail'!$C$4)*(Projects!$L$5:$L$2393='MDOT FTA Detail'!$A43)*(Projects!$J$5:$J$2393<>'MDOT FTA Detail'!$A$171)*(Projects!$K$5:K$2393)) -> 0 | H43: 0 | I43: =SUMPRODUCT((Projects!$A$5:$A$2393='MDOT FTA Detail'!$G$3)*(Projects!$C$5:$C$2393='MDOT FTA Detail'!$C$4)*(Projects!$L$5:$L$2393='MDOT FTA Detail'!$A43)*(Projects!$J$5:$J$2393<>'MDOT FTA Detail'!$A$171)*(Projects!$Q$5:Q$2393)) -> 0 | J43: =SUMPRODUCT((Projects!$A$5:$A$2393='MDOT FTA Detail'!$J$3)*(Projects!$C$5:$C$2393='MDOT FTA Detail'!$C$4)*(Projects!$L$5:$L$2393='MDOT FTA Detail'!$A43)*(Projects!$J$5:$J$2393<>'MDOT FTA Detail'!$A$171)*(Projects!$K$5:$K$2393)) -> 0 | K43: 0 | L43: =SUMPRODUCT((Projects!$A$5:$A$2393='MDOT FTA Detail'!$J$3)*(Projects!$C$5:$C$2393='MDOT FTA Detail'!$C$4)*(Projects!$L$5:$L$2393='MDOT FTA Detail'!$A43)*(Projects!$J$5:$J$2393<>'MDOT FTA Detail'!$A$171)*(Projects!$Q$5:$Q$2393)) -> 0 | M43: =SUMPRODUCT((Projects!$A$5:$A$2393='MDOT FTA Detail'!$M$3)*(Projects!$C$5:$C$2393='MDOT FTA Detail'!$C$4)*(Projects!$L$5:$L$2393='MDOT FTA Detail'!$A43)*(Projects!$J$5:$J$2393<>'MDOT FTA Detail'!$A$171)*(Projects!$K$5:$K$2393)) -> 0 | N43: 0 | O43: =SUMPRODUCT((Projects!$A$5:$A$2393='MDOT FTA Detail'!$M$3)*(Projects!$C$5:$C$2393='MDOT FTA Detail'!$C$4)*(Projects!$L$5:$L$2393='MDOT FTA Detail'!$A43)*(Projects!$J$5:$J$2393<>'MDOT FTA Detail'!$A$171)*(Projects!$Q$5:$Q$2393)) -> 0
A44: HPP | B44: High Priority Projects (Demo) | C44: MDOT FA | D44: =SUMPRODUCT((Projects!$A$5:$A$2393='MDOT FTA Detail'!$D$3)*(Projects!$C$5:$C$2393='MDOT FTA Detail'!$C$4)*(Projects!$L$5:$L$2393='MDOT FTA Detail'!$A44)*(Projects!$J$5:$J$2393<>'MDOT FTA Detail'!$A$171)*(Projects!$K$5:K$2393)) -> 0 | E44: 0 | F44: =SUMPRODUCT((Projects!$A$5:$A$2393='MDOT FTA Detail'!$D$3)*(Projects!$C$5:$C$2393='MDOT FTA Detail'!$C$4)*(Projects!$L$5:$L$2393='MDOT FTA Detail'!$A44)*(Projects!$J$5:$J$2393<>'MDOT FTA Detail'!$A$171)*(Projects!$Q$5:Q$2393)) -> 0 | G44: =SUMPRODUCT((Projects!$A$5:$A$2393='MDOT FTA Detail'!$G$3)*(Projects!$C$5:$C$2393='MDOT FTA Detail'!$C$4)*(Projects!$L$5:$L$2393='MDOT FTA Detail'!$A44)*(Projects!$J$5:$J$2393<>'MDOT FTA Detail'!$A$171)*(Projects!$K$5:K$2393)) -> 0 | H44: 0 | I44: =SUMPRODUCT((Projects!$A$5:$A$2393='MDOT FTA Detail'!$G$3)*(Projects!$C$5:$C$2393='MDOT FTA Detail'!$C$4)*(Projects!$L$5:$L$2393='MDOT FTA Detail'!$A44)*(Projects!$J$5:$J$2393<>'MDOT FTA Detail'!$A$171)*(Projects!$Q$5:Q$2393)) -> 0 | J44: =SUMPRODUCT((Projects!$A$5:$A$2393='MDOT FTA Detail'!$J$3)*(Projects!$C$5:$C$2393='MDOT FTA Detail'!$C$4)*(Projects!$L$5:$L$2393='MDOT FTA Detail'!$A44)*(Projects!$J$5:$J$2393<>'MDOT FTA Detail'!$A$171)*(Projects!$K$5:$K$2393)) -> 0 | K44: 0 | L44: =SUMPRODUCT((Projects!$A$5:$A$2393='MDOT FTA Detail'!$J$3)*(Projects!$C$5:$C$2393='MDOT FTA Detail'!$C$4)*(Projects!$L$5:$L$2393='MDOT FTA Detail'!$A44)*(Projects!$J$5:$J$2393<>'MDOT FTA Detail'!$A$171)*(Projects!$Q$5:$Q$2393)) -> 0 | M44: =SUMPRODUCT((Projects!$A$5:$A$2393='MDOT FTA Detail'!$M$3)*(Projects!$C$5:$C$2393='MDOT FTA Detail'!$C$4)*(Projects!$L$5:$L$2393='MDOT FTA Detail'!$A44)*(Projects!$J$5:$J$2393<>'MDOT FTA Detail'!$A$171)*(Projects!$K$5:$K$2393)) -> 0 | N44: 0 | O44: =SUMPRODUCT((Projects!$A$5:$A$2393='MDOT FTA Detail'!$M$3)*(Projects!$C$5:$C$2393='MDOT FTA Detail'!$C$4)*(Projects!$L$5:$L$2393='MDOT FTA Detail'!$A44)*(Projects!$J$5:$J$2393<>'MDOT FTA Detail'!$A$171)*(Projects!$Q$5:$Q$2393)) -> 0
A45: HPSL | B45: High Priority Projects - SAFETEA-LU | C45: MDOT FA | D45: =SUMPRODUCT((Projects!$A$5:$A$2393='MDOT FTA Detail'!$D$3)*(Projects!$C$5:$C$2393='MDOT FTA Detail'!$C$4)*(Projects!$L$5:$L$2393='MDOT FTA Detail'!$A45)*(Projects!$J$5:$J$2393<>'MDOT FTA Detail'!$A$171)*(Projects!$K$5:K$2393)) -> 0 | E45: 0 | F45: =SUMPRODUCT((Projects!$A$5:$A$2393='MDOT FTA Detail'!$D$3)*(Projects!$C$5:$C$2393='MDOT FTA Detail'!$C$4)*(Projects!$L$5:$L$2393='MDOT FTA Detail'!$A45)*(Projects!$J$5:$J$2393<>'MDOT FTA Detail'!$A$171)*(Projects!$Q$5:Q$2393)) -> 0 | G45: =SUMPRODUCT((Projects!$A$5:$A$2393='MDOT FTA Detail'!$G$3)*(Projects!$C$5:$C$2393='MDOT FTA Detail'!$C$4)*(Projects!$L$5:$L$2393='MDOT FTA Detail'!$A45)*(Projects!$J$5:$J$2393<>'MDOT FTA Detail'!$A$171)*(Projects!$K$5:K$2393)) -> 0 | H45: 0 | I45: =SUMPRODUCT((Projects!$A$5:$A$2393='MDOT FTA Detail'!$G$3)*(Projects!$C$5:$C$2393='MDOT FTA Detail'!$C$4)*(Projects!$L$5:$L$2393='MDOT FTA Detail'!$A45)*(Projects!$J$5:$J$2393<>'MDOT FTA Detail'!$A$171)*(Projects!$Q$5:Q$2393)) -> 0 | J45: =SUMPRODUCT((Projects!$A$5:$A$2393='MDOT FTA Detail'!$J$3)*(Projects!$C$5:$C$2393='MDOT FTA Detail'!$C$4)*(Projects!$L$5:$L$2393='MDOT FTA Detail'!$A45)*(Projects!$J$5:$J$2393<>'MDOT FTA Detail'!$A$171)*(Projects!$K$5:$K$2393)) -> 0 | K45: 0 | L45: =SUMPRODUCT((Projects!$A$5:$A$2393='MDOT FTA Detail'!$J$3)*(Projects!$C$5:$C$2393='MDOT FTA Detail'!$C$4)*(Projects!$L$5:$L$2393='MDOT FTA Detail'!$A45)*(Projects!$J$5:$J$2393<>'MDOT FTA Detail'!$A$171)*(Projects!$Q$5:$Q$2393)) -> 0 | M45: =SUMPRODUCT((Projects!$A$5:$A$2393='MDOT FTA Detail'!$M$3)*(Projects!$C$5:$C$2393='MDOT FTA Detail'!$C$4)*(Projects!$L$5:$L$2393='MDOT FTA Detail'!$A45)*(Projects!$J$5:$J$2393<>'MDOT FTA Detail'!$A$171)*(Projects!$K$5:$K$2393)) -> 0 | N45: 0 | O45: =SUMPRODUCT((Projects!$A$5:$A$2393='MDOT FTA Detail'!$M$3)*(Projects!$C$5:$C$2393='MDOT FTA Detail'!$C$4)*(Projects!$L$5:$L$2393='MDOT FTA Detail'!$A45)*(Projects!$J$5:$J$2393<>'MDOT FTA Detail'!$A$171)*(Projects!$Q$5:$Q$2393)) -> 0
A46: HRRR | B46: High Risk Rural Roads - SAFETEA-LU | C46: MDOT FA | D46: =SUMPRODUCT((Projects!$A$5:$A$2393='MDOT FTA Detail'!$D$3)*(Projects!$C$5:$C$2393='MDOT FTA Detail'!$C$4)*(Projects!$L$5:$L$2393='MDOT FTA Detail'!$A46)*(Projects!$J$5:$J$2393<>'MDOT FTA Detail'!$A$171)*(Projects!$K$5:K$2393)) -> 0 | E46: 0 | F46: =SUMPRODUCT((Projects!$A$5:$A$2393='MDOT FTA Detail'!$D$3)*(Projects!$C$5:$C$2393='MDOT FTA Detail'!$C$4)*(Projects!$L$5:$L$2393='MDOT FTA Detail'!$A46)*(Projects!$J$5:$J$2393<>'MDOT FTA Detail'!$A$171)*(Projects!$Q$5:Q$2393)) -> 0 | G46: =SUMPRODUCT((Projects!$A$5:$A$2393='MDOT FTA Detail'!$G$3)*(Projects!$C$5:$C$2393='MDOT FTA Detail'!$C$4)*(Projects!$L$5:$L$2393='MDOT FTA Detail'!$A46)*(Projects!$J$5:$J$2393<>'MDOT FTA Detail'!$A$171)*(Projects!$K$5:K$2393)) -> 0 | H46: 0 | I46: =SUMPRODUCT((Projects!$A$5:$A$2393='MDOT FTA Detail'!$G$3)*(Projects!$C$5:$C$2393='MDOT FTA Detail'!$C$4)*(Projects!$L$5:$L$2393='MDOT FTA Detail'!$A46)*(Projects!$J$5:$J$2393<>'MDOT FTA Detail'!$A$171)*(Projects!$Q$5:Q$2393)) -> 0 | J46: =SUMPRODUCT((Projects!$A$5:$A$2393='MDOT FTA Detail'!$J$3)*(Projects!$C$5:$C$2393='MDOT FTA Detail'!$C$4)*(Projects!$L$5:$L$2393='MDOT FTA Detail'!$A46)*(Projects!$J$5:$J$2393<>'MDOT FTA Detail'!$A$171)*(Projects!$K$5:$K$2393)) -> 0 | K46: 0 | L46: =SUMPRODUCT((Projects!$A$5:$A$2393='MDOT FTA Detail'!$J$3)*(Projects!$C$5:$C$2393='MDOT FTA Detail'!$C$4)*(Projects!$L$5:$L$2393='MDOT FTA Detail'!$A46)*(Projects!$J$5:$J$2393<>'MDOT FTA Detail'!$A$171)*(Projects!$Q$5:$Q$2393)) -> 0 | M46: =SUMPRODUCT((Projects!$A$5:$A$2393='MDOT FTA Detail'!$M$3)*(Projects!$C$5:$C$2393='MDOT FTA Detail'!$C$4)*(Projects!$L$5:$L$2393='MDOT FTA Detail'!$A46)*(Projects!$J$5:$J$2393<>'MDOT FTA Detail'!$A$171)*(Projects!$K$5:$K$2393)) -> 0 | N46: 0 | O46: =SUMPRODUCT((Projects!$A$5:$A$2393='MDOT FTA Detail'!$M$3)*(Projects!$C$5:$C$2393='MDOT FTA Detail'!$C$4)*(Projects!$L$5:$L$2393='MDOT FTA Detail'!$A46)*(Projects!$J$5:$J$2393<>'MDOT FTA Detail'!$A$171)*(Projects!$Q$5:$Q$2393)) -> 0
A47: HSG | B47: High Speed Raix Crossings - 100% Federal | C47: MDOT FA | D47: =SUMPRODUCT((Projects!$A$5:$A$2393='MDOT FTA Detail'!$D$3)*(Projects!$C$5:$C$2393='MDOT FTA Detail'!$C$4)*(Projects!$L$5:$L$2393='MDOT FTA Detail'!$A47)*(Projects!$J$5:$J$2393<>'MDOT FTA Detail'!$A$171)*(Projects!$K$5:K$2393)) -> 0 | E47: 0 | F47: =SUMPRODUCT((Projects!$A$5:$A$2393='MDOT FTA Detail'!$D$3)*(Projects!$C$5:$C$2393='MDOT FTA Detail'!$C$4)*(Projects!$L$5:$L$2393='MDOT FTA Detail'!$A47)*(Projects!$J$5:$J$2393<>'MDOT FTA Detail'!$A$171)*(Projects!$Q$5:Q$2393)) -> 0 | G47: =SUMPRODUCT((Projects!$A$5:$A$2393='MDOT FTA Detail'!$G$3)*(Projects!$C$5:$C$2393='MDOT FTA Detail'!$C$4)*(Projects!$L$5:$L$2393='MDOT FTA Detail'!$A47)*(Projects!$J$5:$J$2393<>'MDOT FTA Detail'!$A$171)*(Projects!$K$5:K$2393)) -> 0 | H47: 0 | I47: =SUMPRODUCT((Projects!$A$5:$A$2393='MDOT FTA Detail'!$G$3)*(Projects!$C$5:$C$2393='MDOT FTA Detail'!$C$4)*(Projects!$L$5:$L$2393='MDOT FTA Detail'!$A47)*(Projects!$J$5:$J$2393<>'MDOT FTA Detail'!$A$171)*(Projects!$Q$5:Q$2393)) -> 0 | J47: =SUMPRODUCT((Projects!$A$5:$A$2393='MDOT FTA Detail'!$J$3)*(Projects!$C$5:$C$2393='MDOT FTA Detail'!$C$4)*(Projects!$L$5:$L$2393='MDOT FTA Detail'!$A47)*(Projects!$J$5:$J$2393<>'MDOT FTA Detail'!$A$171)*(Projects!$K$5:$K$2393)) -> 0 | K47: 0 | L47: =SUMPRODUCT((Projects!$A$5:$A$2393='MDOT FTA Detail'!$J$3)*(Projects!$C$5:$C$2393='MDOT FTA Detail'!$C$4)*(Projects!$L$5:$L$2393='MDOT FTA Detail'!$A47)*(Projects!$J$5:$J$2393<>'MDOT FTA Detail'!$A$171)*(Projects!$Q$5:$Q$2393)) -> 0 | M47: =SUMPRODUCT((Projects!$A$5:$A$2393='MDOT FTA Detail'!$M$3)*(Projects!$C$5:$C$2393='MDOT FTA Detail'!$C$4)*(Projects!$L$5:$L$2393='MDOT FTA Detail'!$A47)*(Projects!$J$5:$J$2393<>'MDOT FTA Detail'!$A$171)*(Projects!$K$5:$K$2393)) -> 0 | N47: 0 | O47: =SUMPRODUCT((Projects!$A$5:$A$2393='MDOT FTA Detail'!$M$3)*(Projects!$C$5:$C$2393='MDOT FTA Detail'!$C$4)*(Projects!$L$5:$L$2393='MDOT FTA Detail'!$A47)*(Projects!$J$5:$J$2393<>'MDOT FTA Detail'!$A$171)*(Projects!$Q$5:$Q$2393)) -> 0
A48: HSIP | B48: Highway Safety Improvement Program - SAFETEA-LU | C48: MDOT FA | D48: =SUMPRODUCT((Projects!$A$5:$A$2393='MDOT FTA Detail'!$D$3)*(Projects!$C$5:$C$2393='MDOT FTA Detail'!$C$4)*(Projects!$L$5:$L$2393='MDOT FTA Detail'!$A48)*(Projects!$J$5:$J$2393<>'MDOT FTA Detail'!$A$171)*(Projects!$K$5:K$2393)) -> 0 | E48: 0 | F48: =SUMPRODUCT((Projects!$A$5:$A$2393='MDOT FTA Detail'!$D$3)*(Projects!$C$5:$C$2393='MDOT FTA Detail'!$C$4)*(Projects!$L$5:$L$2393='MDOT FTA Detail'!$A48)*(Projects!$J$5:$J$2393<>'MDOT FTA Detail'!$A$171)*(Projects!$Q$5:Q$2393)) -> 0 | G48: =SUMPRODUCT((Projects!$A$5:$A$2393='MDOT FTA Detail'!$G$3)*(Projects!$C$5:$C$2393='MDOT FTA Detail'!$C$4)*(Projects!$L$5:$L$2393='MDOT FTA Detail'!$A48)*(Projects!$J$5:$J$2393<>'MDOT FTA Detail'!$A$171)*(Projects!$K$5:K$2393)) -> 67500 | H48: 7500 | I48: =SUMPRODUCT((Projects!$A$5:$A$2393='MDOT FTA Detail'!$G$3)*(Projects!$C$5:$C$2393='MDOT FTA Detail'!$C$4)*(Projects!$L$5:$L$2393='MDOT FTA Detail'!$A48)*(Projects!$J$5:$J$2393<>'MDOT FTA Detail'!$A$171)*(Projects!$Q$5:Q$2393)) -> 75000 | J48: =SUMPRODUCT((Projects!$A$5:$A$2393='MDOT FTA Detail'!$J$3)*(Projects!$C$5:$C$2393='MDOT FTA Detail'!$C$4)*(Projects!$L$5:$L$2393='MDOT FTA Detail'!$A48)*(Projects!$J$5:$J$2393<>'MDOT FTA Detail'!$A$171)*(Projects!$K$5:$K$2393)) -> 0 | K48: 0 | L48: =SUMPRODUCT((Projects!$A$5:$A$2393='MDOT FTA Detail'!$J$3)*(Projects!$C$5:$C$2393='MDOT FTA Detail'!$C$4)*(Projects!$L$5:$L$2393='MDOT FTA Detail'!$A48)*(Projects!$J$5:$J$2393<>'MDOT FTA Detail'!$A$171)*(Projects!$Q$5:$Q$2393)) -> 0 | M48: =SUMPRODUCT((Projects!$A$5:$A$2393='MDOT FTA Detail'!$M$3)*(Projects!$C$5:$C$2393='MDOT FTA Detail'!$C$4)*(Projects!$L$5:$L$2393='MDOT FTA Detail'!$A48)*(Projects!$J$5:$J$2393<>'MDOT FTA Detail'!$A$171)*(Projects!$K$5:$K$2393)) -> 292500 | N48: 32500 | O48: =SUMPRODUCT((Projects!$A$5:$A$2393='MDOT FTA Detail'!$M$3)*(Projects!$C$5:$C$2393='MDOT FTA Detail'!$C$4)*(Projects!$L$5:$L$2393='MDOT FTA Detail'!$A48)*(Projects!$J$5:$J$2393<>'MDOT FTA Detail'!$A$171)*(Projects!$Q$5:$Q$2393)) -> 325000
A49: IM | B49: Interstate Maintenance - No Added Lanes | C49: MDOT FA | D49: =SUMPRODUCT((Projects!$A$5:$A$2393='MDOT FTA Detail'!$D$3)*(Projects!$C$5:$C$2393='MDOT FTA Detail'!$C$4)*(Projects!$L$5:$L$2393='MDOT FTA Detail'!$A49)*(Projects!$J$5:$J$2393<>'MDOT FTA Detail'!$A$171)*(Projects!$K$5:K$2393)) -> 0 | E49: 0 | F49: =SUMPRODUCT((Projects!$A$5:$A$2393='MDOT FTA Detail'!$D$3)*(Projects!$C$5:$C$2393='MDOT FTA Detail'!$C$4)*(Projects!$L$5:$L$2393='MDOT FTA Detail'!$A49)*(Projects!$J$5:$J$2393<>'MDOT FTA Detail'!$A$171)*(Projects!$Q$5:Q$2393)) -> 0 | G49: =SUMPRODUCT((Projects!$A$5:$A$2393='MDOT FTA Detail'!$G$3)*(Projects!$C$5:$C$2393='MDOT FTA Detail'!$C$4)*(Projects!$L$5:$L$2393='MDOT FTA Detail'!$A49)*(Projects!$J$5:$J$2393<>'MDOT FTA Detail'!$A$171)*(Projects!$K$5:K$2393)) -> 0 | H49: 0 | I49: =SUMPRODUCT((Projects!$A$5:$A$2393='MDOT FTA Detail'!$G$3)*(Projects!$C$5:$C$2393='MDOT FTA Detail'!$C$4)*(Projects!$L$5:$L$2393='MDOT FTA Detail'!$A49)*(Projects!$J$5:$J$2393<>'MDOT FTA Detail'!$A$171)*(Projects!$Q$5:Q$2393)) -> 0 | J49: =SUMPRODUCT((Projects!$A$5:$A$2393='MDOT FTA Detail'!$J$3)*(Projects!$C$5:$C$2393='MDOT FTA Detail'!$C$4)*(Projects!$L$5:$L$2393='MDOT FTA Detail'!$A49)*(Projects!$J$5:$J$2393<>'MDOT FTA Detail'!$A$171)*(Projects!$K$5:$K$2393)) -> 0 | K49: 0 | L49: =SUMPRODUCT((Projects!$A$5:$A$2393='MDOT FTA Detail'!$J$3)*(Projects!$C$5:$C$2393='MDOT FTA Detail'!$C$4)*(Projects!$L$5:$L$2393='MDOT FTA Detail'!$A49)*(Projects!$J$5:$J$2393<>'MDOT FTA Detail'!$A$171)*(Projects!$Q$5:$Q$2393)) -> 0 | M49: =SUMPRODUCT((Projects!$A$5:$A$2393='MDOT FTA Detail'!$M$3)*(Projects!$C$5:$C$2393='MDOT FTA Detail'!$C$4)*(Projects!$L$5:$L$2393='MDOT FTA Detail'!$A49)*(Projects!$J$5:$J$2393<>'MDOT FTA Detail'!$A$171)*(Projects!$K$5:$K$2393)) -> 0 | N49: 0 | O49: =SUMPRODUCT((Projects!$A$5:$A$2393='MDOT FTA Detail'!$M$3)*(Projects!$C$5:$C$2393='MDOT FTA Detail'!$C$4)*(Projects!$L$5:$L$2393='MDOT FTA Detail'!$A49)*(Projects!$J$5:$J$2393<>'MDOT FTA Detail'!$A$171)*(Projects!$Q$5:$Q$2393)) -> 0
A50: IMD | B50: Interstate Maintenance Discretionary | C50: MDOT FA | D50: =SUMPRODUCT((Projects!$A$5:$A$2393='MDOT FTA Detail'!$D$3)*(Projects!$C$5:$C$2393='MDOT FTA Detail'!$C$4)*(Projects!$L$5:$L$2393='MDOT FTA Detail'!$A50)*(Projects!$J$5:$J$2393<>'MDOT FTA Detail'!$A$171)*(Projects!$K$5:K$2393)) -> 0 | E50: 0 | F50: =SUMPRODUCT((Projects!$A$5:$A$2393='MDOT FTA Detail'!$D$3)*(Projects!$C$5:$C$2393='MDOT FTA Detail'!$C$4)*(Projects!$L$5:$L$2393='MDOT FTA Detail'!$A50)*(Projects!$J$5:$J$2393<>'MDOT FTA Detail'!$A$171)*(Projects!$Q$5:Q$2393)) -> 0 | G50: =SUMPRODUCT((Projects!$A$5:$A$2393='MDOT FTA Detail'!$G$3)*(Projects!$C$5:$C$2393='MDOT FTA Detail'!$C$4)*(Projects!$L$5:$L$2393='MDOT FTA Detail'!$A50)*(Projects!$J$5:$J$2393<>'MDOT FTA Detail'!$A$171)*(Projects!$K$5:K$2393)) -> 0 | H50: 0 | I50: =SUMPRODUCT((Projects!$A$5:$A$2393='MDOT FTA Detail'!$G$3)*(Projects!$C$5:$C$2393='MDOT FTA Detail'!$C$4)*(Projects!$L$5:$L$2393='MDOT FTA Detail'!$A50)*(Projects!$J$5:$J$2393<>'MDOT FTA Detail'!$A$171)*(Projects!$Q$5:Q$2393)) -> 0 | J50: =SUMPRODUCT((Projects!$A$5:$A$2393='MDOT FTA Detail'!$J$3)*(Projects!$C$5:$C$2393='MDOT FTA Detail'!$C$4)*(Projects!$L$5:$L$2393='MDOT FTA Detail'!$A50)*(Projects!$J$5:$J$2393<>'MDOT FTA Detail'!$A$171)*(Projects!$K$5:$K$2393)) -> 0 | K50: 0 | L50: =SUMPRODUCT((Projects!$A$5:$A$2393='MDOT FTA Detail'!$J$3)*(Projects!$C$5:$C$2393='MDOT FTA Detail'!$C$4)*(Projects!$L$5:$L$2393='MDOT FTA Detail'!$A50)*(Projects!$J$5:$J$2393<>'MDOT FTA Detail'!$A$171)*(Projects!$Q$5:$Q$2393)) -> 0 | M50: =SUMPRODUCT((Projects!$A$5:$A$2393='MDOT FTA Detail'!$M$3)*(Projects!$C$5:$C$2393='MDOT FTA Detail'!$C$4)*(Projects!$L$5:$L$2393='MDOT FTA Detail'!$A50)*(Projects!$J$5:$J$2393<>'MDOT FTA Detail'!$A$171)*(Projects!$K$5:$K$2393)) -> 0 | N50: 0 | O50: =SUMPRODUCT((Projects!$A$5:$A$2393='MDOT FTA Detail'!$M$3)*(Projects!$C$5:$C$2393='MDOT FTA Detail'!$C$4)*(Projects!$L$5:$L$2393='MDOT FTA Detail'!$A50)*(Projects!$J$5:$J$2393<>'MDOT FTA Detail'!$A$171)*(Projects!$Q$5:$Q$2393)) -> 0
A51: IMG | B51: Interstate Maintenance - Safety - 100% Federal | C51: MDOT FA | D51: =SUMPRODUCT((Projects!$A$5:$A$2393='MDOT FTA Detail'!$D$3)*(Projects!$C$5:$C$2393='MDOT FTA Detail'!$C$4)*(Projects!$L$5:$L$2393='MDOT FTA Detail'!$A51)*(Projects!$J$5:$J$2393<>'MDOT FTA Detail'!$A$171)*(Projects!$K$5:K$2393)) -> 0 | E51: 0 | F51: =SUMPRODUCT((Projects!$A$5:$A$2393='MDOT FTA Detail'!$D$3)*(Projects!$C$5:$C$2393='MDOT FTA Detail'!$C$4)*(Projects!$L$5:$L$2393='MDOT FTA Detail'!$A51)*(Projects!$J$5:$J$2393<>'MDOT FTA Detail'!$A$171)*(Projects!$Q$5:Q$2393)) -> 0 | G51: =SUMPRODUCT((Projects!$A$5:$A$2393='MDOT FTA Detail'!$G$3)*(Projects!$C$5:$C$2393='MDOT FTA Detail'!$C$4)*(Projects!$L$5:$L$2393='MDOT FTA Detail'!$A51)*(Projects!$J$5:$J$2393<>'MDOT FTA Detail'!$A$171)*(Projects!$K$5:K$2393)) -> 0 | H51: 0 | I51: =SUMPRODUCT((Projects!$A$5:$A$2393='MDOT FTA Detail'!$G$3)*(Projects!$C$5:$C$2393='MDOT FTA Detail'!$C$4)*(Projects!$L$5:$L$2393='MDOT FTA Detail'!$A51)*(Projects!$J$5:$J$2393<>'MDOT FTA Detail'!$A$171)*(Projects!$Q$5:Q$2393)) -> 0 | J51: =SUMPRODUCT((Projects!$A$5:$A$2393='MDOT FTA Detail'!$J$3)*(Projects!$C$5:$C$2393='MDOT FTA Detail'!$C$4)*(Projects!$L$5:$L$2393='MDOT FTA Detail'!$A51)*(Projects!$J$5:$J$2393<>'MDOT FTA Detail'!$A$171)*(Projects!$K$5:$K$2393)) -> 0 | K51: 0 | L51: =SUMPRODUCT((Projects!$A$5:$A$2393='MDOT FTA Detail'!$J$3)*(Projects!$C$5:$C$2393='MDOT FTA Detail'!$C$4)*(Projects!$L$5:$L$2393='MDOT FTA Detail'!$A51)*(Projects!$J$5:$J$2393<>'MDOT FTA Detail'!$A$171)*(Projects!$Q$5:$Q$2393)) -> 0 | M51: =SUMPRODUCT((Projects!$A$5:$A$2393='MDOT FTA Detail'!$M$3)*(Projects!$C$5:$C$2393='MDOT FTA Detail'!$C$4)*(Projects!$L$5:$L$2393='MDOT FTA Detail'!$A51)*(Projects!$J$5:$J$2393<>'MDOT FTA Detail'!$A$171)*(Projects!$K$5:$K$2393)) -> 0 | N51: 0 | O51: =SUMPRODUCT((Projects!$A$5:$A$2393='MDOT FTA Detail'!$M$3)*(Projects!$C$5:$C$2393='MDOT FTA Detail'!$C$4)*(Projects!$L$5:$L$2393='MDOT FTA Detail'!$A51)*(Projects!$J$5:$J$2393<>'MDOT FTA Detail'!$A$171)*(Projects!$Q$5:$Q$2393)) -> 0
A52: ITS | B52: Intelligent Transportation Systems | C52: MDOT FA | D52: =SUMPRODUCT((Projects!$A$5:$A$2393='MDOT FTA Detail'!$D$3)*(Projects!$C$5:$C$2393='MDOT FTA Detail'!$C$4)*(Projects!$L$5:$L$2393='MDOT FTA Detail'!$A52)*(Projects!$J$5:$J$2393<>'MDOT FTA Detail'!$A$171)*(Projects!$K$5:K$2393)) -> 0 | E52: 0 | F52: =SUMPRODUCT((Projects!$A$5:$A$2393='MDOT FTA Detail'!$D$3)*(Projects!$C$5:$C$2393='MDOT FTA Detail'!$C$4)*(Projects!$L$5:$L$2393='MDOT FTA Detail'!$A52)*(Projects!$J$5:$J$2393<>'MDOT FTA Detail'!$A$171)*(Projects!$Q$5:Q$2393)) -> 0 | G52: =SUMPRODUCT((Projects!$A$5:$A$2393='MDOT FTA Detail'!$G$3)*(Projects!$C$5:$C$2393='MDOT FTA Detail'!$C$4)*(Projects!$L$5:$L$2393='MDOT FTA Detail'!$A52)*(Projects!$J$5:$J$2393<>'MDOT FTA Detail'!$A$171)*(Projects!$K$5:K$2393)) -> 0 | H52: 0 | I52: =SUMPRODUCT((Projects!$A$5:$A$2393='MDOT FTA Detail'!$G$3)*(Projects!$C$5:$C$2393='MDOT FTA Detail'!$C$4)*(Projects!$L$5:$L$2393='MDOT FTA Detail'!$A52)*(Projects!$J$5:$J$2393<>'MDOT FTA Detail'!$A$171)*(Projects!$Q$5:Q$2393)) -> 0 | J52: =SUMPRODUCT((Projects!$A$5:$A$2393='MDOT FTA Detail'!$J$3)*(Projects!$C$5:$C$2393='MDOT FTA Detail'!$C$4)*(Projects!$L$5:$L$2393='MDOT FTA Detail'!$A52)*(Projects!$J$5:$J$2393<>'MDOT FTA Detail'!$A$171)*(Projects!$K$5:$K$2393)) -> 0 | K52: 0 | L52: =SUMPRODUCT((Projects!$A$5:$A$2393='MDOT FTA Detail'!$J$3)*(Projects!$C$5:$C$2393='MDOT FTA Detail'!$C$4)*(Projects!$L$5:$L$2393='MDOT FTA Detail'!$A52)*(Projects!$J$5:$J$2393<>'MDOT FTA Detail'!$A$171)*(Projects!$Q$5:$Q$2393)) -> 0 | M52: =SUMPRODUCT((Projects!$A$5:$A$2393='MDOT FTA Detail'!$M$3)*(Projects!$C$5:$C$2393='MDOT FTA Detail'!$C$4)*(Projects!$L$5:$L$2393='MDOT FTA Detail'!$A52)*(Projects!$J$5:$J$2393<>'MDOT FTA Detail'!$A$171)*(Projects!$K$5:$K$2393)) -> 0 | N52: 0 | O52: =SUMPRODUCT((Projects!$A$5:$A$2393='MDOT FTA Detail'!$M$3)*(Projects!$C$5:$C$2393='MDOT FTA Detail'!$C$4)*(Projects!$L$5:$L$2393='MDOT FTA Detail'!$A52)*(Projects!$J$5:$J$2393<>'MDOT FTA Detail'!$A$171)*(Projects!$Q$5:$Q$2393)) -> 0
A53: JST | B53: 85% Minimum Floor Surface Transportation | C53: MDOT FA | D53: =SUMPRODUCT((Projects!$A$5:$A$2393='MDOT FTA Detail'!$D$3)*(Projects!$C$5:$C$2393='MDOT FTA Detail'!$C$4)*(Projects!$L$5:$L$2393='MDOT FTA Detail'!$A53)*(Projects!$J$5:$J$2393<>'MDOT FTA Detail'!$A$171)*(Projects!$K$5:K$2393)) -> 0 | E53: 0 | F53: =SUMPRODUCT((Projects!$A$5:$A$2393='MDOT FTA Detail'!$D$3)*(Projects!$C$5:$C$2393='MDOT FTA Detail'!$C$4)*(Projects!$L$5:$L$2393='MDOT FTA Detail'!$A53)*(Projects!$J$5:$J$2393<>'MDOT FTA Detail'!$A$171)*(Projects!$Q$5:Q$2393)) -> 0 | G53: =SUMPRODUCT((Projects!$A$5:$A$2393='MDOT FTA Detail'!$G$3)*(Projects!$C$5:$C$2393='MDOT FTA Detail'!$C$4)*(Projects!$L$5:$L$2393='MDOT FTA Detail'!$A53)*(Projects!$J$5:$J$2393<>'MDOT FTA Detail'!$A$171)*(Projects!$K$5:K$2393)) -> 0 | H53: 0 | I53: =SUMPRODUCT((Projects!$A$5:$A$2393='MDOT FTA Detail'!$G$3)*(Projects!$C$5:$C$2393='MDOT FTA Detail'!$C$4)*(Projects!$L$5:$L$2393='MDOT FTA Detail'!$A53)*(Projects!$J$5:$J$2393<>'MDOT FTA Detail'!$A$171)*(Projects!$Q$5:Q$2393)) -> 0 | J53: =SUMPRODUCT((Projects!$A$5:$A$2393='MDOT FTA Detail'!$J$3)*(Projects!$C$5:$C$2393='MDOT FTA Detail'!$C$4)*(Projects!$L$5:$L$2393='MDOT FTA Detail'!$A53)*(Projects!$J$5:$J$2393<>'MDOT FTA Detail'!$A$171)*(Projects!$K$5:$K$2393)) -> 0 | K53: 0 | L53: =SUMPRODUCT((Projects!$A$5:$A$2393='MDOT FTA Detail'!$J$3)*(Projects!$C$5:$C$2393='MDOT FTA Detail'!$C$4)*(Projects!$L$5:$L$2393='MDOT FTA Detail'!$A53)*(Projects!$J$5:$J$2393<>'MDOT FTA Detail'!$A$171)*(Projects!$Q$5:$Q$2393)) -> 0 | M53: =SUMPRODUCT((Projects!$A$5:$A$2393='MDOT FTA Detail'!$M$3)*(Projects!$C$5:$C$2393='MDOT FTA Detail'!$C$4)*(Projects!$L$5:$L$2393='MDOT FTA Detail'!$A53)*(Projects!$J$5:$J$2393<>'MDOT FTA Detail'!$A$171)*(Projects!$K$5:$K$2393)) -> 0 | N53: 0 | O53: =SUMPRODUCT((Projects!$A$5:$A$2393='MDOT FTA Detail'!$M$3)*(Projects!$C$5:$C$2393='MDOT FTA Detail'!$C$4)*(Projects!$L$5:$L$2393='MDOT FTA Detail'!$A53)*(Projects!$J$5:$J$2393<>'MDOT FTA Detail'!$A$171)*(Projects!$Q$5:$Q$2393)) -> 0
A54: JSTU | B54: 85% Minimum Floor Surface Transportation (Urban Area > 2499,000) | C54: MDOT FA | D54: =SUMPRODUCT((Projects!$A$5:$A$2393='MDOT FTA Detail'!$D$3)*(Projects!$C$5:$C$2393='MDOT FTA Detail'!$C$4)*(Projects!$L$5:$L$2393='MDOT FTA Detail'!$A54)*(Projects!$J$5:$J$2393<>'MDOT FTA Detail'!$A$171)*(Projects!$K$5:K$2393)) -> 0 | E54: 0 | F54: =SUMPRODUCT((Projects!$A$5:$A$2393='MDOT FTA Detail'!$D$3)*(Projects!$C$5:$C$2393='MDOT FTA Detail'!$C$4)*(Projects!$L$5:$L$2393='MDOT FTA Detail'!$A54)*(Projects!$J$5:$J$2393<>'MDOT FTA Detail'!$A$171)*(Projects!$Q$5:Q$2393)) -> 0 | G54: =SUMPRODUCT((Projects!$A$5:$A$2393='MDOT FTA Detail'!$G$3)*(Projects!$C$5:$C$2393='MDOT FTA Detail'!$C$4)*(Projects!$L$5:$L$2393='MDOT FTA Detail'!$A54)*(Projects!$J$5:$J$2393<>'MDOT FTA Detail'!$A$171)*(Projects!$K$5:K$2393)) -> 0 | H54: 0 | I54: =SUMPRODUCT((Projects!$A$5:$A$2393='MDOT FTA Detail'!$G$3)*(Projects!$C$5:$C$2393='MDOT FTA Detail'!$C$4)*(Projects!$L$5:$L$2393='MDOT FTA Detail'!$A54)*(Projects!$J$5:$J$2393<>'MDOT FTA Detail'!$A$171)*(Projects!$Q$5:Q$2393)) -> 0 | J54: =SUMPRODUCT((Projects!$A$5:$A$2393='MDOT FTA Detail'!$J$3)*(Projects!$C$5:$C$2393='MDOT FTA Detail'!$C$4)*(Projects!$L$5:$L$2393='MDOT FTA Detail'!$A54)*(Projects!$J$5:$J$2393<>'MDOT FTA Detail'!$A$171)*(Projects!$K$5:$K$2393)) -> 0 | K54: 0 | L54: =SUMPRODUCT((Projects!$A$5:$A$2393='MDOT FTA Detail'!$J$3)*(Projects!$C$5:$C$2393='MDOT FTA Detail'!$C$4)*(Projects!$L$5:$L$2393='MDOT FTA Detail'!$A54)*(Projects!$J$5:$J$2393<>'MDOT FTA Detail'!$A$171)*(Projects!$Q$5:$Q$2393)) -> 0 | M54: =SUMPRODUCT((Projects!$A$5:$A$2393='MDOT FTA Detail'!$M$3)*(Projects!$C$5:$C$2393='MDOT FTA Detail'!$C$4)*(Projects!$L$5:$L$2393='MDOT FTA Detail'!$A54)*(Projects!$J$5:$J$2393<>'MDOT FTA Detail'!$A$171)*(Projects!$K$5:$K$2393)) -> 0 | N54: 0 | O54: =SUMPRODUCT((Projects!$A$5:$A$2393='MDOT FTA Detail'!$M$3)*(Projects!$C$5:$C$2393='MDOT FTA Detail'!$C$4)*(Projects!$L$5:$L$2393='MDOT FTA Detail'!$A54)*(Projects!$J$5:$J$2393<>'MDOT FTA Detail'!$A$171)*(Projects!$Q$5:$Q$2393)) -> 0
A55: LTA | B55: Local Technical Assistance Program | C55: MDOT FA | D55: =SUMPRODUCT((Projects!$A$5:$A$2393='MDOT FTA Detail'!$D$3)*(Projects!$C$5:$C$2393='MDOT FTA Detail'!$C$4)*(Projects!$L$5:$L$2393='MDOT FTA Detail'!$A55)*(Projects!$J$5:$J$2393<>'MDOT FTA Detail'!$A$171)*(Projects!$K$5:K$2393)) -> 0 | E55: 0 | F55: =SUMPRODUCT((Projects!$A$5:$A$2393='MDOT FTA Detail'!$D$3)*(Projects!$C$5:$C$2393='MDOT FTA Detail'!$C$4)*(Projects!$L$5:$L$2393='MDOT FTA Detail'!$A55)*(Projects!$J$5:$J$2393<>'MDOT FTA Detail'!$A$171)*(Projects!$Q$5:Q$2393)) -> 0 | G55: =SUMPRODUCT((Projects!$A$5:$A$2393='MDOT FTA Detail'!$G$3)*(Projects!$C$5:$C$2393='MDOT FTA Detail'!$C$4)*(Projects!$L$5:$L$2393='MDOT FTA Detail'!$A55)*(Projects!$J$5:$J$2393<>'MDOT FTA Detail'!$A$171)*(Projects!$K$5:K$2393)) -> 0 | H55: 0 | I55: =SUMPRODUCT((Projects!$A$5:$A$2393='MDOT FTA Detail'!$G$3)*(Projects!$C$5:$C$2393='MDOT FTA Detail'!$C$4)*(Projects!$L$5:$L$2393='MDOT FTA Detail'!$A55)*(Projects!$J$5:$J$2393<>'MDOT FTA Detail'!$A$171)*(Projects!$Q$5:Q$2393)) -> 0 | J55: =SUMPRODUCT((Projects!$A$5:$A$2393='MDOT FTA Detail'!$J$3)*(Projects!$C$5:$C$2393='MDOT FTA Detail'!$C$4)*(Projects!$L$5:$L$2393='MDOT FTA Detail'!$A55)*(Projects!$J$5:$J$2393<>'MDOT FTA Detail'!$A$171)*(Projects!$K$5:$K$2393)) -> 0 | K55: 0 | L55: =SUMPRODUCT((Projects!$A$5:$A$2393='MDOT FTA Detail'!$J$3)*(Projects!$C$5:$C$2393='MDOT FTA Detail'!$C$4)*(Projects!$L$5:$L$2393='MDOT FTA Detail'!$A55)*(Projects!$J$5:$J$2393<>'MDOT FTA Detail'!$A$171)*(Projects!$Q$5:$Q$2393)) -> 0 | M55: =SUMPRODUCT((Projects!$A$5:$A$2393='MDOT FTA Detail'!$M$3)*(Projects!$C$5:$C$2393='MDOT FTA Detail'!$C$4)*(Projects!$L$5:$L$2393='MDOT FTA Detail'!$A55)*(Projects!$J$5:$J$2393<>'MDOT FTA Detail'!$A$171)*(Projects!$K$5:$K$2393)) -> 0 | N55: 0 | O55: =SUMPRODUCT((Projects!$A$5:$A$2393='MDOT FTA Detail'!$M$3)*(Projects!$C$5:$C$2393='MDOT FTA Detail'!$C$4)*(Projects!$L$5:$L$2393='MDOT FTA Detail'!$A55)*(Projects!$J$5:$J$2393<>'MDOT FTA Detail'!$A$171)*(Projects!$Q$5:$Q$2393)) -> 0
A56: MG | B56: Minimum Guarantee | C56: MDOT FA | D56: =SUMPRODUCT((Projects!$A$5:$A$2393='MDOT FTA Detail'!$D$3)*(Projects!$C$5:$C$2393='MDOT FTA Detail'!$C$4)*(Projects!$L$5:$L$2393='MDOT FTA Detail'!$A56)*(Projects!$J$5:$J$2393<>'MDOT FTA Detail'!$A$171)*(Projects!$K$5:K$2393)) -> 0 | E56: 0 | F56: =SUMPRODUCT((Projects!$A$5:$A$2393='MDOT FTA Detail'!$D$3)*(Projects!$C$5:$C$2393='MDOT FTA Detail'!$C$4)*(Projects!$L$5:$L$2393='MDOT FTA Detail'!$A56)*(Projects!$J$5:$J$2393<>'MDOT FTA Detail'!$A$171)*(Projects!$Q$5:Q$2393)) -> 0 | G56: =SUMPRODUCT((Projects!$A$5:$A$2393='MDOT FTA Detail'!$G$3)*(Projects!$C$5:$C$2393='MDOT FTA Detail'!$C$4)*(Projects!$L$5:$L$2393='MDOT FTA Detail'!$A56)*(Projects!$J$5:$J$2393<>'MDOT FTA Detail'!$A$171)*(Projects!$K$5:K$2393)) -> 0 | H56: 0 | I56: =SUMPRODUCT((Projects!$A$5:$A$2393='MDOT FTA Detail'!$G$3)*(Projects!$C$5:$C$2393='MDOT FTA Detail'!$C$4)*(Projects!$L$5:$L$2393='MDOT FTA Detail'!$A56)*(Projects!$J$5:$J$2393<>'MDOT FTA Detail'!$A$171)*(Projects!$Q$5:Q$2393)) -> 0 | J56: =SUMPRODUCT((Projects!$A$5:$A$2393='MDOT FTA Detail'!$J$3)*(Projects!$C$5:$C$2393='MDOT FTA Detail'!$C$4)*(Projects!$L$5:$L$2393='MDOT FTA Detail'!$A56)*(Projects!$J$5:$J$2393<>'MDOT FTA Detail'!$A$171)*(Projects!$K$5:$K$2393)) -> 0 | K56: 0 | L56: =SUMPRODUCT((Projects!$A$5:$A$2393='MDOT FTA Detail'!$J$3)*(Projects!$C$5:$C$2393='MDOT FTA Detail'!$C$4)*(Projects!$L$5:$L$2393='MDOT FTA Detail'!$A56)*(Projects!$J$5:$J$2393<>'MDOT FTA Detail'!$A$171)*(Projects!$Q$5:$Q$2393)) -> 0 | M56: =SUMPRODUCT((Projects!$A$5:$A$2393='MDOT FTA Detail'!$M$3)*(Projects!$C$5:$C$2393='MDOT FTA Detail'!$C$4)*(Projects!$L$5:$L$2393='MDOT FTA Detail'!$A56)*(Projects!$J$5:$J$2393<>'MDOT FTA Detail'!$A$171)*(Projects!$K$5:$K$2393)) -> 0 | N56: 0 | O56: =SUMPRODUCT((Projects!$A$5:$A$2393='MDOT FTA Detail'!$M$3)*(Projects!$C$5:$C$2393='MDOT FTA Detail'!$C$4)*(Projects!$L$5:$L$2393='MDOT FTA Detail'!$A56)*(Projects!$J$5:$J$2393<>'MDOT FTA Detail'!$A$171)*(Projects!$Q$5:$Q$2393)) -> 0
A57: NCII | B57: National Corridor Infrastructure Improvement - SAFETEA-LU | C57: MDOT FA | D57: =SUMPRODUCT((Projects!$A$5:$A$2393='MDOT FTA Detail'!$D$3)*(Projects!$C$5:$C$2393='MDOT FTA Detail'!$C$4)*(Projects!$L$5:$L$2393='MDOT FTA Detail'!$A57)*(Projects!$J$5:$J$2393<>'MDOT FTA Detail'!$A$171)*(Projects!$K$5:K$2393)) -> 0 | E57: 0 | F57: =SUMPRODUCT((Projects!$A$5:$A$2393='MDOT FTA Detail'!$D$3)*(Projects!$C$5:$C$2393='MDOT FTA Detail'!$C$4)*(Projects!$L$5:$L$2393='MDOT FTA Detail'!$A57)*(Projects!$J$5:$J$2393<>'MDOT FTA Detail'!$A$171)*(Projects!$Q$5:Q$2393)) -> 0 | G57: =SUMPRODUCT((Projects!$A$5:$A$2393='MDOT FTA Detail'!$G$3)*(Projects!$C$5:$C$2393='MDOT FTA Detail'!$C$4)*(Projects!$L$5:$L$2393='MDOT FTA Detail'!$A57)*(Projects!$J$5:$J$2393<>'MDOT FTA Detail'!$A$171)*(Projects!$K$5:K$2393)) -> 0 | H57: 0 | I57: =SUMPRODUCT((Projects!$A$5:$A$2393='MDOT FTA Detail'!$G$3)*(Projects!$C$5:$C$2393='MDOT FTA Detail'!$C$4)*(Projects!$L$5:$L$2393='MDOT FTA Detail'!$A57)*(Projects!$J$5:$J$2393<>'MDOT FTA Detail'!$A$171)*(Projects!$Q$5:Q$2393)) -> 0 | J57: =SUMPRODUCT((Projects!$A$5:$A$2393='MDOT FTA Detail'!$J$3)*(Projects!$C$5:$C$2393='MDOT FTA Detail'!$C$4)*(Projects!$L$5:$L$2393='MDOT FTA Detail'!$A57)*(Projects!$J$5:$J$2393<>'MDOT FTA Detail'!$A$171)*(Projects!$K$5:$K$2393)) -> 0 | K57: 0 | L57: =SUMPRODUCT((Projects!$A$5:$A$2393='MDOT FTA Detail'!$J$3)*(Projects!$C$5:$C$2393='MDOT FTA Detail'!$C$4)*(Projects!$L$5:$L$2393='MDOT FTA Detail'!$A57)*(Projects!$J$5:$J$2393<>'MDOT FTA Detail'!$A$171)*(Projects!$Q$5:$Q$2393)) -> 0 | M57: =SUMPRODUCT((Projects!$A$5:$A$2393='MDOT FTA Detail'!$M$3)*(Projects!$C$5:$C$2393='MDOT FTA Detail'!$C$4)*(Projects!$L$5:$L$2393='MDOT FTA Detail'!$A57)*(Projects!$J$5:$J$2393<>'MDOT FTA Detail'!$A$171)*(Projects!$K$5:$K$2393)) -> 0 | N57: 0 | O57: =SUMPRODUCT((Projects!$A$5:$A$2393='MDOT FTA Detail'!$M$3)*(Projects!$C$5:$C$2393='MDOT FTA Detail'!$C$4)*(Projects!$L$5:$L$2393='MDOT FTA Detail'!$A57)*(Projects!$J$5:$J$2393<>'MDOT FTA Detail'!$A$171)*(Projects!$Q$5:$Q$2393)) -> 0
A58: NH | B58: National Highway System | C58: MDOT FA | D58: =SUMPRODUCT((Projects!$A$5:$A$2393='MDOT FTA Detail'!$D$3)*(Projects!$C$5:$C$2393='MDOT FTA Detail'!$C$4)*(Projects!$L$5:$L$2393='MDOT FTA Detail'!$A58)*(Projects!$J$5:$J$2393<>'MDOT FTA Detail'!$A$171)*(Projects!$K$5:K$2393)) -> 0 | E58: 0 | F58: =SUMPRODUCT((Projects!$A$5:$A$2393='MDOT FTA Detail'!$D$3)*(Projects!$C$5:$C$2393='MDOT FTA Detail'!$C$4)*(Projects!$L$5:$L$2393='MDOT FTA Detail'!$A58)*(Projects!$J$5:$J$2393<>'MDOT FTA Detail'!$A$171)*(Projects!$Q$5:Q$2393)) -> 0 | G58: =SUMPRODUCT((Projects!$A$5:$A$2393='MDOT FTA Detail'!$G$3)*(Projects!$C$5:$C$2393='MDOT FTA Detail'!$C$4)*(Projects!$L$5:$L$2393='MDOT FTA Detail'!$A58)*(Projects!$J$5:$J$2393<>'MDOT FTA Detail'!$A$171)*(Projects!$K$5:K$2393)) -> 0 | H58: 0 | I58: =SUMPRODUCT((Projects!$A$5:$A$2393='MDOT FTA Detail'!$G$3)*(Projects!$C$5:$C$2393='MDOT FTA Detail'!$C$4)*(Projects!$L$5:$L$2393='MDOT FTA Detail'!$A58)*(Projects!$J$5:$J$2393<>'MDOT FTA Detail'!$A$171)*(Projects!$Q$5:Q$2393)) -> 0 | J58: =SUMPRODUCT((Projects!$A$5:$A$2393='MDOT FTA Detail'!$J$3)*(Projects!$C$5:$C$2393='MDOT FTA Detail'!$C$4)*(Projects!$L$5:$L$2393='MDOT FTA Detail'!$A58)*(Projects!$J$5:$J$2393<>'MDOT FTA Detail'!$A$171)*(Projects!$K$5:$K$2393)) -> 0 | K58: 0 | L58: =SUMPRODUCT((Projects!$A$5:$A$2393='MDOT FTA Detail'!$J$3)*(Projects!$C$5:$C$2393='MDOT FTA Detail'!$C$4)*(Projects!$L$5:$L$2393='MDOT FTA Detail'!$A58)*(Projects!$J$5:$J$2393<>'MDOT FTA Detail'!$A$171)*(Projects!$Q$5:$Q$2393)) -> 0 | M58: =SUMPRODUCT((Projects!$A$5:$A$2393='MDOT FTA Detail'!$M$3)*(Projects!$C$5:$C$2393='MDOT FTA Detail'!$C$4)*(Projects!$L$5:$L$2393='MDOT FTA Detail'!$A58)*(Projects!$J$5:$J$2393<>'MDOT FTA Detail'!$A$171)*(Projects!$K$5:$K$2393)) -> 0 | N58: 0 | O58: =SUMPRODUCT((Projects!$A$5:$A$2393='MDOT FTA Detail'!$M$3)*(Projects!$C$5:$C$2393='MDOT FTA Detail'!$C$4)*(Projects!$L$5:$L$2393='MDOT FTA Detail'!$A58)*(Projects!$J$5:$J$2393<>'MDOT FTA Detail'!$A$171)*(Projects!$Q$5:$Q$2393)) -> 0
A59: NHG | B59: National Highway System - Safety - 100% Federal | C59: MDOT FA | D59: =SUMPRODUCT((Projects!$A$5:$A$2393='MDOT FTA Detail'!$D$3)*(Projects!$C$5:$C$2393='MDOT FTA Detail'!$C$4)*(Projects!$L$5:$L$2393='MDOT FTA Detail'!$A59)*(Projects!$J$5:$J$2393<>'MDOT FTA Detail'!$A$171)*(Projects!$K$5:K$2393)) -> 0 | E59: 0 | F59: =SUMPRODUCT((Projects!$A$5:$A$2393='MDOT FTA Detail'!$D$3)*(Projects!$C$5:$C$2393='MDOT FTA Detail'!$C$4)*(Projects!$L$5:$L$2393='MDOT FTA Detail'!$A59)*(Projects!$J$5:$J$2393<>'MDOT FTA Detail'!$A$171)*(Projects!$Q$5:Q$2393)) -> 0 | G59: =SUMPRODUCT((Projects!$A$5:$A$2393='MDOT FTA Detail'!$G$3)*(Projects!$C$5:$C$2393='MDOT FTA Detail'!$C$4)*(Projects!$L$5:$L$2393='MDOT FTA Detail'!$A59)*(Projects!$J$5:$J$2393<>'MDOT FTA Detail'!$A$171)*(Projects!$K$5:K$2393)) -> 0 | H59: 0 | I59: =SUMPRODUCT((Projects!$A$5:$A$2393='MDOT FTA Detail'!$G$3)*(Projects!$C$5:$C$2393='MDOT FTA Detail'!$C$4)*(Projects!$L$5:$L$2393='MDOT FTA Detail'!$A59)*(Projects!$J$5:$J$2393<>'MDOT FTA Detail'!$A$171)*(Projects!$Q$5:Q$2393)) -> 0 | J59: =SUMPRODUCT((Projects!$A$5:$A$2393='MDOT FTA Detail'!$J$3)*(Projects!$C$5:$C$2393='MDOT FTA Detail'!$C$4)*(Projects!$L$5:$L$2393='MDOT FTA Detail'!$A59)*(Projects!$J$5:$J$2393<>'MDOT FTA Detail'!$A$171)*(Projects!$K$5:$K$2393)) -> 0 | K59: 0 | L59: =SUMPRODUCT((Projects!$A$5:$A$2393='MDOT FTA Detail'!$J$3)*(Projects!$C$5:$C$2393='MDOT FTA Detail'!$C$4)*(Projects!$L$5:$L$2393='MDOT FTA Detail'!$A59)*(Projects!$J$5:$J$2393<>'MDOT FTA Detail'!$A$171)*(Projects!$Q$5:$Q$2393)) -> 0 | M59: =SUMPRODUCT((Projects!$A$5:$A$2393='MDOT FTA Detail'!$M$3)*(Projects!$C$5:$C$2393='MDOT FTA Detail'!$C$4)*(Projects!$L$5:$L$2393='MDOT FTA Detail'!$A59)*(Projects!$J$5:$J$2393<>'MDOT FTA Detail'!$A$171)*(Projects!$K$5:$K$2393)) -> 0 | N59: 0 | O59: =SUMPRODUCT((Projects!$A$5:$A$2393='MDOT FTA Detail'!$M$3)*(Projects!$C$5:$C$2393='MDOT FTA Detail'!$C$4)*(Projects!$L$5:$L$2393='MDOT FTA Detail'!$A59)*(Projects!$J$5:$J$2393<>'MDOT FTA Detail'!$A$171)*(Projects!$Q$5:$Q$2393)) -> 0
A60: NHI | B60: National Highway Funds on I (Does not Qualify for I) | C60: MDOT FA | D60: =SUMPRODUCT((Projects!$A$5:$A$2393='MDOT FTA Detail'!$D$3)*(Projects!$C$5:$C$2393='MDOT FTA Detail'!$C$4)*(Projects!$L$5:$L$2393='MDOT FTA Detail'!$A60)*(Projects!$J$5:$J$2393<>'MDOT FTA Detail'!$A$171)*(Projects!$K$5:K$2393)) -> 0 | E60: 0 | F60: =SUMPRODUCT((Projects!$A$5:$A$2393='MDOT FTA Detail'!$D$3)*(Projects!$C$5:$C$2393='MDOT FTA Detail'!$C$4)*(Projects!$L$5:$L$2393='MDOT FTA Detail'!$A60)*(Projects!$J$5:$J$2393<>'MDOT FTA Detail'!$A$171)*(Projects!$Q$5:Q$2393)) -> 0 | G60: =SUMPRODUCT((Projects!$A$5:$A$2393='MDOT FTA Detail'!$G$3)*(Projects!$C$5:$C$2393='MDOT FTA Detail'!$C$4)*(Projects!$L$5:$L$2393='MDOT FTA Detail'!$A60)*(Projects!$J$5:$J$2393<>'MDOT FTA Detail'!$A$171)*(Projects!$K$5:K$2393)) -> 0 | H60: 0 | I60: =SUMPRODUCT((Projects!$A$5:$A$2393='MDOT FTA Detail'!$G$3)*(Projects!$C$5:$C$2393='MDOT FTA Detail'!$C$4)*(Projects!$L$5:$L$2393='MDOT FTA Detail'!$A60)*(Projects!$J$5:$J$2393<>'MDOT FTA Detail'!$A$171)*(Projects!$Q$5:Q$2393)) -> 0 | J60: =SUMPRODUCT((Projects!$A$5:$A$2393='MDOT FTA Detail'!$J$3)*(Projects!$C$5:$C$2393='MDOT FTA Detail'!$C$4)*(Projects!$L$5:$L$2393='MDOT FTA Detail'!$A60)*(Projects!$J$5:$J$2393<>'MDOT FTA Detail'!$A$171)*(Projects!$K$5:$K$2393)) -> 0 | K60: 0 | L60: =SUMPRODUCT((Projects!$A$5:$A$2393='MDOT FTA Detail'!$J$3)*(Projects!$C$5:$C$2393='MDOT FTA Detail'!$C$4)*(Projects!$L$5:$L$2393='MDOT FTA Detail'!$A60)*(Projects!$J$5:$J$2393<>'MDOT FTA Detail'!$A$171)*(Projects!$Q$5:$Q$2393)) -> 0 | M60: =SUMPRODUCT((Projects!$A$5:$A$2393='MDOT FTA Detail'!$M$3)*(Projects!$C$5:$C$2393='MDOT FTA Detail'!$C$4)*(Projects!$L$5:$L$2393='MDOT FTA Detail'!$A60)*(Projects!$J$5:$J$2393<>'MDOT FTA Detail'!$A$171)*(Projects!$K$5:$K$2393)) -> 0 | N60: 0 | O60: =SUMPRODUCT((Projects!$A$5:$A$2393='MDOT FTA Detail'!$M$3)*(Projects!$C$5:$C$2393='MDOT FTA Detail'!$C$4)*(Projects!$L$5:$L$2393='MDOT FTA Detail'!$A60)*(Projects!$J$5:$J$2393<>'MDOT FTA Detail'!$A$171)*(Projects!$Q$5:$Q$2393)) -> 0
A61: NHIM | B61: National Highway Funds on I (Qualifies for IM) | C61: MDOT FA | D61: =SUMPRODUCT((Projects!$A$5:$A$2393='MDOT FTA Detail'!$D$3)*(Projects!$C$5:$C$2393='MDOT FTA Detail'!$C$4)*(Projects!$L$5:$L$2393='MDOT FTA Detail'!$A61)*(Projects!$J$5:$J$2393<>'MDOT FTA Detail'!$A$171)*(Projects!$K$5:K$2393)) -> 0 | E61: 0 | F61: =SUMPRODUCT((Projects!$A$5:$A$2393='MDOT FTA Detail'!$D$3)*(Projects!$C$5:$C$2393='MDOT FTA Detail'!$C$4)*(Projects!$L$5:$L$2393='MDOT FTA Detail'!$A61)*(Projects!$J$5:$J$2393<>'MDOT FTA Detail'!$A$171)*(Projects!$Q$5:Q$2393)) -> 0 | G61: =SUMPRODUCT((Projects!$A$5:$A$2393='MDOT FTA Detail'!$G$3)*(Projects!$C$5:$C$2393='MDOT FTA Detail'!$C$4)*(Projects!$L$5:$L$2393='MDOT FTA Detail'!$A61)*(Projects!$J$5:$J$2393<>'MDOT FTA Detail'!$A$171)*(Projects!$K$5:K$2393)) -> 0 | H61: 0 | I61: =SUMPRODUCT((Projects!$A$5:$A$2393='MDOT FTA Detail'!$G$3)*(Projects!$C$5:$C$2393='MDOT FTA Detail'!$C$4)*(Projects!$L$5:$L$2393='MDOT FTA Detail'!$A61)*(Projects!$J$5:$J$2393<>'MDOT FTA Detail'!$A$171)*(Projects!$Q$5:Q$2393)) -> 0 | J61: =SUMPRODUCT((Projects!$A$5:$A$2393='MDOT FTA Detail'!$J$3)*(Projects!$C$5:$C$2393='MDOT FTA Detail'!$C$4)*(Projects!$L$5:$L$2393='MDOT FTA Detail'!$A61)*(Projects!$J$5:$J$2393<>'MDOT FTA Detail'!$A$171)*(Projects!$K$5:$K$2393)) -> 0 | K61: 0 | L61: =SUMPRODUCT((Projects!$A$5:$A$2393='MDOT FTA Detail'!$J$3)*(Projects!$C$5:$C$2393='MDOT FTA Detail'!$C$4)*(Projects!$L$5:$L$2393='MDOT FTA Detail'!$A61)*(Projects!$J$5:$J$2393<>'MDOT FTA Detail'!$A$171)*(Projects!$Q$5:$Q$2393)) -> 0 | M61: =SUMPRODUCT((Projects!$A$5:$A$2393='MDOT FTA Detail'!$M$3)*(Projects!$C$5:$C$2393='MDOT FTA Detail'!$C$4)*(Projects!$L$5:$L$2393='MDOT FTA Detail'!$A61)*(Projects!$J$5:$J$2393<>'MDOT FTA Detail'!$A$171)*(Projects!$K$5:$K$2393)) -> 0 | N61: 0 | O61: =SUMPRODUCT((Projects!$A$5:$A$2393='MDOT FTA Detail'!$M$3)*(Projects!$C$5:$C$2393='MDOT FTA Detail'!$C$4)*(Projects!$L$5:$L$2393='MDOT FTA Detail'!$A61)*(Projects!$J$5:$J$2393<>'MDOT FTA Detail'!$A$171)*(Projects!$Q$5:$Q$2393)) -> 0
A62: NHS | B62: National Highway System - MDOT Safety Program | C62: MDOT FA | D62: =SUMPRODUCT((Projects!$A$5:$A$2393='MDOT FTA Detail'!$D$3)*(Projects!$C$5:$C$2393='MDOT FTA Detail'!$C$4)*(Projects!$L$5:$L$2393='MDOT FTA Detail'!$A62)*(Projects!$J$5:$J$2393<>'MDOT FTA Detail'!$A$171)*(Projects!$K$5:K$2393)) -> 0 | E62: 0 | F62: =SUMPRODUCT((Projects!$A$5:$A$2393='MDOT FTA Detail'!$D$3)*(Projects!$C$5:$C$2393='MDOT FTA Detail'!$C$4)*(Projects!$L$5:$L$2393='MDOT FTA Detail'!$A62)*(Projects!$J$5:$J$2393<>'MDOT FTA Detail'!$A$171)*(Projects!$Q$5:Q$2393)) -> 0 | G62: =SUMPRODUCT((Projects!$A$5:$A$2393='MDOT FTA Detail'!$G$3)*(Projects!$C$5:$C$2393='MDOT FTA Detail'!$C$4)*(Projects!$L$5:$L$2393='MDOT FTA Detail'!$A62)*(Projects!$J$5:$J$2393<>'MDOT FTA Detail'!$A$171)*(Projects!$K$5:K$2393)) -> 0 | H62: 0 | I62: =SUMPRODUCT((Projects!$A$5:$A$2393='MDOT FTA Detail'!$G$3)*(Projects!$C$5:$C$2393='MDOT FTA Detail'!$C$4)*(Projects!$L$5:$L$2393='MDOT FTA Detail'!$A62)*(Projects!$J$5:$J$2393<>'MDOT FTA Detail'!$A$171)*(Projects!$Q$5:Q$2393)) -> 0 | J62: =SUMPRODUCT((Projects!$A$5:$A$2393='MDOT FTA Detail'!$J$3)*(Projects!$C$5:$C$2393='MDOT FTA Detail'!$C$4)*(Projects!$L$5:$L$2393='MDOT FTA Detail'!$A62)*(Projects!$J$5:$J$2393<>'MDOT FTA Detail'!$A$171)*(Projects!$K$5:$K$2393)) -> 0 | K62: 0 | L62: =SUMPRODUCT((Projects!$A$5:$A$2393='MDOT FTA Detail'!$J$3)*(Projects!$C$5:$C$2393='MDOT FTA Detail'!$C$4)*(Projects!$L$5:$L$2393='MDOT FTA Detail'!$A62)*(Projects!$J$5:$J$2393<>'MDOT FTA Detail'!$A$171)*(Projects!$Q$5:$Q$2393)) -> 0 | M62: =SUMPRODUCT((Projects!$A$5:$A$2393='MDOT FTA Detail'!$M$3)*(Projects!$C$5:$C$2393='MDOT FTA Detail'!$C$4)*(Projects!$L$5:$L$2393='MDOT FTA Detail'!$A62)*(Projects!$J$5:$J$2393<>'MDOT FTA Detail'!$A$171)*(Projects!$K$5:$K$2393)) -> 0 | N62: 0 | O62: =SUMPRODUCT((Projects!$A$5:$A$2393='MDOT FTA Detail'!$M$3)*(Projects!$C$5:$C$2393='MDOT FTA Detail'!$C$4)*(Projects!$L$5:$L$2393='MDOT FTA Detail'!$A62)*(Projects!$J$5:$J$2393<>'MDOT FTA Detail'!$A$171)*(Projects!$Q$5:$Q$2393)) -> 0
A63: NRT | B63: National Recreational Trails | C63: MDOT FA | D63: =SUMPRODUCT((Projects!$A$5:$A$2393='MDOT FTA Detail'!$D$3)*(Projects!$C$5:$C$2393='MDOT FTA Detail'!$C$4)*(Projects!$L$5:$L$2393='MDOT FTA Detail'!$A63)*(Projects!$J$5:$J$2393<>'MDOT FTA Detail'!$A$171)*(Projects!$K$5:K$2393)) -> 0 | E63: 0 | F63: =SUMPRODUCT((Projects!$A$5:$A$2393='MDOT FTA Detail'!$D$3)*(Projects!$C$5:$C$2393='MDOT FTA Detail'!$C$4)*(Projects!$L$5:$L$2393='MDOT FTA Detail'!$A63)*(Projects!$J$5:$J$2393<>'MDOT FTA Detail'!$A$171)*(Projects!$Q$5:Q$2393)) -> 0 | G63: =SUMPRODUCT((Projects!$A$5:$A$2393='MDOT FTA Detail'!$G$3)*(Projects!$C$5:$C$2393='MDOT FTA Detail'!$C$4)*(Projects!$L$5:$L$2393='MDOT FTA Detail'!$A63)*(Projects!$J$5:$J$2393<>'MDOT FTA Detail'!$A$171)*(Projects!$K$5:K$2393)) -> 0 | H63: 0 | I63: =SUMPRODUCT((Projects!$A$5:$A$2393='MDOT FTA Detail'!$G$3)*(Projects!$C$5:$C$2393='MDOT FTA Detail'!$C$4)*(Projects!$L$5:$L$2393='MDOT FTA Detail'!$A63)*(Projects!$J$5:$J$2393<>'MDOT FTA Detail'!$A$171)*(Projects!$Q$5:Q$2393)) -> 0 | J63: =SUMPRODUCT((Projects!$A$5:$A$2393='MDOT FTA Detail'!$J$3)*(Projects!$C$5:$C$2393='MDOT FTA Detail'!$C$4)*(Projects!$L$5:$L$2393='MDOT FTA Detail'!$A63)*(Projects!$J$5:$J$2393<>'MDOT FTA Detail'!$A$171)*(Projects!$K$5:$K$2393)) -> 0 | K63: 0 | L63: =SUMPRODUCT((Projects!$A$5:$A$2393='MDOT FTA Detail'!$J$3)*(Projects!$C$5:$C$2393='MDOT FTA Detail'!$C$4)*(Projects!$L$5:$L$2393='MDOT FTA Detail'!$A63)*(Projects!$J$5:$J$2393<>'MDOT FTA Detail'!$A$171)*(Projects!$Q$5:$Q$2393)) -> 0 | M63: =SUMPRODUCT((Projects!$A$5:$A$2393='MDOT FTA Detail'!$M$3)*(Projects!$C$5:$C$2393='MDOT FTA Detail'!$C$4)*(Projects!$L$5:$L$2393='MDOT FTA Detail'!$A63)*(Projects!$J$5:$J$2393<>'MDOT FTA Detail'!$A$171)*(Projects!$K$5:$K$2393)) -> 0 | N63: 0 | O63: =SUMPRODUCT((Projects!$A$5:$A$2393='MDOT FTA Detail'!$M$3)*(Projects!$C$5:$C$2393='MDOT FTA Detail'!$C$4)*(Projects!$L$5:$L$2393='MDOT FTA Detail'!$A63)*(Projects!$J$5:$J$2393<>'MDOT FTA Detail'!$A$171)*(Projects!$Q$5:$Q$2393)) -> 0
A64: OFHWA | B64: Other FHWA Funds (Specify source in Comments) | C64: MDOT FA | D64: =SUMPRODUCT((Projects!$A$5:$A$2393='MDOT FTA Detail'!$D$3)*(Projects!$C$5:$C$2393='MDOT FTA Detail'!$C$4)*(Projects!$L$5:$L$2393='MDOT FTA Detail'!$A64)*(Projects!$J$5:$J$2393<>'MDOT FTA Detail'!$A$171)*(Projects!$K$5:K$2393)) -> 0 | E64: 0 | F64: =SUMPRODUCT((Projects!$A$5:$A$2393='MDOT FTA Detail'!$D$3)*(Projects!$C$5:$C$2393='MDOT FTA Detail'!$C$4)*(Projects!$L$5:$L$2393='MDOT FTA Detail'!$A64)*(Projects!$J$5:$J$2393<>'MDOT FTA Detail'!$A$171)*(Projects!$Q$5:Q$2393)) -> 0 | G64: =SUMPRODUCT((Projects!$A$5:$A$2393='MDOT FTA Detail'!$G$3)*(Projects!$C$5:$C$2393='MDOT FTA Detail'!$C$4)*(Projects!$L$5:$L$2393='MDOT FTA Detail'!$A64)*(Projects!$J$5:$J$2393<>'MDOT FTA Detail'!$A$171)*(Projects!$K$5:K$2393)) -> 0 | H64: 0 | I64: =SUMPRODUCT((Projects!$A$5:$A$2393='MDOT FTA Detail'!$G$3)*(Projects!$C$5:$C$2393='MDOT FTA Detail'!$C$4)*(Projects!$L$5:$L$2393='MDOT FTA Detail'!$A64)*(Projects!$J$5:$J$2393<>'MDOT FTA Detail'!$A$171)*(Projects!$Q$5:Q$2393)) -> 0 | J64: =SUMPRODUCT((Projects!$A$5:$A$2393='MDOT FTA Detail'!$J$3)*(Projects!$C$5:$C$2393='MDOT FTA Detail'!$C$4)*(Projects!$L$5:$L$2393='MDOT FTA Detail'!$A64)*(Projects!$J$5:$J$2393<>'MDOT FTA Detail'!$A$171)*(Projects!$K$5:$K$2393)) -> 0 | K64: 0 | L64: =SUMPRODUCT((Projects!$A$5:$A$2393='MDOT FTA Detail'!$J$3)*(Projects!$C$5:$C$2393='MDOT FTA Detail'!$C$4)*(Projects!$L$5:$L$2393='MDOT FTA Detail'!$A64)*(Projects!$J$5:$J$2393<>'MDOT FTA Detail'!$A$171)*(Projects!$Q$5:$Q$2393)) -> 0 | M64: =SUMPRODUCT((Projects!$A$5:$A$2393='MDOT FTA Detail'!$M$3)*(Projects!$C$5:$C$2393='MDOT FTA Detail'!$C$4)*(Projects!$L$5:$L$2393='MDOT FTA Detail'!$A64)*(Projects!$J$5:$J$2393<>'MDOT FTA Detail'!$A$171)*(Projects!$K$5:$K$2393)) -> 0 | N64: 0 | O64: =SUMPRODUCT((Projects!$A$5:$A$2393='MDOT FTA Detail'!$M$3)*(Projects!$C$5:$C$2393='MDOT FTA Detail'!$C$4)*(Projects!$L$5:$L$2393='MDOT FTA Detail'!$A64)*(Projects!$J$5:$J$2393<>'MDOT FTA Detail'!$A$171)*(Projects!$Q$5:$Q$2393)) -> 0
A65: PNRS | B65: Projects of National and Regional Significance | C65: MDOT FA | D65: =SUMPRODUCT((Projects!$A$5:$A$2393='MDOT FTA Detail'!$D$3)*(Projects!$C$5:$C$2393='MDOT FTA Detail'!$C$4)*(Projects!$L$5:$L$2393='MDOT FTA Detail'!$A65)*(Projects!$J$5:$J$2393<>'MDOT FTA Detail'!$A$171)*(Projects!$K$5:K$2393)) -> 0 | E65: 0 | F65: =SUMPRODUCT((Projects!$A$5:$A$2393='MDOT FTA Detail'!$D$3)*(Projects!$C$5:$C$2393='MDOT FTA Detail'!$C$4)*(Projects!$L$5:$L$2393='MDOT FTA Detail'!$A65)*(Projects!$J$5:$J$2393<>'MDOT FTA Detail'!$A$171)*(Projects!$Q$5:Q$2393)) -> 0 | G65: =SUMPRODUCT((Projects!$A$5:$A$2393='MDOT FTA Detail'!$G$3)*(Projects!$C$5:$C$2393='MDOT FTA Detail'!$C$4)*(Projects!$L$5:$L$2393='MDOT FTA Detail'!$A65)*(Projects!$J$5:$J$2393<>'MDOT FTA Detail'!$A$171)*(Projects!$K$5:K$2393)) -> 0 | H65: 0 | I65: =SUMPRODUCT((Projects!$A$5:$A$2393='MDOT FTA Detail'!$G$3)*(Projects!$C$5:$C$2393='MDOT FTA Detail'!$C$4)*(Projects!$L$5:$L$2393='MDOT FTA Detail'!$A65)*(Projects!$J$5:$J$2393<>'MDOT FTA Detail'!$A$171)*(Projects!$Q$5:Q$2393)) -> 0 | J65: =SUMPRODUCT((Projects!$A$5:$A$2393='MDOT FTA Detail'!$J$3)*(Projects!$C$5:$C$2393='MDOT FTA Detail'!$C$4)*(Projects!$L$5:$L$2393='MDOT FTA Detail'!$A65)*(Projects!$J$5:$J$2393<>'MDOT FTA Detail'!$A$171)*(Projects!$K$5:$K$2393)) -> 0 | K65: 0 | L65: =SUMPRODUCT((Projects!$A$5:$A$2393='MDOT FTA Detail'!$J$3)*(Projects!$C$5:$C$2393='MDOT FTA Detail'!$C$4)*(Projects!$L$5:$L$2393='MDOT FTA Detail'!$A65)*(Projects!$J$5:$J$2393<>'MDOT FTA Detail'!$A$171)*(Projects!$Q$5:$Q$2393)) -> 0 | M65: =SUMPRODUCT((Projects!$A$5:$A$2393='MDOT FTA Detail'!$M$3)*(Projects!$C$5:$C$2393='MDOT FTA Detail'!$C$4)*(Projects!$L$5:$L$2393='MDOT FTA Detail'!$A65)*(Projects!$J$5:$J$2393<>'MDOT FTA Detail'!$A$171)*(Projects!$K$5:$K$2393)) -> 0 | N65: 0 | O65: =SUMPRODUCT((Projects!$A$5:$A$2393='MDOT FTA Detail'!$M$3)*(Projects!$C$5:$C$2393='MDOT FTA Detail'!$C$4)*(Projects!$L$5:$L$2393='MDOT FTA Detail'!$A65)*(Projects!$J$5:$J$2393<>'MDOT FTA Detail'!$A$171)*(Projects!$Q$5:$Q$2393)) -> 0
A66: PRIP | B66: Priority Roads Investment Program | C66: MDOT FA | D66: =SUMPRODUCT((Projects!$A$5:$A$2393='MDOT FTA Detail'!$D$3)*(Projects!$C$5:$C$2393='MDOT FTA Detail'!$C$4)*(Projects!$L$5:$L$2393='MDOT FTA Detail'!$A66)*(Projects!$J$5:$J$2393<>'MDOT FTA Detail'!$A$171)*(Projects!$K$5:K$2393)) -> 0 | E66: =F66-D66 -> 0 | F66: =SUMPRODUCT((Projects!$A$5:$A$2393='MDOT FTA Detail'!$D$3)*(Projects!$C$5:$C$2393='MDOT FTA Detail'!$C$4)*(Projects!$L$5:$L$2393='MDOT FTA Detail'!$A66)*(Projects!$J$5:$J$2393<>'MDOT FTA Detail'!$A$171)*(Projects!$Q$5:Q$2393)) -> 0 | G66: =SUMPRODUCT((Projects!$A$5:$A$2393='MDOT FTA Detail'!$G$3)*(Projects!$C$5:$C$2393='MDOT FTA Detail'!$C$4)*(Projects!$L$5:$L$2393='MDOT FTA Detail'!$A66)*(Projects!$J$5:$J$2393<>'MDOT FTA Detail'!$A$171)*(Projects!$K$5:K$2393)) -> 0 | H66: =I66-G66 -> 0 | I66: =SUMPRODUCT((Projects!$A$5:$A$2393='MDOT FTA Detail'!$G$3)*(Projects!$C$5:$C$2393='MDOT FTA Detail'!$C$4)*(Projects!$L$5:$L$2393='MDOT FTA Detail'!$A66)*(Projects!$J$5:$J$2393<>'MDOT FTA Detail'!$A$171)*(Projects!$Q$5:Q$2393)) -> 0 | J66: =SUMPRODUCT((Projects!$A$5:$A$2393='MDOT FTA Detail'!$J$3)*(Projects!$C$5:$C$2393='MDOT FTA Detail'!$C$4)*(Projects!$L$5:$L$2393='MDOT FTA Detail'!$A66)*(Projects!$J$5:$J$2393<>'MDOT FTA Detail'!$A$171)*(Projects!$K$5:$K$2393)) -> 0 | K66: =L66-J66 -> 0 | L66: =SUMPRODUCT((Projects!$A$5:$A$2393='MDOT FTA Detail'!$J$3)*(Projects!$C$5:$C$2393='MDOT FTA Detail'!$C$4)*(Projects!$L$5:$L$2393='MDOT FTA Detail'!$A66)*(Projects!$J$5:$J$2393<>'MDOT FTA Detail'!$A$171)*(Projects!$Q$5:$Q$2393)) -> 0 | M66: =SUMPRODUCT((Projects!$A$5:$A$2393='MDOT FTA Detail'!$M$3)*(Projects!$C$5:$C$2393='MDOT FTA Detail'!$C$4)*(Projects!$L$5:$L$2393='MDOT FTA Detail'!$A66)*(Projects!$J$5:$J$2393<>'MDOT FTA Detail'!$A$171)*(Projects!$K$5:$K$2393)) -> 0 | N66: =O66-M66 -> 0 | O66: =SUMPRODUCT((Projects!$A$5:$A$2393='MDOT FTA Detail'!$M$3)*(Projects!$C$5:$C$2393='MDOT FTA Detail'!$C$4)*(Projects!$L$5:$L$2393='MDOT FTA Detail'!$A66)*(Projects!$J$5:$J$2393<>'MDOT FTA Detail'!$A$171)*(Projects!$Q$5:$Q$2393)) -> 0
A67: RP | B67: Research Project | C67: MDOT FA | D67: =SUMPRODUCT((Projects!$A$5:$A$2393='MDOT FTA Detail'!$D$3)*(Projects!$C$5:$C$2393='MDOT FTA Detail'!$C$4)*(Projects!$L$5:$L$2393='MDOT FTA Detail'!$A67)*(Projects!$J$5:$J$2393<>'MDOT FTA Detail'!$A$171)*(Projects!$K$5:K$2393)) -> 0 | E67: 0 | F67: =SUMPRODUCT((Projects!$A$5:$A$2393='MDOT FTA Detail'!$D$3)*(Projects!$C$5:$C$2393='MDOT FTA Detail'!$C$4)*(Projects!$L$5:$L$2393='MDOT FTA Detail'!$A67)*(Projects!$J$5:$J$2393<>'MDOT FTA Detail'!$A$171)*(Projects!$Q$5:Q$2393)) -> 0 | G67: =SUMPRODUCT((Projects!$A$5:$A$2393='MDOT FTA Detail'!$G$3)*(Projects!$C$5:$C$2393='MDOT FTA Detail'!$C$4)*(Projects!$L$5:$L$2393='MDOT FTA Detail'!$A67)*(Projects!$J$5:$J$2393<>'MDOT FTA Detail'!$A$171)*(Projects!$K$5:K$2393)) -> 0 | H67: 0 | I67: =SUMPRODUCT((Projects!$A$5:$A$2393='MDOT FTA Detail'!$G$3)*(Projects!$C$5:$C$2393='MDOT FTA Detail'!$C$4)*(Projects!$L$5:$L$2393='MDOT FTA Detail'!$A67)*(Projects!$J$5:$J$2393<>'MDOT FTA Detail'!$A$171)*(Projects!$Q$5:Q$2393)) -> 0 | J67: =SUMPRODUCT((Projects!$A$5:$A$2393='MDOT FTA Detail'!$J$3)*(Projects!$C$5:$C$2393='MDOT FTA Detail'!$C$4)*(Projects!$L$5:$L$2393='MDOT FTA Detail'!$A67)*(Projects!$J$5:$J$2393<>'MDOT FTA Detail'!$A$171)*(Projects!$K$5:$K$2393)) -> 0 | K67: 0 | L67: =SUMPRODUCT((Projects!$A$5:$A$2393='MDOT FTA Detail'!$J$3)*(Projects!$C$5:$C$2393='MDOT FTA Detail'!$C$4)*(Projects!$L$5:$L$2393='MDOT FTA Detail'!$A67)*(Projects!$J$5:$J$2393<>'MDOT FTA Detail'!$A$171)*(Projects!$Q$5:$Q$2393)) -> 0 | M67: =SUMPRODUCT((Projects!$A$5:$A$2393='MDOT FTA Detail'!$M$3)*(Projects!$C$5:$C$2393='MDOT FTA Detail'!$C$4)*(Projects!$L$5:$L$2393='MDOT FTA Detail'!$A67)*(Projects!$J$5:$J$2393<>'MDOT FTA Detail'!$A$171)*(Projects!$K$5:$K$2393)) -> 0 | N67: 0 | O67: =SUMPRODUCT((Projects!$A$5:$A$2393='MDOT FTA Detail'!$M$3)*(Projects!$C$5:$C$2393='MDOT FTA Detail'!$C$4)*(Projects!$L$5:$L$2393='MDOT FTA Detail'!$A67)*(Projects!$J$5:$J$2393<>'MDOT FTA Detail'!$A$171)*(Projects!$Q$5:$Q$2393)) -> 0
A68: RPH | B68: American Recovery and Reinvestment Act | C68: MDOT FA | D68: =SUMPRODUCT((Projects!$A$5:$A$2393='MDOT FTA Detail'!$D$3)*(Projects!$C$5:$C$2393='MDOT FTA Detail'!$C$4)*(Projects!$L$5:$L$2393='MDOT FTA Detail'!$A68)*(Projects!$J$5:$J$2393<>'MDOT FTA Detail'!$A$171)*(Projects!$K$5:K$2393)) -> 0 | E68: 0 | F68: =SUMPRODUCT((Projects!$A$5:$A$2393='MDOT FTA Detail'!$D$3)*(Projects!$C$5:$C$2393='MDOT FTA Detail'!$C$4)*(Projects!$L$5:$L$2393='MDOT FTA Detail'!$A68)*(Projects!$J$5:$J$2393<>'MDOT FTA Detail'!$A$171)*(Projects!$Q$5:Q$2393)) -> 0 | G68: =SUMPRODUCT((Projects!$A$5:$A$2393='MDOT FTA Detail'!$G$3)*(Projects!$C$5:$C$2393='MDOT FTA Detail'!$C$4)*(Projects!$L$5:$L$2393='MDOT FTA Detail'!$A68)*(Projects!$J$5:$J$2393<>'MDOT FTA Detail'!$A$171)*(Projects!$K$5:K$2393)) -> 0 | H68: 0 | I68: =SUMPRODUCT((Projects!$A$5:$A$2393='MDOT FTA Detail'!$G$3)*(Projects!$C$5:$C$2393='MDOT FTA Detail'!$C$4)*(Projects!$L$5:$L$2393='MDOT FTA Detail'!$A68)*(Projects!$J$5:$J$2393<>'MDOT FTA Detail'!$A$171)*(Projects!$Q$5:Q$2393)) -> 0 | J68: =SUMPRODUCT((Projects!$A$5:$A$2393='MDOT FTA Detail'!$J$3)*(Projects!$C$5:$C$2393='MDOT FTA Detail'!$C$4)*(Projects!$L$5:$L$2393='MDOT FTA Detail'!$A68)*(Projects!$J$5:$J$2393<>'MDOT FTA Detail'!$A$171)*(Projects!$K$5:$K$2393)) -> 0 | K68: 0 | L68: =SUMPRODUCT((Projects!$A$5:$A$2393='MDOT FTA Detail'!$J$3)*(Projects!$C$5:$C$2393='MDOT FTA Detail'!$C$4)*(Projects!$L$5:$L$2393='MDOT FTA Detail'!$A68)*(Projects!$J$5:$J$2393<>'MDOT FTA Detail'!$A$171)*(Projects!$Q$5:$Q$2393)) -> 0 | M68: =SUMPRODUCT((Projects!$A$5:$A$2393='MDOT FTA Detail'!$M$3)*(Projects!$C$5:$C$2393='MDOT FTA Detail'!$C$4)*(Projects!$L$5:$L$2393='MDOT FTA Detail'!$A68)*(Projects!$J$5:$J$2393<>'MDOT FTA Detail'!$A$171)*(Projects!$K$5:$K$2393)) -> 0 | N68: 0 | O68: =SUMPRODUCT((Projects!$A$5:$A$2393='MDOT FTA Detail'!$M$3)*(Projects!$C$5:$C$2393='MDOT FTA Detail'!$C$4)*(Projects!$L$5:$L$2393='MDOT FTA Detail'!$A68)*(Projects!$J$5:$J$2393<>'MDOT FTA Detail'!$A$171)*(Projects!$Q$5:$Q$2393)) -> 0
A69: SBD | B69: Scenic Byways - Discretionary | C69: MDOT FA | D69: =SUMPRODUCT((Projects!$A$5:$A$2393='MDOT FTA Detail'!$D$3)*(Projects!$C$5:$C$2393='MDOT FTA Detail'!$C$4)*(Projects!$L$5:$L$2393='MDOT FTA Detail'!$A69)*(Projects!$J$5:$J$2393<>'MDOT FTA Detail'!$A$171)*(Projects!$K$5:K$2393)) -> 0 | E69: 0 | F69: =SUMPRODUCT((Projects!$A$5:$A$2393='MDOT FTA Detail'!$D$3)*(Projects!$C$5:$C$2393='MDOT FTA Detail'!$C$4)*(Projects!$L$5:$L$2393='MDOT FTA Detail'!$A69)*(Projects!$J$5:$J$2393<>'MDOT FTA Detail'!$A$171)*(Projects!$Q$5:Q$2393)) -> 0 | G69: =SUMPRODUCT((Projects!$A$5:$A$2393='MDOT FTA Detail'!$G$3)*(Projects!$C$5:$C$2393='MDOT FTA Detail'!$C$4)*(Projects!$L$5:$L$2393='MDOT FTA Detail'!$A69)*(Projects!$J$5:$J$2393<>'MDOT FTA Detail'!$A$171)*(Projects!$K$5:K$2393)) -> 0 | H69: 0 | I69: =SUMPRODUCT((Projects!$A$5:$A$2393='MDOT FTA Detail'!$G$3)*(Projects!$C$5:$C$2393='MDOT FTA Detail'!$C$4)*(Projects!$L$5:$L$2393='MDOT FTA Detail'!$A69)*(Projects!$J$5:$J$2393<>'MDOT FTA Detail'!$A$171)*(Projects!$Q$5:Q$2393)) -> 0 | J69: =SUMPRODUCT((Projects!$A$5:$A$2393='MDOT FTA Detail'!$J$3)*(Projects!$C$5:$C$2393='MDOT FTA Detail'!$C$4)*(Projects!$L$5:$L$2393='MDOT FTA Detail'!$A69)*(Projects!$J$5:$J$2393<>'MDOT FTA Detail'!$A$171)*(Projects!$K$5:$K$2393)) -> 0 | K69: 0 | L69: =SUMPRODUCT((Projects!$A$5:$A$2393='MDOT FTA Detail'!$J$3)*(Projects!$C$5:$C$2393='MDOT FTA Detail'!$C$4)*(Projects!$L$5:$L$2393='MDOT FTA Detail'!$A69)*(Projects!$J$5:$J$2393<>'MDOT FTA Detail'!$A$171)*(Projects!$Q$5:$Q$2393)) -> 0 | M69: =SUMPRODUCT((Projects!$A$5:$A$2393='MDOT FTA Detail'!$M$3)*(Projects!$C$5:$C$2393='MDOT FTA Detail'!$C$4)*(Projects!$L$5:$L$2393='MDOT FTA Detail'!$A69)*(Projects!$J$5:$J$2393<>'MDOT FTA Detail'!$A$171)*(Projects!$K$5:$K$2393)) -> 0 | N69: 0 | O69: =SUMPRODUCT((Projects!$A$5:$A$2393='MDOT FTA Detail'!$M$3)*(Projects!$C$5:$C$2393='MDOT FTA Detail'!$C$4)*(Projects!$L$5:$L$2393='MDOT FTA Detail'!$A69)*(Projects!$J$5:$J$2393<>'MDOT FTA Detail'!$A$171)*(Projects!$Q$5:$Q$2393)) -> 0
A70: SIB | B70: State Infrastructure Bank | C70: MDOT FA | D70: =SUMPRODUCT((Projects!$A$5:$A$2393='MDOT FTA Detail'!$D$3)*(Projects!$C$5:$C$2393='MDOT FTA Detail'!$C$4)*(Projects!$L$5:$L$2393='MDOT FTA Detail'!$A70)*(Projects!$J$5:$J$2393<>'MDOT FTA Detail'!$A$171)*(Projects!$K$5:K$2393)) -> 0 | E70: 0 | F70: =SUMPRODUCT((Projects!$A$5:$A$2393='MDOT FTA Detail'!$D$3)*(Projects!$C$5:$C$2393='MDOT FTA Detail'!$C$4)*(Projects!$L$5:$L$2393='MDOT FTA Detail'!$A70)*(Projects!$J$5:$J$2393<>'MDOT FTA Detail'!$A$171)*(Projects!$Q$5:Q$2393)) -> 0 | G70: =SUMPRODUCT((Projects!$A$5:$A$2393='MDOT FTA Detail'!$G$3)*(Projects!$C$5:$C$2393='MDOT FTA Detail'!$C$4)*(Projects!$L$5:$L$2393='MDOT FTA Detail'!$A70)*(Projects!$J$5:$J$2393<>'MDOT FTA Detail'!$A$171)*(Projects!$K$5:K$2393)) -> 0 | H70: 0 | I70: =SUMPRODUCT((Projects!$A$5:$A$2393='MDOT FTA Detail'!$G$3)*(Projects!$C$5:$C$2393='MDOT FTA Detail'!$C$4)*(Projects!$L$5:$L$2393='MDOT FTA Detail'!$A70)*(Projects!$J$5:$J$2393<>'MDOT FTA Detail'!$A$171)*(Projects!$Q$5:Q$2393)) -> 0 | J70: =SUMPRODUCT((Projects!$A$5:$A$2393='MDOT FTA Detail'!$J$3)*(Projects!$C$5:$C$2393='MDOT FTA Detail'!$C$4)*(Projects!$L$5:$L$2393='MDOT FTA Detail'!$A70)*(Projects!$J$5:$J$2393<>'MDOT FTA Detail'!$A$171)*(Projects!$K$5:$K$2393)) -> 0 | K70: 0 | L70: =SUMPRODUCT((Projects!$A$5:$A$2393='MDOT FTA Detail'!$J$3)*(Projects!$C$5:$C$2393='MDOT FTA Detail'!$C$4)*(Projects!$L$5:$L$2393='MDOT FTA Detail'!$A70)*(Projects!$J$5:$J$2393<>'MDOT FTA Detail'!$A$171)*(Projects!$Q$5:$Q$2393)) -> 0 | M70: =SUMPRODUCT((Projects!$A$5:$A$2393='MDOT FTA Detail'!$M$3)*(Projects!$C$5:$C$2393='MDOT FTA Detail'!$C$4)*(Projects!$L$5:$L$2393='MDOT FTA Detail'!$A70)*(Projects!$J$5:$J$2393<>'MDOT FTA Detail'!$A$171)*(Projects!$K$5:$K$2393)) -> 0 | N70: 0 | O70: =SUMPRODUCT((Projects!$A$5:$A$2393='MDOT FTA Detail'!$M$3)*(Projects!$C$5:$C$2393='MDOT FTA Detail'!$C$4)*(Projects!$L$5:$L$2393='MDOT FTA Detail'!$A70)*(Projects!$J$5:$J$2393<>'MDOT FTA Detail'!$A$171)*(Projects!$Q$5:$Q$2393)) -> 0
A71: SLG | B71: Surface Transportation Safety | C71: MDOT FA | D71: =SUMPRODUCT((Projects!$A$5:$A$2393='MDOT FTA Detail'!$D$3)*(Projects!$C$5:$C$2393='MDOT FTA Detail'!$C$4)*(Projects!$L$5:$L$2393='MDOT FTA Detail'!$A71)*(Projects!$J$5:$J$2393<>'MDOT FTA Detail'!$A$171)*(Projects!$K$5:K$2393)) -> 0 | E71: 0 | F71: =SUMPRODUCT((Projects!$A$5:$A$2393='MDOT FTA Detail'!$D$3)*(Projects!$C$5:$C$2393='MDOT FTA Detail'!$C$4)*(Projects!$L$5:$L$2393='MDOT FTA Detail'!$A71)*(Projects!$J$5:$J$2393<>'MDOT FTA Detail'!$A$171)*(Projects!$Q$5:Q$2393)) -> 0 | G71: =SUMPRODUCT((Projects!$A$5:$A$2393='MDOT FTA Detail'!$G$3)*(Projects!$C$5:$C$2393='MDOT FTA Detail'!$C$4)*(Projects!$L$5:$L$2393='MDOT FTA Detail'!$A71)*(Projects!$J$5:$J$2393<>'MDOT FTA Detail'!$A$171)*(Projects!$K$5:K$2393)) -> 0 | H71: 0 | I71: =SUMPRODUCT((Projects!$A$5:$A$2393='MDOT FTA Detail'!$G$3)*(Projects!$C$5:$C$2393='MDOT FTA Detail'!$C$4)*(Projects!$L$5:$L$2393='MDOT FTA Detail'!$A71)*(Projects!$J$5:$J$2393<>'MDOT FTA Detail'!$A$171)*(Projects!$Q$5:Q$2393)) -> 0 | J71: =SUMPRODUCT((Projects!$A$5:$A$2393='MDOT FTA Detail'!$J$3)*(Projects!$C$5:$C$2393='MDOT FTA Detail'!$C$4)*(Projects!$L$5:$L$2393='MDOT FTA Detail'!$A71)*(Projects!$J$5:$J$2393<>'MDOT FTA Detail'!$A$171)*(Projects!$K$5:$K$2393)) -> 0 | K71: 0 | L71: =SUMPRODUCT((Projects!$A$5:$A$2393='MDOT FTA Detail'!$J$3)*(Projects!$C$5:$C$2393='MDOT FTA Detail'!$C$4)*(Projects!$L$5:$L$2393='MDOT FTA Detail'!$A71)*(Projects!$J$5:$J$2393<>'MDOT FTA Detail'!$A$171)*(Projects!$Q$5:$Q$2393)) -> 0 | M71: =SUMPRODUCT((Projects!$A$5:$A$2393='MDOT FTA Detail'!$M$3)*(Projects!$C$5:$C$2393='MDOT FTA Detail'!$C$4)*(Projects!$L$5:$L$2393='MDOT FTA Detail'!$A71)*(Projects!$J$5:$J$2393<>'MDOT FTA Detail'!$A$171)*(Projects!$K$5:$K$2393)) -> 0 | N71: 0 | O71: =SUMPRODUCT((Projects!$A$5:$A$2393='MDOT FTA Detail'!$M$3)*(Projects!$C$5:$C$2393='MDOT FTA Detail'!$C$4)*(Projects!$L$5:$L$2393='MDOT FTA Detail'!$A71)*(Projects!$J$5:$J$2393<>'MDOT FTA Detail'!$A$171)*(Projects!$Q$5:$Q$2393)) -> 0
A72: SRSE | B72: Surface Transportation Safety Highway Crossing Hazard Elimination | C72: MDOT FA | D72: =SUMPRODUCT((Projects!$A$5:$A$2393='MDOT FTA Detail'!$D$3)*(Projects!$C$5:$C$2393='MDOT FTA Detail'!$C$4)*(Projects!$L$5:$L$2393='MDOT FTA Detail'!$A72)*(Projects!$J$5:$J$2393<>'MDOT FTA Detail'!$A$171)*(Projects!$K$5:K$2393)) -> 0 | E72: 0 | F72: =SUMPRODUCT((Projects!$A$5:$A$2393='MDOT FTA Detail'!$D$3)*(Projects!$C$5:$C$2393='MDOT FTA Detail'!$C$4)*(Projects!$L$5:$L$2393='MDOT FTA Detail'!$A72)*(Projects!$J$5:$J$2393<>'MDOT FTA Detail'!$A$171)*(Projects!$Q$5:Q$2393)) -> 0 | G72: =SUMPRODUCT((Projects!$A$5:$A$2393='MDOT FTA Detail'!$G$3)*(Projects!$C$5:$C$2393='MDOT FTA Detail'!$C$4)*(Projects!$L$5:$L$2393='MDOT FTA Detail'!$A72)*(Projects!$J$5:$J$2393<>'MDOT FTA Detail'!$A$171)*(Projects!$K$5:K$2393)) -> 0 | H72: 0 | I72: =SUMPRODUCT((Projects!$A$5:$A$2393='MDOT FTA Detail'!$G$3)*(Projects!$C$5:$C$2393='MDOT FTA Detail'!$C$4)*(Projects!$L$5:$L$2393='MDOT FTA Detail'!$A72)*(Projects!$J$5:$J$2393<>'MDOT FTA Detail'!$A$171)*(Projects!$Q$5:Q$2393)) -> 0 | J72: =SUMPRODUCT((Projects!$A$5:$A$2393='MDOT FTA Detail'!$J$3)*(Projects!$C$5:$C$2393='MDOT FTA Detail'!$C$4)*(Projects!$L$5:$L$2393='MDOT FTA Detail'!$A72)*(Projects!$J$5:$J$2393<>'MDOT FTA Detail'!$A$171)*(Projects!$K$5:$K$2393)) -> 0 | K72: 0 | L72: =SUMPRODUCT((Projects!$A$5:$A$2393='MDOT FTA Detail'!$J$3)*(Projects!$C$5:$C$2393='MDOT FTA Detail'!$C$4)*(Projects!$L$5:$L$2393='MDOT FTA Detail'!$A72)*(Projects!$J$5:$J$2393<>'MDOT FTA Detail'!$A$171)*(Projects!$Q$5:$Q$2393)) -> 0 | M72: =SUMPRODUCT((Projects!$A$5:$A$2393='MDOT FTA Detail'!$M$3)*(Projects!$C$5:$C$2393='MDOT FTA Detail'!$C$4)*(Projects!$L$5:$L$2393='MDOT FTA Detail'!$A72)*(Projects!$J$5:$J$2393<>'MDOT FTA Detail'!$A$171)*(Projects!$K$5:$K$2393)) -> 0 | N72: 0 | O72: =SUMPRODUCT((Projects!$A$5:$A$2393='MDOT FTA Detail'!$M$3)*(Projects!$C$5:$C$2393='MDOT FTA Detail'!$C$4)*(Projects!$L$5:$L$2393='MDOT FTA Detail'!$A72)*(Projects!$J$5:$J$2393<>'MDOT FTA Detail'!$A$171)*(Projects!$Q$5:$Q$2393)) -> 0
A73: SRHG | B73: Surface Transportation Safety Highway Crossing Protection Devices 100% | C73: MDOT FA | D73: =SUMPRODUCT((Projects!$A$5:$A$2393='MDOT FTA Detail'!$D$3)*(Projects!$C$5:$C$2393='MDOT FTA Detail'!$C$4)*(Projects!$L$5:$L$2393='MDOT FTA Detail'!$A73)*(Projects!$J$5:$J$2393<>'MDOT FTA Detail'!$A$171)*(Projects!$K$5:K$2393)) -> 0 | E73: =F73-D73 -> 0 | F73: =SUMPRODUCT((Projects!$A$5:$A$2393='MDOT FTA Detail'!$D$3)*(Projects!$C$5:$C$2393='MDOT FTA Detail'!$C$4)*(Projects!$L$5:$L$2393='MDOT FTA Detail'!$A73)*(Projects!$J$5:$J$2393<>'MDOT FTA Detail'!$A$171)*(Projects!$Q$5:Q$2393)) -> 0 | G73: =SUMPRODUCT((Projects!$A$5:$A$2393='MDOT FTA Detail'!$G$3)*(Projects!$C$5:$C$2393='MDOT FTA Detail'!$C$4)*(Projects!$L$5:$L$2393='MDOT FTA Detail'!$A73)*(Projects!$J$5:$J$2393<>'MDOT FTA Detail'!$A$171)*(Projects!$K$5:K$2393)) -> 0 | H73: =I73-G73 -> 0 | I73: =SUMPRODUCT((Projects!$A$5:$A$2393='MDOT FTA Detail'!$G$3)*(Projects!$C$5:$C$2393='MDOT FTA Detail'!$C$4)*(Projects!$L$5:$L$2393='MDOT FTA Detail'!$A73)*(Projects!$J$5:$J$2393<>'MDOT FTA Detail'!$A$171)*(Projects!$Q$5:Q$2393)) -> 0 | J73: =SUMPRODUCT((Projects!$A$5:$A$2393='MDOT FTA Detail'!$J$3)*(Projects!$C$5:$C$2393='MDOT FTA Detail'!$C$4)*(Projects!$L$5:$L$2393='MDOT FTA Detail'!$A73)*(Projects!$J$5:$J$2393<>'MDOT FTA Detail'!$A$171)*(Projects!$K$5:$K$2393)) -> 0 | K73: =L73-J73 -> 0 | L73: =SUMPRODUCT((Projects!$A$5:$A$2393='MDOT FTA Detail'!$J$3)*(Projects!$C$5:$C$2393='MDOT FTA Detail'!$C$4)*(Projects!$L$5:$L$2393='MDOT FTA Detail'!$A73)*(Projects!$J$5:$J$2393<>'MDOT FTA Detail'!$A$171)*(Projects!$Q$5:$Q$2393)) -> 0 | M73: =SUMPRODUCT((Projects!$A$5:$A$2393='MDOT FTA Detail'!$M$3)*(Projects!$C$5:$C$2393='MDOT FTA Detail'!$C$4)*(Projects!$L$5:$L$2393='MDOT FTA Detail'!$A73)*(Projects!$J$5:$J$2393<>'MDOT FTA Detail'!$A$171)*(Projects!$K$5:$K$2393)) -> 0 | N73: =O73-M73 -> 0 | O73: =SUMPRODUCT((Projects!$A$5:$A$2393='MDOT FTA Detail'!$M$3)*(Projects!$C$5:$C$2393='MDOT FTA Detail'!$C$4)*(Projects!$L$5:$L$2393='MDOT FTA Detail'!$A73)*(Projects!$J$5:$J$2393<>'MDOT FTA Detail'!$A$171)*(Projects!$Q$5:$Q$2393)) -> 0
A74: SRPG | B74: Safe Routes to School - Either - SAFETEA-LU | C74: MDOT FA | D74: =SUMPRODUCT((Projects!$A$5:$A$2393='MDOT FTA Detail'!$D$3)*(Projects!$C$5:$C$2393='MDOT FTA Detail'!$C$4)*(Projects!$L$5:$L$2393='MDOT FTA Detail'!$A74)*(Projects!$J$5:$J$2393<>'MDOT FTA Detail'!$A$171)*(Projects!$K$5:K$2393)) -> 0 | E74: =F74-D74 -> 0 | F74: =SUMPRODUCT((Projects!$A$5:$A$2393='MDOT FTA Detail'!$D$3)*(Projects!$C$5:$C$2393='MDOT FTA Detail'!$C$4)*(Projects!$L$5:$L$2393='MDOT FTA Detail'!$A74)*(Projects!$J$5:$J$2393<>'MDOT FTA Detail'!$A$171)*(Projects!$Q$5:Q$2393)) -> 0 | G74: =SUMPRODUCT((Projects!$A$5:$A$2393='MDOT FTA Detail'!$G$3)*(Projects!$C$5:$C$2393='MDOT FTA Detail'!$C$4)*(Projects!$L$5:$L$2393='MDOT FTA Detail'!$A74)*(Projects!$J$5:$J$2393<>'MDOT FTA Detail'!$A$171)*(Projects!$K$5:K$2393)) -> 0 | H74: =I74-G74 -> 0 | I74: =SUMPRODUCT((Projects!$A$5:$A$2393='MDOT FTA Detail'!$G$3)*(Projects!$C$5:$C$2393='MDOT FTA Detail'!$C$4)*(Projects!$L$5:$L$2393='MDOT FTA Detail'!$A74)*(Projects!$J$5:$J$2393<>'MDOT FTA Detail'!$A$171)*(Projects!$Q$5:Q$2393)) -> 0 | J74: =SUMPRODUCT((Projects!$A$5:$A$2393='MDOT FTA Detail'!$J$3)*(Projects!$C$5:$C$2393='MDOT FTA Detail'!$C$4)*(Projects!$L$5:$L$2393='MDOT FTA Detail'!$A74)*(Projects!$J$5:$J$2393<>'MDOT FTA Detail'!$A$171)*(Projects!$K$5:$K$2393)) -> 0 | K74: =L74-J74 -> 0 | L74: =SUMPRODUCT((Projects!$A$5:$A$2393='MDOT FTA Detail'!$J$3)*(Projects!$C$5:$C$2393='MDOT FTA Detail'!$C$4)*(Projects!$L$5:$L$2393='MDOT FTA Detail'!$A74)*(Projects!$J$5:$J$2393<>'MDOT FTA Detail'!$A$171)*(Projects!$Q$5:$Q$2393)) -> 0 | M74: =SUMPRODUCT((Projects!$A$5:$A$2393='MDOT FTA Detail'!$M$3)*(Projects!$C$5:$C$2393='MDOT FTA Detail'!$C$4)*(Projects!$L$5:$L$2393='MDOT FTA Detail'!$A74)*(Projects!$J$5:$J$2393<>'MDOT FTA Detail'!$A$171)*(Projects!$K$5:$K$2393)) -> 0 | N74: =O74-M74 -> 0 | O74: =SUMPRODUCT((Projects!$A$5:$A$2393='MDOT FTA Detail'!$M$3)*(Projects!$C$5:$C$2393='MDOT FTA Detail'!$C$4)*(Projects!$L$5:$L$2393='MDOT FTA Detail'!$A74)*(Projects!$J$5:$J$2393<>'MDOT FTA Detail'!$A$171)*(Projects!$Q$5:$Q$2393)) -> 0
A75: SRSI | B75: Safe Routes to School - Infrastructure - SAFETEA-LU | C75: MDOT FA | D75: =SUMPRODUCT((Projects!$A$5:$A$2393='MDOT FTA Detail'!$D$3)*(Projects!$C$5:$C$2393='MDOT FTA Detail'!$C$4)*(Projects!$L$5:$L$2393='MDOT FTA Detail'!$A75)*(Projects!$J$5:$J$2393<>'MDOT FTA Detail'!$A$171)*(Projects!$K$5:K$2393)) -> 0 | E75: =F75-D75 -> 0 | F75: =SUMPRODUCT((Projects!$A$5:$A$2393='MDOT FTA Detail'!$D$3)*(Projects!$C$5:$C$2393='MDOT FTA Detail'!$C$4)*(Projects!$L$5:$L$2393='MDOT FTA Detail'!$A75)*(Projects!$J$5:$J$2393<>'MDOT FTA Detail'!$A$171)*(Projects!$Q$5:Q$2393)) -> 0 | G75: =SUMPRODUCT((Projects!$A$5:$A$2393='MDOT FTA Detail'!$G$3)*(Projects!$C$5:$C$2393='MDOT FTA Detail'!$C$4)*(Projects!$L$5:$L$2393='MDOT FTA Detail'!$A75)*(Projects!$J$5:$J$2393<>'MDOT FTA Detail'!$A$171)*(Projects!$K$5:K$2393)) -> 0 | H75: =I75-G75 -> 0 | I75: =SUMPRODUCT((Projects!$A$5:$A$2393='MDOT FTA Detail'!$G$3)*(Projects!$C$5:$C$2393='MDOT FTA Detail'!$C$4)*(Projects!$L$5:$L$2393='MDOT FTA Detail'!$A75)*(Projects!$J$5:$J$2393<>'MDOT FTA Detail'!$A$171)*(Projects!$Q$5:Q$2393)) -> 0 | J75: =SUMPRODUCT((Projects!$A$5:$A$2393='MDOT FTA Detail'!$J$3)*(Projects!$C$5:$C$2393='MDOT FTA Detail'!$C$4)*(Projects!$L$5:$L$2393='MDOT FTA Detail'!$A75)*(Projects!$J$5:$J$2393<>'MDOT FTA Detail'!$A$171)*(Projects!$K$5:$K$2393)) -> 0 | K75: =L75-J75 -> 0 | L75: =SUMPRODUCT((Projects!$A$5:$A$2393='MDOT FTA Detail'!$J$3)*(Projects!$C$5:$C$2393='MDOT FTA Detail'!$C$4)*(Projects!$L$5:$L$2393='MDOT FTA Detail'!$A75)*(Projects!$J$5:$J$2393<>'MDOT FTA Detail'!$A$171)*(Projects!$Q$5:$Q$2393)) -> 0 | M75: =SUMPRODUCT((Projects!$A$5:$A$2393='MDOT FTA Detail'!$M$3)*(Projects!$C$5:$C$2393='MDOT FTA Detail'!$C$4)*(Projects!$L$5:$L$2393='MDOT FTA Detail'!$A75)*(Projects!$J$5:$J$2393<>'MDOT FTA Detail'!$A$171)*(Projects!$K$5:$K$2393)) -> 0 | N75: =O75-M75 -> 0 | O75: =SUMPRODUCT((Projects!$A$5:$A$2393='MDOT FTA Detail'!$M$3)*(Projects!$C$5:$C$2393='MDOT FTA Detail'!$C$4)*(Projects!$L$5:$L$2393='MDOT FTA Detail'!$A75)*(Projects!$J$5:$J$2393<>'MDOT FTA Detail'!$A$171)*(Projects!$Q$5:$Q$2393)) -> 0
A76: SRSN | B76: Safe Routes to School - Non-infrastructure - SAFETEA-LU | C76: MDOT FA | D76: =SUMPRODUCT((Projects!$A$5:$A$2393='MDOT FTA Detail'!$D$3)*(Projects!$C$5:$C$2393='MDOT FTA Detail'!$C$4)*(Projects!$L$5:$L$2393='MDOT FTA Detail'!$A76)*(Projects!$J$5:$J$2393<>'MDOT FTA Detail'!$A$171)*(Projects!$K$5:K$2393)) -> 0 | E76: 0 | F76: =SUMPRODUCT((Projects!$A$5:$A$2393='MDOT FTA Detail'!$D$3)*(Projects!$C$5:$C$2393='MDOT FTA Detail'!$C$4)*(Projects!$L$5:$L$2393='MDOT FTA Detail'!$A76)*(Projects!$J$5:$J$2393<>'MDOT FTA Detail'!$A$171)*(Projects!$Q$5:Q$2393)) -> 0 | G76: =SUMPRODUCT((Projects!$A$5:$A$2393='MDOT FTA Detail'!$G$3)*(Projects!$C$5:$C$2393='MDOT FTA Detail'!$C$4)*(Projects!$L$5:$L$2393='MDOT FTA Detail'!$A76)*(Projects!$J$5:$J$2393<>'MDOT FTA Detail'!$A$171)*(Projects!$K$5:K$2393)) -> 0 | H76: 0 | I76: =SUMPRODUCT((Projects!$A$5:$A$2393='MDOT FTA Detail'!$G$3)*(Projects!$C$5:$C$2393='MDOT FTA Detail'!$C$4)*(Projects!$L$5:$L$2393='MDOT FTA Detail'!$A76)*(Projects!$J$5:$J$2393<>'MDOT FTA Detail'!$A$171)*(Projects!$Q$5:Q$2393)) -> 0 | J76: =SUMPRODUCT((Projects!$A$5:$A$2393='MDOT FTA Detail'!$J$3)*(Projects!$C$5:$C$2393='MDOT FTA Detail'!$C$4)*(Projects!$L$5:$L$2393='MDOT FTA Detail'!$A76)*(Projects!$J$5:$J$2393<>'MDOT FTA Detail'!$A$171)*(Projects!$K$5:$K$2393)) -> 0 | K76: 0 | L76: =SUMPRODUCT((Projects!$A$5:$A$2393='MDOT FTA Detail'!$J$3)*(Projects!$C$5:$C$2393='MDOT FTA Detail'!$C$4)*(Projects!$L$5:$L$2393='MDOT FTA Detail'!$A76)*(Projects!$J$5:$J$2393<>'MDOT FTA Detail'!$A$171)*(Projects!$Q$5:$Q$2393)) -> 0 | M76: =SUMPRODUCT((Projects!$A$5:$A$2393='MDOT FTA Detail'!$M$3)*(Projects!$C$5:$C$2393='MDOT FTA Detail'!$C$4)*(Projects!$L$5:$L$2393='MDOT FTA Detail'!$A76)*(Projects!$J$5:$J$2393<>'MDOT FTA Detail'!$A$171)*(Projects!$K$5:$K$2393)) -> 0 | N76: 0 | O76: =SUMPRODUCT((Projects!$A$5:$A$2393='MDOT FTA Detail'!$M$3)*(Projects!$C$5:$C$2393='MDOT FTA Detail'!$C$4)*(Projects!$L$5:$L$2393='MDOT FTA Detail'!$A76)*(Projects!$J$5:$J$2393<>'MDOT FTA Detail'!$A$171)*(Projects!$Q$5:$Q$2393)) -> 0
A77: SST | B77: Supportive Services Training | C77: MDOT FA | D77: =SUMPRODUCT((Projects!$A$5:$A$2393='MDOT FTA Detail'!$D$3)*(Projects!$C$5:$C$2393='MDOT FTA Detail'!$C$4)*(Projects!$L$5:$L$2393='MDOT FTA Detail'!$A77)*(Projects!$J$5:$J$2393<>'MDOT FTA Detail'!$A$171)*(Projects!$K$5:K$2393)) -> 0 | E77: 0 | F77: =SUMPRODUCT((Projects!$A$5:$A$2393='MDOT FTA Detail'!$D$3)*(Projects!$C$5:$C$2393='MDOT FTA Detail'!$C$4)*(Projects!$L$5:$L$2393='MDOT FTA Detail'!$A77)*(Projects!$J$5:$J$2393<>'MDOT FTA Detail'!$A$171)*(Projects!$Q$5:Q$2393)) -> 0 | G77: =SUMPRODUCT((Projects!$A$5:$A$2393='MDOT FTA Detail'!$G$3)*(Projects!$C$5:$C$2393='MDOT FTA Detail'!$C$4)*(Projects!$L$5:$L$2393='MDOT FTA Detail'!$A77)*(Projects!$J$5:$J$2393<>'MDOT FTA Detail'!$A$171)*(Projects!$K$5:K$2393)) -> 0 | H77: 0 | I77: =SUMPRODUCT((Projects!$A$5:$A$2393='MDOT FTA Detail'!$G$3)*(Projects!$C$5:$C$2393='MDOT FTA Detail'!$C$4)*(Projects!$L$5:$L$2393='MDOT FTA Detail'!$A77)*(Projects!$J$5:$J$2393<>'MDOT FTA Detail'!$A$171)*(Projects!$Q$5:Q$2393)) -> 0 | J77: =SUMPRODUCT((Projects!$A$5:$A$2393='MDOT FTA Detail'!$J$3)*(Projects!$C$5:$C$2393='MDOT FTA Detail'!$C$4)*(Projects!$L$5:$L$2393='MDOT FTA Detail'!$A77)*(Projects!$J$5:$J$2393<>'MDOT FTA Detail'!$A$171)*(Projects!$K$5:$K$2393)) -> 0 | K77: 0 | L77: =SUMPRODUCT((Projects!$A$5:$A$2393='MDOT FTA Detail'!$J$3)*(Projects!$C$5:$C$2393='MDOT FTA Detail'!$C$4)*(Projects!$L$5:$L$2393='MDOT FTA Detail'!$A77)*(Projects!$J$5:$J$2393<>'MDOT FTA Detail'!$A$171)*(Projects!$Q$5:$Q$2393)) -> 0 | M77: =SUMPRODUCT((Projects!$A$5:$A$2393='MDOT FTA Detail'!$M$3)*(Projects!$C$5:$C$2393='MDOT FTA Detail'!$C$4)*(Projects!$L$5:$L$2393='MDOT FTA Detail'!$A77)*(Projects!$J$5:$J$2393<>'MDOT FTA Detail'!$A$171)*(Projects!$K$5:$K$2393)) -> 0 | N77: 0 | O77: =SUMPRODUCT((Projects!$A$5:$A$2393='MDOT FTA Detail'!$M$3)*(Projects!$C$5:$C$2393='MDOT FTA Detail'!$C$4)*(Projects!$L$5:$L$2393='MDOT FTA Detail'!$A77)*(Projects!$J$5:$J$2393<>'MDOT FTA Detail'!$A$171)*(Projects!$Q$5:$Q$2393)) -> 0
A78: ST | B78: Surface Transportation Program (STP) - Any Area | C78: MDOT FA | D78: =SUMPRODUCT((Projects!$A$5:$A$2393='MDOT FTA Detail'!$D$3)*(Projects!$C$5:$C$2393='MDOT FTA Detail'!$C$4)*(Projects!$L$5:$L$2393='MDOT FTA Detail'!$A78)*(Projects!$J$5:$J$2393<>'MDOT FTA Detail'!$A$171)*(Projects!$K$5:K$2393)) -> 10814194 | E78: 2558553 | F78: =SUMPRODUCT((Projects!$A$5:$A$2393='MDOT FTA Detail'!$D$3)*(Projects!$C$5:$C$2393='MDOT FTA Detail'!$C$4)*(Projects!$L$5:$L$2393='MDOT FTA Detail'!$A78)*(Projects!$J$5:$J$2393<>'MDOT FTA Detail'!$A$171)*(Projects!$Q$5:Q$2393)) -> 13372747 | G78: =SUMPRODUCT((Projects!$A$5:$A$2393='MDOT FTA Detail'!$G$3)*(Projects!$C$5:$C$2393='MDOT FTA Detail'!$C$4)*(Projects!$L$5:$L$2393='MDOT FTA Detail'!$A78)*(Projects!$J$5:$J$2393<>'MDOT FTA Detail'!$A$171)*(Projects!$K$5:K$2393)) -> 7666374.6 | H78: 1628967.4 | I78: =SUMPRODUCT((Projects!$A$5:$A$2393='MDOT FTA Detail'!$G$3)*(Projects!$C$5:$C$2393='MDOT FTA Detail'!$C$4)*(Projects!$L$5:$L$2393='MDOT FTA Detail'!$A78)*(Projects!$J$5:$J$2393<>'MDOT FTA Detail'!$A$171)*(Projects!$Q$5:Q$2393)) -> 9295342 | J78: =SUMPRODUCT((Projects!$A$5:$A$2393='MDOT FTA Detail'!$J$3)*(Projects!$C$5:$C$2393='MDOT FTA Detail'!$C$4)*(Projects!$L$5:$L$2393='MDOT FTA Detail'!$A78)*(Projects!$J$5:$J$2393<>'MDOT FTA Detail'!$A$171)*(Projects!$K$5:$K$2393)) -> 5708180.6 | K78: 1213776.4 | L78: =SUMPRODUCT((Projects!$A$5:$A$2393='MDOT FTA Detail'!$J$3)*(Projects!$C$5:$C$2393='MDOT FTA Detail'!$C$4)*(Projects!$L$5:$L$2393='MDOT FTA Detail'!$A78)*(Projects!$J$5:$J$2393<>'MDOT FTA Detail'!$A$171)*(Projects!$Q$5:$Q$2393)) -> 6921957 | M78: =SUMPRODUCT((Projects!$A$5:$A$2393='MDOT FTA Detail'!$M$3)*(Projects!$C$5:$C$2393='MDOT FTA Detail'!$C$4)*(Projects!$L$5:$L$2393='MDOT FTA Detail'!$A78)*(Projects!$J$5:$J$2393<>'MDOT FTA Detail'!$A$171)*(Projects!$K$5:$K$2393)) -> 11360691.6 | N78: 2210653.4 | O78: =SUMPRODUCT((Projects!$A$5:$A$2393='MDOT FTA Detail'!$M$3)*(Projects!$C$5:$C$2393='MDOT FTA Detail'!$C$4)*(Projects!$L$5:$L$2393='MDOT FTA Detail'!$A78)*(Projects!$J$5:$J$2393<>'MDOT FTA Detail'!$A$171)*(Projects!$Q$5:$Q$2393)) -> 13571345
A79: STE | B79: STP - Enhancement | C79: MDOT FA | D79: =SUMPRODUCT((Projects!$A$5:$A$2393='MDOT FTA Detail'!$D$3)*(Projects!$C$5:$C$2393='MDOT FTA Detail'!$C$4)*(Projects!$L$5:$L$2393='MDOT FTA Detail'!$A79)*(Projects!$J$5:$J$2393<>'MDOT FTA Detail'!$A$171)*(Projects!$K$5:K$2393)) -> 0 | E79: 0 | F79: =SUMPRODUCT((Projects!$A$5:$A$2393='MDOT FTA Detail'!$D$3)*(Projects!$C$5:$C$2393='MDOT FTA Detail'!$C$4)*(Projects!$L$5:$L$2393='MDOT FTA Detail'!$A79)*(Projects!$J$5:$J$2393<>'MDOT FTA Detail'!$A$171)*(Projects!$Q$5:Q$2393)) -> 0 | G79: =SUMPRODUCT((Projects!$A$5:$A$2393='MDOT FTA Detail'!$G$3)*(Projects!$C$5:$C$2393='MDOT FTA Detail'!$C$4)*(Projects!$L$5:$L$2393='MDOT FTA Detail'!$A79)*(Projects!$J$5:$J$2393<>'MDOT FTA Detail'!$A$171)*(Projects!$K$5:K$2393)) -> 0 | H79: 0 | I79: =SUMPRODUCT((Projects!$A$5:$A$2393='MDOT FTA Detail'!$G$3)*(Projects!$C$5:$C$2393='MDOT FTA Detail'!$C$4)*(Projects!$L$5:$L$2393='MDOT FTA Detail'!$A79)*(Projects!$J$5:$J$2393<>'MDOT FTA Detail'!$A$171)*(Projects!$Q$5:Q$2393)) -> 0 | J79: =SUMPRODUCT((Projects!$A$5:$A$2393='MDOT FTA Detail'!$J$3)*(Projects!$C$5:$C$2393='MDOT FTA Detail'!$C$4)*(Projects!$L$5:$L$2393='MDOT FTA Detail'!$A79)*(Projects!$J$5:$J$2393<>'MDOT FTA Detail'!$A$171)*(Projects!$K$5:$K$2393)) -> 0 | K79: 0 | L79: =SUMPRODUCT((Projects!$A$5:$A$2393='MDOT FTA Detail'!$J$3)*(Projects!$C$5:$C$2393='MDOT FTA Detail'!$C$4)*(Projects!$L$5:$L$2393='MDOT FTA Detail'!$A79)*(Projects!$J$5:$J$2393<>'MDOT FTA Detail'!$A$171)*(Projects!$Q$5:$Q$2393)) -> 0 | M79: =SUMPRODUCT((Projects!$A$5:$A$2393='MDOT FTA Detail'!$M$3)*(Projects!$C$5:$C$2393='MDOT FTA Detail'!$C$4)*(Projects!$L$5:$L$2393='MDOT FTA Detail'!$A79)*(Projects!$J$5:$J$2393<>'MDOT FTA Detail'!$A$171)*(Projects!$K$5:$K$2393)) -> 0 | N79: 0 | O79: =SUMPRODUCT((Projects!$A$5:$A$2393='MDOT FTA Detail'!$M$3)*(Projects!$C$5:$C$2393='MDOT FTA Detail'!$C$4)*(Projects!$L$5:$L$2393='MDOT FTA Detail'!$A79)*(Projects!$J$5:$J$2393<>'MDOT FTA Detail'!$A$171)*(Projects!$Q$5:$Q$2393)) -> 0
A80: STG | B80: STP - Safety - 100% Federal for ST | C80: MDOT FA | D80: =SUMPRODUCT((Projects!$A$5:$A$2393='MDOT FTA Detail'!$D$3)*(Projects!$C$5:$C$2393='MDOT FTA Detail'!$C$4)*(Projects!$L$5:$L$2393='MDOT FTA Detail'!$A80)*(Projects!$J$5:$J$2393<>'MDOT FTA Detail'!$A$171)*(Projects!$K$5:K$2393)) -> 0 | E80: 0 | F80: =SUMPRODUCT((Projects!$A$5:$A$2393='MDOT FTA Detail'!$D$3)*(Projects!$C$5:$C$2393='MDOT FTA Detail'!$C$4)*(Projects!$L$5:$L$2393='MDOT FTA Detail'!$A80)*(Projects!$J$5:$J$2393<>'MDOT FTA Detail'!$A$171)*(Projects!$Q$5:Q$2393)) -> 0 | G80: =SUMPRODUCT((Projects!$A$5:$A$2393='MDOT FTA Detail'!$G$3)*(Projects!$C$5:$C$2393='MDOT FTA Detail'!$C$4)*(Projects!$L$5:$L$2393='MDOT FTA Detail'!$A80)*(Projects!$J$5:$J$2393<>'MDOT FTA Detail'!$A$171)*(Projects!$K$5:K$2393)) -> 0 | H80: 0 | I80: =SUMPRODUCT((Projects!$A$5:$A$2393='MDOT FTA Detail'!$G$3)*(Projects!$C$5:$C$2393='MDOT FTA Detail'!$C$4)*(Projects!$L$5:$L$2393='MDOT FTA Detail'!$A80)*(Projects!$J$5:$J$2393<>'MDOT FTA Detail'!$A$171)*(Projects!$Q$5:Q$2393)) -> 0 | J80: =SUMPRODUCT((Projects!$A$5:$A$2393='MDOT FTA Detail'!$J$3)*(Projects!$C$5:$C$2393='MDOT FTA Detail'!$C$4)*(Projects!$L$5:$L$2393='MDOT FTA Detail'!$A80)*(Projects!$J$5:$J$2393<>'MDOT FTA Detail'!$A$171)*(Projects!$K$5:$K$2393)) -> 0 | K80: 0 | L80: =SUMPRODUCT((Projects!$A$5:$A$2393='MDOT FTA Detail'!$J$3)*(Projects!$C$5:$C$2393='MDOT FTA Detail'!$C$4)*(Projects!$L$5:$L$2393='MDOT FTA Detail'!$A80)*(Projects!$J$5:$J$2393<>'MDOT FTA Detail'!$A$171)*(Projects!$Q$5:$Q$2393)) -> 0 | M80: =SUMPRODUCT((Projects!$A$5:$A$2393='MDOT FTA Detail'!$M$3)*(Projects!$C$5:$C$2393='MDOT FTA Detail'!$C$4)*(Projects!$L$5:$L$2393='MDOT FTA Detail'!$A80)*(Projects!$J$5:$J$2393<>'MDOT FTA Detail'!$A$171)*(Projects!$K$5:$K$2393)) -> 0 | N80: 0 | O80: =SUMPRODUCT((Projects!$A$5:$A$2393='MDOT FTA Detail'!$M$3)*(Projects!$C$5:$C$2393='MDOT FTA Detail'!$C$4)*(Projects!$L$5:$L$2393='MDOT FTA Detail'!$A80)*(Projects!$J$5:$J$2393<>'MDOT FTA Detail'!$A$171)*(Projects!$Q$5:$Q$2393)) -> 0
A81: STH | B81: STP - Safety - Hazard Elimination | C81: MDOT FA | D81: =SUMPRODUCT((Projects!$A$5:$A$2393='MDOT FTA Detail'!$D$3)*(Projects!$C$5:$C$2393='MDOT FTA Detail'!$C$4)*(Projects!$L$5:$L$2393='MDOT FTA Detail'!$A81)*(Projects!$J$5:$J$2393<>'MDOT FTA Detail'!$A$171)*(Projects!$K$5:K$2393)) -> 0 | E81: 0 | F81: =SUMPRODUCT((Projects!$A$5:$A$2393='MDOT FTA Detail'!$D$3)*(Projects!$C$5:$C$2393='MDOT FTA Detail'!$C$4)*(Projects!$L$5:$L$2393='MDOT FTA Detail'!$A81)*(Projects!$J$5:$J$2393<>'MDOT FTA Detail'!$A$171)*(Projects!$Q$5:Q$2393)) -> 0 | G81: =SUMPRODUCT((Projects!$A$5:$A$2393='MDOT FTA Detail'!$G$3)*(Projects!$C$5:$C$2393='MDOT FTA Detail'!$C$4)*(Projects!$L$5:$L$2393='MDOT FTA Detail'!$A81)*(Projects!$J$5:$J$2393<>'MDOT FTA Detail'!$A$171)*(Projects!$K$5:K$2393)) -> 0 | H81: 0 | I81: =SUMPRODUCT((Projects!$A$5:$A$2393='MDOT FTA Detail'!$G$3)*(Projects!$C$5:$C$2393='MDOT FTA Detail'!$C$4)*(Projects!$L$5:$L$2393='MDOT FTA Detail'!$A81)*(Projects!$J$5:$J$2393<>'MDOT FTA Detail'!$A$171)*(Projects!$Q$5:Q$2393)) -> 0 | J81: =SUMPRODUCT((Projects!$A$5:$A$2393='MDOT FTA Detail'!$J$3)*(Projects!$C$5:$C$2393='MDOT FTA Detail'!$C$4)*(Projects!$L$5:$L$2393='MDOT FTA Detail'!$A81)*(Projects!$J$5:$J$2393<>'MDOT FTA Detail'!$A$171)*(Projects!$K$5:$K$2393)) -> 0 | K81: 0 | L81: =SUMPRODUCT((Projects!$A$5:$A$2393='MDOT FTA Detail'!$J$3)*(Projects!$C$5:$C$2393='MDOT FTA Detail'!$C$4)*(Projects!$L$5:$L$2393='MDOT FTA Detail'!$A81)*(Projects!$J$5:$J$2393<>'MDOT FTA Detail'!$A$171)*(Projects!$Q$5:$Q$2393)) -> 0 | M81: =SUMPRODUCT((Projects!$A$5:$A$2393='MDOT FTA Detail'!$M$3)*(Projects!$C$5:$C$2393='MDOT FTA Detail'!$C$4)*(Projects!$L$5:$L$2393='MDOT FTA Detail'!$A81)*(Projects!$J$5:$J$2393<>'MDOT FTA Detail'!$A$171)*(Projects!$K$5:$K$2393)) -> 0 | N81: 0 | O81: =SUMPRODUCT((Projects!$A$5:$A$2393='MDOT FTA Detail'!$M$3)*(Projects!$C$5:$C$2393='MDOT FTA Detail'!$C$4)*(Projects!$L$5:$L$2393='MDOT FTA Detail'!$A81)*(Projects!$J$5:$J$2393<>'MDOT FTA Detail'!$A$171)*(Projects!$Q$5:$Q$2393)) -> 0
A82: STI | B82: STP - Interstate (90%) | C82: MDOT FA | D82: =SUMPRODUCT((Projects!$A$5:$A$2393='MDOT FTA Detail'!$D$3)*(Projects!$C$5:$C$2393='MDOT FTA Detail'!$C$4)*(Projects!$L$5:$L$2393='MDOT FTA Detail'!$A82)*(Projects!$J$5:$J$2393<>'MDOT FTA Detail'!$A$171)*(Projects!$K$5:K$2393)) -> 0 | E82: 0 | F82: =SUMPRODUCT((Projects!$A$5:$A$2393='MDOT FTA Detail'!$D$3)*(Projects!$C$5:$C$2393='MDOT FTA Detail'!$C$4)*(Projects!$L$5:$L$2393='MDOT FTA Detail'!$A82)*(Projects!$J$5:$J$2393<>'MDOT FTA Detail'!$A$171)*(Projects!$Q$5:Q$2393)) -> 0 | G82: =SUMPRODUCT((Projects!$A$5:$A$2393='MDOT FTA Detail'!$G$3)*(Projects!$C$5:$C$2393='MDOT FTA Detail'!$C$4)*(Projects!$L$5:$L$2393='MDOT FTA Detail'!$A82)*(Projects!$J$5:$J$2393<>'MDOT FTA Detail'!$A$171)*(Projects!$K$5:K$2393)) -> 0 | H82: 0 | I82: =SUMPRODUCT((Projects!$A$5:$A$2393='MDOT FTA Detail'!$G$3)*(Projects!$C$5:$C$2393='MDOT FTA Detail'!$C$4)*(Projects!$L$5:$L$2393='MDOT FTA Detail'!$A82)*(Projects!$J$5:$J$2393<>'MDOT FTA Detail'!$A$171)*(Projects!$Q$5:Q$2393)) -> 0 | J82: =SUMPRODUCT((Projects!$A$5:$A$2393='MDOT FTA Detail'!$J$3)*(Projects!$C$5:$C$2393='MDOT FTA Detail'!$C$4)*(Projects!$L$5:$L$2393='MDOT FTA Detail'!$A82)*(Projects!$J$5:$J$2393<>'MDOT FTA Detail'!$A$171)*(Projects!$K$5:$K$2393)) -> 0 | K82: 0 | L82: =SUMPRODUCT((Projects!$A$5:$A$2393='MDOT FTA Detail'!$J$3)*(Projects!$C$5:$C$2393='MDOT FTA Detail'!$C$4)*(Projects!$L$5:$L$2393='MDOT FTA Detail'!$A82)*(Projects!$J$5:$J$2393<>'MDOT FTA Detail'!$A$171)*(Projects!$Q$5:$Q$2393)) -> 0 | M82: =SUMPRODUCT((Projects!$A$5:$A$2393='MDOT FTA Detail'!$M$3)*(Projects!$C$5:$C$2393='MDOT FTA Detail'!$C$4)*(Projects!$L$5:$L$2393='MDOT FTA Detail'!$A82)*(Projects!$J$5:$J$2393<>'MDOT FTA Detail'!$A$171)*(Projects!$K$5:$K$2393)) -> 0 | N82: 0 | O82: =SUMPRODUCT((Projects!$A$5:$A$2393='MDOT FTA Detail'!$M$3)*(Projects!$C$5:$C$2393='MDOT FTA Detail'!$C$4)*(Projects!$L$5:$L$2393='MDOT FTA Detail'!$A82)*(Projects!$J$5:$J$2393<>'MDOT FTA Detail'!$A$171)*(Projects!$Q$5:$Q$2393)) -> 0
A83: STL | B83: STP - Local | C83: MDOT FA | D83: =SUMPRODUCT((Projects!$A$5:$A$2393='MDOT FTA Detail'!$D$3)*(Projects!$C$5:$C$2393='MDOT FTA Detail'!$C$4)*(Projects!$L$5:$L$2393='MDOT FTA Detail'!$A83)*(Projects!$J$5:$J$2393<>'MDOT FTA Detail'!$A$171)*(Projects!$K$5:K$2393)) -> 0 | E83: 0 | F83: =SUMPRODUCT((Projects!$A$5:$A$2393='MDOT FTA Detail'!$D$3)*(Projects!$C$5:$C$2393='MDOT FTA Detail'!$C$4)*(Projects!$L$5:$L$2393='MDOT FTA Detail'!$A83)*(Projects!$J$5:$J$2393<>'MDOT FTA Detail'!$A$171)*(Projects!$Q$5:Q$2393)) -> 0 | G83: =SUMPRODUCT((Projects!$A$5:$A$2393='MDOT FTA Detail'!$G$3)*(Projects!$C$5:$C$2393='MDOT FTA Detail'!$C$4)*(Projects!$L$5:$L$2393='MDOT FTA Detail'!$A83)*(Projects!$J$5:$J$2393<>'MDOT FTA Detail'!$A$171)*(Projects!$K$5:K$2393)) -> 0 | H83: 0 | I83: =SUMPRODUCT((Projects!$A$5:$A$2393='MDOT FTA Detail'!$G$3)*(Projects!$C$5:$C$2393='MDOT FTA Detail'!$C$4)*(Projects!$L$5:$L$2393='MDOT FTA Detail'!$A83)*(Projects!$J$5:$J$2393<>'MDOT FTA Detail'!$A$171)*(Projects!$Q$5:Q$2393)) -> 0 | J83: =SUMPRODUCT((Projects!$A$5:$A$2393='MDOT FTA Detail'!$J$3)*(Projects!$C$5:$C$2393='MDOT FTA Detail'!$C$4)*(Projects!$L$5:$L$2393='MDOT FTA Detail'!$A83)*(Projects!$J$5:$J$2393<>'MDOT FTA Detail'!$A$171)*(Projects!$K$5:$K$2393)) -> 0 | K83: 0 | L83: =SUMPRODUCT((Projects!$A$5:$A$2393='MDOT FTA Detail'!$J$3)*(Projects!$C$5:$C$2393='MDOT FTA Detail'!$C$4)*(Projects!$L$5:$L$2393='MDOT FTA Detail'!$A83)*(Projects!$J$5:$J$2393<>'MDOT FTA Detail'!$A$171)*(Projects!$Q$5:$Q$2393)) -> 0 | M83: =SUMPRODUCT((Projects!$A$5:$A$2393='MDOT FTA Detail'!$M$3)*(Projects!$C$5:$C$2393='MDOT FTA Detail'!$C$4)*(Projects!$L$5:$L$2393='MDOT FTA Detail'!$A83)*(Projects!$J$5:$J$2393<>'MDOT FTA Detail'!$A$171)*(Projects!$K$5:$K$2393)) -> 0 | N83: 0 | O83: =SUMPRODUCT((Projects!$A$5:$A$2393='MDOT FTA Detail'!$M$3)*(Projects!$C$5:$C$2393='MDOT FTA Detail'!$C$4)*(Projects!$L$5:$L$2393='MDOT FTA Detail'!$A83)*(Projects!$J$5:$J$2393<>'MDOT FTA Detail'!$A$171)*(Projects!$Q$5:$Q$2393)) -> 0
A84: STLG | B84: Surface Transportation Safety 100% Federal for STL Items | C84: MDOT FA | D84: =SUMPRODUCT((Projects!$A$5:$A$2393='MDOT FTA Detail'!$D$3)*(Projects!$C$5:$C$2393='MDOT FTA Detail'!$C$4)*(Projects!$L$5:$L$2393='MDOT FTA Detail'!$A84)*(Projects!$J$5:$J$2393<>'MDOT FTA Detail'!$A$171)*(Projects!$K$5:K$2393)) -> 0 | E84: =F84-D84 -> 0 | F84: =SUMPRODUCT((Projects!$A$5:$A$2393='MDOT FTA Detail'!$D$3)*(Projects!$C$5:$C$2393='MDOT FTA Detail'!$C$4)*(Projects!$L$5:$L$2393='MDOT FTA Detail'!$A84)*(Projects!$J$5:$J$2393<>'MDOT FTA Detail'!$A$171)*(Projects!$Q$5:Q$2393)) -> 0 | G84: =SUMPRODUCT((Projects!$A$5:$A$2393='MDOT FTA Detail'!$G$3)*(Projects!$C$5:$C$2393='MDOT FTA Detail'!$C$4)*(Projects!$L$5:$L$2393='MDOT FTA Detail'!$A84)*(Projects!$J$5:$J$2393<>'MDOT FTA Detail'!$A$171)*(Projects!$K$5:K$2393)) -> 0 | H84: =I84-G84 -> 0 | I84: =SUMPRODUCT((Projects!$A$5:$A$2393='MDOT FTA Detail'!$G$3)*(Projects!$C$5:$C$2393='MDOT FTA Detail'!$C$4)*(Projects!$L$5:$L$2393='MDOT FTA Detail'!$A84)*(Projects!$J$5:$J$2393<>'MDOT FTA Detail'!$A$171)*(Projects!$Q$5:Q$2393)) -> 0 | J84: =SUMPRODUCT((Projects!$A$5:$A$2393='MDOT FTA Detail'!$J$3)*(Projects!$C$5:$C$2393='MDOT FTA Detail'!$C$4)*(Projects!$L$5:$L$2393='MDOT FTA Detail'!$A84)*(Projects!$J$5:$J$2393<>'MDOT FTA Detail'!$A$171)*(Projects!$K$5:$K$2393)) -> 0 | K84: =L84-J84 -> 0 | L84: =SUMPRODUCT((Projects!$A$5:$A$2393='MDOT FTA Detail'!$J$3)*(Projects!$C$5:$C$2393='MDOT FTA Detail'!$C$4)*(Projects!$L$5:$L$2393='MDOT FTA Detail'!$A84)*(Projects!$J$5:$J$2393<>'MDOT FTA Detail'!$A$171)*(Projects!$Q$5:$Q$2393)) -> 0 | M84: =SUMPRODUCT((Projects!$A$5:$A$2393='MDOT FTA Detail'!$M$3)*(Projects!$C$5:$C$2393='MDOT FTA Detail'!$C$4)*(Projects!$L$5:$L$2393='MDOT FTA Detail'!$A84)*(Projects!$J$5:$J$2393<>'MDOT FTA Detail'!$A$171)*(Projects!$K$5:$K$2393)) -> 0 | N84: =O84-M84 -> 0 | O84: =SUMPRODUCT((Projects!$A$5:$A$2393='MDOT FTA Detail'!$M$3)*(Projects!$C$5:$C$2393='MDOT FTA Detail'!$C$4)*(Projects!$L$5:$L$2393='MDOT FTA Detail'!$A84)*(Projects!$J$5:$J$2393<>'MDOT FTA Detail'!$A$171)*(Projects!$Q$5:$Q$2393)) -> 0
A85: STR | B85: STP - Safety - Rail-Highway Crossing Protection | C85: MDOT FA | D85: =SUMPRODUCT((Projects!$A$5:$A$2393='MDOT FTA Detail'!$D$3)*(Projects!$C$5:$C$2393='MDOT FTA Detail'!$C$4)*(Projects!$L$5:$L$2393='MDOT FTA Detail'!$A85)*(Projects!$J$5:$J$2393<>'MDOT FTA Detail'!$A$171)*(Projects!$K$5:K$2393)) -> 0 | E85: 0 | F85: =SUMPRODUCT((Projects!$A$5:$A$2393='MDOT FTA Detail'!$D$3)*(Projects!$C$5:$C$2393='MDOT FTA Detail'!$C$4)*(Projects!$L$5:$L$2393='MDOT FTA Detail'!$A85)*(Projects!$J$5:$J$2393<>'MDOT FTA Detail'!$A$171)*(Projects!$Q$5:Q$2393)) -> 0 | G85: =SUMPRODUCT((Projects!$A$5:$A$2393='MDOT FTA Detail'!$G$3)*(Projects!$C$5:$C$2393='MDOT FTA Detail'!$C$4)*(Projects!$L$5:$L$2393='MDOT FTA Detail'!$A85)*(Projects!$J$5:$J$2393<>'MDOT FTA Detail'!$A$171)*(Projects!$K$5:K$2393)) -> 0 | H85: 0 | I85: =SUMPRODUCT((Projects!$A$5:$A$2393='MDOT FTA Detail'!$G$3)*(Projects!$C$5:$C$2393='MDOT FTA Detail'!$C$4)*(Projects!$L$5:$L$2393='MDOT FTA Detail'!$A85)*(Projects!$J$5:$J$2393<>'MDOT FTA Detail'!$A$171)*(Projects!$Q$5:Q$2393)) -> 0 | J85: =SUMPRODUCT((Projects!$A$5:$A$2393='MDOT FTA Detail'!$J$3)*(Projects!$C$5:$C$2393='MDOT FTA Detail'!$C$4)*(Projects!$L$5:$L$2393='MDOT FTA Detail'!$A85)*(Projects!$J$5:$J$2393<>'MDOT FTA Detail'!$A$171)*(Projects!$K$5:$K$2393)) -> 0 | K85: 0 | L85: =SUMPRODUCT((Projects!$A$5:$A$2393='MDOT FTA Detail'!$J$3)*(Projects!$C$5:$C$2393='MDOT FTA Detail'!$C$4)*(Projects!$L$5:$L$2393='MDOT FTA Detail'!$A85)*(Projects!$J$5:$J$2393<>'MDOT FTA Detail'!$A$171)*(Projects!$Q$5:$Q$2393)) -> 0 | M85: =SUMPRODUCT((Projects!$A$5:$A$2393='MDOT FTA Detail'!$M$3)*(Projects!$C$5:$C$2393='MDOT FTA Detail'!$C$4)*(Projects!$L$5:$L$2393='MDOT FTA Detail'!$A85)*(Projects!$J$5:$J$2393<>'MDOT FTA Detail'!$A$171)*(Projects!$K$5:$K$2393)) -> 0 | N85: 0 | O85: =SUMPRODUCT((Projects!$A$5:$A$2393='MDOT FTA Detail'!$M$3)*(Projects!$C$5:$C$2393='MDOT FTA Detail'!$C$4)*(Projects!$L$5:$L$2393='MDOT FTA Detail'!$A85)*(Projects!$J$5:$J$2393<>'MDOT FTA Detail'!$A$171)*(Projects!$Q$5:$Q$2393)) -> 0
A86: STRG | B86: STP - Safety Rail-Highway & Incentive Payment - 100% Federal | C86: MDOT FA | D86: =SUMPRODUCT((Projects!$A$5:$A$2393='MDOT FTA Detail'!$D$3)*(Projects!$C$5:$C$2393='MDOT FTA Detail'!$C$4)*(Projects!$L$5:$L$2393='MDOT FTA Detail'!$A86)*(Projects!$J$5:$J$2393<>'MDOT FTA Detail'!$A$171)*(Projects!$K$5:K$2393)) -> 0 | E86: 0 | F86: =SUMPRODUCT((Projects!$A$5:$A$2393='MDOT FTA Detail'!$D$3)*(Projects!$C$5:$C$2393='MDOT FTA Detail'!$C$4)*(Projects!$L$5:$L$2393='MDOT FTA Detail'!$A86)*(Projects!$J$5:$J$2393<>'MDOT FTA Detail'!$A$171)*(Projects!$Q$5:Q$2393)) -> 0 | G86: =SUMPRODUCT((Projects!$A$5:$A$2393='MDOT FTA Detail'!$G$3)*(Projects!$C$5:$C$2393='MDOT FTA Detail'!$C$4)*(Projects!$L$5:$L$2393='MDOT FTA Detail'!$A86)*(Projects!$J$5:$J$2393<>'MDOT FTA Detail'!$A$171)*(Projects!$K$5:K$2393)) -> 0 | H86: 0 | I86: =SUMPRODUCT((Projects!$A$5:$A$2393='MDOT FTA Detail'!$G$3)*(Projects!$C$5:$C$2393='MDOT FTA Detail'!$C$4)*(Projects!$L$5:$L$2393='MDOT FTA Detail'!$A86)*(Projects!$J$5:$J$2393<>'MDOT FTA Detail'!$A$171)*(Projects!$Q$5:Q$2393)) -> 0 | J86: =SUMPRODUCT((Projects!$A$5:$A$2393='MDOT FTA Detail'!$J$3)*(Projects!$C$5:$C$2393='MDOT FTA Detail'!$C$4)*(Projects!$L$5:$L$2393='MDOT FTA Detail'!$A86)*(Projects!$J$5:$J$2393<>'MDOT FTA Detail'!$A$171)*(Projects!$K$5:$K$2393)) -> 0 | K86: 0 | L86: =SUMPRODUCT((Projects!$A$5:$A$2393='MDOT FTA Detail'!$J$3)*(Projects!$C$5:$C$2393='MDOT FTA Detail'!$C$4)*(Projects!$L$5:$L$2393='MDOT FTA Detail'!$A86)*(Projects!$J$5:$J$2393<>'MDOT FTA Detail'!$A$171)*(Projects!$Q$5:$Q$2393)) -> 0 | M86: =SUMPRODUCT((Projects!$A$5:$A$2393='MDOT FTA Detail'!$M$3)*(Projects!$C$5:$C$2393='MDOT FTA Detail'!$C$4)*(Projects!$L$5:$L$2393='MDOT FTA Detail'!$A86)*(Projects!$J$5:$J$2393<>'MDOT FTA Detail'!$A$171)*(Projects!$K$5:$K$2393)) -> 0 | N86: 0 | O86: =SUMPRODUCT((Projects!$A$5:$A$2393='MDOT FTA Detail'!$M$3)*(Projects!$C$5:$C$2393='MDOT FTA Detail'!$C$4)*(Projects!$L$5:$L$2393='MDOT FTA Detail'!$A86)*(Projects!$J$5:$J$2393<>'MDOT FTA Detail'!$A$171)*(Projects!$Q$5:$Q$2393)) -> 0
A87: STRH | B87: Surface Transportation Safety Highway Crossing Hazard Elimination | C87: MDOT FA | D87: =SUMPRODUCT((Projects!$A$5:$A$2393='MDOT FTA Detail'!$D$3)*(Projects!$C$5:$C$2393='MDOT FTA Detail'!$C$4)*(Projects!$L$5:$L$2393='MDOT FTA Detail'!$A87)*(Projects!$J$5:$J$2393<>'MDOT FTA Detail'!$A$171)*(Projects!$K$5:K$2393)) -> 0 | E87: =F87-D87 -> 0 | F87: =SUMPRODUCT((Projects!$A$5:$A$2393='MDOT FTA Detail'!$D$3)*(Projects!$C$5:$C$2393='MDOT FTA Detail'!$C$4)*(Projects!$L$5:$L$2393='MDOT FTA Detail'!$A87)*(Projects!$J$5:$J$2393<>'MDOT FTA Detail'!$A$171)*(Projects!$Q$5:Q$2393)) -> 0 | G87: =SUMPRODUCT((Projects!$A$5:$A$2393='MDOT FTA Detail'!$G$3)*(Projects!$C$5:$C$2393='MDOT FTA Detail'!$C$4)*(Projects!$L$5:$L$2393='MDOT FTA Detail'!$A87)*(Projects!$J$5:$J$2393<>'MDOT FTA Detail'!$A$171)*(Projects!$K$5:K$2393)) -> 0 | H87: =I87-G87 -> 0 | I87: =SUMPRODUCT((Projects!$A$5:$A$2393='MDOT FTA Detail'!$G$3)*(Projects!$C$5:$C$2393='MDOT FTA Detail'!$C$4)*(Projects!$L$5:$L$2393='MDOT FTA Detail'!$A87)*(Projects!$J$5:$J$2393<>'MDOT FTA Detail'!$A$171)*(Projects!$Q$5:Q$2393)) -> 0 | J87: =SUMPRODUCT((Projects!$A$5:$A$2393='MDOT FTA Detail'!$J$3)*(Projects!$C$5:$C$2393='MDOT FTA Detail'!$C$4)*(Projects!$L$5:$L$2393='MDOT FTA Detail'!$A87)*(Projects!$J$5:$J$2393<>'MDOT FTA Detail'!$A$171)*(Projects!$K$5:$K$2393)) -> 0 | K87: =L87-J87 -> 0 | L87: =SUMPRODUCT((Projects!$A$5:$A$2393='MDOT FTA Detail'!$J$3)*(Projects!$C$5:$C$2393='MDOT FTA Detail'!$C$4)*(Projects!$L$5:$L$2393='MDOT FTA Detail'!$A87)*(Projects!$J$5:$J$2393<>'MDOT FTA Detail'!$A$171)*(Projects!$Q$5:$Q$2393)) -> 0 | M87: =SUMPRODUCT((Projects!$A$5:$A$2393='MDOT FTA Detail'!$M$3)*(Projects!$C$5:$C$2393='MDOT FTA Detail'!$C$4)*(Projects!$L$5:$L$2393='MDOT FTA Detail'!$A87)*(Projects!$J$5:$J$2393<>'MDOT FTA Detail'!$A$171)*(Projects!$K$5:$K$2393)) -> 0 | N87: =O87-M87 -> 0 | O87: =SUMPRODUCT((Projects!$A$5:$A$2393='MDOT FTA Detail'!$M$3)*(Projects!$C$5:$C$2393='MDOT FTA Detail'!$C$4)*(Projects!$L$5:$L$2393='MDOT FTA Detail'!$A87)*(Projects!$J$5:$J$2393<>'MDOT FTA Detail'!$A$171)*(Projects!$Q$5:$Q$2393)) -> 0
A88: STRP | B88: Surface Transportation Safety Highway Crossing Protection Devices | C88: MDOT FA | D88: =SUMPRODUCT((Projects!$A$5:$A$2393='MDOT FTA Detail'!$D$3)*(Projects!$C$5:$C$2393='MDOT FTA Detail'!$C$4)*(Projects!$L$5:$L$2393='MDOT FTA Detail'!$A88)*(Projects!$J$5:$J$2393<>'MDOT FTA Detail'!$A$171)*(Projects!$K$5:K$2393)) -> 0 | E88: =F88-D88 -> 0 | F88: =SUMPRODUCT((Projects!$A$5:$A$2393='MDOT FTA Detail'!$D$3)*(Projects!$C$5:$C$2393='MDOT FTA Detail'!$C$4)*(Projects!$L$5:$L$2393='MDOT FTA Detail'!$A88)*(Projects!$J$5:$J$2393<>'MDOT FTA Detail'!$A$171)*(Projects!$Q$5:Q$2393)) -> 0 | G88: =SUMPRODUCT((Projects!$A$5:$A$2393='MDOT FTA Detail'!$G$3)*(Projects!$C$5:$C$2393='MDOT FTA Detail'!$C$4)*(Projects!$L$5:$L$2393='MDOT FTA Detail'!$A88)*(Projects!$J$5:$J$2393<>'MDOT FTA Detail'!$A$171)*(Projects!$K$5:K$2393)) -> 0 | H88: =I88-G88 -> 0 | I88: =SUMPRODUCT((Projects!$A$5:$A$2393='MDOT FTA Detail'!$G$3)*(Projects!$C$5:$C$2393='MDOT FTA Detail'!$C$4)*(Projects!$L$5:$L$2393='MDOT FTA Detail'!$A88)*(Projects!$J$5:$J$2393<>'MDOT FTA Detail'!$A$171)*(Projects!$Q$5:Q$2393)) -> 0 | J88: =SUMPRODUCT((Projects!$A$5:$A$2393='MDOT FTA Detail'!$J$3)*(Projects!$C$5:$C$2393='MDOT FTA Detail'!$C$4)*(Projects!$L$5:$L$2393='MDOT FTA Detail'!$A88)*(Projects!$J$5:$J$2393<>'MDOT FTA Detail'!$A$171)*(Projects!$K$5:$K$2393)) -> 0 | K88: =L88-J88 -> 0 | L88: =SUMPRODUCT((Projects!$A$5:$A$2393='MDOT FTA Detail'!$J$3)*(Projects!$C$5:$C$2393='MDOT FTA Detail'!$C$4)*(Projects!$L$5:$L$2393='MDOT FTA Detail'!$A88)*(Projects!$J$5:$J$2393<>'MDOT FTA Detail'!$A$171)*(Projects!$Q$5:$Q$2393)) -> 0 | M88: =SUMPRODUCT((Projects!$A$5:$A$2393='MDOT FTA Detail'!$M$3)*(Projects!$C$5:$C$2393='MDOT FTA Detail'!$C$4)*(Projects!$L$5:$L$2393='MDOT FTA Detail'!$A88)*(Projects!$J$5:$J$2393<>'MDOT FTA Detail'!$A$171)*(Projects!$K$5:$K$2393)) -> 0 | N88: =O88-M88 -> 0 | O88: =SUMPRODUCT((Projects!$A$5:$A$2393='MDOT FTA Detail'!$M$3)*(Projects!$C$5:$C$2393='MDOT FTA Detail'!$C$4)*(Projects!$L$5:$L$2393='MDOT FTA Detail'!$A88)*(Projects!$J$5:$J$2393<>'MDOT FTA Detail'!$A$171)*(Projects!$Q$5:$Q$2393)) -> 0
A89: STS | B89: STP - Any Area- MDOT Safety Program | C89: MDOT FA | D89: =SUMPRODUCT((Projects!$A$5:$A$2393='MDOT FTA Detail'!$D$3)*(Projects!$C$5:$C$2393='MDOT FTA Detail'!$C$4)*(Projects!$L$5:$L$2393='MDOT FTA Detail'!$A89)*(Projects!$J$5:$J$2393<>'MDOT FTA Detail'!$A$171)*(Projects!$K$5:K$2393)) -> 0 | E89: 0 | F89: =SUMPRODUCT((Projects!$A$5:$A$2393='MDOT FTA Detail'!$D$3)*(Projects!$C$5:$C$2393='MDOT FTA Detail'!$C$4)*(Projects!$L$5:$L$2393='MDOT FTA Detail'!$A89)*(Projects!$J$5:$J$2393<>'MDOT FTA Detail'!$A$171)*(Projects!$Q$5:Q$2393)) -> 0 | G89: =SUMPRODUCT((Projects!$A$5:$A$2393='MDOT FTA Detail'!$G$3)*(Projects!$C$5:$C$2393='MDOT FTA Detail'!$C$4)*(Projects!$L$5:$L$2393='MDOT FTA Detail'!$A89)*(Projects!$J$5:$J$2393<>'MDOT FTA Detail'!$A$171)*(Projects!$K$5:K$2393)) -> 0 | H89: 0 | I89: =SUMPRODUCT((Projects!$A$5:$A$2393='MDOT FTA Detail'!$G$3)*(Projects!$C$5:$C$2393='MDOT FTA Detail'!$C$4)*(Projects!$L$5:$L$2393='MDOT FTA Detail'!$A89)*(Projects!$J$5:$J$2393<>'MDOT FTA Detail'!$A$171)*(Projects!$Q$5:Q$2393)) -> 0 | J89: =SUMPRODUCT((Projects!$A$5:$A$2393='MDOT FTA Detail'!$J$3)*(Projects!$C$5:$C$2393='MDOT FTA Detail'!$C$4)*(Projects!$L$5:$L$2393='MDOT FTA Detail'!$A89)*(Projects!$J$5:$J$2393<>'MDOT FTA Detail'!$A$171)*(Projects!$K$5:$K$2393)) -> 0 | K89: 0 | L89: =SUMPRODUCT((Projects!$A$5:$A$2393='MDOT FTA Detail'!$J$3)*(Projects!$C$5:$C$2393='MDOT FTA Detail'!$C$4)*(Projects!$L$5:$L$2393='MDOT FTA Detail'!$A89)*(Projects!$J$5:$J$2393<>'MDOT FTA Detail'!$A$171)*(Projects!$Q$5:$Q$2393)) -> 0 | M89: =SUMPRODUCT((Projects!$A$5:$A$2393='MDOT FTA Detail'!$M$3)*(Projects!$C$5:$C$2393='MDOT FTA Detail'!$C$4)*(Projects!$L$5:$L$2393='MDOT FTA Detail'!$A89)*(Projects!$J$5:$J$2393<>'MDOT FTA Detail'!$A$171)*(Projects!$K$5:$K$2393)) -> 0 | N89: 0 | O89: =SUMPRODUCT((Projects!$A$5:$A$2393='MDOT FTA Detail'!$M$3)*(Projects!$C$5:$C$2393='MDOT FTA Detail'!$C$4)*(Projects!$L$5:$L$2393='MDOT FTA Detail'!$A89)*(Projects!$J$5:$J$2393<>'MDOT FTA Detail'!$A$171)*(Projects!$Q$5:$Q$2393)) -> 0
A90: STT | B90: STP - Trunkline | C90: MDOT FA | D90: =SUMPRODUCT((Projects!$A$5:$A$2393='MDOT FTA Detail'!$D$3)*(Projects!$C$5:$C$2393='MDOT FTA Detail'!$C$4)*(Projects!$L$5:$L$2393='MDOT FTA Detail'!$A90)*(Projects!$J$5:$J$2393<>'MDOT FTA Detail'!$A$171)*(Projects!$K$5:K$2393)) -> 0 | E90: 0 | F90: =SUMPRODUCT((Projects!$A$5:$A$2393='MDOT FTA Detail'!$D$3)*(Projects!$C$5:$C$2393='MDOT FTA Detail'!$C$4)*(Projects!$L$5:$L$2393='MDOT FTA Detail'!$A90)*(Projects!$J$5:$J$2393<>'MDOT FTA Detail'!$A$171)*(Projects!$Q$5:Q$2393)) -> 0 | G90: =SUMPRODUCT((Projects!$A$5:$A$2393='MDOT FTA Detail'!$G$3)*(Projects!$C$5:$C$2393='MDOT FTA Detail'!$C$4)*(Projects!$L$5:$L$2393='MDOT FTA Detail'!$A90)*(Projects!$J$5:$J$2393<>'MDOT FTA Detail'!$A$171)*(Projects!$K$5:K$2393)) -> 0 | H90: 0 | I90: =SUMPRODUCT((Projects!$A$5:$A$2393='MDOT FTA Detail'!$G$3)*(Projects!$C$5:$C$2393='MDOT FTA Detail'!$C$4)*(Projects!$L$5:$L$2393='MDOT FTA Detail'!$A90)*(Projects!$J$5:$J$2393<>'MDOT FTA Detail'!$A$171)*(Projects!$Q$5:Q$2393)) -> 0 | J90: =SUMPRODUCT((Projects!$A$5:$A$2393='MDOT FTA Detail'!$J$3)*(Projects!$C$5:$C$2393='MDOT FTA Detail'!$C$4)*(Projects!$L$5:$L$2393='MDOT FTA Detail'!$A90)*(Projects!$J$5:$J$2393<>'MDOT FTA Detail'!$A$171)*(Projects!$K$5:$K$2393)) -> 0 | K90: 0 | L90: =SUMPRODUCT((Projects!$A$5:$A$2393='MDOT FTA Detail'!$J$3)*(Projects!$C$5:$C$2393='MDOT FTA Detail'!$C$4)*(Projects!$L$5:$L$2393='MDOT FTA Detail'!$A90)*(Projects!$J$5:$J$2393<>'MDOT FTA Detail'!$A$171)*(Projects!$Q$5:$Q$2393)) -> 0 | M90: =SUMPRODUCT((Projects!$A$5:$A$2393='MDOT FTA Detail'!$M$3)*(Projects!$C$5:$C$2393='MDOT FTA Detail'!$C$4)*(Projects!$L$5:$L$2393='MDOT FTA Detail'!$A90)*(Projects!$J$5:$J$2393<>'MDOT FTA Detail'!$A$171)*(Projects!$K$5:$K$2393)) -> 0 | N90: 0 | O90: =SUMPRODUCT((Projects!$A$5:$A$2393='MDOT FTA Detail'!$M$3)*(Projects!$C$5:$C$2393='MDOT FTA Detail'!$C$4)*(Projects!$L$5:$L$2393='MDOT FTA Detail'!$A90)*(Projects!$J$5:$J$2393<>'MDOT FTA Detail'!$A$171)*(Projects!$Q$5:$Q$2393)) -> 0
A91: STU | B91: STP - Urban Areas > 200,000 Population | C91: MDOT FA | D91: =SUMPRODUCT((Projects!$A$5:$A$2393='MDOT FTA Detail'!$D$3)*(Projects!$C$5:$C$2393='MDOT FTA Detail'!$C$4)*(Projects!$L$5:$L$2393='MDOT FTA Detail'!$A91)*(Projects!$J$5:$J$2393<>'MDOT FTA Detail'!$A$171)*(Projects!$K$5:K$2393)) -> 0 | E91: 0 | F91: =SUMPRODUCT((Projects!$A$5:$A$2393='MDOT FTA Detail'!$D$3)*(Projects!$C$5:$C$2393='MDOT FTA Detail'!$C$4)*(Projects!$L$5:$L$2393='MDOT FTA Detail'!$A91)*(Projects!$J$5:$J$2393<>'MDOT FTA Detail'!$A$171)*(Projects!$Q$5:Q$2393)) -> 0 | G91: =SUMPRODUCT((Projects!$A$5:$A$2393='MDOT FTA Detail'!$G$3)*(Projects!$C$5:$C$2393='MDOT FTA Detail'!$C$4)*(Projects!$L$5:$L$2393='MDOT FTA Detail'!$A91)*(Projects!$J$5:$J$2393<>'MDOT FTA Detail'!$A$171)*(Projects!$K$5:K$2393)) -> 0 | H91: 0 | I91: =SUMPRODUCT((Projects!$A$5:$A$2393='MDOT FTA Detail'!$G$3)*(Projects!$C$5:$C$2393='MDOT FTA Detail'!$C$4)*(Projects!$L$5:$L$2393='MDOT FTA Detail'!$A91)*(Projects!$J$5:$J$2393<>'MDOT FTA Detail'!$A$171)*(Projects!$Q$5:Q$2393)) -> 0 | J91: =SUMPRODUCT((Projects!$A$5:$A$2393='MDOT FTA Detail'!$J$3)*(Projects!$C$5:$C$2393='MDOT FTA Detail'!$C$4)*(Projects!$L$5:$L$2393='MDOT FTA Detail'!$A91)*(Projects!$J$5:$J$2393<>'MDOT FTA Detail'!$A$171)*(Projects!$K$5:$K$2393)) -> 0 | K91: 0 | L91: =SUMPRODUCT((Projects!$A$5:$A$2393='MDOT FTA Detail'!$J$3)*(Projects!$C$5:$C$2393='MDOT FTA Detail'!$C$4)*(Projects!$L$5:$L$2393='MDOT FTA Detail'!$A91)*(Projects!$J$5:$J$2393<>'MDOT FTA Detail'!$A$171)*(Projects!$Q$5:$Q$2393)) -> 0 | M91: =SUMPRODUCT((Projects!$A$5:$A$2393='MDOT FTA Detail'!$M$3)*(Projects!$C$5:$C$2393='MDOT FTA Detail'!$C$4)*(Projects!$L$5:$L$2393='MDOT FTA Detail'!$A91)*(Projects!$J$5:$J$2393<>'MDOT FTA Detail'!$A$171)*(Projects!$K$5:$K$2393)) -> 0 | N91: 0 | O91: =SUMPRODUCT((Projects!$A$5:$A$2393='MDOT FTA Detail'!$M$3)*(Projects!$C$5:$C$2393='MDOT FTA Detail'!$C$4)*(Projects!$L$5:$L$2393='MDOT FTA Detail'!$A91)*(Projects!$J$5:$J$2393<>'MDOT FTA Detail'!$A$171)*(Projects!$Q$5:$Q$2393)) -> 0
A92: STUG | B92: STP - Urban Areas < 200,000 Population 100% | C92: MDOT FA | D92: =SUMPRODUCT((Projects!$A$5:$A$2393='MDOT FTA Detail'!$D$3)*(Projects!$C$5:$C$2393='MDOT FTA Detail'!$C$4)*(Projects!$L$5:$L$2393='MDOT FTA Detail'!$A92)*(Projects!$J$5:$J$2393<>'MDOT FTA Detail'!$A$171)*(Projects!$K$5:K$2393)) -> 0 | E92: =F92-D92 -> 0 | F92: =SUMPRODUCT((Projects!$A$5:$A$2393='MDOT FTA Detail'!$D$3)*(Projects!$C$5:$C$2393='MDOT FTA Detail'!$C$4)*(Projects!$L$5:$L$2393='MDOT FTA Detail'!$A92)*(Projects!$J$5:$J$2393<>'MDOT FTA Detail'!$A$171)*(Projects!$Q$5:Q$2393)) -> 0 | G92: =SUMPRODUCT((Projects!$A$5:$A$2393='MDOT FTA Detail'!$G$3)*(Projects!$C$5:$C$2393='MDOT FTA Detail'!$C$4)*(Projects!$L$5:$L$2393='MDOT FTA Detail'!$A92)*(Projects!$J$5:$J$2393<>'MDOT FTA Detail'!$A$171)*(Projects!$K$5:K$2393)) -> 0 | H92: =I92-G92 -> 0 | I92: =SUMPRODUCT((Projects!$A$5:$A$2393='MDOT FTA Detail'!$G$3)*(Projects!$C$5:$C$2393='MDOT FTA Detail'!$C$4)*(Projects!$L$5:$L$2393='MDOT FTA Detail'!$A92)*(Projects!$J$5:$J$2393<>'MDOT FTA Detail'!$A$171)*(Projects!$Q$5:Q$2393)) -> 0 | J92: =SUMPRODUCT((Projects!$A$5:$A$2393='MDOT FTA Detail'!$J$3)*(Projects!$C$5:$C$2393='MDOT FTA Detail'!$C$4)*(Projects!$L$5:$L$2393='MDOT FTA Detail'!$A92)*(Projects!$J$5:$J$2393<>'MDOT FTA Detail'!$A$171)*(Projects!$K$5:$K$2393)) -> 0 | K92: =L92-J92 -> 0 | L92: =SUMPRODUCT((Projects!$A$5:$A$2393='MDOT FTA Detail'!$J$3)*(Projects!$C$5:$C$2393='MDOT FTA Detail'!$C$4)*(Projects!$L$5:$L$2393='MDOT FTA Detail'!$A92)*(Projects!$J$5:$J$2393<>'MDOT FTA Detail'!$A$171)*(Projects!$Q$5:$Q$2393)) -> 0 | M92: =SUMPRODUCT((Projects!$A$5:$A$2393='MDOT FTA Detail'!$M$3)*(Projects!$C$5:$C$2393='MDOT FTA Detail'!$C$4)*(Projects!$L$5:$L$2393='MDOT FTA Detail'!$A92)*(Projects!$J$5:$J$2393<>'MDOT FTA Detail'!$A$171)*(Projects!$K$5:$K$2393)) -> 0 | N92: =O92-M92 -> 0 | O92: =SUMPRODUCT((Projects!$A$5:$A$2393='MDOT FTA Detail'!$M$3)*(Projects!$C$5:$C$2393='MDOT FTA Detail'!$C$4)*(Projects!$L$5:$L$2393='MDOT FTA Detail'!$A92)*(Projects!$J$5:$J$2393<>'MDOT FTA Detail'!$A$171)*(Projects!$Q$5:$Q$2393)) -> 0
A93: STUL | B93: STP - Urban Areas < 200,000 Population | C93: MDOT FA | D93: =SUMPRODUCT((Projects!$A$5:$A$2393='MDOT FTA Detail'!$D$3)*(Projects!$C$5:$C$2393='MDOT FTA Detail'!$C$4)*(Projects!$L$5:$L$2393='MDOT FTA Detail'!$A93)*(Projects!$J$5:$J$2393<>'MDOT FTA Detail'!$A$171)*(Projects!$K$5:K$2393)) -> 0 | E93: 0 | F93: =SUMPRODUCT((Projects!$A$5:$A$2393='MDOT FTA Detail'!$D$3)*(Projects!$C$5:$C$2393='MDOT FTA Detail'!$C$4)*(Projects!$L$5:$L$2393='MDOT FTA Detail'!$A93)*(Projects!$J$5:$J$2393<>'MDOT FTA Detail'!$A$171)*(Projects!$Q$5:Q$2393)) -> 0 | G93: =SUMPRODUCT((Projects!$A$5:$A$2393='MDOT FTA Detail'!$G$3)*(Projects!$C$5:$C$2393='MDOT FTA Detail'!$C$4)*(Projects!$L$5:$L$2393='MDOT FTA Detail'!$A93)*(Projects!$J$5:$J$2393<>'MDOT FTA Detail'!$A$171)*(Projects!$K$5:K$2393)) -> 0 | H93: 0 | I93: =SUMPRODUCT((Projects!$A$5:$A$2393='MDOT FTA Detail'!$G$3)*(Projects!$C$5:$C$2393='MDOT FTA Detail'!$C$4)*(Projects!$L$5:$L$2393='MDOT FTA Detail'!$A93)*(Projects!$J$5:$J$2393<>'MDOT FTA Detail'!$A$171)*(Projects!$Q$5:Q$2393)) -> 0 | J93: =SUMPRODUCT((Projects!$A$5:$A$2393='MDOT FTA Detail'!$J$3)*(Projects!$C$5:$C$2393='MDOT FTA Detail'!$C$4)*(Projects!$L$5:$L$2393='MDOT FTA Detail'!$A93)*(Projects!$J$5:$J$2393<>'MDOT FTA Detail'!$A$171)*(Projects!$K$5:$K$2393)) -> 0 | K93: 0 | L93: =SUMPRODUCT((Projects!$A$5:$A$2393='MDOT FTA Detail'!$J$3)*(Projects!$C$5:$C$2393='MDOT FTA Detail'!$C$4)*(Projects!$L$5:$L$2393='MDOT FTA Detail'!$A93)*(Projects!$J$5:$J$2393<>'MDOT FTA Detail'!$A$171)*(Projects!$Q$5:$Q$2393)) -> 0 | M93: =SUMPRODUCT((Projects!$A$5:$A$2393='MDOT FTA Detail'!$M$3)*(Projects!$C$5:$C$2393='MDOT FTA Detail'!$C$4)*(Projects!$L$5:$L$2393='MDOT FTA Detail'!$A93)*(Projects!$J$5:$J$2393<>'MDOT FTA Detail'!$A$171)*(Projects!$K$5:$K$2393)) -> 0 | N93: 0 | O93: =SUMPRODUCT((Projects!$A$5:$A$2393='MDOT FTA Detail'!$M$3)*(Projects!$C$5:$C$2393='MDOT FTA Detail'!$C$4)*(Projects!$L$5:$L$2393='MDOT FTA Detail'!$A93)*(Projects!$J$5:$J$2393<>'MDOT FTA Detail'!$A$171)*(Projects!$Q$5:$Q$2393)) -> 0
A94: STUT | B94: STP - Urban Areas < 200,000 Population - Trunkline | C94: MDOT FA | D94: =SUMPRODUCT((Projects!$A$5:$A$2393='MDOT FTA Detail'!$D$3)*(Projects!$C$5:$C$2393='MDOT FTA Detail'!$C$4)*(Projects!$L$5:$L$2393='MDOT FTA Detail'!$A94)*(Projects!$J$5:$J$2393<>'MDOT FTA Detail'!$A$171)*(Projects!$K$5:K$2393)) -> 0 | E94: 0 | F94: =SUMPRODUCT((Projects!$A$5:$A$2393='MDOT FTA Detail'!$D$3)*(Projects!$C$5:$C$2393='MDOT FTA Detail'!$C$4)*(Projects!$L$5:$L$2393='MDOT FTA Detail'!$A94)*(Projects!$J$5:$J$2393<>'MDOT FTA Detail'!$A$171)*(Projects!$Q$5:Q$2393)) -> 0 | G94: =SUMPRODUCT((Projects!$A$5:$A$2393='MDOT FTA Detail'!$G$3)*(Projects!$C$5:$C$2393='MDOT FTA Detail'!$C$4)*(Projects!$L$5:$L$2393='MDOT FTA Detail'!$A94)*(Projects!$J$5:$J$2393<>'MDOT FTA Detail'!$A$171)*(Projects!$K$5:K$2393)) -> 0 | H94: 0 | I94: =SUMPRODUCT((Projects!$A$5:$A$2393='MDOT FTA Detail'!$G$3)*(Projects!$C$5:$C$2393='MDOT FTA Detail'!$C$4)*(Projects!$L$5:$L$2393='MDOT FTA Detail'!$A94)*(Projects!$J$5:$J$2393<>'MDOT FTA Detail'!$A$171)*(Projects!$Q$5:Q$2393)) -> 0 | J94: =SUMPRODUCT((Projects!$A$5:$A$2393='MDOT FTA Detail'!$J$3)*(Projects!$C$5:$C$2393='MDOT FTA Detail'!$C$4)*(Projects!$L$5:$L$2393='MDOT FTA Detail'!$A94)*(Projects!$J$5:$J$2393<>'MDOT FTA Detail'!$A$171)*(Projects!$K$5:$K$2393)) -> 0 | K94: 0 | L94: =SUMPRODUCT((Projects!$A$5:$A$2393='MDOT FTA Detail'!$J$3)*(Projects!$C$5:$C$2393='MDOT FTA Detail'!$C$4)*(Projects!$L$5:$L$2393='MDOT FTA Detail'!$A94)*(Projects!$J$5:$J$2393<>'MDOT FTA Detail'!$A$171)*(Projects!$Q$5:$Q$2393)) -> 0 | M94: =SUMPRODUCT((Projects!$A$5:$A$2393='MDOT FTA Detail'!$M$3)*(Projects!$C$5:$C$2393='MDOT FTA Detail'!$C$4)*(Projects!$L$5:$L$2393='MDOT FTA Detail'!$A94)*(Projects!$J$5:$J$2393<>'MDOT FTA Detail'!$A$171)*(Projects!$K$5:$K$2393)) -> 0 | N94: 0 | O94: =SUMPRODUCT((Projects!$A$5:$A$2393='MDOT FTA Detail'!$M$3)*(Projects!$C$5:$C$2393='MDOT FTA Detail'!$C$4)*(Projects!$L$5:$L$2393='MDOT FTA Detail'!$A94)*(Projects!$J$5:$J$2393<>'MDOT FTA Detail'!$A$171)*(Projects!$Q$5:$Q$2393)) -> 0
A95: SUG | B95: STP - Safety - 100% Federal for STU | C95: MDOT FA | D95: =SUMPRODUCT((Projects!$A$5:$A$2393='MDOT FTA Detail'!$D$3)*(Projects!$C$5:$C$2393='MDOT FTA Detail'!$C$4)*(Projects!$L$5:$L$2393='MDOT FTA Detail'!$A95)*(Projects!$J$5:$J$2393<>'MDOT FTA Detail'!$A$171)*(Projects!$K$5:K$2393)) -> 0 | E95: 0 | F95: =SUMPRODUCT((Projects!$A$5:$A$2393='MDOT FTA Detail'!$D$3)*(Projects!$C$5:$C$2393='MDOT FTA Detail'!$C$4)*(Projects!$L$5:$L$2393='MDOT FTA Detail'!$A95)*(Projects!$J$5:$J$2393<>'MDOT FTA Detail'!$A$171)*(Projects!$Q$5:Q$2393)) -> 0 | G95: =SUMPRODUCT((Projects!$A$5:$A$2393='MDOT FTA Detail'!$G$3)*(Projects!$C$5:$C$2393='MDOT FTA Detail'!$C$4)*(Projects!$L$5:$L$2393='MDOT FTA Detail'!$A95)*(Projects!$J$5:$J$2393<>'MDOT FTA Detail'!$A$171)*(Projects!$K$5:K$2393)) -> 0 | H95: 0 | I95: =SUMPRODUCT((Projects!$A$5:$A$2393='MDOT FTA Detail'!$G$3)*(Projects!$C$5:$C$2393='MDOT FTA Detail'!$C$4)*(Projects!$L$5:$L$2393='MDOT FTA Detail'!$A95)*(Projects!$J$5:$J$2393<>'MDOT FTA Detail'!$A$171)*(Projects!$Q$5:Q$2393)) -> 0 | J95: =SUMPRODUCT((Projects!$A$5:$A$2393='MDOT FTA Detail'!$J$3)*(Projects!$C$5:$C$2393='MDOT FTA Detail'!$C$4)*(Projects!$L$5:$L$2393='MDOT FTA Detail'!$A95)*(Projects!$J$5:$J$2393<>'MDOT FTA Detail'!$A$171)*(Projects!$K$5:$K$2393)) -> 0 | K95: 0 | L95: =SUMPRODUCT((Projects!$A$5:$A$2393='MDOT FTA Detail'!$J$3)*(Projects!$C$5:$C$2393='MDOT FTA Detail'!$C$4)*(Projects!$L$5:$L$2393='MDOT FTA Detail'!$A95)*(Projects!$J$5:$J$2393<>'MDOT FTA Detail'!$A$171)*(Projects!$Q$5:$Q$2393)) -> 0 | M95: =SUMPRODUCT((Projects!$A$5:$A$2393='MDOT FTA Detail'!$M$3)*(Projects!$C$5:$C$2393='MDOT FTA Detail'!$C$4)*(Projects!$L$5:$L$2393='MDOT FTA Detail'!$A95)*(Projects!$J$5:$J$2393<>'MDOT FTA Detail'!$A$171)*(Projects!$K$5:$K$2393)) -> 0 | N95: 0 | O95: =SUMPRODUCT((Projects!$A$5:$A$2393='MDOT FTA Detail'!$M$3)*(Projects!$C$5:$C$2393='MDOT FTA Detail'!$C$4)*(Projects!$L$5:$L$2393='MDOT FTA Detail'!$A95)*(Projects!$J$5:$J$2393<>'MDOT FTA Detail'!$A$171)*(Projects!$Q$5:$Q$2393)) -> 0
A96: SUL | B96: Surface Transportation Urban Areas <200,000 Population | C96: MDOT FA | D96: =SUMPRODUCT((Projects!$A$5:$A$2393='MDOT FTA Detail'!$D$3)*(Projects!$C$5:$C$2393='MDOT FTA Detail'!$C$4)*(Projects!$L$5:$L$2393='MDOT FTA Detail'!$A96)*(Projects!$J$5:$J$2393<>'MDOT FTA Detail'!$A$171)*(Projects!$K$5:K$2393)) -> 0 | E96: 0 | F96: =SUMPRODUCT((Projects!$A$5:$A$2393='MDOT FTA Detail'!$D$3)*(Projects!$C$5:$C$2393='MDOT FTA Detail'!$C$4)*(Projects!$L$5:$L$2393='MDOT FTA Detail'!$A96)*(Projects!$J$5:$J$2393<>'MDOT FTA Detail'!$A$171)*(Projects!$Q$5:Q$2393)) -> 0 | G96: =SUMPRODUCT((Projects!$A$5:$A$2393='MDOT FTA Detail'!$G$3)*(Projects!$C$5:$C$2393='MDOT FTA Detail'!$C$4)*(Projects!$L$5:$L$2393='MDOT FTA Detail'!$A96)*(Projects!$J$5:$J$2393<>'MDOT FTA Detail'!$A$171)*(Projects!$K$5:K$2393)) -> 0 | H96: 0 | I96: =SUMPRODUCT((Projects!$A$5:$A$2393='MDOT FTA Detail'!$G$3)*(Projects!$C$5:$C$2393='MDOT FTA Detail'!$C$4)*(Projects!$L$5:$L$2393='MDOT FTA Detail'!$A96)*(Projects!$J$5:$J$2393<>'MDOT FTA Detail'!$A$171)*(Projects!$Q$5:Q$2393)) -> 0 | J96: =SUMPRODUCT((Projects!$A$5:$A$2393='MDOT FTA Detail'!$J$3)*(Projects!$C$5:$C$2393='MDOT FTA Detail'!$C$4)*(Projects!$L$5:$L$2393='MDOT FTA Detail'!$A96)*(Projects!$J$5:$J$2393<>'MDOT FTA Detail'!$A$171)*(Projects!$K$5:$K$2393)) -> 0 | K96: 0 | L96: =SUMPRODUCT((Projects!$A$5:$A$2393='MDOT FTA Detail'!$J$3)*(Projects!$C$5:$C$2393='MDOT FTA Detail'!$C$4)*(Projects!$L$5:$L$2393='MDOT FTA Detail'!$A96)*(Projects!$J$5:$J$2393<>'MDOT FTA Detail'!$A$171)*(Projects!$Q$5:$Q$2393)) -> 0 | M96: =SUMPRODUCT((Projects!$A$5:$A$2393='MDOT FTA Detail'!$M$3)*(Projects!$C$5:$C$2393='MDOT FTA Detail'!$C$4)*(Projects!$L$5:$L$2393='MDOT FTA Detail'!$A96)*(Projects!$J$5:$J$2393<>'MDOT FTA Detail'!$A$171)*(Projects!$K$5:$K$2393)) -> 0 | N96: 0 | O96: =SUMPRODUCT((Projects!$A$5:$A$2393='MDOT FTA Detail'!$M$3)*(Projects!$C$5:$C$2393='MDOT FTA Detail'!$C$4)*(Projects!$L$5:$L$2393='MDOT FTA Detail'!$A96)*(Projects!$J$5:$J$2393<>'MDOT FTA Detail'!$A$171)*(Projects!$Q$5:$Q$2393)) -> 0
